Workbook

Sheet ProjectInformation
A1: CPN DATA
A2: INFORMATION ADDED BY DESIGNER
A3: Section Engineer | B3: Flattery
A4: Design Team | B4: Bell
B5: Paul
A6: County | B6: BENTON
A7: Project Number | B7: NHSX-030-6(231)--3H-06
A8: English or Metric | B8: ENGLISH
A9: Revised
A10: Bridge Block
A11: File No.

Sheet PrintSheets
B94: FILE NO. | I94: =IF(ProjectInformation!$B$11<>"",ProjectInformation!$B$11,"") ->  | P94: =UPPER(ProjectInformation!B8) -> ENGLISH | W94: DESIGN TEAM | AF94: =IF(AND(ProjectInformation!$B$3<>"",ProjectInformation!$B$4<>"",ProjectInformation!$B$5<>""),ProjectInformation!$B$3&"\"&ProjectInformation!$B$4&"\"&ProjectInformation!$B$5,IF(AND(ProjectInformation!$B$3<>"",ProjectInformation!$B$4<>""),ProjectInformation!$B$3&"\"&ProjectInformation!$B$4,IF(ProjectInformation!$B$3<>"",ProjectInformation!$B$3,""))) -> Flattery\Bell\Paul | BN94: =IF(ProjectInformation!$B$6<>"",ProjectInformation!$B$6,"") -> BENTON | CX94: COUNTY | DD94: PROJECT NUMBER | DP94: =IF(ProjectInformation!$B$7<>"",ProjectInformation!$B$7,"") -> NHSX-030-6(231)--3H-06 | ET94: SHEET NUMBER | FD94: CE.1 | FJ94: =IF(FP94<>"","REVISED","") ->  | FP94: =IF(ProjectInformation!$B$9<>"",ProjectInformation!$B$9,"") -> 
B95: 2/19/2018 8:52:40 AM jbottje c:\pw_work\pwmain\jbottje\d0797678\06030231CE01.xlsm
B189: FILE NO. | I189: =IF(ProjectInformation!$B$11<>"",ProjectInformation!$B$11,"") ->  | P189: =UPPER(ProjectInformation!B8) -> ENGLISH | W189: DESIGN TEAM | AF189: =IF(AND(ProjectInformation!$B$3<>"",ProjectInformation!$B$4<>"",ProjectInformation!$B$5<>""),ProjectInformation!$B$3&"\"&ProjectInformation!$B$4&"\"&ProjectInformation!$B$5,IF(AND(ProjectInformation!$B$3<>"",ProjectInformation!$B$4<>""),ProjectInformation!$B$3&"\"&ProjectInformation!$B$4,IF(ProjectInformation!$B$3<>"",ProjectInformation!$B$3,""))) -> Flattery\Bell\Paul | BN189: =IF(ProjectInformation!$B$6<>"",ProjectInformation!$B$6,"") -> BENTON | CX189: COUNTY | DD189: PROJECT NUMBER | DP189: =IF(ProjectInformation!$B$7<>"",ProjectInformation!$B$7,"") -> NHSX-030-6(231)--3H-06 | ET189: SHEET NUMBER | FD189: =IF($FD$94<>"","CE."& MID(OFFSET($FD$189,-95,0),4,LEN(OFFSET($FD$189,-95,0))-2)+1,"") -> CE.2 | FJ189: =IF(FP189<>"","REVISED","") ->  | FP189: =IF(ProjectInformation!$B$9<>"",ProjectInformation!$B$9,"") -> 
B190: 2/19/2018 8:52:40 AM jbottje c:\pw_work\pwmain\jbottje\d0797678\06030231CE01.xlsm
B284: FILE NO. | I284: =IF(ProjectInformation!$B$11<>"",ProjectInformation!$B$11,"") ->  | P284: =UPPER(ProjectInformation!B8) -> ENGLISH | W284: DESIGN TEAM | AF284: =IF(AND(ProjectInformation!$B$3<>"",ProjectInformation!$B$4<>"",ProjectInformation!$B$5<>""),ProjectInformation!$B$3&"\"&ProjectInformation!$B$4&"\"&ProjectInformation!$B$5,IF(AND(ProjectInformation!$B$3<>"",ProjectInformation!$B$4<>""),ProjectInformation!$B$3&"\"&ProjectInformation!$B$4,IF(ProjectInformation!$B$3<>"",ProjectInformation!$B$3,""))) -> Flattery\Bell\Paul | BN284: =IF(ProjectInformation!$B$6<>"",ProjectInformation!$B$6,"") -> BENTON | CX284: COUNTY | DD284: PROJECT NUMBER | DP284: =IF(ProjectInformation!$B$7<>"",ProjectInformation!$B$7,"") -> NHSX-030-6(231)--3H-06 | ET284: SHEET NUMBER | FD284: =IF($FD$189<>"","CE."& MID(OFFSET($FD$284,-95,0),4,LEN(OFFSET($FD$284,-95,0))-2)+1,"") -> CE.3 | FJ284: =IF(FP284<>"","REVISED","") ->  | FP284: =IF(ProjectInformation!$B$9<>"",ProjectInformation!$B$9,"") -> 
B285: 2/19/2018 8:52:40 AM jbottje c:\pw_work\pwmain\jbottje\d0797678\06030231CE01.xlsm
B379: FILE NO. | I379: =IF(ProjectInformation!$B$11<>"",ProjectInformation!$B$11,"") ->  | P379: =UPPER(ProjectInformation!B8) -> ENGLISH | W379: DESIGN TEAM | AF379: =IF(AND(ProjectInformation!$B$3<>"",ProjectInformation!$B$4<>"",ProjectInformation!$B$5<>""),ProjectInformation!$B$3&"\"&ProjectInformation!$B$4&"\"&ProjectInformation!$B$5,IF(AND(ProjectInformation!$B$3<>"",ProjectInformation!$B$4<>""),ProjectInformation!$B$3&"\"&ProjectInformation!$B$4,IF(ProjectInformation!$B$3<>"",ProjectInformation!$B$3,""))) -> Flattery\Bell\Paul | BN379: =IF(ProjectInformation!$B$6<>"",ProjectInformation!$B$6,"") -> BENTON | CX379: COUNTY | DD379: PROJECT NUMBER | DP379: =IF(ProjectInformation!$B$7<>"",ProjectInformation!$B$7,"") -> NHSX-030-6(231)--3H-06 | ET379: SHEET NUMBER | FD379: =IF($FD$284<>"","CE."& MID(OFFSET($FD$379,-95,0),4,LEN(OFFSET($FD$379,-95,0))-2)+1,"") -> CE.4 | FJ379: =IF(FP379<>"","REVISED","") ->  | FP379: =IF(ProjectInformation!$B$9<>"",ProjectInformation!$B$9,"") -> 
B380: 2/19/2018 8:52:41 AM jbottje c:\pw_work\pwmain\jbottje\d0797678\06030231CE01.xlsm
B474: FILE NO. | I474: =IF(ProjectInformation!$B$11<>"",ProjectInformation!$B$11,"") ->  | P474: =UPPER(ProjectInformation!B8) -> ENGLISH | W474: DESIGN TEAM | AF474: =IF(AND(ProjectInformation!$B$3<>"",ProjectInformation!$B$4<>"",ProjectInformation!$B$5<>""),ProjectInformation!$B$3&"\"&ProjectInformation!$B$4&"\"&ProjectInformation!$B$5,IF(AND(ProjectInformation!$B$3<>"",ProjectInformation!$B$4<>""),ProjectInformation!$B$3&"\"&ProjectInformation!$B$4,IF(ProjectInformation!$B$3<>"",ProjectInformation!$B$3,""))) -> Flattery\Bell\Paul | BN474: =IF(ProjectInformation!$B$6<>"",ProjectInformation!$B$6,"") -> BENTON | CX474: COUNTY | DD474: PROJECT NUMBER | DP474: =IF(ProjectInformation!$B$7<>"",ProjectInformation!$B$7,"") -> NHSX-030-6(231)--3H-06 | ET474: SHEET NUMBER | FD474: =IF($FD$379<>"","CE."& MID(OFFSET($FD$474,-95,0),4,LEN(OFFSET($FD$474,-95,0))-2)+1,"") -> CE.5 | FJ474: =IF(FP474<>"","REVISED","") ->  | FP474: =IF(ProjectInformation!$B$9<>"",ProjectInformation!$B$9,"") -> 
B475: 2/19/2018 8:52:41 AM jbottje c:\pw_work\pwmain\jbottje\d0797678\06030231CE01.xlsm
B569: FILE NO. | I569: =IF(ProjectInformation!$B$11<>"",ProjectInformation!$B$11,"") ->  | P569: =UPPER(ProjectInformation!B8) -> ENGLISH | W569: DESIGN TEAM | AF569: =IF(AND(ProjectInformation!$B$3<>"",ProjectInformation!$B$4<>"",ProjectInformation!$B$5<>""),ProjectInformation!$B$3&"\"&ProjectInformation!$B$4&"\"&ProjectInformation!$B$5,IF(AND(ProjectInformation!$B$3<>"",ProjectInformation!$B$4<>""),ProjectInformation!$B$3&"\"&ProjectInformation!$B$4,IF(ProjectInformation!$B$3<>"",ProjectInformation!$B$3,""))) -> Flattery\Bell\Paul | BN569: =IF(ProjectInformation!$B$6<>"",ProjectInformation!$B$6,"") -> BENTON | CX569: COUNTY | DD569: PROJECT NUMBER | DP569: =IF(ProjectInformation!$B$7<>"",ProjectInformation!$B$7,"") -> NHSX-030-6(231)--3H-06 | ET569: SHEET NUMBER | FD569: =IF($FD$474<>"","CE."& MID(OFFSET($FD$569,-95,0),4,LEN(OFFSET($FD$569,-95,0))-2)+1,"") -> CE.6 | FJ569: =IF(FP569<>"","REVISED","") ->  | FP569: =IF(ProjectInformation!$B$9<>"",ProjectInformation!$B$9,"") -> 
B570: 2/19/2018 8:52:42 AM jbottje c:\pw_work\pwmain\jbottje\d0797678\06030231CE01.xlsm
B664: FILE NO. | I664: =IF(ProjectInformation!$B$11<>"",ProjectInformation!$B$11,"") ->  | P664: =UPPER(ProjectInformation!B8) -> ENGLISH | W664: DESIGN TEAM | AF664: =IF(AND(ProjectInformation!$B$3<>"",ProjectInformation!$B$4<>"",ProjectInformation!$B$5<>""),ProjectInformation!$B$3&"\"&ProjectInformation!$B$4&"\"&ProjectInformation!$B$5,IF(AND(ProjectInformation!$B$3<>"",ProjectInformation!$B$4<>""),ProjectInformation!$B$3&"\"&ProjectInformation!$B$4,IF(ProjectInformation!$B$3<>"",ProjectInformation!$B$3,""))) -> Flattery\Bell\Paul | BN664: =IF(ProjectInformation!$B$6<>"",ProjectInformation!$B$6,"") -> BENTON | CX664: COUNTY | DD664: PROJECT NUMBER | DP664: =IF(ProjectInformation!$B$7<>"",ProjectInformation!$B$7,"") -> NHSX-030-6(231)--3H-06 | ET664: SHEET NUMBER | FD664: =IF($FD$569<>"","CE."& MID(OFFSET($FD$664,-95,0),4,LEN(OFFSET($FD$664,-95,0))-2)+1,"") -> CE.7 | FJ664: =IF(FP664<>"","REVISED","") ->  | FP664: =IF(ProjectInformation!$B$9<>"",ProjectInformation!$B$9,"") -> 
B665: 2/19/2018 8:52:42 AM jbottje c:\pw_work\pwmain\jbottje\d0797678\06030231CE01.xlsm
B759: FILE NO. | I759: =IF(ProjectInformation!$B$11<>"",ProjectInformation!$B$11,"") ->  | P759: =UPPER(ProjectInformation!B8) -> ENGLISH | W759: DESIGN TEAM | AF759: =IF(AND(ProjectInformation!$B$3<>"",ProjectInformation!$B$4<>"",ProjectInformation!$B$5<>""),ProjectInformation!$B$3&"\"&ProjectInformation!$B$4&"\"&ProjectInformation!$B$5,IF(AND(ProjectInformation!$B$3<>"",ProjectInformation!$B$4<>""),ProjectInformation!$B$3&"\"&ProjectInformation!$B$4,IF(ProjectInformation!$B$3<>"",ProjectInformation!$B$3,""))) -> Flattery\Bell\Paul | BN759: =IF(ProjectInformation!$B$6<>"",ProjectInformation!$B$6,"") -> BENTON | CX759: COUNTY | DD759: PROJECT NUMBER | DP759: =IF(ProjectInformation!$B$7<>"",ProjectInformation!$B$7,"") -> NHSX-030-6(231)--3H-06 | ET759: SHEET NUMBER | FD759: =IF($FD$664<>"","CE."& MID(OFFSET($FD$759,-95,0),4,LEN(OFFSET($FD$759,-95,0))-2)+1,"") -> CE.8 | FJ759: =IF(FP759<>"","REVISED","") ->  | FP759: =IF(ProjectInformation!$B$9<>"",ProjectInformation!$B$9,"") -> 
B760: 2/19/2018 8:52:43 AM jbottje c:\pw_work\pwmain\jbottje\d0797678\06030231CE01.xlsm
B854: FILE NO. | I854: =IF(ProjectInformation!$B$11<>"",ProjectInformation!$B$11,"") ->  | P854: =UPPER(ProjectInformation!B8) -> ENGLISH | W854: DESIGN TEAM | AF854: =IF(AND(ProjectInformation!$B$3<>"",ProjectInformation!$B$4<>"",ProjectInformation!$B$5<>""),ProjectInformation!$B$3&"\"&ProjectInformation!$B$4&"\"&ProjectInformation!$B$5,IF(AND(ProjectInformation!$B$3<>"",ProjectInformation!$B$4<>""),ProjectInformation!$B$3&"\"&ProjectInformation!$B$4,IF(ProjectInformation!$B$3<>"",ProjectInformation!$B$3,""))) -> Flattery\Bell\Paul | BN854: =IF(ProjectInformation!$B$6<>"",ProjectInformation!$B$6,"") -> BENTON | CX854: COUNTY | DD854: PROJECT NUMBER | DP854: =IF(ProjectInformation!$B$7<>"",ProjectInformation!$B$7,"") -> NHSX-030-6(231)--3H-06 | ET854: SHEET NUMBER | FD854: =IF($FD$759<>"","CE."& MID(OFFSET($FD$854,-95,0),4,LEN(OFFSET($FD$854,-95,0))-2)+1,"") -> CE.9 | FJ854: =IF(FP854<>"","REVISED","") ->  | FP854: =IF(ProjectInformation!$B$9<>"",ProjectInformation!$B$9,"") -> 
B855: 2/19/2018 8:52:44 AM jbottje c:\pw_work\pwmain\jbottje\d0797678\06030231CE01.xlsm
B949: FILE NO. | I949: =IF(ProjectInformation!$B$11<>"",ProjectInformation!$B$11,"") ->  | P949: =UPPER(ProjectInformation!B8) -> ENGLISH | W949: DESIGN TEAM | AF949: =IF(AND(ProjectInformation!$B$3<>"",ProjectInformation!$B$4<>"",ProjectInformation!$B$5<>""),ProjectInformation!$B$3&"\"&ProjectInformation!$B$4&"\"&ProjectInformation!$B$5,IF(AND(ProjectInformation!$B$3<>"",ProjectInformation!$B$4<>""),ProjectInformation!$B$3&"\"&ProjectInformation!$B$4,IF(ProjectInformation!$B$3<>"",ProjectInformation!$B$3,""))) -> Flattery\Bell\Paul | BN949: =IF(ProjectInformation!$B$6<>"",ProjectInformation!$B$6,"") -> BENTON | CX949: COUNTY | DD949: PROJECT NUMBER | DP949: =IF(ProjectInformation!$B$7<>"",ProjectInformation!$B$7,"") -> NHSX-030-6(231)--3H-06 | ET949: SHEET NUMBER | FD949: =IF($FD$854<>"","CE."& MID(OFFSET($FD$949,-95,0),4,LEN(OFFSET($FD$949,-95,0))-2)+1,"") -> CE.10 | FJ949: =IF(FP949<>"","REVISED","") ->  | FP949: =IF(ProjectInformation!$B$9<>"",ProjectInformation!$B$9,"") -> 
B950: 2/19/2018 8:52:44 AM jbottje c:\pw_work\pwmain\jbottje\d0797678\06030231CE01.xlsm

Sheet DE100_14
A1: TabTitle | B1: =C16 -> SILT BASINS
A2: Number of Tab Columns | B2: 11
A3: DE Starter Row Number | B3: 38
A4: TabSheet Starter Row Number | B4: 24
A5: TabSheet Header Row Count | B5: 23
A6: Top Header Cell | B6: P15
A7: Bottom Header Cell | B7: Z37
A8: DESheet Row Count | B8: 80
A9: Fixed Empty Rows | B9: 54
A10: Usable Empty Rows | B10: 0
A11: Total Rows Placed | B11: 134 | C11: xlRight(1) | D11: xlRight(1) | E11: xlLeft(1) | F11: xlRight(1) | G11: xlRight(1) | H11: xlRight(1) | I11: xlRight(1) | J11: xlRight(1) | K11: xlRight(1) | L11: xlRight(1) | N11: xlLeft(1) | P11: =C11 -> xlRight(1) | Q11: xlRight(1) | R11: xlLeft(1) | S11: xlRight(1) | T11: xlRight(1) | U11: xlRight(1) | V11: xlRight(1) | W11: xlRight(1) | X11: xlRight(1) | Y11: =L11 -> xlRight(1) | Z11: =N11 -> xlLeft(1)
A12: Total Rows Needed | B12: =SUM(B8:B10) -> 134 | C12: 0 | D12: #+00.00 | E12: General | F12: General | G12: General | H12: 0.0 | I12: 0.0 | J12: 0.00 | K12: 0.0% | L12: 0.0 | N12: General | P12: 0 | Q12: #+00.00 | R12: General | S12: General | T12: General | U12: 0.0 | V12: 0.0 | W12: 0.00 | X12: 0.0% | Y12: =L12 -> 0.0 | Z12: General
A13: Last Tab DE Starter Row | B13: 105 | C13: =CELL("width",C13) -> 6 | D13: =CELL("width",D13) -> 16 | E13: =CELL("width",E13) -> 10 | F13: =CELL("width",F13) -> 16 | G13: =CELL("width",G13) -> 16 | H13: =CELL("width",H13) -> 14 | I13: 14 | J13: 14 | K13: 14 | L13: 14 | N13: =CELL("width",N13) -> 17 | P13: =CELL("width",P13) -> 0 | Q13: =CELL("width",Q13) -> 0 | R13: =CELL("width",R13) -> 0 | S13: =CELL("width",S13) -> 0 | T13: =CELL("width",T13) -> 0 | U13: =CELL("width",U13) -> 0 | V13: 0 | W13: 0 | X13: 0 | Y13: 0 | Z13: =CELL("width",Z13) -> 0
A14: Last Tab TabSheet Starter Row | B14: 114 | C14: A | D14: B | E14: C | F14: D | G14: E | H14: F | I14: G | J14: H | K14: I | L14: J | N14: K | P14: =LOWER(C14) -> a | Q14: b | R14: c | S14: d | T14: e | U14: f | V14: g | W14: h | X14: i | Y14: j | Z14: =LOWER(N14) -> k
A15: Last Copy Starter Row | B15: 91 | C15: Totals: | L15: =SUBTOTAL(9,L38:L5999) -> 78625 | P15: 100-14
A16: Tab Loop Number | B16: 3 | C16: SILT BASINS | P16: =B17 -> 2017-10-17
A17: Revision Date | B17: 2017-10-17 | P17: =C16 -> SILT BASINS
A18: Tabulation Width | B18: 2 | C18: Possible Standard: EW-403
A19: Horizontal Grid Lines | B19: Yes | P19: =C18 -> Possible Standard: EW-403
C32: * The functional height used in the volume equation is 95% of effective height. Effective height is 3 feet as shown in EW-403.
C33: * Volume equation: (0.5*Length*(Width*Height+Width*(Height-Length*Avg%Slope)) | P33: =C32 -> * The functional height used in the volume equation is 95% of effective height. Effective height is 3 feet as shown in EW-403.
C34: ="This Data Entry Sheet fills Tab "&P15&" effective "&TEXT(B17,"mm-dd-yy") -> This Data Entry Sheet fills Tab 100-14 effective 10-17-17 | P34: =C33 -> * Volume equation: (0.5*Length*(Width*Height+Width*(Height-Length*Avg%Slope))
C35: Basin No. | D35: Location | F35: Bid Items | H35: Stormwater Storage Volume Summary | M35: Subtotal | N35: Remarks | P35: =C35 -> Basin No. | Q35: =D35 -> Location | S35: =F35 -> Bid Items | U35: =H35 -> Stormwater Storage Volume Summary | Z35: =N35 -> Remarks
D36: Station | E36: Side | F36: Installation | G36: Removal | H36: Basin Width | I36: Basin Length | J36: Height | K36: Avg. % Slope | L36: Volume* | Q36: =D36 -> Station | R36: =E36 -> Side | S36: =F36 -> Installation | T36: =G36 -> Removal | U36: =H36 -> Basin Width | V36: =I36 -> Basin Length | W36: =J36 -> Height | X36: =K36 -> Avg. % Slope | Y36: =L36 -> Volume*
F37: EACH | G37: EACH | H37: FT | I37: FT | J37: FT | L37: CF | S37: =F37 -> EACH | T37: =G37 -> EACH | U37: =H37 -> FT | V37: =I37 -> FT | W37: =J37 -> FT | Y37: CF
H38: =IF(D38<>"",10,"") ->  | I38: =IF(D38<>"",50,"") ->  | J38: =IF(D38<>"",3*0.95,"") ->  | L38: =IF(D38<>"",IF(J38-I38*K38<=0,0.5*I38*H38*J38,0.5*I38*(H38*J38+(H38*(J38-I38*K38)))),"") -> 
D39: US 30 | E39: Stage 2
C40: 3 | D40: 142490 | E40: RT | F40: 1 | G40: 1 | H40: =IF(D40<>"",10,"") -> 10 | I40: =IF(D40<>"",50,"") -> 50 | J40: =IF(D40<>"",3*0.95,"") -> 2.85 | K40: 0.012 | L40: =IF(D40<>"",IF(J40-I40*K41<=0,0.5*I40*H40*J40,0.5*I40*(H40*J40+(H40*(J40-I40*K41)))),"") -> 1275
C41: 3 | D41: 142560 | E41: RT | F41: 1 | G41: 1 | H41: 10 | I41: 50 | J41: 2.85 | K41: 0.012 | L41: 1375
C42: 4 | D42: 145340 | E42: RT | F42: 1 | G42: 1 | H42: 10 | I42: 50 | J42: 2.85 | K42: 0.004 | L42: 1362.5
C43: 4 | D43: 145410 | E43: RT | F43: 1 | G43: 1 | H43: 10 | I43: 50 | J43: 2.85 | K43: 0.005 | L43: 1287.5
C44: 5 | D44: 146080 | E44: RT | F44: 1 | G44: 1 | H44: 10 | I44: 50 | J44: 2.85 | K44: 0.011 | L44: 1325
C45: 5 | D45: 146945 | E45: RT | F45: 1 | G45: 1 | H45: 10 | I45: 50 | J45: 2.85 | K45: 0.008 | L45: 1325
C46: 5 | D46: 147035 | E46: RT | F46: 1 | G46: 1 | H46: 10 | I46: 50 | J46: 2.85 | K46: 0.008 | L46: 1137.5
C47: 7 | D47: 148324 | E47: RT | F47: 1 | G47: 1 | H47: 10 | I47: 50 | J47: 2.85 | K47: 0.023 | L47: 1062.5
C48: 7 | D48: 148415 | E48: RT | F48: 1 | G48: 1 | H48: 10 | I48: 50 | J48: 2.85 | K48: 0.029 | L48: 1375
C49: 8 | D49: 149331 | E49: RT | F49: 1 | G49: 1 | H49: 10 | I49: 50 | J49: 2.85 | K49: 0.004 | L49: 1312.5
C50: 8 | D50: 149392 | E50: RT | F50: 1 | G50: 1 | H50: 10 | I50: 50 | J50: 2.85 | K50: 0.009 | L50: 1262.5
C51: 9 | D51: 150570 | E51: RT | F51: 1 | G51: 1 | H51: 10 | I51: 50 | J51: 2.85 | K51: 0.013 | L51: 1262.5
C52: 9 | D52: 150630 | E52: RT | F52: 1 | G52: 1 | H52: 10 | I52: 50 | J52: 2.85 | K52: 0.013 | L52: 1062.5
C53: 12 | D53: 153250 | E53: RT | F53: 1 | G53: 1 | H53: 10 | I53: 50 | J53: 2.85 | K53: 0.029 | L53: 925
C54: 1 | D54: 138815 | E54: Med | F54: 1 | G54: 1 | H54: 10 | I54: 50 | J54: 2.85 | K54: 0.04 | L54: 1137.5
C55: 2 | D55: 140080 | E55: Med | F55: 1 | G55: 1 | H55: 10 | I55: 50 | J55: 2.85 | K55: 0.023 | L55: 925
C56: 2 | D56: 140110 | E56: Med | F56: 1 | G56: 1 | H56: 10 | I56: 50 | J56: 2.85 | K56: 0.04 | L56: 1387.5
C57: 3 | D57: 142535 | E57: Med | F57: 1 | G57: 1 | H57: 10 | I57: 50 | J57: 2.85 | K57: 0.003 | L57: 1287.5
C58: 3 | D58: 142560 | E58: Med | F58: 1 | G58: 1 | H58: 10 | I58: 50 | J58: 2.85 | K58: 0.011 | L58: 1400
C59: 5 | D59: 145395 | E59: Med | F59: 1 | G59: 1 | H59: 10 | I59: 50 | J59: 2.85 | K59: 0.002 | L59: 1325
C60: 5 | D60: 145405 | E60: Med | F60: 1 | G60: 1 | H60: 10 | I60: 50 | J60: 2.85 | K60: 0.008 | L60: 1375
C61: 5 | D61: 146070 | E61: Med | F61: 1 | G61: 1 | H61: 10 | I61: 50 | J61: 2.85 | K61: 0.004 | L61: 1387.5
C62: 5 | D62: 146080 | E62: Med | F62: 1 | G62: 1 | H62: 10 | I62: 50 | J62: 2.85 | K62: 0.003 | L62: 1112.5
C63: 12 | D63: 154990 | E63: Med | F63: 1 | G63: 1 | H63: 10 | I63: 50 | J63: 2.85 | K63: 0.025 | L63: 1425
D65: US 30 | E65: Stage 3
C66: 1 | D66: 139695 | E66: Med | F66: 1 | G66: 1 | H66: 10 | I66: 50 | J66: 2.85 | K66: 0.005 | L66: =IF(D66<>"",IF(J66-I66*K67<=0,0.5*I66*H66*J66,0.5*I66*(H66*J66+(H66*(J66-I66*K67)))),"") -> 1412.5
C67: 2 | D67: 140420 | E67: Med | F67: 1 | G67: 1 | H67: 10 | I67: 50 | J67: 2.85 | K67: 0.001 | L67: 1400
C68: 2 | D68: 140480 | E68: Med | F68: 1 | G68: 1 | H68: 10 | I68: 50 | J68: 2.85 | K68: 0.002 | L68: 1325
C69: 2 | D69: 141380 | E69: Med | F69: 1 | G69: 1 | H69: 10 | I69: 50 | J69: 2.85 | K69: 0.008 | L69: 1325
C70: 3 | D70: 143905 | E70: Med | F70: 1 | G70: 1 | H70: 10 | I70: 50 | J70: 2.85 | K70: 0.008 | L70: 1400
C71: 5 | D71: 146470 | E71: Med | F71: 1 | G71: 1 | H71: 10 | I71: 50 | J71: 2.85 | K71: 0.002 | L71: 1412.5
C72: 5 | D72: 146529 | E72: Med | F72: 1 | G72: 1 | H72: 10 | I72: 50 | J72: 2.85 | K72: 0.001 | L72: 1237.5
C73: 5 | D73: 147030 | E73: Med | F73: 1 | G73: 1 | H73: 10 | I73: 50 | J73: 2.85 | K73: 0.015 | L73: 1287.5
C74: 7 | D74: 147704 | E74: Med | F74: 1 | G74: 1 | H74: 10 | I74: 50 | J74: 2.85 | K74: 0.011 | L74: 1375
C75: 9 | D75: 150045 | E75: Med | F75: 1 | G75: 1 | H75: 10 | I75: 50 | J75: 2.85 | K75: 0.004 | L75: 1137.5
C76: 1 | D76: 138748 | E76: LT | F76: 1 | G76: 1 | H76: 10 | I76: 50 | J76: 2.85 | K76: 0.023 | L76: 737.5
C77: 2 | D77: 140042 | E77: LT | F77: 1 | G77: 1 | H77: 10 | I77: 50 | J77: 2.85 | K77: 0.055 | L77: 1312.5
C78: 3 | D78: 142167 | E78: LT | F78: 1 | G78: 1 | H78: 10 | I78: 50 | J78: 2.85 | K78: 0.009 | L78: 1337.5
C79: 3 | D79: 142490 | E79: LT | F79: 1 | G79: 1 | H79: 10 | I79: 50 | J79: 2.85 | K79: 0.007 | L79: 1225
C80: 3 | D80: 142560 | E80: LT | F80: 1 | G80: 1 | H80: 10 | I80: 50 | J80: 2.85 | K80: 0.016 | L80: 1375
C81: 4 | D81: 145344 | E81: LT | F81: 1 | G81: 1 | H81: 10 | I81: 50 | J81: 2.85 | K81: 0.004 | L81: 1237.5
C82: 4 | D82: 145404 | E82: LT | F82: 1 | G82: 1 | H82: 10 | I82: 50 | J82: 2.85 | K82: 0.015 | L82: 1375
C83: 5 | D83: 146400 | E83: LT | F83: 1 | G83: 1 | H83: 10 | I83: 50 | J83: 2.85 | K83: 0.004 | L83: 1275
C84: 5 | D84: 147769 | E84: LT | F84: 1 | G84: 1 | H84: 10 | I84: 50 | J84: 2.85 | K84: 0.012 | L84: 925
C85: 7 | D85: 148345 | E85: LT | F85: 1 | G85: 1 | H85: 10 | I85: 50 | J85: 2.85 | K85: 0.04 | L85: 1225
C86: 7 | D86: 148405 | E86: LT | F86: 1 | G86: 1 | H86: 10 | I86: 50 | J86: 2.85 | K86: 0.016 | L86: 1362.5
C87: 8 | D87: 149330 | E87: LT | F87: 1 | G87: 1 | H87: 10 | I87: 50 | J87: 2.85 | K87: 0.005 | L87: 1362.5
C88: 8 | D88: 149390 | E88: LT | F88: 1 | G88: 1 | H88: 10 | I88: 50 | J88: 2.85 | K88: 0.005 | L88: 1187.5
C89: 11 | D89: 150570 | E89: LT | F89: 1 | G89: 1 | H89: 10 | I89: 50 | J89: 2.85 | K89: 0.019 | L89: 1250
C90: 11 | D90: 150630 | E90: LT | F90: 1 | G90: 1 | H90: 10 | I90: 50 | J90: 2.85 | K90: 0.014 | L90: 1425
D92: 23rd Ave
C93: 3 | D93: 23142030 | E93: RT | F93: 1 | G93: 1 | H93: 10 | I93: 50 | J93: 2.85 | K93: 0.015 | L93: =IF(D93<>"",IF(J93-I93*K94<=0,0.5*I93*H93*J93,0.5*I93*(H93*J93+(H93*(J93-I93*K94)))),"") -> 1275
C94: 3 | D94: 23142095 | E94: RT | F94: 1 | G94: 1 | H94: 10 | I94: 50 | J94: 2.85 | K94: 0.012 | L94: =IF(D94<>"",IF(J94-I94*K95<=0,0.5*I94*H94*J94,0.5*I94*(H94*J94+(H94*(J94-I94*K95)))),"") -> 1162.5
C95: 3 | D95: 23142025 | E95: LT | F95: 1 | G95: 1 | H95: 10 | I95: 50 | J95: 2.85 | K95: 0.021 | L95: =IF(D95<>"",IF(J95-I95*K96<=0,0.5*I95*H95*J95,0.5*I95*(H95*J95+(H95*(J95-I95*K96)))),"") -> 950
C96: 3 | D96: 23142435 | E96: LT | F96: 1 | G96: 1 | H96: 10 | I96: 50 | J96: 2.85 | K96: 0.038 | L96: =IF(D96<>"",IF(J96-I96*K97<=0,0.5*I96*H96*J96,0.5*I96*(H96*J96+(H96*(J96-I96*K97)))),"") -> 1425
L97: =IF(D97<>"",IF(J97-I97*K98<=0,0.5*I97*H97*J97,0.5*I97*(H97*J97+(H97*(J97-I97*K98)))),"") -> 
D98: Ramp A
C99: 7 | D99: 1148745 | E99: RT | F99: 1 | G99: 1 | H99: 10 | I99: 50 | J99: 2.85 | K99: 0.009 | L99: =IF(D99<>"",IF(J99-I99*K100<=0,0.5*I99*H99*J99,0.5*I99*(H99*J99+(H99*(J99-I99*K100)))),"") -> 1050
C100: 7 | D100: 1148808 | E100: RT | F100: 1 | G100: 1 | H100: 10 | I100: 50 | J100: 2.85 | K100: 0.03 | L100: =IF(D100<>"",IF(J100-I100*K101<=0,0.5*I100*H100*J100,0.5*I100*(H100*J100+(H100*(J100-I100*K101)))),"") -> 1425
L101: =IF(D101<>"",IF(J101-I101*K102<=0,0.5*I101*H101*J101,0.5*I101*(H101*J101+(H101*(J101-I101*K102)))),"") -> 
D102: Ramp B
C103: 5 | D103: 2147018 | E103: RT | F103: 1 | G103: 1 | H103: 10 | I103: 50 | J103: =IF(D103<>"",3*0.95,"") -> 2.85 | K103: 0.014 | L103: =IF(D103<>"",IF(J103-I103*K104<=0,0.5*I103*H103*J103,0.5*I103*(H103*J103+(H103*(J103-I103*K104)))),"") -> 1300
C104: 5 | D104: 2147333 | E104: RT | F104: 1 | G104: 1 | H104: =IF(D104<>"",10,"") -> 10 | I104: =IF(D104<>"",50,"") -> 50 | J104: 2.85 | K104: 0.01 | L104: =IF(D104<>"",IF(J104-I104*K105<=0,0.5*I104*H104*J104,0.5*I104*(H104*J104+(H104*(J104-I104*K105)))),"") -> 1125
C105: 5 | D105: 2147405 | E105: RT | F105: 1 | G105: 1 | H105: 10 | I105: 50 | J105: 2.85 | K105: 0.024 | L105: =IF(D105<>"",IF(J105-I105*K106<=0,0.5*I105*H105*J105,0.5*I105*(H105*J105+(H105*(J105-I105*K106)))),"") -> 1425
L106: =IF(D106<>"",IF(J106-I106*K107<=0,0.5*I106*H106*J106,0.5*I106*(H106*J106+(H106*(J106-I106*K107)))),"") -> 
D107: Ramp C
C108: 5 | D108: 3145613 | E108: RT | F108: 1 | G108: 1 | H108: 10 | I108: 50 | J108: 2.85 | K108: 0.004 | L108: =IF(D108<>"",IF(J108-I108*K109<=0,0.5*I108*H108*J108,0.5*I108*(H108*J108+(H108*(J108-I108*K109)))),"") -> 1312.5
C109: 5 | D109: 3145676 | E109: RT | F109: 1 | G109: 1 | H109: 10 | I109: 50 | J109: 2.85 | K109: 0.009 | L109: =IF(D109<>"",IF(J109-I109*K110<=0,0.5*I109*H109*J109,0.5*I109*(H109*J109+(H109*(J109-I109*K110)))),"") -> 1375
C110: 5 | D110: 3145317 | E110: LT | F110: 1 | G110: 1 | H110: 10 | I110: 50 | J110: 2.85 | K110: 0.004 | L110: =IF(D110<>"",IF(J110-I110*K111<=0,0.5*I110*H110*J110,0.5*I110*(H110*J110+(H110*(J110-I110*K111)))),"") -> 1425
L111: =IF(D111<>"",IF(J111-I111*K112<=0,0.5*I111*H111*J111,0.5*I111*(H111*J111+(H111*(J111-I111*K112)))),"") -> 
D112: Ramp D
C113: 7 | D113: 4147625 | E113: RT | F113: 1 | G113: 1 | H113: 10 | I113: 50 | J113: 2.85 | K113: 0.007 | L113: =IF(D113<>"",IF(J113-I113*K113<=0,0.5*I113*H113*J113,0.5*I113*(H113*J113+(H113*(J113-I113*K113)))),"") -> 1337.5
D116: TOTALS: | F116: =SUM(F40:F113) -> 62 | G116: =SUM(G40:G113) -> 62
J167: =IF(D167<>"",3*0.95,"") ->  | L167: =IF(D167<>"",IF(J167-I167*K167<=0,0.5*I167*H167*J167,0.5*I167*(H167*J167+(H167*(J167-I167*K167)))),"") -> 
H168: =IF(D168<>"",10,"") ->  | I168: =IF(D168<>"",50,"") -> 
J231: =IF(D231<>"",3*0.95,"") ->  | L231: =IF(D231<>"",IF(J231-I231*K231<=0,0.5*I231*H231*J231,0.5*I231*(H231*J231+(H231*(J231-I231*K231)))),"") -> 
H232: =IF(D232<>"",10,"") ->  | I232: =IF(D232<>"",50,"") -> 
J295: =IF(D295<>"",3*0.95,"") ->  | L295: =IF(D295<>"",IF(J295-I295*K295<=0,0.5*I295*H295*J295,0.5*I295*(H295*J295+(H295*(J295-I295*K295)))),"") -> 
H296: =IF(D296<>"",10,"") ->  | I296: =IF(D296<>"",50,"") -> 
J359: =IF(D359<>"",3*0.95,"") ->  | L359: =IF(D359<>"",IF(J359-I359*K359<=0,0.5*I359*H359*J359,0.5*I359*(H359*J359+(H359*(J359-I359*K359)))),"") -> 
H360: =IF(D360<>"",10,"") ->  | I360: =IF(D360<>"",50,"") -> 
J423: =IF(D423<>"",3*0.95,"") ->  | L423: =IF(D423<>"",IF(J423-I423*K423<=0,0.5*I423*H423*J423,0.5*I423*(H423*J423+(H423*(J423-I423*K423)))),"") -> 
H424: =IF(D424<>"",10,"") ->  | I424: =IF(D424<>"",50,"") -> 
J487: =IF(D487<>"",3*0.95,"") ->  | L487: =IF(D487<>"",IF(J487-I487*K487<=0,0.5*I487*H487*J487,0.5*I487*(H487*J487+(H487*(J487-I487*K487)))),"") -> 
H488: =IF(D488<>"",10,"") ->  | I488: =IF(D488<>"",50,"") -> 
J551: =IF(D551<>"",3*0.95,"") ->  | L551: =IF(D551<>"",IF(J551-I551*K551<=0,0.5*I551*H551*J551,0.5*I551*(H551*J551+(H551*(J551-I551*K551)))),"") -> 
H552: =IF(D552<>"",10,"") ->  | I552: =IF(D552<>"",50,"") -> 
J615: =IF(D615<>"",3*0.95,"") ->  | L615: =IF(D615<>"",IF(J615-I615*K615<=0,0.5*I615*H615*J615,0.5*I615*(H615*J615+(H615*(J615-I615*K615)))),"") -> 
H616: =IF(D616<>"",10,"") ->  | I616: =IF(D616<>"",50,"") -> 
J679: =IF(D679<>"",3*0.95,"") ->  | L679: =IF(D679<>"",IF(J679-I679*K679<=0,0.5*I679*H679*J679,0.5*I679*(H679*J679+(H679*(J679-I679*K679)))),"") -> 
H680: =IF(D680<>"",10,"") ->  | I680: =IF(D680<>"",50,"") -> 
J743: =IF(D743<>"",3*0.95,"") ->  | L743: =IF(D743<>"",IF(J743-I743*K743<=0,0.5*I743*H743*J743,0.5*I743*(H743*J743+(H743*(J743-I743*K743)))),"") -> 
H744: =IF(D744<>"",10,"") ->  | I744: =IF(D744<>"",50,"") -> 
J807: =IF(D807<>"",3*0.95,"") ->  | L807: =IF(D807<>"",IF(J807-I807*K807<=0,0.5*I807*H807*J807,0.5*I807*(H807*J807+(H807*(J807-I807*K807)))),"") -> 
H808: =IF(D808<>"",10,"") ->  | I808: =IF(D808<>"",50,"") -> 
J871: =IF(D871<>"",3*0.95,"") ->  | L871: =IF(D871<>"",IF(J871-I871*K871<=0,0.5*I871*H871*J871,0.5*I871*(H871*J871+(H871*(J871-I871*K871)))),"") -> 
H872: =IF(D872<>"",10,"") ->  | I872: =IF(D872<>"",50,"") -> 
J935: =IF(D935<>"",3*0.95,"") ->  | L935: =IF(D935<>"",IF(J935-I935*K935<=0,0.5*I935*H935*J935,0.5*I935*(H935*J935+(H935*(J935-I935*K935)))),"") -> 
H936: =IF(D936<>"",10,"") ->  | I936: =IF(D936<>"",50,"") -> 
J999: =IF(D999<>"",3*0.95,"") ->  | L999: =IF(D999<>"",IF(J999-I999*K999<=0,0.5*I999*H999*J999,0.5*I999*(H999*J999+(H999*(J999-I999*K999)))),"") -> 
H1000: =IF(D1000<>"",10,"") ->  | I1000: =IF(D1000<>"",50,"") -> 
J1063: =IF(D1063<>"",3*0.95,"") ->  | L1063: =IF(D1063<>"",IF(J1063-I1063*K1063<=0,0.5*I1063*H1063*J1063,0.5*I1063*(H1063*J1063+(H1063*(J1063-I1063*K1063)))),"") -> 
H1064: =IF(D1064<>"",10,"") ->  | I1064: =IF(D1064<>"",50,"") -> 
J1127: =IF(D1127<>"",3*0.95,"") ->  | L1127: =IF(D1127<>"",IF(J1127-I1127*K1127<=0,0.5*I1127*H1127*J1127,0.5*I1127*(H1127*J1127+(H1127*(J1127-I1127*K1127)))),"") -> 
H1128: =IF(D1128<>"",10,"") ->  | I1128: =IF(D1128<>"",50,"") -> 
J1191: =IF(D1191<>"",3*0.95,"") ->  | L1191: =IF(D1191<>"",IF(J1191-I1191*K1191<=0,0.5*I1191*H1191*J1191,0.5*I1191*(H1191*J1191+(H1191*(J1191-I1191*K1191)))),"") -> 
H1192: =IF(D1192<>"",10,"") ->  | I1192: =IF(D1192<>"",50,"") -> 
J1255: =IF(D1255<>"",3*0.95,"") ->  | L1255: =IF(D1255<>"",IF(J1255-I1255*K1255<=0,0.5*I1255*H1255*J1255,0.5*I1255*(H1255*J1255+(H1255*(J1255-I1255*K1255)))),"") -> 
H1256: =IF(D1256<>"",10,"") ->  | I1256: =IF(D1256<>"",50,"") -> 
J1319: =IF(D1319<>"",3*0.95,"") ->  | L1319: =IF(D1319<>"",IF(J1319-I1319*K1319<=0,0.5*I1319*H1319*J1319,0.5*I1319*(H1319*J1319+(H1319*(J1319-I1319*K1319)))),"") -> 
H1320: =IF(D1320<>"",10,"") ->  | I1320: =IF(D1320<>"",50,"") -> 
J1383: =IF(D1383<>"",3*0.95,"") ->  | L1383: =IF(D1383<>"",IF(J1383-I1383*K1383<=0,0.5*I1383*H1383*J1383,0.5*I1383*(H1383*J1383+(H1383*(J1383-I1383*K1383)))),"") -> 
H1384: =IF(D1384<>"",10,"") ->  | I1384: =IF(D1384<>"",50,"") -> 
J1447: =IF(D1447<>"",3*0.95,"") ->  | L1447: =IF(D1447<>"",IF(J1447-I1447*K1447<=0,0.5*I1447*H1447*J1447,0.5*I1447*(H1447*J1447+(H1447*(J1447-I1447*K1447)))),"") -> 
H1448: =IF(D1448<>"",10,"") ->  | I1448: =IF(D1448<>"",50,"") -> 
J1511: =IF(D1511<>"",3*0.95,"") ->  | L1511: =IF(D1511<>"",IF(J1511-I1511*K1511<=0,0.5*I1511*H1511*J1511,0.5*I1511*(H1511*J1511+(H1511*(J1511-I1511*K1511)))),"") -> 
H1512: =IF(D1512<>"",10,"") ->  | I1512: =IF(D1512<>"",50,"") -> 
J1575: =IF(D1575<>"",3*0.95,"") ->  | L1575: =IF(D1575<>"",IF(J1575-I1575*K1575<=0,0.5*I1575*H1575*J1575,0.5*I1575*(H1575*J1575+(H1575*(J1575-I1575*K1575)))),"") -> 
H1576: =IF(D1576<>"",10,"") ->  | I1576: =IF(D1576<>"",50,"") -> 
J1639: =IF(D1639<>"",3*0.95,"") ->  | L1639: =IF(D1639<>"",IF(J1639-I1639*K1639<=0,0.5*I1639*H1639*J1639,0.5*I1639*(H1639*J1639+(H1639*(J1639-I1639*K1639)))),"") -> 
H1640: =IF(D1640<>"",10,"") ->  | I1640: =IF(D1640<>"",50,"") -> 
J1703: =IF(D1703<>"",3*0.95,"") ->  | L1703: =IF(D1703<>"",IF(J1703-I1703*K1703<=0,0.5*I1703*H1703*J1703,0.5*I1703*(H1703*J1703+(H1703*(J1703-I1703*K1703)))),"") -> 
H1704: =IF(D1704<>"",10,"") ->  | I1704: =IF(D1704<>"",50,"") -> 
J1767: =IF(D1767<>"",3*0.95,"") ->  | L1767: =IF(D1767<>"",IF(J1767-I1767*K1767<=0,0.5*I1767*H1767*J1767,0.5*I1767*(H1767*J1767+(H1767*(J1767-I1767*K1767)))),"") -> 
H1768: =IF(D1768<>"",10,"") ->  | I1768: =IF(D1768<>"",50,"") -> 
J1831: =IF(D1831<>"",3*0.95,"") ->  | L1831: =IF(D1831<>"",IF(J1831-I1831*K1831<=0,0.5*I1831*H1831*J1831,0.5*I1831*(H1831*J1831+(H1831*(J1831-I1831*K1831)))),"") -> 
H1832: =IF(D1832<>"",10,"") ->  | I1832: =IF(D1832<>"",50,"") -> 
J1895: =IF(D1895<>"",3*0.95,"") ->  | L1895: =IF(D1895<>"",IF(J1895-I1895*K1895<=0,0.5*I1895*H1895*J1895,0.5*I1895*(H1895*J1895+(H1895*(J1895-I1895*K1895)))),"") -> 
H1896: =IF(D1896<>"",10,"") ->  | I1896: =IF(D1896<>"",50,"") -> 
J1959: =IF(D1959<>"",3*0.95,"") ->  | L1959: =IF(D1959<>"",IF(J1959-I1959*K1959<=0,0.5*I1959*H1959*J1959,0.5*I1959*(H1959*J1959+(H1959*(J1959-I1959*K1959)))),"") -> 
H1960: =IF(D1960<>"",10,"") ->  | I1960: =IF(D1960<>"",50,"") -> 
J2023: =IF(D2023<>"",3*0.95,"") ->  | L2023: =IF(D2023<>"",IF(J2023-I2023*K2023<=0,0.5*I2023*H2023*J2023,0.5*I2023*(H2023*J2023+(H2023*(J2023-I2023*K2023)))),"") -> 
H2024: =IF(D2024<>"",10,"") ->  | I2024: =IF(D2024<>"",50,"") -> 
J2087: =IF(D2087<>"",3*0.95,"") ->  | L2087: =IF(D2087<>"",IF(J2087-I2087*K2087<=0,0.5*I2087*H2087*J2087,0.5*I2087*(H2087*J2087+(H2087*(J2087-I2087*K2087)))),"") -> 
H2088: =IF(D2088<>"",10,"") ->  | I2088: =IF(D2088<>"",50,"") -> 
J2151: =IF(D2151<>"",3*0.95,"") ->  | L2151: =IF(D2151<>"",IF(J2151-I2151*K2151<=0,0.5*I2151*H2151*J2151,0.5*I2151*(H2151*J2151+(H2151*(J2151-I2151*K2151)))),"") -> 
H2152: =IF(D2152<>"",10,"") ->  | I2152: =IF(D2152<>"",50,"") -> 
J2215: =IF(D2215<>"",3*0.95,"") ->  | L2215: =IF(D2215<>"",IF(J2215-I2215*K2215<=0,0.5*I2215*H2215*J2215,0.5*I2215*(H2215*J2215+(H2215*(J2215-I2215*K2215)))),"") -> 
H2216: =IF(D2216<>"",10,"") ->  | I2216: =IF(D2216<>"",50,"") -> 
J2279: =IF(D2279<>"",3*0.95,"") ->  | L2279: =IF(D2279<>"",IF(J2279-I2279*K2279<=0,0.5*I2279*H2279*J2279,0.5*I2279*(H2279*J2279+(H2279*(J2279-I2279*K2279)))),"") -> 
H2280: =IF(D2280<>"",10,"") ->  | I2280: =IF(D2280<>"",50,"") -> 
J2343: =IF(D2343<>"",3*0.95,"") ->  | L2343: =IF(D2343<>"",IF(J2343-I2343*K2343<=0,0.5*I2343*H2343*J2343,0.5*I2343*(H2343*J2343+(H2343*(J2343-I2343*K2343)))),"") -> 
H2344: =IF(D2344<>"",10,"") ->  | I2344: =IF(D2344<>"",50,"") -> 
J2407: =IF(D2407<>"",3*0.95,"") ->  | L2407: =IF(D2407<>"",IF(J2407-I2407*K2407<=0,0.5*I2407*H2407*J2407,0.5*I2407*(H2407*J2407+(H2407*(J2407-I2407*K2407)))),"") -> 
H2408: =IF(D2408<>"",10,"") ->  | I2408: =IF(D2408<>"",50,"") -> 
J2471: =IF(D2471<>"",3*0.95,"") ->  | L2471: =IF(D2471<>"",IF(J2471-I2471*K2471<=0,0.5*I2471*H2471*J2471,0.5*I2471*(H2471*J2471+(H2471*(J2471-I2471*K2471)))),"") -> 
H2472: =IF(D2472<>"",10,"") ->  | I2472: =IF(D2472<>"",50,"") -> 
J2535: =IF(D2535<>"",3*0.95,"") ->  | L2535: =IF(D2535<>"",IF(J2535-I2535*K2535<=0,0.5*I2535*H2535*J2535,0.5*I2535*(H2535*J2535+(H2535*(J2535-I2535*K2535)))),"") -> 
H2536: =IF(D2536<>"",10,"") ->  | I2536: =IF(D2536<>"",50,"") -> 
J2599: =IF(D2599<>"",3*0.95,"") ->  | L2599: =IF(D2599<>"",IF(J2599-I2599*K2599<=0,0.5*I2599*H2599*J2599,0.5*I2599*(H2599*J2599+(H2599*(J2599-I2599*K2599)))),"") -> 
H2600: =IF(D2600<>"",10,"") ->  | I2600: =IF(D2600<>"",50,"") -> 
J2663: =IF(D2663<>"",3*0.95,"") ->  | L2663: =IF(D2663<>"",IF(J2663-I2663*K2663<=0,0.5*I2663*H2663*J2663,0.5*I2663*(H2663*J2663+(H2663*(J2663-I2663*K2663)))),"") -> 
H2664: =IF(D2664<>"",10,"") ->  | I2664: =IF(D2664<>"",50,"") -> 
J2727: =IF(D2727<>"",3*0.95,"") ->  | L2727: =IF(D2727<>"",IF(J2727-I2727*K2727<=0,0.5*I2727*H2727*J2727,0.5*I2727*(H2727*J2727+(H2727*(J2727-I2727*K2727)))),"") -> 
H2728: =IF(D2728<>"",10,"") ->  | I2728: =IF(D2728<>"",50,"") -> 
J2791: =IF(D2791<>"",3*0.95,"") ->  | L2791: =IF(D2791<>"",IF(J2791-I2791*K2791<=0,0.5*I2791*H2791*J2791,0.5*I2791*(H2791*J2791+(H2791*(J2791-I2791*K2791)))),"") -> 
H2792: =IF(D2792<>"",10,"") ->  | I2792: =IF(D2792<>"",50,"") -> 
J2855: =IF(D2855<>"",3*0.95,"") ->  | L2855: =IF(D2855<>"",IF(J2855-I2855*K2855<=0,0.5*I2855*H2855*J2855,0.5*I2855*(H2855*J2855+(H2855*(J2855-I2855*K2855)))),"") -> 
H2856: =IF(D2856<>"",10,"") ->  | I2856: =IF(D2856<>"",50,"") -> 
J2919: =IF(D2919<>"",3*0.95,"") ->  | L2919: =IF(D2919<>"",IF(J2919-I2919*K2919<=0,0.5*I2919*H2919*J2919,0.5*I2919*(H2919*J2919+(H2919*(J2919-I2919*K2919)))),"") -> 
H2920: =IF(D2920<>"",10,"") ->  | I2920: =IF(D2920<>"",50,"") -> 
J2983: =IF(D2983<>"",3*0.95,"") ->  | L2983: =IF(D2983<>"",IF(J2983-I2983*K2983<=0,0.5*I2983*H2983*J2983,0.5*I2983*(H2983*J2983+(H2983*(J2983-I2983*K2983)))),"") -> 
H2984: =IF(D2984<>"",10,"") ->  | I2984: =IF(D2984<>"",50,"") -> 
J3047: =IF(D3047<>"",3*0.95,"") ->  | L3047: =IF(D3047<>"",IF(J3047-I3047*K3047<=0,0.5*I3047*H3047*J3047,0.5*I3047*(H3047*J3047+(H3047*(J3047-I3047*K3047)))),"") -> 
H3048: =IF(D3048<>"",10,"") ->  | I3048: =IF(D3048<>"",50,"") -> 
J3111: =IF(D3111<>"",3*0.95,"") ->  | L3111: =IF(D3111<>"",IF(J3111-I3111*K3111<=0,0.5*I3111*H3111*J3111,0.5*I3111*(H3111*J3111+(H3111*(J3111-I3111*K3111)))),"") -> 
H3112: =IF(D3112<>"",10,"") ->  | I3112: =IF(D3112<>"",50,"") -> 
J3175: =IF(D3175<>"",3*0.95,"") ->  | L3175: =IF(D3175<>"",IF(J3175-I3175*K3175<=0,0.5*I3175*H3175*J3175,0.5*I3175*(H3175*J3175+(H3175*(J3175-I3175*K3175)))),"") -> 
H3176: =IF(D3176<>"",10,"") ->  | I3176: =IF(D3176<>"",50,"") -> 
J3239: =IF(D3239<>"",3*0.95,"") ->  | L3239: =IF(D3239<>"",IF(J3239-I3239*K3239<=0,0.5*I3239*H3239*J3239,0.5*I3239*(H3239*J3239+(H3239*(J3239-I3239*K3239)))),"") -> 
H3240: =IF(D3240<>"",10,"") ->  | I3240: =IF(D3240<>"",50,"") -> 
J3303: =IF(D3303<>"",3*0.95,"") ->  | L3303: =IF(D3303<>"",IF(J3303-I3303*K3303<=0,0.5*I3303*H3303*J3303,0.5*I3303*(H3303*J3303+(H3303*(J3303-I3303*K3303)))),"") -> 
H3304: =IF(D3304<>"",10,"") ->  | I3304: =IF(D3304<>"",50,"") -> 
... 84 more rows

Sheet DE100_17
A1: TabTitle | B1: =C16 -> TABULATION OF SILT FENCES
A2: Number of Tab Columns | B2: 5 | P2: Possible Contract Item
A3: DE Starter Row Number | B3: 23 | O3: 2602-0000020 | P3: SILT FENCE | Q3: =F15 -> 566063
A4: TabSheet Starter Row Number | B4: 9
A5: TabSheet Header Row Count | B5: 8
A6: Top Header Cell | B6: I15
A7: Bottom Header Cell | B7: M22
A8: DESheet Row Count | B8: 64
A9: Fixed Empty Rows | B9: 0
A10: Usable Empty Rows | B10: 18
A11: Total Rows Placed | B11: 82 | C11: xlRight(1) | D11: xlRight(1) | E11: xlLeft(1) | F11: xlRight(1) | G11: xlLeft(1) | I11: =C11 -> xlRight(1) | J11: xlRight(1) | K11: xlLeft(1) | L11: xlRight(1) | M11: xlLeft(1)
A12: Total Rows Needed | B12: =SUM(B8:B10) -> 82 | C12: #+00.00 | D12: #+00.00 | E12: General | F12: 0.0 | G12: General | I12: #+00.00 | J12: #+00.00 | K12: General | L12: 0.0 | M12: General
A13: Last Tab DE Starter Row | B13: 23 | C13: =CELL("width",C13) -> 16 | D13: =CELL("width",D13) -> 16 | E13: =CELL("width",E13) -> 6 | F13: =CELL("width",F13) -> 11 | G13: =CELL("width",G13) -> 26 | I13: =CELL("width",I13) -> 0 | J13: =CELL("width",J13) -> 0 | K13: =CELL("width",K13) -> 0 | L13: =CELL("width",L13) -> 0 | M13: =CELL("width",M13) -> 0
A14: Last Tab Tabsheet Starter Row | B14: 9 | C14: A | D14: B | E14: C | F14: D | G14: E | I14: =LOWER(C14) -> a | J14: =LOWER(D14) -> b | K14: =LOWER(E14) -> c | L14: =LOWER(F14) -> d | M14: =LOWER(G14) -> e
A15: Last Copy Starter Row | B15: 1 | E15: Totals: | F15: =SUBTOTAL(9,F24:F6050) -> 566063 | I15: 100-17
A16: Tab Loop Number | B16: 2 | C16: TABULATION OF SILT FENCES | I16: =B17 -> 2010-04-20
A17: Revision Date | B17: 2010-04-20 | I17: =C16 -> TABULATION OF SILT FENCES
A18: Tabulation Width | B18: 1 | C18: Refer to EC-201
A19: Horizontal Grid Lines | B19: Yes | C19: ="This Data Entry Sheet fills Tab "&I15&" effective "&TEXT(B17,"mm-dd-yy") -> This Data Entry Sheet fills Tab 100-17 effective 04-20-10 | I19: =C18 -> Refer to EC-201
C20: Location | F20: Length | G20: Remarks | I20: =C20 -> Location | L20: =F20 -> Length | M20: =G20 -> Remarks
C21: Begin Station | D21: End Station | E21: Side | I21: =C21 -> Begin Station | J21: =D21 -> End Station | K21: =E21 -> Side
F22: LF | L22: =F22 -> LF
C23: US 30 | D23: Stage 2
C24: 138000 | D24: 139715 | E24: Rt. | F24: =(D24-C24)*2+(ROUNDUP((D24-C24)/200,0)*20)*2 -> 3790 | G24: =" Two Rows w/ "&(ROUNDUP((D24-C24)/200,0)*2)&" tails" -> Two Rows w/ 18 tails
C25: 139925 | D25: 140895 | E25: Rt. | F25: 2140 | G25: =" Two Rows w/ "&(ROUNDUP((D25-C25)/200,0)*2)&" tails" -> Two Rows w/ 10 tails
C26: 141075 | D26: 142200 | E26: Rt. | F26: 2490 | G26: Two Rows w/ 12 tails
C27: 142390 | D27: 143515 | E27: Rt. | F27: 2490 | G27: Two Rows w/ 12 tails
C28: 143680 | D28: 147502 | E28: Rt. | F28: 8444 | G28: Two Rows w/ 40 tails
C29: 148070 | D29: 148685 | E29: Rt. | F29: 1390 | G29: Two Rows w/ 8 tails
C30: 149200 | D30: 151670 | E30: Rt. | F30: 5460 | G30: Two Rows w/ 26 tails
C31: 138065 | D31: 151670 | E31: Med. | F31: 29970 | G31: Two Rows w/ 138 tails
C33: US 30 | D33: Stage 3
C34: 138740 | D34: 138840 | E34: Lt. | F34: 240 | G34: =" Two Rows w/ "&(ROUNDUP((D34-C34)/200,0)*2)&" tails" -> Two Rows w/ 2 tails
C35: 139035 | D35: 139765 | E35: Lt. | F35: 1620 | G35: Two Rows w/ 8 tails
C36: 139870 | D36: 140925 | E36: Lt. | F36: 2350 | G36: Two Rows w/ 12 tails
C37: 141045 | D37: 142175 | E37: Lt. | F37: 2500 | G37: Two Rows w/ 12 tails
C38: 142360 | D38: 143510 | E38: Lt. | F38: 2540 | G38: Two Rows w/ 12 tails
C39: 143675 | D39: 146000 | E39: Lt. | F39: 5130 | G39: Two Rows w/ 24 tails
C40: 146490 | D40: 146960 | E40: Lt. | F40: 1060 | G40: Two Rows w/ 6 tails
C41: 147775 | D41: 149655 | E41: Lt. | F41: 4160 | G41: Two Rows w/ 20 tails
C42: 149805 | D42: 151670 | E42: Lt. | F42: 4130 | G42: Two Rows w/ 20 tails
C44: 23rd Avenue
C45: 23141675 | D45: 23142100 | E45: Rt. | F45: =(D45-C45)*2+(ROUNDUP((D45-C45)/200,0)*20)*2 -> 970 | G45: =" Two Rows w/ "&(ROUNDUP((D45-C45)/200,0)*2)&" tails" -> Two Rows w/ 6 tails
C46: 23142450 | D46: 23142700 | E46: Rt. | F46: =(D46-C46)*2+(ROUNDUP((D46-C46)/200,0)*20)*2 -> 580 | G46: =" Two Rows w/ "&(ROUNDUP((D46-C46)/200,0)*2)&" tails" -> Two Rows w/ 4 tails
C47: 23141675 | D47: 23142100 | E47: Lt. | F47: =(D47-C47)*2+(ROUNDUP((D47-C47)/200,0)*20)*2 -> 970 | G47: =" Two Rows w/ "&(ROUNDUP((D47-C47)/200,0)*2)&" tails" -> Two Rows w/ 6 tails
C48: 23142450 | D48: 23142700 | E48: Lt. | F48: =(D48-C48)*2+(ROUNDUP((D48-C48)/200,0)*20)*2 -> 580 | G48: =" Two Rows w/ "&(ROUNDUP((D48-C48)/200,0)*2)&" tails" -> Two Rows w/ 4 tails
C50: US 218
C51: 24145050 | D51: 24146840 | E51: Rt. | F51: =(D51-C51)*2+(ROUNDUP((D51-C51)/200,0)*20)*2 -> 3940 | G51: =" Two Rows w/ "&(ROUNDUP((D51-C51)/200,0)*2)&" tails" -> Two Rows w/ 18 tails
C52: 24147000 | D52: 24147435 | E52: Rt. | F52: =(D52-C52)*2+(ROUNDUP((D52-C52)/200,0)*20)*2 -> 990 | G52: =" Two Rows w/ "&(ROUNDUP((D52-C52)/200,0)*2)&" tails" -> Two Rows w/ 6 tails
C53: 24147720 | D53: 24148120 | E53: Rt. | F53: =(D53-C53)*2+(ROUNDUP((D53-C53)/200,0)*20)*2 -> 880 | G53: =" Two Rows w/ "&(ROUNDUP((D53-C53)/200,0)*2)&" tails" -> Two Rows w/ 4 tails
C54: 24148280 | D54: 24149875 | E54: Rt. | F54: 3510 | G54: Two Rows w/ 16 tails
C55: 24149930 | D55: 24150300 | E55: Rt. | F55: 820 | G55: Two Rows w/ 4 tails
C56: 24145050 | D56: 24145775 | E56: Lt. | F56: 1610 | G56: Two Rows w/ 8 tails
C57: 24145825 | D57: 24146884 | E57: Lt. | F57: 2358 | G57: Two Rows w/ 12 tails
C58: 24146985 | D58: 24147450 | E58: Lt. | F58: 1050 | G58: Two Rows w/ 6 tails
C59: 24147720 | D59: 24148080 | E59: Lt. | F59: 800 | G59: Two Rows w/ 4 tails
C60: 24148300 | D60: 24149870 | E60: Lt. | F60: 3460 | G60: Two Rows w/ 16 tails
C61: 24149930 | D61: 24150300 | E61: Lt. | F61: =(D61-C61)*2+(ROUNDUP((D61-C61)/200,0)*20)*2 -> 820 | G61: =" Two Rows w/ "&(ROUNDUP((D61-C61)/200,0)*2)&" tails" -> Two Rows w/ 4 tails
C63: Ramp A
C64: 1147690 | D64: 1148890 | E64: Rt. | F64: =(D64-C64)*2+(ROUNDUP((D64-C64)/200,0)*20)*2 -> 2640 | G64: =" Two Rows w/ "&(ROUNDUP((D64-C64)/200,0)*2)&" tails" -> Two Rows w/ 12 tails
C65: 1148060 | D65: 1148400 | E65: Lt. | F65: =(D65-C65)*2+(ROUNDUP((D65-C65)/200,0)*20)*2 -> 760 | G65: =" Two Rows w/ "&(ROUNDUP((D65-C65)/200,0)*2)&" tails" -> Two Rows w/ 4 tails
C67: Ramp B
C68: 2147000 | D68: 2148180 | E68: Rt. | F68: =(D68-C68)*2+(ROUNDUP((D68-C68)/200,0)*20)*2 -> 2600 | G68: =" Two Rows w/ "&(ROUNDUP((D68-C68)/200,0)*2)&" tails" -> Two Rows w/ 12 tails
C69: 2147380 | D69: 2147710 | E69: Lt. | F69: =(D69-C69)*2+(ROUNDUP((D69-C69)/200,0)*20)*2 -> 740 | G69: =" Two Rows w/ "&(ROUNDUP((D69-C69)/200,0)*2)&" tails" -> Two Rows w/ 4 tails
C71: Ramp C
C72: 3144150 | D72: 3145670 | E72: Rt. | F72: =(D72-C72)*2+(ROUNDUP((D72-C72)/200,0)*20)*2 -> 3360 | G72: =" Two Rows w/ "&(ROUNDUP((D72-C72)/200,0)*2)&" tails" -> Two Rows w/ 16 tails
C73: 3144720 | D73: 3145380 | E73: Lt. | F73: =(D73-C73)*2+(ROUNDUP((D73-C73)/200,0)*20)*2 -> 1480 | G73: =" Two Rows w/ "&(ROUNDUP((D73-C73)/200,0)*2)&" tails" -> Two Rows w/ 8 tails
C75: Ramp D
C76: 4147550 | D76: 4149150 | E76: Rt. | F76: =(D76-C76)*2+(ROUNDUP((D76-C76)/200,0)*20)*2 -> 3520 | G76: =" Two Rows w/ "&(ROUNDUP((D76-C76)/200,0)*2)&" tails" -> Two Rows w/ 16 tails
C77: 4148050 | D77: 4148750 | E77: Lt. | F77: =(D77-C77)*2+(ROUNDUP((D77-C77)/200,0)*20)*2 -> 1560 | G77: =" Two Rows w/ "&(ROUNDUP((D77-C77)/200,0)*2)&" tails" -> Two Rows w/ 8 tails
C79: Café and Wheeler Entrance
C80: 100 | D80: 1060 | E80: Lt.
C81: 0 | D81: 1281 | E81: Lt. | F81: =2250+20*12 -> 2490 | G81: One Row w/ 12 tails
D83: Tab Total | F83: =SUM(F24:F81) -> 122392
D84: Bid Total | F84: =F83*1.25 -> 152990
D85: Maintenance | F85: =F84*0.1 -> 15299
D86: Removal | F86: =F84 -> 152990

Sheet DE100_18
A1: TabTitle | B1: =C16 -> SILT FENCES FOR DITCH CHECKS
A2: Number of Tab Columns | B2: 13
A3: DE Starter Row Number | B3: 37
A4: TabSheet Starter Row Number | B4: 23
A5: TabSheet Header Row Count | B5: 22
A6: Top Header Cell | B6: T15
A7: Bottom Header Cell | B7: AF36
A8: DESheet Row Count | B8: 564
A9: Fixed Empty Rows | B9: 48
A10: Usable Empty Rows | B10: 0
A11: Total Rows Placed | B11: 612 | C11: xlRight(1) | D11: xlRight(1) | E11: xlRight(1) | F11: xlLeft(1) | G11: xlRight(1) | H11: xlRight(1) | I11: xlRight(1) | J11: xlRight(1) | K11: xlRight(1) | L11: xlRight(1) | M11: xlRight(1) | P11: xlRight(1) | R11: xlLeft(1) | T11: =C11 -> xlRight(1) | U11: =D11 -> xlRight(1) | V11: =E11 -> xlRight(1) | W11: xlLeft(1) | X11: xlRight(1) | Y11: xlRight(1) | Z11: xlRight(1) | AA11: xlRight(1) | AB11: xlRight(1) | AC11: xlRight(1) | AD11: xlRight(1) | AE11: =P11 -> xlRight(1) | AF11: =R11 -> xlLeft(1)
A12: Total Rows Needed | B12: =SUM(B8:B10) -> 612 | C12: 0 | D12: General | E12: #+00.00 | F12: General | G12: 0.0 | H12: 0.0 | I12: 0.0 | J12: 0.0 | K12: 0.0 | L12: 0.0 | M12: 0.0% | P12: 0.0 | R12: General | T12: =C12 -> 0 | U12: =D12 -> General | V12: #+00.00 | W12: General | X12: 0.0 | Y12: 0.0 | Z12: 0.0 | AA12: 0.0 | AB12: 0.0 | AC12: 0.0 | AD12: 0.0% | AE12: =P12 -> 0.0 | AF12: General
A13: Last Tab DE Starter Row | B13: 581 | C13: =CELL("width",C13) -> 6 | D13: =CELL("width",D13) -> 6 | E13: =CELL("width",E13) -> 16 | F13: =CELL("width",F13) -> 6 | G13: =CELL("width",G13) -> 14 | H13: =CELL("width",H13) -> 14 | I13: 14 | J13: 12 | K13: 12 | L13: 14 | M13: 15 | P13: 12 | R13: =CELL("width",R13) -> 8 | T13: =CELL("width",T13) -> 0 | U13: =CELL("width",U13) -> 0 | V13: =CELL("width",V13) -> 0 | W13: =CELL("width",W13) -> 0 | X13: =CELL("width",X13) -> 0 | Y13: =CELL("width",Y13) -> 0 | Z13: 0 | AA13: 0 | AB13: 0 | AC13: 0 | AD13: 0 | AE13: 0 | AF13: =CELL("width",AF13) -> 0
A14: Last Tab Tabsheet Starter Row | B14: 743 | C14: A | D14: B | E14: C | F14: D | G14: E | H14: F | I14: G | J14: H | K14: I | L14: J | M14: K | P14: L | R14: M | T14: =LOWER(C14) -> a | U14: =LOWER(D14) -> b | V14: c | W14: d | X14: e | Y14: f | Z14: g | AA14: h | AB14: i | AC14: j | AD14: k | AE14: =LOWER(P14) -> l | AF14: =LOWER(R14) -> m
A15: Last Copy Starter Row | B15: 721 | C15: Totals: | G15: =SUBTOTAL(9,G37:G5999) -> 11719 | H15: =SUBTOTAL(9,H37:H5999) -> 49805.75 | I15: =SUBTOTAL(9,I37:I5999) -> 11719 | P15: =SUBTOTAL(9,P37:P5999) -> 570737.4128 | T15: 100-18 | AH15: Slope Range | AI15: Spacing | AJ15: =D34 -> Type
A16: Tab Loop Number | B16: 10 | C16: SILT FENCES FOR DITCH CHECKS | T16: =B17 -> 2017-10-17 | AH16: 0 | AI16: 315 | AJ16: 1
A17: Revision Date | B17: 2017-10-17 | T17: =C16 -> SILT FENCES FOR DITCH CHECKS | AH17: 0.001 | AI17: 315 | AJ17: 2
A18: Tabulation Width | B18: 2 | AH18: 0.002 | AI18: 315 | AJ18: 3
A19: Horizontal Grid Lines | B19: Yes | C19: Possible Standard: EC-201 Possible Detail: 570-4 | AH19: 0.003 | AI19: 315 | AJ19: 4
T20: =C19 -> Possible Standard: EC-201 Possible Detail: 570-4 | AH20: 0.004 | AI20: 315 | AJ20: 5
AH21: 0.005 | AI21: 315
AH22: 0.006 | AI22: 155
AH23: 0.007 | AI23: 155
AH24: 0.008 | AI24: 155
AH25: 0.009 | AI25: 155
AH26: 0.01 | AI26: 155
AH27: 0.011 | AI27: 100
AH28: 0.012 | AI28: 100
AH29: 0.013 | AI29: 100
AH30: 0.014 | AI30: 100
C31: * The functional height used in the volume equation is 85% of effective height. Effective height is 1.58 feet as shown on EC-201. | AH31: 0.015 | AI31: 100
C32: * Volume equation: [0.5*Spacing*(0.5*H2*FS+DW*H+0.5*H2*BS)] | T32: =C31 -> * The functional height used in the volume equation is 85% of effective height. Effective height is 1.58 feet as shown on EC-201. | AH32: 0.016 | AI32: 75
C33: ="This Data Entry Sheet fills Tab "&T15&" effective "&TEXT(B17,"mm-dd-yy") -> This Data Entry Sheet fills Tab 100-18 effective 10-17-17 | T33: * Volume equation: [0.5*Spacing*(0.5*H2*FS+DW*H+0.5*H2*BS)] | AH33: 0.017 | AI33: 75
C34: Basin No. | D34: Type | E34: Location | G34: Bid Items | J34: Stormwater Storage Volume Summary | Q34: Subtotal | R34: Remarks | T34: =C34 -> Basin No. | U34: =D34 -> Type | V34: =E34 -> Location | X34: =G34 -> Bid Items | AA34: =J34 -> Stormwater Storage Volume Summary | AF34: =R34 -> Remarks | AH34: 0.018 | AI34: 75
E35: Station | F35: Side | G35: Installation | H35: Maintenance | I35: Removal | J35: Foreslope | K35: Backslope | L35: Ditch Width | M35: Avg.% Slope | N35: Spacing | O35: Down Stream | P35: Volume* | V35: =E35 -> Station | W35: =F35 -> Side | X35: =G35 -> Installation | Y35: =H35 -> Maintenance | Z35: =I35 -> Removal | AA35: =J35 -> Foreslope | AB35: =K35 -> Backslope | AC35: =L35 -> Ditch Width | AD35: Avg.% Slope | AE35: =P35 -> Volume* | AH35: 0.019 | AI35: 75
G36: LF | H36: LF | I36: LF | J36: FS:1 | K36: BS:1 | L36: FT | M36: Ditch Grade | P36: CF | X36: =G36 -> LF | Y36: =H36 -> LF | Z36: =I36 -> LF | AA36: =J36 -> FS:1 | AB36: =K36 -> BS:1 | AC36: =L36 -> FT | AD36: Ditch Grade | AE36: =P36 -> CF | AH36: 0.02 | AI36: 75
N37: =IF(M37<>"",IF(M37<0.06,VLOOKUP(M37,$AH$16:$AI$75,2,TRUE),"XX"),"") ->  | O37: =IF(M37<>"",((0.5*1.343^2*J37)+(1.343*L37)+(0.5*1.343^2*K37)),"") ->  | P37: =IF(C37<>"",(0.5*N37*O37),"") ->  | AH37: 0.021 | AI37: 60
C38: US 30 | N38: =IF(M38<>"",IF(M38<0.06,VLOOKUP(ABS(M38),$AH$16:$AI$75,2,TRUE),"XX"),"") ->  | O38: =IF(M38<>"",((0.5*1.343^2*J38)+(1.343*L38)+(0.5*1.343^2*K38)),"") ->  | AH38: 0.022 | AI38: 60
C39: 1 | D39: 1 | E39: 138017 | F39: Rt. | G39: 25 | H39: 2.5 | I39: 25 | J39: 6 | K39: 3 | L39: 10 | M39: -0.02 | N39: =IF(M39<>"",IF(M39<0.06,VLOOKUP(ABS(M39),$AH$16:$AI$75,2,TRUE),"XX"),"") -> 75 | O39: =IF(M39<>"",((0.5*1.343^2*J39)+(1.343*L39)+(0.5*1.343^2*K39)),"") -> 21.5464205 | P39: 807.9907688 | AH39: 0.023 | AI39: 60
C40: 1 | D40: 1 | E40: 138055 | F40: Rt. | G40: 25 | H40: 2.5 | I40: 25 | J40: 6 | K40: 3 | L40: 10 | M40: -0.02 | N40: =IF(M40<>"",IF(M40<0.06,VLOOKUP(ABS(M40),$AH$16:$AI$75,2,TRUE),"XX"),"") -> 75 | O40: 21.5464205 | P40: 807.9907688 | AH40: 0.024 | AI40: 60
C41: 1 | D41: 1 | E41: 138130 | F41: Rt. | G41: 25 | H41: 2.5 | I41: 25 | J41: 6 | K41: 3 | L41: 10 | M41: -0.02 | N41: 75 | O41: 21.5464205 | P41: 807.9907688 | AH41: 0.025 | AI41: 60
C42: 1 | D42: 1 | E42: 138205 | F42: Rt. | G42: 25 | H42: 2.5 | I42: 25 | J42: 6 | K42: 3 | L42: 10 | M42: -0.02 | N42: 75 | O42: 21.5464205 | P42: 807.9907688 | AH42: 0.026 | AI42: 50
C43: 1 | D43: 1 | E43: 138280 | F43: Rt. | G43: 25 | H43: 2.5 | I43: 25 | J43: 6 | K43: 3 | L43: 10 | M43: -0.02 | N43: 75 | O43: 21.5464205 | P43: 807.9907688 | AH43: 0.027 | AI43: 50
C44: 1 | D44: 1 | E44: 138355 | F44: Rt. | G44: 25 | H44: 2.5 | I44: 25 | J44: 6 | K44: 3 | L44: 10 | M44: -0.02 | N44: 75 | O44: 21.5464205 | P44: 807.9907688 | AH44: 0.028 | AI44: 50
C45: 1 | D45: 1 | E45: 138430 | F45: Rt. | G45: 25 | H45: 2.5 | I45: 25 | J45: 6 | K45: 3 | L45: 10 | M45: -0.02 | N45: 75 | O45: 21.5464205 | P45: 807.9907688 | AH45: 0.029 | AI45: 50
C46: 1 | D46: 1 | E46: 138505 | F46: Rt. | G46: 25 | H46: 2.5 | I46: 25 | J46: 6 | K46: 3 | L46: 10 | M46: -0.02 | N46: 75 | O46: 21.5464205 | P46: 807.9907688 | AH46: 0.03 | AI46: 50
C47: 1 | D47: 1 | E47: 138580 | F47: Rt. | G47: 25 | H47: 2.5 | I47: 25 | J47: 6 | K47: 3 | L47: 10 | M47: -0.02 | N47: 75 | O47: 21.5464205 | P47: 807.9907688 | AH47: 0.031 | AI47: 45
C48: 1 | D48: 1 | E48: 138655 | F48: Rt. | G48: 25 | H48: 2.5 | I48: 25 | J48: 6 | K48: 3 | L48: 10 | M48: -0.02 | N48: 75 | O48: 21.5464205 | P48: 807.9907688 | AH48: 0.032 | AI48: 45
C49: 1 | D49: 1 | E49: 138730 | F49: Rt. | G49: 25 | H49: 2.5 | I49: 25 | J49: 6 | K49: 3 | L49: 10 | M49: -0.02 | N49: 75 | O49: 21.5464205 | P49: 807.9907688 | AH49: 0.033 | AI49: 45
C50: 1 | D50: 1 | E50: 138890 | F50: Rt. | G50: 25 | H50: 2.5 | I50: 25 | J50: 6 | K50: 3 | L50: 10 | M50: 0.005 | N50: 315 | O50: 21.5464205 | P50: 3393.561229 | AH50: 0.034 | AI50: 45
C51: 1 | D51: 1 | E51: 139205 | F51: Rt. | G51: 25 | H51: 2.5 | I51: 25 | J51: 6 | K51: 3 | L51: 10 | M51: 0.005 | N51: 315 | O51: 21.5464205 | P51: 3393.561229 | AH51: 0.035 | AI51: 45
C52: 1 | D52: 1 | E52: 139365 | F52: Rt. | G52: 25 | H52: 2.5 | I52: 25 | J52: 6 | K52: 3 | L52: 10 | M52: 0.005 | N52: 315 | O52: 21.5464205 | P52: 3393.561229 | Q52: =SUM(P39:P52) -> 19068.58214 | AH52: 0.036 | AI52: 40
AH53: 0.037 | AI53: 40
C54: 2 | D54: 1 | E54: 139522 | F54: Rt. | G54: 25 | H54: 2.5 | I54: 25 | J54: 6 | K54: 3 | L54: 10 | M54: 0.005 | N54: 315 | O54: 21.5464205 | P54: 3393.561229 | AH54: 0.038 | AI54: 40
C55: 2 | D55: 1 | E55: 139560 | F55: Rt. | G55: 25 | H55: 2.5 | I55: 25 | J55: 6 | K55: 3 | L55: 10 | M55: -0.016 | N55: 75 | O55: 21.5464205 | P55: 807.9907688 | AH55: 0.039 | AI55: 40
C56: 2 | D56: 1 | E56: 139635 | F56: Rt. | G56: 25 | H56: 2.5 | I56: 25 | J56: 6 | K56: 3 | L56: 10 | M56: -0.016 | N56: 75 | O56: 21.5464205 | P56: 807.9907688 | AH56: 0.04 | AI56: 40
C57: 2 | D57: 1 | E57: 139710 | F57: Rt. | G57: 25 | H57: 2.5 | I57: 25 | J57: 6 | K57: 3 | L57: 10 | M57: -0.016 | N57: 75 | O57: 21.5464205 | P57: 807.9907688 | AH57: 0.041 | AI57: 35
C58: 2 | D58: 1 | E58: 139785 | F58: Rt. | G58: 25 | H58: 2.5 | I58: 25 | J58: 6 | K58: 3 | L58: 10 | M58: -0.016 | N58: 75 | O58: 21.5464205 | P58: 807.9907688 | AH58: 0.042 | AI58: 35
C59: 2 | D59: 1 | E59: 139860 | F59: Rt. | G59: 25 | H59: 2.5 | I59: 25 | J59: 6 | K59: 3 | L59: 10 | M59: -0.016 | N59: 75 | O59: 21.5464205 | P59: 807.9907688 | AH59: 0.043 | AI59: 35
C60: 2 | D60: 1 | E60: 139935 | F60: Rt. | G60: 25 | H60: 2.5 | I60: 25 | J60: 6 | K60: 3 | L60: 10 | M60: -0.016 | N60: 75 | O60: 21.5464205 | P60: 807.9907688 | AH60: 0.044 | AI60: 35
C61: 2 | D61: 1 | E61: 140010 | F61: Rt. | G61: 25 | H61: 2.5 | I61: 25 | J61: 6 | K61: 3 | L61: 10 | M61: -0.016 | N61: 75 | O61: 21.5464205 | P61: 807.9907688 | AH61: 0.045 | AI61: 35
C62: 2 | D62: 1 | E62: 140160 | F62: Rt. | G62: 25 | H62: 2.5 | I62: 25 | J62: 6 | K62: 3 | L62: 10 | M62: 0.008 | N62: 155 | O62: 21.5464205 | P62: 1669.847589 | AH62: 0.046 | AI62: 35
C63: 2 | D63: 1 | E63: 140315 | F63: Rt. | G63: 25 | H63: 2.5 | I63: 25 | J63: 6 | K63: 3 | L63: 10 | M63: 0.008 | N63: 155 | O63: 21.5464205 | P63: 1669.847589 | AH63: 0.047 | AI63: 35
C64: 2 | D64: 1 | E64: 140470 | F64: Rt. | G64: 25 | H64: 2.5 | I64: 25 | J64: 6 | K64: 3 | L64: 10 | M64: 0.008 | N64: 155 | O64: 21.5464205 | P64: 1669.847589 | AH64: 0.048 | AI64: 35
C65: 2 | D65: 1 | E65: 140625 | F65: Rt. | G65: 25 | H65: 2.5 | I65: 25 | J65: 6 | K65: 3 | L65: 10 | M65: 0.008 | N65: 155 | O65: 21.5464205 | P65: 1669.847589 | AH65: 0.049 | AI65: 35
C66: 2 | D66: 1 | E66: 140780 | F66: Rt. | G66: 25 | H66: 2.5 | I66: 25 | J66: 6 | K66: 3 | L66: 10 | M66: 0.008 | N66: 155 | O66: 21.5464205 | P66: 1669.847589 | AH66: 0.05 | AI66: 35
C67: 2 | D67: 1 | E67: 140935 | F67: Rt. | G67: 25 | H67: 2.5 | I67: 25 | J67: 6 | K67: 3 | L67: 10 | M67: 0.008 | N67: 155 | O67: 21.5464205 | P67: 1669.847589 | AH67: 0.051 | AI67: 30
C68: 2 | D68: 1 | E68: 141090 | F68: Rt. | G68: 25 | H68: 2.5 | I68: 25 | J68: 6 | K68: 3 | L68: 10 | M68: 0.008 | N68: 155 | O68: 21.5464205 | P68: 1669.847589 | AH68: 0.052 | AI68: 30
C69: 2 | D69: 1 | E69: 141245 | F69: Rt. | G69: 25 | H69: 2.5 | I69: 25 | J69: 6 | K69: 3 | L69: 10 | M69: 0.008 | N69: 155 | O69: 21.5464205 | P69: 1669.847589 | AH69: 0.053 | AI69: 30
C70: 2 | D70: 1 | E70: 141400 | F70: Rt. | G70: 25 | H70: 2.5 | I70: 25 | J70: 6 | K70: 3 | L70: 10 | M70: 0.008 | N70: 155 | O70: 21.5464205 | P70: 1669.847589 | AH70: 0.054 | AI70: 30
C71: 2 | D71: 1 | E71: 141555 | F71: Rt. | G71: 25 | H71: 2.5 | I71: 25 | J71: 6 | K71: 3 | L71: 10 | M71: 0.008 | N71: 155 | O71: 21.5464205 | P71: 1669.847589 | AH71: 0.055 | AI71: 30
C72: 2 | D72: 1 | E72: 141710 | F72: Rt. | G72: 25 | H72: 2.5 | I72: 25 | J72: 6 | K72: 3 | L72: 10 | M72: 0.008 | N72: 155 | O72: 21.5464205 | P72: 1669.847589 | AH72: 0.056 | AI72: 25
C73: 2 | D73: 1 | E73: 141865 | F73: Rt. | G73: 25 | H73: 2.5 | I73: 25 | J73: 6 | K73: 3 | L73: 10 | M73: 0.008 | N73: 155 | O73: 21.5464205 | P73: 1669.847589 | AH73: 0.057 | AI73: 25
C74: 2 | D74: 1 | E74: 142020 | F74: Rt. | G74: 25 | H74: 2.5 | I74: 25 | J74: 6 | K74: 3 | L74: 10 | M74: 0.008 | N74: 155 | O74: 21.5464205 | P74: 1669.847589 | AH74: 0.058 | AI74: 25
C75: 2 | D75: 1 | E75: 142175 | F75: Rt. | G75: 25 | H75: 2.5 | I75: 25 | J75: 6 | K75: 3 | L75: 10 | M75: 0.008 | N75: 155 | O75: 21.5464205 | P75: 1669.847589 | Q75: =SUM(P54:P75) -> 32427.36285 | AH75: 0.059 | AI75: 25
C77: 3 | D77: 1 | E77: 142410 | F77: Rt. | G77: 25 | H77: 2.5 | I77: 25 | J77: 6 | K77: 3 | L77: 10 | M77: 0.012 | N77: 100 | O77: 21.5464205 | P77: 1077.321025
C78: 3 | D78: 1 | E78: 142610 | F78: Rt. | G78: 25 | H78: 2.5 | I78: 25 | J78: 6 | K78: 3 | L78: 10 | M78: 0.012 | N78: 100 | O78: 21.5464205 | P78: 1077.321025
C79: 3 | D79: 1 | E79: 142710 | F79: Rt. | G79: 25 | H79: 2.5 | I79: 25 | J79: 6 | K79: 3 | L79: 10 | M79: 0.012 | N79: 100 | O79: 21.5464205 | P79: 1077.321025
C80: 3 | D80: 1 | E80: 142810 | F80: Rt. | G80: 25 | H80: 2.5 | I80: 25 | J80: 6 | K80: 3 | L80: 10 | M80: 0.012 | N80: 100 | O80: 21.5464205 | P80: 1077.321025
C81: 3 | D81: 1 | E81: 142910 | F81: Rt. | G81: 25 | H81: 2.5 | I81: 25 | J81: 6 | K81: 3 | L81: 10 | M81: 0.012 | N81: 100 | O81: 21.5464205 | P81: 1077.321025
C82: 3 | D82: 1 | E82: 143010 | F82: Rt. | G82: 25 | H82: 2.5 | I82: 25 | J82: 6 | K82: 3 | L82: 10 | M82: 0.012 | N82: 100 | O82: 21.5464205 | P82: 1077.321025
C83: 3 | D83: 1 | E83: 143110 | F83: Rt. | G83: 25 | H83: 2.5 | I83: 25 | J83: 6 | K83: 3 | L83: 10 | M83: 0.012 | N83: 100 | O83: 21.5464205 | P83: 1077.321025
C84: 3 | D84: 1 | E84: 143210 | F84: Rt. | G84: 25 | H84: 2.5 | I84: 25 | J84: 6 | K84: 3 | L84: 10 | M84: 0.012 | N84: 100 | O84: 21.5464205 | P84: 1077.321025
C85: 3 | D85: 1 | E85: 143310 | F85: Rt. | G85: 25 | H85: 2.5 | I85: 25 | J85: 6 | K85: 3 | L85: 10 | M85: 0.012 | N85: 100 | O85: 21.5464205 | P85: 1077.321025
C86: 3 | D86: 1 | E86: 143410 | F86: Rt. | G86: 25 | H86: 2.5 | I86: 25 | J86: 6 | K86: 3 | L86: 10 | M86: 0.012 | N86: 100 | O86: 21.5464205 | P86: 1077.321025
C87: 3 | D87: 1 | E87: 143510 | F87: Rt. | G87: 25 | H87: 2.5 | I87: 25 | J87: 6 | K87: 3 | L87: 10 | M87: 0.012 | N87: 100 | O87: 21.5464205 | P87: 1077.321025
C88: 3 | D88: 1 | E88: 143610 | F88: Rt. | G88: 25 | H88: 2.5 | I88: 25 | J88: 6 | K88: 3 | L88: 10 | M88: 0.012 | N88: 100 | O88: 21.5464205 | P88: 1077.321025
C89: 3 | D89: 1 | E89: 143710 | F89: Rt. | G89: 25 | H89: 2.5 | I89: 25 | J89: 6 | K89: 3 | L89: 10 | M89: 0.012 | N89: 100 | O89: 21.5464205 | P89: 1077.321025
C90: 3 | D90: 1 | E90: 143810 | F90: Rt. | G90: 25 | H90: 2.5 | I90: 25 | J90: 6 | K90: 3 | L90: 10 | M90: 0.012 | N90: 100 | O90: 21.5464205 | P90: 1077.321025
C91: 3 | D91: 1 | E91: 143910 | F91: Rt. | G91: 25 | H91: 2.5 | I91: 25 | J91: 6 | K91: 3 | L91: 10 | M91: 0.012 | N91: 100 | O91: 21.5464205 | P91: 1077.321025
C92: 3 | D92: 1 | E92: 144010 | F92: Rt. | G92: 25 | H92: 2.5 | I92: 25 | J92: 6 | K92: 3 | L92: 10 | M92: 0.012 | N92: 100 | O92: 21.5464205 | P92: 1077.321025
C93: 3 | D93: 1 | E93: 144110 | F93: Rt. | G93: 25 | H93: 2.5 | I93: 25 | J93: 6 | K93: 3 | L93: 10 | M93: 0.012 | N93: 100 | O93: 21.5464205 | P93: 1077.321025
C94: 3 | D94: 1 | E94: 144210 | F94: Rt. | G94: 25 | H94: 2.5 | I94: 25 | J94: 6 | K94: 3 | L94: 10 | M94: 0.012 | N94: 100 | O94: 21.5464205 | P94: 1077.321025
C95: 3 | D95: 1 | E95: 144310 | F95: Rt. | G95: 25 | H95: 2.5 | I95: 25 | J95: 6 | K95: 3 | L95: 10 | M95: 0.012 | N95: 100 | O95: 21.5464205 | P95: 1077.321025
C96: 3 | D96: 1 | E96: 144410 | F96: Rt. | G96: 25 | H96: 2.5 | I96: 25 | J96: 6 | K96: 3 | L96: 10 | M96: 0.012 | N96: 100 | O96: 21.5464205 | P96: 1077.321025
C97: 3 | D97: 1 | E97: 144460 | F97: Rt. | G97: 25 | H97: 2.5 | I97: 25 | J97: 6 | K97: 3 | L97: 10 | M97: 0.012 | N97: 100 | O97: 21.5464205 | P97: 1077.321025 | Q97: =SUM(P77:P97) -> 22623.74153
C99: 4 | D99: 1 | E99: 144690 | F99: Rt. | G99: 25 | H99: 2.5 | I99: 25 | J99: 6 | K99: 3 | L99: 10 | M99: -0.004 | N99: 315 | O99: 21.5464205 | P99: 3393.561229
C100: 4 | D100: 1 | E100: 145005 | F100: Rt. | G100: 25 | H100: 2.5 | I100: 25 | J100: 6 | K100: 3 | L100: 10 | M100: -0.004 | N100: 315 | O100: 21.5464205 | P100: 3393.561229
C101: 4 | D101: 1 | E101: 145320 | F101: Rt. | G101: 25 | H101: 2.5 | I101: 25 | J101: 6 | K101: 3 | L101: 10 | M101: -0.004 | N101: 315 | O101: 21.5464205 | P101: =IF(C101<>"",(0.5*N101*O101),"") -> 3393.561229
C102: 4 | D102: 1 | E102: 145480 | F102: Rt. | G102: 25 | H102: 2.5 | I102: 25 | J102: 6 | K102: 3 | L102: 10 | M102: 0.005 | N102: 315 | O102: 21.5464205 | P102: 3393.561229
C103: 4 | D103: 1 | E103: 145795 | F103: Rt. | G103: 25 | H103: 2.5 | I103: 25 | J103: 6 | K103: 3 | L103: 10 | M103: 0.005 | N103: 315 | O103: =IF(M103<>"",((0.5*1.343^2*J103)+(1.343*L103)+(0.5*1.343^2*K103)),"") -> 21.5464205 | P103: 3393.561229 | Q103: =SUM(P99:P103) -> 16967.80614
N104: =IF(M104<>"",IF(M104<0.06,VLOOKUP(ABS(M104),$AH$16:$AI$75,2,TRUE),"XX"),"") -> 
C105: 5 | D105: 1 | E105: 146150 | F105: Rt. | G105: 25 | H105: 2.5 | I105: 25 | J105: 6 | K105: 3 | L105: 10 | M105: 0.011 | N105: 100 | O105: 21.5464205 | P105: 1077.321025
C106: 5 | D106: 1 | E106: 146250 | F106: Rt. | G106: 25 | H106: 2.5 | I106: 25 | J106: 6 | K106: 3 | L106: 10 | M106: 0.011 | N106: 100 | O106: 21.5464205 | P106: 1077.321025
C107: 5 | D107: 1 | E107: 146350 | F107: Rt. | G107: 25 | H107: 2.5 | I107: 25 | J107: 6 | K107: 3 | L107: 10 | M107: 0.011 | N107: 100 | O107: 21.5464205 | P107: 1077.321025
C108: 5 | D108: 1 | E108: 146450 | F108: Rt. | G108: 25 | H108: 2.5 | I108: 25 | J108: 6 | K108: 3 | L108: 10 | M108: 0.011 | N108: 100 | O108: 21.5464205 | P108: 1077.321025
C109: 5 | D109: 1 | E109: 146550 | F109: Rt. | G109: 25 | H109: 2.5 | I109: 25 | J109: 6 | K109: 3 | L109: 10 | M109: 0.008 | N109: 155 | O109: 21.5464205 | P109: 1669.847589
C110: 5 | D110: 1 | E110: 146705 | F110: Rt. | G110: 25 | H110: 2.5 | I110: 25 | J110: 6 | K110: 3 | L110: 10 | M110: 0.008 | N110: 155 | O110: 21.5464205 | P110: 1669.847589
C111: 5 | D111: 1 | E111: 146860 | F111: Rt. | G111: 25 | H111: 2.5 | I111: 25 | J111: 6 | K111: 3 | L111: 10 | M111: 0.008 | N111: 155 | O111: 21.5464205 | P111: 1669.847589
C112: 5 | D112: 1 | E112: 147170 | F112: Rt. | G112: 25 | H112: 2.5 | I112: 25 | J112: 6 | K112: 3 | L112: 10 | M112: 0.008 | N112: 155 | O112: 21.5464205 | P112: 1669.847589
C113: 5 | D113: 1 | E113: 147325 | F113: Rt. | G113: 25 | H113: 2.5 | I113: 25 | J113: 6 | K113: 3 | L113: 10 | M113: 0.013 | N113: 100 | O113: 21.5464205 | P113: 1077.321025
C114: 5 | D114: 1 | E114: 147425 | F114: Rt. | G114: 25 | H114: 2.5 | I114: 25 | J114: 6 | K114: 3 | L114: 10 | M114: 0.024 | N114: 60 | O114: 21.5464205 | P114: 646.392615
C115: 5 | D115: 1 | E115: 147485 | F115: Rt. | G115: 25 | H115: 2.5 | I115: 25 | J115: 6 | K115: 3 | L115: 10 | M115: 0.024 | N115: 60 | O115: 21.5464205 | P115: 646.392615
C116: 5 | D116: 1 | E116: 147545 | F116: Rt. | G116: 25 | H116: 2.5 | I116: 25 | J116: 6 | K116: 3 | L116: 10 | M116: 0.024 | N116: 60 | O116: 21.5464205 | P116: 646.392615 | Q116: =SUM(P105:P116) -> 14005.17333
C118: 7 | D118: 1 | E118: 148140 | F118: Rt. | G118: 25 | H118: 2.5 | I118: 25 | J118: 6 | K118: 3 | L118: 10 | M118: -0.005 | N118: 315 | O118: 21.5464205 | P118: 3393.561229
C119: 7 | D119: 1 | E119: 148200 | F119: Rt. | G119: 25 | H119: 2.5 | I119: 25 | J119: 6 | K119: 3 | L119: 10 | M119: -0.023 | N119: 60 | O119: 21.5464205 | P119: 646.392615
C120: 7 | D120: 1 | E120: 148260 | F120: Rt. | G120: 25 | H120: 2.5 | I120: 25 | J120: 6 | K120: 3 | L120: 10 | M120: -0.023 | N120: 60 | O120: 21.5464205 | P120: 646.392615
C121: 7 | D121: 1 | E121: 148320 | F121: Rt. | G121: 25 | H121: 2.5 | I121: 25 | J121: 6 | K121: 3 | L121: 10 | M121: -0.023 | N121: 60 | O121: 21.5464205 | P121: 646.392615
C122: 7 | D122: 1 | E122: 148480 | F122: Rt. | G122: 25 | H122: 2.5 | I122: 25 | J122: 6 | K122: 3 | L122: 10 | M122: 0.029 | N122: 50 | O122: 21.5464205 | P122: 538.6605125
C123: 7 | D123: 1 | E123: 148530 | F123: Rt. | G123: 25 | H123: 2.5 | I123: 25 | J123: 6 | K123: 3 | L123: 10 | M123: 0.029 | N123: 50 | O123: 21.5464205 | P123: 538.6605125
C124: 7 | D124: 1 | E124: 148580 | F124: Rt. | G124: 25 | H124: 2.5 | I124: 25 | J124: 6 | K124: 3 | L124: 10 | M124: 0.029 | N124: 50 | O124: 21.5464205 | P124: 538.6605125
C125: 7 | D125: 1 | E125: 148630 | F125: Rt. | G125: 25 | H125: 2.5 | I125: 25 | J125: 6 | K125: 3 | L125: 10 | M125: 0.029 | N125: 50 | O125: 21.5464205 | P125: 538.6605125
C126: 7 | D126: 1 | E126: 148680 | F126: Rt. | G126: 25 | H126: 2.5 | I126: 25 | J126: 6 | K126: 3 | L126: 10 | M126: 0.029 | N126: 50 | O126: 21.5464205 | P126: 538.6605125
C127: 7 | D127: 1 | E127: 148730 | F127: Rt. | G127: 25 | H127: 2.5 | I127: 25 | J127: 6 | K127: 3 | L127: 10 | M127: 0.029 | N127: 50 | O127: 21.5464205 | P127: 538.6605125
C128: 7 | D128: 1 | E128: 148780 | F128: Rt. | G128: 25 | H128: 2.5 | I128: 25 | J128: 6 | K128: 3 | L128: 10 | M128: 0.029 | N128: 50 | O128: 21.5464205 | P128: 538.6605125 | Q128: =SUM(P118:P128) -> 9103.362661
C130: 8 | D130: 1 | E130: 149330 | F130: Rt. | G130: 25 | H130: 2.5 | I130: 25 | J130: 6 | K130: 3 | L130: 10 | M130: -0.004 | N130: 315 | O130: 21.5464205 | P130: 3393.561229
C131: 8 | D131: 1 | E131: 149450 | F131: Rt. | G131: 25 | H131: 2.5 | I131: 25 | J131: 6 | K131: 3 | L131: 10 | M131: 0.009 | N131: 155 | O131: 21.5464205 | P131: 1669.847589
C132: 8 | D132: 1 | E132: 149605 | F132: Rt. | G132: 25 | H132: 2.5 | I132: 25 | J132: 6 | K132: 3 | L132: 10 | M132: 0.009 | N132: 155 | O132: 21.5464205 | P132: 1669.847589
C133: 8 | D133: 1 | E133: 149685 | F133: Rt. | G133: 25 | H133: 2.5 | I133: 25 | J133: 6 | K133: 3 | L133: 10 | M133: 0.009 | N133: 155 | O133: 21.5464205 | P133: 1669.847589 | Q133: =SUM(P130:P133) -> 8403.103995
C135: 9 | D135: 1 | E135: 149795 | F135: Rt. | G135: 25 | H135: 2.5 | I135: 25 | J135: 6 | K135: 3 | L135: 10 | M135: -0.004 | N135: 315 | O135: 21.5464205 | P135: 3393.561229
C136: 9 | D136: 1 | E136: 150110 | F136: Rt. | G136: 25 | H136: 2.5 | I136: 25 | J136: 6 | K136: 3 | L136: 10 | M136: -0.004 | N136: 315 | O136: 21.5464205 | P136: 3393.561229
C137: 9 | D137: 1 | E137: 150210 | F137: Rt. | G137: 25 | H137: 2.5 | I137: 25 | J137: 6 | K137: 3 | L137: 10 | M137: -0.013 | N137: 100 | O137: 21.5464205 | P137: 1077.321025
C138: 9 | D138: 1 | E138: 150310 | F138: Rt. | G138: 25 | H138: 2.5 | I138: 25 | J138: 6 | K138: 3 | L138: 10 | M138: -0.013 | N138: 100 | O138: 21.5464205 | P138: 1077.321025
C139: 9 | D139: 1 | E139: 150410 | F139: Rt. | G139: 25 | H139: 2.5 | I139: 25 | J139: 6 | K139: 3 | L139: 10 | M139: -0.013 | N139: 100 | O139: 21.5464205 | P139: 1077.321025
C140: 9 | D140: 1 | E140: 150510 | F140: Rt. | G140: 25 | H140: 2.5 | I140: 25 | J140: 6 | K140: 3 | L140: 10 | M140: -0.013 | N140: 100 | O140: 21.5464205 | P140: 1077.321025
C141: 9 | D141: 1 | E141: 150710 | F141: Rt. | G141: 25 | H141: 2.5 | I141: 25 | J141: 6 | K141: 3 | L141: 10 | M141: -0.013 | N141: 100 | O141: 21.5464205 | P141: 1077.321025
C142: 9 | D142: 1 | E142: 150810 | F142: Rt. | G142: 25 | H142: 2.5 | I142: 25 | J142: 6 | K142: 3 | L142: 10 | M142: -0.013 | N142: 100 | O142: 21.5464205 | P142: 1077.321025
C143: 9 | D143: 1 | E143: 150860 | F143: Rt. | G143: 25 | H143: 2.5 | I143: 25 | J143: 6 | K143: 3 | L143: 10 | M143: -0.029 | N143: 50 | O143: 21.5464205 | P143: 538.6605125
C144: 9 | D144: 1 | E144: 150910 | F144: Rt. | G144: 25 | H144: 2.5 | I144: 25 | J144: 6 | K144: 3 | L144: 10 | M144: -0.029 | N144: 50 | O144: 21.5464205 | P144: 538.6605125
C145: 9 | D145: 1 | E145: 150960 | F145: Rt. | G145: 25 | H145: 2.5 | I145: 25 | J145: 6 | K145: 3 | L145: 10 | M145: -0.029 | N145: 50 | O145: 21.5464205 | P145: 538.6605125
C146: 9 | D146: 1 | E146: 151010 | F146: Rt. | G146: 25 | H146: 2.5 | I146: 25 | J146: 6 | K146: 3 | L146: 10 | M146: -0.029 | N146: 50 | O146: 21.5464205 | P146: 538.6605125
C147: 9 | D147: 1 | E147: 151060 | F147: Rt. | G147: 25 | H147: 2.5 | I147: 25 | J147: 6 | K147: 3 | L147: 10 | M147: -0.029 | N147: 50 | O147: 21.5464205 | P147: 538.6605125
C148: 9 | D148: 1 | E148: 151110 | F148: Rt. | G148: 25 | H148: 2.5 | I148: 25 | J148: 6 | K148: 3 | L148: 10 | M148: -0.029 | N148: 50 | O148: 21.5464205 | P148: 538.6605125
C149: 9 | D149: 1 | E149: 151160 | F149: Rt. | G149: 25 | H149: 2.5 | I149: 25 | J149: 6 | K149: 3 | L149: 10 | M149: -0.029 | N149: 50 | O149: 21.5464205 | P149: 538.6605125
C150: 9 | D150: 1 | E150: 151210 | F150: Rt. | G150: 25 | H150: 2.5 | I150: 25 | J150: 6 | K150: 3 | L150: 10 | M150: -0.029 | N150: 50 | O150: 21.5464205 | P150: 538.6605125
C151: 9 | D151: 1 | E151: 151260 | F151: Rt. | G151: 25 | H151: 2.5 | I151: 25 | J151: 6 | K151: 3 | L151: 10 | M151: -0.029 | N151: 50 | O151: 21.5464205 | P151: 538.6605125
C152: 9 | D152: 1 | E152: 151310 | F152: Rt. | G152: 25 | H152: 2.5 | I152: 25 | J152: 6 | K152: 3 | L152: 10 | M152: -0.029 | N152: 50 | O152: 21.5464205 | P152: 538.6605125
C153: 9 | D153: 1 | E153: 151360 | F153: Rt. | G153: 25 | H153: 2.5 | I153: 25 | J153: 6 | K153: 3 | L153: 10 | M153: -0.029 | N153: 50 | O153: 21.5464205 | P153: 538.6605125
C154: 9 | D154: 1 | E154: 151410 | F154: Rt. | G154: 25 | H154: 2.5 | I154: 25 | J154: 6 | K154: 3 | L154: 10 | M154: -0.029 | N154: 50 | O154: 21.5464205 | P154: 538.6605125
C155: 9 | D155: 1 | E155: 151460 | F155: Rt. | G155: 25 | H155: 2.5 | I155: 25 | J155: 6 | K155: 3 | L155: 10 | M155: -0.029 | N155: 50 | O155: 21.5464205 | P155: 538.6605125
C156: 9 | D156: 1 | E156: 151510 | F156: Rt. | G156: 25 | H156: 2.5 | I156: 25 | J156: 6 | K156: 3 | L156: 10 | M156: -0.029 | N156: 50 | O156: 21.5464205 | P156: 538.6605125
C157: 9 | D157: 1 | E157: 151560 | F157: Rt. | G157: 25 | H157: 2.5 | I157: 25 | J157: 6 | K157: 3 | L157: 10 | M157: -0.029 | N157: 50 | O157: 21.5464205 | P157: 538.6605125
C158: 9 | D158: 1 | E158: 151610 | F158: Rt. | G158: 25 | H158: 2.5 | I158: 25 | J158: 6 | K158: 3 | L158: 10 | M158: -0.029 | N158: 50 | O158: 21.5464205 | P158: 538.6605125
C159: 9 | D159: 1 | E159: 151660 | F159: Rt. | G159: 25 | H159: 2.5 | I159: 25 | J159: 6 | K159: 3 | L159: 10 | M159: -0.029 | N159: 50 | O159: 21.5464205 | P159: 538.6605125 | Q159: =SUM(P135:P159) -> 22408.27732
C161: 12 | D161: 1 | E161: 153090 | F161: Rt. | G161: 24 | H161: 2.4 | I161: 24 | J161: 6 | K161: 6 | L161: 4 | M161: -0.0291 | N161: 50 | O161: 16.193894 | P161: 404.84735
C162: 12 | D162: 1 | E162: 153140 | F162: Rt. | G162: 24 | H162: 2.4 | I162: 24 | J162: 6 | K162: 6 | L162: 4 | M162: -0.0291 | N162: 50 | O162: 16.193894 | P162: 404.84735
C163: 12 | D163: 1 | E163: 153190 | F163: Rt. | G163: 24 | H163: 2.4 | I163: 24 | J163: 6 | K163: 6 | L163: 4 | M163: -0.0291 | N163: 50 | O163: 16.193894 | P163: 404.84735
C164: 12 | D164: 1 | E164: 153240 | F164: Rt. | G164: 24 | H164: 2.4 | I164: 24 | J164: 6 | K164: 6 | L164: 4 | M164: -0.0291 | N164: 50 | O164: 16.193894 | P164: 404.84735
C165: 12 | D165: 1 | E165: 153290 | F165: Rt. | G165: 24 | H165: 2.4 | I165: 24 | J165: 6 | K165: 6 | L165: 4 | M165: -0.0291 | N165: 50 | O165: 16.193894 | P165: =IF(C165<>"",(0.5*N165*O165),"") -> 404.84735
C166: 12 | D166: 1 | E166: 153340 | F166: Rt. | G166: 24 | H166: 2.4 | I166: 24 | J166: 6 | K166: 6 | L166: 4 | M166: -0.0291 | N166: 50 | O166: 16.193894 | P166: 404.84735
C167: 12 | D167: 1 | E167: 153390 | F167: Rt. | G167: 24 | H167: 2.4 | I167: 24 | J167: 6 | K167: 6 | L167: 4 | M167: -0.0291 | N167: 50 | O167: =IF(M167<>"",((0.5*1.343^2*J167)+(1.343*L167)+(0.5*1.343^2*K167)),"") -> 16.193894 | P167: 404.84735
C168: 12 | D168: 1 | E168: 153440 | F168: Rt. | G168: 24 | H168: 2.4 | I168: 24 | J168: 6 | K168: 6 | L168: 4 | M168: -0.0291 | N168: =IF(M168<>"",IF(M168<0.06,VLOOKUP(ABS(M168),$AH$16:$AI$75,2,TRUE),"XX"),"") -> 50 | O168: 16.193894 | P168: 404.84735
C169: 12 | D169: 1 | E169: 153490 | F169: Rt. | G169: 24 | H169: 2.4 | I169: 24 | J169: 6 | K169: 6 | L169: 4 | M169: -0.0291 | N169: 50 | O169: 16.193894 | P169: 404.84735
C170: 12 | D170: 1 | E170: 153540 | F170: Rt. | G170: 24 | H170: 2.4 | I170: 24 | J170: 6 | K170: 6 | L170: 4 | M170: -0.0291 | N170: 50 | O170: 16.193894 | P170: 404.84735
C171: 12 | D171: 1 | E171: 153590 | F171: Rt. | G171: 24 | H171: 2.4 | I171: 24 | J171: 6 | K171: 6 | L171: 4 | M171: -0.0291 | N171: 50 | O171: 16.193894 | P171: 404.84735
C172: 12 | D172: 1 | E172: 153640 | F172: Rt. | G172: 24 | H172: 2.4 | I172: 24 | J172: 6 | K172: 6 | L172: 4 | M172: -0.0291 | N172: 50 | O172: 16.193894 | P172: 404.84735
C173: 12 | D173: 1 | E173: 153690 | F173: Rt. | G173: 24 | H173: 2.4 | I173: 24 | J173: 6 | K173: 6 | L173: 4 | M173: -0.0291 | N173: 50 | O173: 16.193894 | P173: 404.84735
C174: 12 | D174: 1 | E174: 153740 | F174: Rt. | G174: 24 | H174: 2.4 | I174: 24 | J174: 6 | K174: 6 | L174: 4 | M174: -0.0291 | N174: 50 | O174: 16.193894 | P174: 404.84735
C175: 12 | D175: 1 | E175: 153790 | F175: Rt. | G175: 24 | H175: 2.4 | I175: 24 | J175: 6 | K175: 6 | L175: 4 | M175: -0.0291 | N175: 50 | O175: 16.193894 | P175: 404.84735
C176: 12 | D176: 1 | E176: 153840 | F176: Rt. | G176: 24 | H176: 2.4 | I176: 24 | J176: 6 | K176: 6 | L176: 4 | M176: -0.0291 | N176: 50 | O176: 16.193894 | P176: 404.84735 | Q176: =SUM(P161:P176) -> 6477.5576
C178: 1 | D178: 1 | E178: 139110 | F178: Med | G178: 24 | H178: 2.4 | I178: 24 | J178: 6 | K178: 6 | L178: 4 | M178: -0.005 | N178: 315 | O178: 16.193894 | P178: 2550.538305
C179: 1 | D179: 1 | E179: 139425 | F179: Med | G179: 24 | H179: 2.4 | I179: 24 | J179: 6 | K179: 6 | L179: 4 | M179: -0.005 | N179: 315 | O179: 16.193894 | P179: 2550.538305
C180: 1 | D180: 1 | E180: 139690 | F180: Med | G180: 24 | H180: 2.4 | I180: 24 | J180: 6 | K180: 6 | L180: 4 | M180: -0.005 | N180: 315 | O180: 16.193894 | P180: 2550.538305 | Q180: =SUM(P178:P180) -> 7651.614915
C182: 2 | D182: 1 | E182: 139925 | F182: Med | G182: 24 | H182: 2.4 | I182: 24 | J182: 6 | K182: 6 | L182: 4 | M182: -0.005 | N182: 315 | O182: 16.193894 | P182: 2550.538305
C183: 2 | D183: 1 | E183: 140085 | F183: Med | G183: 24 | H183: 2.4 | I183: 24 | J183: 6 | K183: 6 | L183: 4 | M183: -0.005 | N183: 315 | O183: 16.193894 | P183: 2550.538305
C184: 2 | D184: 1 | E184: 140150 | F184: Med | G184: 24 | H184: 2.4 | I184: 24 | J184: 6 | K184: 6 | L184: 4 | M184: 0.041 | N184: 40 | O184: 16.193894 | P184: 323.87788
C185: 2 | D185: 1 | E185: 140305 | F185: Med | G185: 24 | H185: 2.4 | I185: 24 | J185: 6 | K185: 6 | L185: 4 | M185: 0.006 | N185: 155 | O185: 16.193894 | P185: 1255.026785
C186: 2 | D186: 1 | E186: =140460-45 -> 140415 | F186: Med | G186: 24 | H186: 2.4 | I186: 24 | J186: 6 | K186: 6 | L186: 4 | M186: 0.006 | N186: 155 | O186: 16.193894 | P186: 1255.026785
C187: 2 | D187: 1 | E187: =140490+45 -> 140535 | F187: Med | G187: 24 | H187: 2.4 | I187: 24 | J187: 6 | K187: 6 | L187: 4 | M187: 0.006 | N187: 155 | O187: 16.193894 | P187: 1255.026785
C188: 2 | D188: 1 | E188: 140645 | F188: Med | G188: 24 | H188: 2.4 | I188: 24 | J188: 6 | K188: 6 | L188: 4 | M188: 0.006 | N188: 155 | O188: 16.193894 | P188: 1255.026785
C189: 2 | D189: 1 | E189: 140800 | F189: Med | G189: 24 | H189: 2.4 | I189: 24 | J189: 6 | K189: 6 | L189: 4 | M189: 0.006 | N189: 155 | O189: 16.193894 | P189: 1255.026785
C190: 2 | D190: 1 | E190: 140955 | F190: Med | G190: 24 | H190: 2.4 | I190: 24 | J190: 6 | K190: 6 | L190: 4 | M190: 0.012 | N190: 100 | O190: 16.193894 | P190: 809.6947
C191: 2 | D191: 1 | E191: 141055 | F191: Med | G191: 24 | H191: 2.4 | I191: 24 | J191: 6 | K191: 6 | L191: 4 | M191: 0.012 | N191: 100 | O191: 16.193894 | P191: 809.6947
C192: 2 | D192: 1 | E192: 141155 | F192: Med | G192: 24 | H192: 2.4 | I192: 24 | J192: 6 | K192: 6 | L192: 4 | M192: 0.012 | N192: 100 | O192: 16.193894 | P192: 809.6947
C193: 2 | D193: 1 | E193: 141255 | F193: Med | G193: 24 | H193: 2.4 | I193: 24 | J193: 6 | K193: 6 | L193: 4 | M193: 0.012 | N193: 100 | O193: 16.193894 | P193: 809.6947
C194: 2 | D194: 1 | E194: 141305 | F194: Med | G194: 24 | H194: 2.4 | I194: 24 | J194: 6 | K194: 6 | L194: 4 | M194: 0.012 | N194: 100 | O194: 16.193894 | P194: 809.6947
C195: 2 | D195: 1 | E195: =141390+45 -> 141435 | F195: Med | G195: 24 | H195: 2.4 | I195: 24 | J195: 6 | K195: 6 | L195: 4 | M195: 0.012 | N195: 100 | O195: 16.193894 | P195: 809.6947
C196: 2 | D196: 1 | E196: 141490 | F196: Med | G196: 24 | H196: 2.4 | I196: 24 | J196: 6 | K196: 6 | L196: 4 | M196: 0.012 | N196: 100 | O196: 16.193894 | P196: 809.6947
C197: 2 | D197: 1 | E197: 141590 | F197: Med | G197: 24 | H197: 2.4 | I197: 24 | J197: 6 | K197: 6 | L197: 4 | M197: 0.012 | N197: 100 | O197: 16.193894 | P197: 809.6947
C198: 2 | D198: 1 | E198: 141690 | F198: Med | G198: 24 | H198: 2.4 | I198: 24 | J198: 6 | K198: 6 | L198: 4 | M198: 0.012 | N198: 100 | O198: 16.193894 | P198: 809.6947
C199: 2 | D199: 1 | E199: 141790 | F199: Med | G199: 24 | H199: 2.4 | I199: 24 | J199: 6 | K199: 6 | L199: 4 | M199: 0.004 | N199: 315 | O199: 16.193894 | P199: 2550.538305 | Q199: =SUM(P182:P199) -> 21537.87902
C201: 3 | D201: 5 | E201: 142390 | F201: Med | G201: 20 | H201: 2 | I201: 20 | J201: 6 | K201: 6 | L201: 0 | M201: -0.025383 | N201: 60 | O201: 10.821894 | P201: 324.65682
C202: 3 | D202: 5 | E202: 142410 | F202: Med | G202: 20 | H202: 2 | I202: 20 | J202: 6 | K202: 6 | L202: 0 | M202: -0.01 | N202: 155 | O202: 10.821894 | P202: 838.696785
C203: 3 | D203: 5 | E203: 142565 | F203: Med | G203: 20 | H203: 2 | I203: 20 | J203: 6 | K203: 6 | L203: 0 | M203: 0.011 | N203: 100 | O203: 10.821894 | P203: 541.0947
C204: 3 | D204: 1 | E204: 142665 | F204: Med | G204: 24 | H204: 2.4 | I204: 24 | J204: 6 | K204: 6 | L204: 4 | M204: 0.011 | N204: 100 | O204: 16.193894 | P204: 809.6947
C205: 3 | D205: 1 | E205: 142765 | F205: Med | G205: 24 | H205: 2.4 | I205: 24 | J205: 6 | K205: 6 | L205: 4 | M205: 0.011 | N205: 100 | O205: 16.193894 | P205: 809.6947
C206: 3 | D206: 1 | E206: 142865 | F206: Med | G206: 24 | H206: 2.4 | I206: 24 | J206: 6 | K206: 6 | L206: 4 | M206: 0.011 | N206: 100 | O206: 16.193894 | P206: 809.6947
C207: 3 | D207: 1 | E207: 142965 | F207: Med | G207: 24 | H207: 2.4 | I207: 24 | J207: 6 | K207: 6 | L207: 4 | M207: 0.011 | N207: 100 | O207: 16.193894 | P207: 809.6947
C208: 3 | D208: 1 | E208: 143065 | F208: Med | G208: 24 | H208: 2.4 | I208: 24 | J208: 6 | K208: 6 | L208: 4 | M208: 0.02 | N208: 75 | O208: 16.193894 | P208: 607.271025
C209: 3 | D209: 1 | E209: 143140 | F209: Med | G209: 24 | H209: 2.4 | I209: 24 | J209: 6 | K209: 6 | L209: 4 | M209: 0.02 | N209: 75 | O209: 16.193894 | P209: 607.271025
... 535 more rows

Sheet DE100_19
A1: TabTitle | B1: =C16 -> PERIMETER AND SLOPE SEDIMENT CONTROL DEVICE
A2: Number of Tab Columns | B2: 7
A3: DE Starter Row Number | B3: 24
A4: TabSheet Starter Row Number | B4: 10
A5: TabSheet Header Row Count | B5: 9
A6: Top Header Cell | B6: K15
A7: Bottom Header Cell | B7: Q23
A8: DESheet Row Count | B8: 42
A9: Fixed Empty Rows | B9: 39
A10: Usable Empty Rows | B10: 0
A11: Total Rows Placed | B11: 81 | C11: xlRight(1) | D11: xlRight(1) | E11: xlLeft(1) | F11: xlRight(1) | G11: xlRight(1) | H11: xlRight(1) | I11: xlLeft(1) | K11: =C11 -> xlRight(1) | L11: xlRight(1) | M11: xlLeft(1) | N11: xlRight(1) | O11: xlRight(1) | P11: xlRight(1) | Q11: xlLeft(1)
A12: Total Rows Needed | B12: =SUM(B8:B10) -> 81 | C12: #+00.00 | D12: #+00.00 | E12: General | F12: 0.0 | G12: 0.0 | H12: 0.0 | I12: General | K12: #+00.00 | L12: #+00.00 | M12: General | N12: 0.0 | O12: 0.0 | P12: 0.0 | Q12: General
A13: Last Tab DE Starter Row | B13: 24 | C13: =CELL("width",C13) -> 17 | D13: 17 | E13: 6 | F13: 14 | G13: 14 | H13: 14 | I13: 71 | K13: =CELL("width",K13) -> 0 | L13: =CELL("width",L13) -> 0 | M13: =CELL("width",M13) -> 0 | N13: =CELL("width",N13) -> 0 | O13: 0 | P13: 0 | Q13: =CELL("width",Q13) -> 0
A14: Last Tab Tabsheet Starter Row | B14: 10 | C14: A | D14: B | E14: C | F14: D | G14: E | H14: F | I14: G | K14: =LOWER(C14) -> a | L14: =LOWER(D14) -> b | M14: =LOWER(E14) -> c | N14: =LOWER(F14) -> d | O14: e | P14: f | Q14: g
A15: Last Copy Starter Row | B15: 1 | E15: Totals: | F15: =SUBTOTAL(9,F24:F6007) -> 0 | G15: =SUBTOTAL(9,G24:G6007) -> 2100 | H15: =SUBTOTAL(9,H24:H6007) -> 0 | K15: 100-19
A16: Tab Loop Number | B16: 2 | C16: PERIMETER AND SLOPE SEDIMENT CONTROL DEVICE | K16: =B17 -> 2016-04-19
A17: Revision Date | B17: 2016-04-19 | K17: =C16 -> PERIMETER AND SLOPE SEDIMENT CONTROL DEVICE
A18: Tabulation Width | B18: 2 | C18: Possible Standards: EC-204
A19: Horizontal Grid Lines | B19: Yes | C19: ="This Data Entry Sheet fills Tab "&K15&" effective "&TEXT(B17,"mm-dd-yy") -> This Data Entry Sheet fills Tab 100-19 effective 04-19-16 | K19: =C18 -> Possible Standards: EC-204
C20: Location | F20: Length of Installation | I20: Remarks | K20: =C20 -> Location | N20: =F20 -> Length of Installation | Q20: =I20 -> Remarks
C21: Begin Station | D21: End Station | E21: Side | F21: 9 inch Dia | G21: 12 inch Dia | H21: 20 inch Dia | K21: =C21 -> Begin Station | L21: =D21 -> End Station | M21: =E21 -> Side | N21: =F21 -> 9 inch Dia | O21: 12 inch Dia | P21: 20 inch Dia
F23: LF | G23: LF | H23: LF | N23: =F23 -> LF | O23: =G23 -> LF | P23: =H23 -> LF
C25: US 30
C26: 138200 | D26: =C26 -> 138200 | E26: Med | G26: 20 | I26: Inlet Protection
C27: 138810 | D27: 138810 | E27: Lt. | G27: 30 | I27: Inlet Protection
C28: 139750 | D28: 139750 | E28: Med | G28: 20 | I28: Inlet Protection
C29: 140475 | D29: 140475 | E29: Med | G29: 20 | I29: Inlet Protection
C30: 141375 | D30: 141375 | E30: Med | G30: 20 | I30: Inlet Protection
C31: 142400 | D31: 142400 | E31: Med | G31: 20 | I31: Inlet Protection
C32: 142550 | D32: 142550 | E32: Lt. | G32: 50 | I32: Inlet Protection
C33: 143900 | D33: 143900 | E33: Med | G33: 20 | I33: Inlet Protection
C34: 145400 | D34: 145400 | E34: Lt. | G34: 30 | I34: Inlet Protection
C35: 146075 | D35: 146075 | E35: Lt. | G35: 30 | I35: Inlet Protection
C36: 146525 | D36: 146525 | E36: Med | G36: 20 | I36: Inlet Protection
C37: 147000 | D37: 147000 | E37: Lt. | G37: 30 | I37: Inlet Protection
C38: 147025 | D38: 147025 | E38: Med | G38: 20 | I38: Inlet Protection
C39: 147214.19 | D39: 147214.19 | E39: Lt. | G39: 30 | I39: Inlet Protection
C40: 147700 | D40: 147700 | E40: Med | G40: 20 | I40: Inlet Protection
C41: 148400 | D41: 148400 | E41: Lt. | G41: 30 | I41: Inlet Protection
C42: 149385 | D42: 149385 | E42: Lt. | G42: 20 | I42: Inlet Protection
C43: 150100 | D43: 150100 | E43: Med | G43: 20 | I43: Inlet Protection
C44: 150625 | D44: 150625 | E44: Lt. | G44: 20 | I44: Inlet Protection
C45: 153920 | D45: 153920 | E45: Med | G45: 20 | I45: Inlet Protection
C46: 154275 | D46: 154275 | E46: Med | G46: 20 | I46: Inlet Protection
C47: 155053 | D47: 155053 | E47: Med | G47: 20 | I47: Inlet Protection
C49: 23rd Ave
C50: 23142088 | D50: =C50 -> 23142088 | E50: Rt. | G50: 60 | I50: Inlet Protection
C51: 23142425 | D51: =C51 -> 23142425 | E51: Lt. | G51: 20 | I51: Inlet Protection
C53: 24th Ave
C54: 24147690.9 | D54: =C54 -> 24147690.9 | E54: Rt. | G54: 30 | I54: Inlet Protection
C56: Ramp C
C57: 3145375 | D57: =C57 -> 3145375 | E57: Lt. | G57: 20 | I57: Inlet Protection
C59: Ramp D
C60: 4147617 | D60: =C60 -> 4147617 | E60: Lt. | G60: 20 | I60: Inlet Protection
C61: 4148200 | D61: =C61 -> 4148200 | E61: Lt. | G61: 20 | I61: Inlet Protection
D64: Total | G64: =SUM(G26:G61) -> 700
D65: Removal | G65: =SUM(G26:G61) -> 700

Sheet DE100_33
A1: TabTitle | B1: =C16 -> TEMPORARY SEDIMENT CONTROL BASIN
A2: Number of Tab Columns | B2: 12
A3: DE Starter Row Number | B3: 37
A4: TabSheet Starter Row Number | B4: 23
A5: TabSheet Header Row Count | B5: 22
A6: Top Header Cell | B6: Q15
A7: Bottom Header Cell | B7: AB36
A8: DESheet Row Count | B8: 15
A9: Fixed Empty Rows | B9: 0
A10: Usable Empty Rows | B10: 26
A11: Total Rows Placed | B11: 41 | C11: xlRight(1) | D11: xlRight(1) | E11: xlRight(1) | F11: xlRight(1) | G11: xlRight(1) | H11: xlRight(1) | I11: xlRight(1) | J11: xlRight(1) | K11: xlRight(1) | L11: xlRight(1) | M11: xlRight(1) | O11: xlLeft(1) | Q11: =C11 -> xlRight(1) | R11: xlRight(1) | S11: xlRight(1) | T11: xlRight(1) | U11: xlRight(1) | V11: xlRight(1) | W11: xlRight(1) | X11: xlRight(1) | Y11: xlRight(1) | Z11: xlRight(1) | AA11: =M11 -> xlRight(1) | AB11: =O11 -> xlLeft(1)
A12: Total Rows Needed | B12: =SUM(B8:B10) -> 41 | C12: 0 | D12: #+00.00 | E12: General | F12: 0 | G12: 0 | H12: 0 | I12: 0.0 | J12: 0.0 | K12: 0.00 | L12: 0.0% | M12: 0.0 | O12: General | Q12: 0 | R12: #+00.00 | S12: General | T12: 0 | U12: 0 | V12: 0 | W12: 0.0 | X12: 0.0 | Y12: 0.00 | Z12: 0.0% | AA12: =M12 -> 0.0 | AB12: =O12 -> General
A13: Last Tab DE Starter Row | B13: 37 | C13: =CELL("width",C13) -> 6 | D13: 16 | E13: 10 | F13: 14 | G13: 14 | H13: 8 | I13: 10 | J13: 10 | K13: 14 | L13: 18 | M13: 10 | O13: 21 | Q13: =CELL("width",Q13) -> 0 | R13: 0 | S13: 0 | T13: 0 | U13: 0 | V13: 0 | W13: 0 | X13: 0 | Y13: 0 | Z13: 0 | AA13: 0 | AB13: 0
A14: Last Tab Tabsheet Starter Row | B14: 23 | C14: A | D14: B | E14: C | F14: D | G14: E | H14: F | I14: G | J14: H | K14: I | L14: J | M14: K | O14: L | Q14: =LOWER(C14) -> a | R14: b | S14: c | T14: d | U14: e | V14: f | W14: g | X14: h | Y14: i | Z14: j | AA14: =LOWER(M14) -> k | AB14: =LOWER(O14) -> l
A15: Last Copy Starter Row | B15: 1 | E15: Totals: | F15: =SUBTOTAL(9,F37:F10011) -> 16 | G15: =SUBTOTAL(9,G37:G10011) -> 48 | H15: =SUBTOTAL(9,H37:H10011) -> 16 | M15: =SUBTOTAL(9,M37:M10011) -> 80996.95129 | Q15: 100-33
A16: Tab Loop Number | B16: 2 | C16: TEMPORARY SEDIMENT CONTROL BASIN | Q16: =B17 -> 2016-10-18
A17: Revision Date | B17: 2016-10-18 | Q17: =C16 -> TEMPORARY SEDIMENT CONTROL BASIN
A18: Tabulation Width | B18: 2
A19: Horizontal Grid Lines | B19: Yes | C19: Possible Detail 570-3
Q20: =C19 -> Possible Detail 570-3
C31: * The functional height used in the volume equation is 95% of effective height. Effective height is 2.5 feet as shown in 570-3.
C32: * Volume equation: [(1/4*(FS*H2))+(1/2*DW*H)+(1/4*(BS*H2))]*(H/Avg%Slope) | Q32: =C31 -> * The functional height used in the volume equation is 95% of effective height. Effective height is 2.5 feet as shown in 570-3.
C33: ="This Data Entry Sheet fills Tab "&Q15&" effective "&TEXT(B17,"mm-dd-yy") -> This Data Entry Sheet fills Tab 100-33 effective 10-18-16 | Q33: * Volume equation: [(1/4(FS*H2))+(DW*H)+(1/4*(BS*H2))]*(H/Avg%Slope)
C34: Basin No. | D34: Location | F34: Bid Items | I34: Stormwater Storage Volume Summary | N34: Subtotal | O34: Remarks | Q34: =C34 -> Basin No. | R34: =D34 -> Location | T34: =F34 -> Bid Items | W34: =I34 -> Stormwater Storage Volume Summary | AB34: =O34 -> Remarks
D35: Station | E35: Side | F35: Installation | G35: Maintenance | H35: Removal | I35: Foreslope | J35: Backslope | K35: Ditch Width | L35: Average % Slope | M35: Volume* | R35: =D35 -> Station | S35: =E35 -> Side | T35: =F35 -> Installation | U35: =G35 -> Maintenance | V35: =H35 -> Removal | W35: =I35 -> Foreslope | X35: =J35 -> Backslope | Y35: =K35 -> Ditch Width | Z35: =L35 -> Average % Slope | AA35: =M35 -> Volume*
F36: Each | G36: Each | H36: Each | I36: FS:1 | J36: BS:1 | K36: FT | M36: CF | T36: =F36 -> Each | U36: =G36 -> Each | V36: =H36 -> Each | W36: =I36 -> FS:1 | X36: =J36 -> BS:1 | Y36: =K36 -> FT | AA36: =M36 -> CF
M37: =IF(C37<>"", (((0.25*2.375^2*I37)+(0.5*2.375*K37)+(0.25*2.375^2*J37))*(2.375/L37)),"") -> 
D38: US 30
C39: 1 | D39: 138785 | E39: Rt. | F39: 1 | G39: 3 | H39: 1 | I39: 3.5 | J39: 3 | K39: 10 | L39: 0.02 | M39: =IF(C39<>"", (((0.25*2.375^2*I39)+(0.5*2.375*K39)+(0.25*2.375^2*J39))*(2.375/L39)),"") -> 2498.620605
C40: 1 | D40: 138855 | E40: Rt. | F40: 1 | G40: 3 | H40: 1 | I40: 3.5 | J40: 3 | K40: 10 | L40: 0.005 | M40: 9994.482422
C41: 2 | D41: 140070 | E41: Rt. | F41: 1 | G41: 3 | H41: 1 | I41: 3.5 | J41: 3 | K41: 10 | L41: 0.016 | M41: 3123.275757
C42: 2 | D42: 140100 | E42: Rt. | F42: 1 | G42: 3 | H42: 1 | I42: 3.5 | J42: 3 | K42: 10 | L42: 0.008 | M42: 6246.551514
C43: 2 | D43: 140120 | E43: Lt. | F43: 1 | G43: 3 | H43: 1 | I43: 3.5 | J43: 3 | K43: 10 | L43: 0.02 | M43: 2498.620605
D45: Ramp D
C46: 7 | D46: 4148000 | E46: Rt. | F46: 1 | G46: 3 | H46: 1 | I46: 3.5 | J46: 3 | K46: 10 | L46: 0.001 | M46: 49972.41211
C47: 7 | D47: 4148085 | E47: Rt. | F47: 1 | G47: 3 | H47: 1 | I47: 3.5 | J47: 3 | K47: 10 | L47: 0.01 | M47: 4997.241211
C48: 7 | D48: 4148340 | E48: Lt. | F48: 1 | G48: 3 | H48: 1 | I48: 3.5 | J48: 3 | K48: 10 | L48: 0.03 | M48: 1665.74707
D51: TOTALS: | F51: =SUM(F39:F48) -> 8 | G51: =SUM(G39:G48) -> 24 | H51: =SUM(H39:H48) -> 8
M110: =IF(C110<>"", (((0.25*2.375^2*I110)+(0.5*2.375*K110)+(0.25*2.375^2*J110))*(2.375/L110)),"") -> 
M174: =IF(C174<>"", (((0.25*2.375^2*I174)+(0.5*2.375*K174)+(0.25*2.375^2*J174))*(2.375/L174)),"") -> 
M238: =IF(C238<>"", (((0.25*2.375^2*I238)+(0.5*2.375*K238)+(0.25*2.375^2*J238))*(2.375/L238)),"") -> 
M302: =IF(C302<>"", (((0.25*2.375^2*I302)+(0.5*2.375*K302)+(0.25*2.375^2*J302))*(2.375/L302)),"") -> 
M366: =IF(C366<>"", (((0.25*2.375^2*I366)+(0.5*2.375*K366)+(0.25*2.375^2*J366))*(2.375/L366)),"") -> 
M430: =IF(C430<>"", (((0.25*2.375^2*I430)+(0.5*2.375*K430)+(0.25*2.375^2*J430))*(2.375/L430)),"") -> 
M494: =IF(C494<>"", (((0.25*2.375^2*I494)+(0.5*2.375*K494)+(0.25*2.375^2*J494))*(2.375/L494)),"") -> 
M558: =IF(C558<>"", (((0.25*2.375^2*I558)+(0.5*2.375*K558)+(0.25*2.375^2*J558))*(2.375/L558)),"") -> 
M622: =IF(C622<>"", (((0.25*2.375^2*I622)+(0.5*2.375*K622)+(0.25*2.375^2*J622))*(2.375/L622)),"") -> 
M686: =IF(C686<>"", (((0.25*2.375^2*I686)+(0.5*2.375*K686)+(0.25*2.375^2*J686))*(2.375/L686)),"") -> 
M750: =IF(C750<>"", (((0.25*2.375^2*I750)+(0.5*2.375*K750)+(0.25*2.375^2*J750))*(2.375/L750)),"") -> 
M814: =IF(C814<>"", (((0.25*2.375^2*I814)+(0.5*2.375*K814)+(0.25*2.375^2*J814))*(2.375/L814)),"") -> 
M878: =IF(C878<>"", (((0.25*2.375^2*I878)+(0.5*2.375*K878)+(0.25*2.375^2*J878))*(2.375/L878)),"") -> 
M942: =IF(C942<>"", (((0.25*2.375^2*I942)+(0.5*2.375*K942)+(0.25*2.375^2*J942))*(2.375/L942)),"") -> 
M1006: =IF(C1006<>"", (((0.25*2.375^2*I1006)+(0.5*2.375*K1006)+(0.25*2.375^2*J1006))*(2.375/L1006)),"") -> 
M1070: =IF(C1070<>"", (((0.25*2.375^2*I1070)+(0.5*2.375*K1070)+(0.25*2.375^2*J1070))*(2.375/L1070)),"") -> 
M1134: =IF(C1134<>"", (((0.25*2.375^2*I1134)+(0.5*2.375*K1134)+(0.25*2.375^2*J1134))*(2.375/L1134)),"") -> 
M1198: =IF(C1198<>"", (((0.25*2.375^2*I1198)+(0.5*2.375*K1198)+(0.25*2.375^2*J1198))*(2.375/L1198)),"") -> 
M1262: =IF(C1262<>"", (((0.25*2.375^2*I1262)+(0.5*2.375*K1262)+(0.25*2.375^2*J1262))*(2.375/L1262)),"") -> 
M1326: =IF(C1326<>"", (((0.25*2.375^2*I1326)+(0.5*2.375*K1326)+(0.25*2.375^2*J1326))*(2.375/L1326)),"") -> 
M1390: =IF(C1390<>"", (((0.25*2.375^2*I1390)+(0.5*2.375*K1390)+(0.25*2.375^2*J1390))*(2.375/L1390)),"") -> 
M1454: =IF(C1454<>"", (((0.25*2.375^2*I1454)+(0.5*2.375*K1454)+(0.25*2.375^2*J1454))*(2.375/L1454)),"") -> 
M1518: =IF(C1518<>"", (((0.25*2.375^2*I1518)+(0.5*2.375*K1518)+(0.25*2.375^2*J1518))*(2.375/L1518)),"") -> 
M1582: =IF(C1582<>"", (((0.25*2.375^2*I1582)+(0.5*2.375*K1582)+(0.25*2.375^2*J1582))*(2.375/L1582)),"") -> 
M1646: =IF(C1646<>"", (((0.25*2.375^2*I1646)+(0.5*2.375*K1646)+(0.25*2.375^2*J1646))*(2.375/L1646)),"") -> 
M1710: =IF(C1710<>"", (((0.25*2.375^2*I1710)+(0.5*2.375*K1710)+(0.25*2.375^2*J1710))*(2.375/L1710)),"") -> 
M1774: =IF(C1774<>"", (((0.25*2.375^2*I1774)+(0.5*2.375*K1774)+(0.25*2.375^2*J1774))*(2.375/L1774)),"") -> 
M1838: =IF(C1838<>"", (((0.25*2.375^2*I1838)+(0.5*2.375*K1838)+(0.25*2.375^2*J1838))*(2.375/L1838)),"") -> 
M1902: =IF(C1902<>"", (((0.25*2.375^2*I1902)+(0.5*2.375*K1902)+(0.25*2.375^2*J1902))*(2.375/L1902)),"") -> 
M1966: =IF(C1966<>"", (((0.25*2.375^2*I1966)+(0.5*2.375*K1966)+(0.25*2.375^2*J1966))*(2.375/L1966)),"") -> 
M2221: =IF(C2221<>"", (((0.25*2.375^2*I2221)+(0.5*2.375*K2221)+(0.25*2.375^2*J2221))*(2.375/L2221)),"") -> 
M2285: =IF(C2285<>"", (((0.25*2.375^2*I2285)+(0.5*2.375*K2285)+(0.25*2.375^2*J2285))*(2.375/L2285)),"") -> 
M2349: =IF(C2349<>"", (((0.25*2.375^2*I2349)+(0.5*2.375*K2349)+(0.25*2.375^2*J2349))*(2.375/L2349)),"") -> 
M2413: =IF(C2413<>"", (((0.25*2.375^2*I2413)+(0.5*2.375*K2413)+(0.25*2.375^2*J2413))*(2.375/L2413)),"") -> 
M2477: =IF(C2477<>"", (((0.25*2.375^2*I2477)+(0.5*2.375*K2477)+(0.25*2.375^2*J2477))*(2.375/L2477)),"") -> 
M2541: =IF(C2541<>"", (((0.25*2.375^2*I2541)+(0.5*2.375*K2541)+(0.25*2.375^2*J2541))*(2.375/L2541)),"") -> 
M2605: =IF(C2605<>"", (((0.25*2.375^2*I2605)+(0.5*2.375*K2605)+(0.25*2.375^2*J2605))*(2.375/L2605)),"") -> 
M2669: =IF(C2669<>"", (((0.25*2.375^2*I2669)+(0.5*2.375*K2669)+(0.25*2.375^2*J2669))*(2.375/L2669)),"") -> 
M2733: =IF(C2733<>"", (((0.25*2.375^2*I2733)+(0.5*2.375*K2733)+(0.25*2.375^2*J2733))*(2.375/L2733)),"") -> 
M2797: =IF(C2797<>"", (((0.25*2.375^2*I2797)+(0.5*2.375*K2797)+(0.25*2.375^2*J2797))*(2.375/L2797)),"") -> 
M2861: =IF(C2861<>"", (((0.25*2.375^2*I2861)+(0.5*2.375*K2861)+(0.25*2.375^2*J2861))*(2.375/L2861)),"") -> 
M2925: =IF(C2925<>"", (((0.25*2.375^2*I2925)+(0.5*2.375*K2925)+(0.25*2.375^2*J2925))*(2.375/L2925)),"") -> 
M2989: =IF(C2989<>"", (((0.25*2.375^2*I2989)+(0.5*2.375*K2989)+(0.25*2.375^2*J2989))*(2.375/L2989)),"") -> 
M3053: =IF(C3053<>"", (((0.25*2.375^2*I3053)+(0.5*2.375*K3053)+(0.25*2.375^2*J3053))*(2.375/L3053)),"") -> 
M3117: =IF(C3117<>"", (((0.25*2.375^2*I3117)+(0.5*2.375*K3117)+(0.25*2.375^2*J3117))*(2.375/L3117)),"") -> 
M3181: =IF(C3181<>"", (((0.25*2.375^2*I3181)+(0.5*2.375*K3181)+(0.25*2.375^2*J3181))*(2.375/L3181)),"") -> 
M3245: =IF(C3245<>"", (((0.25*2.375^2*I3245)+(0.5*2.375*K3245)+(0.25*2.375^2*J3245))*(2.375/L3245)),"") -> 
M3309: =IF(C3309<>"", (((0.25*2.375^2*I3309)+(0.5*2.375*K3309)+(0.25*2.375^2*J3309))*(2.375/L3309)),"") -> 
M3373: =IF(C3373<>"", (((0.25*2.375^2*I3373)+(0.5*2.375*K3373)+(0.25*2.375^2*J3373))*(2.375/L3373)),"") -> 
M3437: =IF(C3437<>"", (((0.25*2.375^2*I3437)+(0.5*2.375*K3437)+(0.25*2.375^2*J3437))*(2.375/L3437)),"") -> 
M3501: =IF(C3501<>"", (((0.25*2.375^2*I3501)+(0.5*2.375*K3501)+(0.25*2.375^2*J3501))*(2.375/L3501)),"") -> 
M3565: =IF(C3565<>"", (((0.25*2.375^2*I3565)+(0.5*2.375*K3565)+(0.25*2.375^2*J3565))*(2.375/L3565)),"") -> 
M3820: =IF(C3820<>"", (((0.25*2.375^2*I3820)+(0.5*2.375*K3820)+(0.25*2.375^2*J3820))*(2.375/L3820)),"") -> 
M3884: =IF(C3884<>"", (((0.25*2.375^2*I3884)+(0.5*2.375*K3884)+(0.25*2.375^2*J3884))*(2.375/L3884)),"") -> 
M3948: =IF(C3948<>"", (((0.25*2.375^2*I3948)+(0.5*2.375*K3948)+(0.25*2.375^2*J3948))*(2.375/L3948)),"") -> 
M4012: =IF(C4012<>"", (((0.25*2.375^2*I4012)+(0.5*2.375*K4012)+(0.25*2.375^2*J4012))*(2.375/L4012)),"") -> 
M4076: =IF(C4076<>"", (((0.25*2.375^2*I4076)+(0.5*2.375*K4076)+(0.25*2.375^2*J4076))*(2.375/L4076)),"") -> 
M4140: =IF(C4140<>"", (((0.25*2.375^2*I4140)+(0.5*2.375*K4140)+(0.25*2.375^2*J4140))*(2.375/L4140)),"") -> 
M4204: =IF(C4204<>"", (((0.25*2.375^2*I4204)+(0.5*2.375*K4204)+(0.25*2.375^2*J4204))*(2.375/L4204)),"") -> 
M4268: =IF(C4268<>"", (((0.25*2.375^2*I4268)+(0.5*2.375*K4268)+(0.25*2.375^2*J4268))*(2.375/L4268)),"") -> 
M4332: =IF(C4332<>"", (((0.25*2.375^2*I4332)+(0.5*2.375*K4332)+(0.25*2.375^2*J4332))*(2.375/L4332)),"") -> 
M4396: =IF(C4396<>"", (((0.25*2.375^2*I4396)+(0.5*2.375*K4396)+(0.25*2.375^2*J4396))*(2.375/L4396)),"") -> 
M4460: =IF(C4460<>"", (((0.25*2.375^2*I4460)+(0.5*2.375*K4460)+(0.25*2.375^2*J4460))*(2.375/L4460)),"") -> 
M4524: =IF(C4524<>"", (((0.25*2.375^2*I4524)+(0.5*2.375*K4524)+(0.25*2.375^2*J4524))*(2.375/L4524)),"") -> 
M4588: =IF(C4588<>"", (((0.25*2.375^2*I4588)+(0.5*2.375*K4588)+(0.25*2.375^2*J4588))*(2.375/L4588)),"") -> 
M4652: =IF(C4652<>"", (((0.25*2.375^2*I4652)+(0.5*2.375*K4652)+(0.25*2.375^2*J4652))*(2.375/L4652)),"") -> 
M4716: =IF(C4716<>"", (((0.25*2.375^2*I4716)+(0.5*2.375*K4716)+(0.25*2.375^2*J4716))*(2.375/L4716)),"") -> 
M4780: =IF(C4780<>"", (((0.25*2.375^2*I4780)+(0.5*2.375*K4780)+(0.25*2.375^2*J4780))*(2.375/L4780)),"") -> 
M4844: =IF(C4844<>"", (((0.25*2.375^2*I4844)+(0.5*2.375*K4844)+(0.25*2.375^2*J4844))*(2.375/L4844)),"") -> 
M4908: =IF(C4908<>"", (((0.25*2.375^2*I4908)+(0.5*2.375*K4908)+(0.25*2.375^2*J4908))*(2.375/L4908)),"") -> 
M4972: =IF(C4972<>"", (((0.25*2.375^2*I4972)+(0.5*2.375*K4972)+(0.25*2.375^2*J4972))*(2.375/L4972)),"") -> 
M5036: =IF(C5036<>"", (((0.25*2.375^2*I5036)+(0.5*2.375*K5036)+(0.25*2.375^2*J5036))*(2.375/L5036)),"") -> 
M5100: =IF(C5100<>"", (((0.25*2.375^2*I5100)+(0.5*2.375*K5100)+(0.25*2.375^2*J5100))*(2.375/L5100)),"") -> 
M5355: =IF(C5355<>"", (((0.25*2.375^2*I5355)+(0.5*2.375*K5355)+(0.25*2.375^2*J5355))*(2.375/L5355)),"") -> 
M5419: =IF(C5419<>"", (((0.25*2.375^2*I5419)+(0.5*2.375*K5419)+(0.25*2.375^2*J5419))*(2.375/L5419)),"") -> 
M5483: =IF(C5483<>"", (((0.25*2.375^2*I5483)+(0.5*2.375*K5483)+(0.25*2.375^2*J5483))*(2.375/L5483)),"") -> 
M5547: =IF(C5547<>"", (((0.25*2.375^2*I5547)+(0.5*2.375*K5547)+(0.25*2.375^2*J5547))*(2.375/L5547)),"") -> 
M5611: =IF(C5611<>"", (((0.25*2.375^2*I5611)+(0.5*2.375*K5611)+(0.25*2.375^2*J5611))*(2.375/L5611)),"") -> 
M5675: =IF(C5675<>"", (((0.25*2.375^2*I5675)+(0.5*2.375*K5675)+(0.25*2.375^2*J5675))*(2.375/L5675)),"") -> 
M5739: =IF(C5739<>"", (((0.25*2.375^2*I5739)+(0.5*2.375*K5739)+(0.25*2.375^2*J5739))*(2.375/L5739)),"") -> 
M5803: =IF(C5803<>"", (((0.25*2.375^2*I5803)+(0.5*2.375*K5803)+(0.25*2.375^2*J5803))*(2.375/L5803)),"") -> 
M5867: =IF(C5867<>"", (((0.25*2.375^2*I5867)+(0.5*2.375*K5867)+(0.25*2.375^2*J5867))*(2.375/L5867)),"") -> 
M5931: =IF(C5931<>"", (((0.25*2.375^2*I5931)+(0.5*2.375*K5931)+(0.25*2.375^2*J5931))*(2.375/L5931)),"") -> 
M5995: =IF(C5995<>"", (((0.25*2.375^2*I5995)+(0.5*2.375*K5995)+(0.25*2.375^2*J5995))*(2.375/L5995)),"") -> 

Sheet DE100_34
A1: TabTitle | B1: =C16 -> STORMWATER DRAINAGE BASIN AND STORAGE
A2: Number of Tab Columns | B2: 14
A3: DE Starter Row Number | B3: 26
A4: TabSheet Starter Row Number | B4: 12
A5: TabSheet Header Row Count | B5: 11
A6: Top Header Cell | B6: S15
A7: Bottom Header Cell | B7: AF25
A8: DESheet Row Count | B8: 55
A9: Fixed Empty Rows | B9: 24
A10: Usable Empty Rows | B10: 0
A11: Total Rows Placed | B11: 79 | C11: xlRight(1) | D11: xlRight(1) | E11: xlRight(1) | F11: xlRight(1) | G11: xlRight(1) | H11: xlRight(1) | I11: xlRight(1) | J11: xlRight(1) | K11: xlRight(1) | M11: xlRight(1) | N11: xlRight(1) | O11: xlRight(1) | P11: xlRight(1) | Q11: xlLeft(1) | S11: =C11 -> xlRight(1) | T11: =D11 -> xlRight(1) | U11: =E11 -> xlRight(1) | V11: =F11 -> xlRight(1) | W11: =I11 -> xlRight(1) | X11: xlRight(1) | Y11: xlRight(1) | Z11: 0 | AA11: xlRight(1) | AB11: =M11 -> xlRight(1) | AC11: xlRight(1) | AD11: xlRight(1) | AE11: xlRight(1) | AF11: xlLeft(1)
A12: Total Rows Needed | B12: =SUM(B8:B10) -> 79 | C12: General | D12: #+00.00 | E12: #+00.00 | F12: General | G12: #+00.00 | H12: General | I12: 0.0 | J12: 0.0 | K12: 0.0 | M12: General | N12: 0.0 | O12: 0.0 | P12: General | Q12: General | S12: General | T12: =D12 -> #+00.00 | U12: =E12 -> #+00.00 | V12: =F12 -> General | W12: 0.0 | X12: 0.0 | Y12: 0.0 | Z12: 0 | AA12: General | AB12: General | AC12: 0.0 | AD12: 0.0 | AE12: General | AF12: General
A13: Last Tab DE Starter Row | B13: 26 | C13: =CELL("width",C13) -> 6 | D13: 16 | E13: 16 | F13: 8 | G13: =CELL("width",G13) -> 16 | H13: =CELL("width",H13) -> 8 | I13: 12 | J13: 18 | K13: 18 | M13: 70 | N13: 18 | O13: 18 | P13: 14 | Q13: 75 | S13: =CELL("width",S13) -> 0 | T13: 0 | U13: 0 | V13: 0 | W13: 0 | X13: 0 | Y13: 0 | Z13: 0 | AA13: 0 | AB13: 0 | AC13: 0 | AD13: 0 | AE13: 0 | AF13: 0
A14: Last Tab Tabsheet Starter Row | B14: 12 | C14: A | D14: B | E14: C | F14: D | G14: E | H14: F | I14: G | J14: H | K14: I | M14: J | N14: K | O14: L | P14: M | Q14: N | S14: =LOWER(C14) -> a | T14: b | U14: c | V14: d | W14: e | X14: f | Y14: g | Z14: h | AA14: i | AB14: =LOWER(M14) -> j | AC14: =LOWER(N14) -> k | AD14: =LOWER(O14) -> l | AE14: =LOWER(P14) -> m | AF14: n
A15: Last Copy Starter Row | B15: 1 | H15: Totals: | I15: =SUBTOTAL(9,I26:I5989) -> 128.0536121 | J15: =SUBTOTAL(9,J26:J5989) -> 128.0536121 | K15: =SUBTOTAL(9,K26:K5989) -> 0 | S15: 100-34 | AH15: =M21 -> Best Management Practice | AI15: =P21 -> Storage Volume Met?
A16: Tab Loop Number | B16: 2 | C16: STORMWATER DRAINAGE BASIN AND STORAGE | S16: =B17 -> 2017-10-17 | AH16: Silt Fence for Ditch Check (EC-201) | AI16: Yes
A17: Revision Date | B17: 2017-10-17 | S17: =C16 -> STORMWATER DRAINAGE BASIN AND STORAGE | AH17: Silt Basin (EW-403) | AI17: No
A18: Tabulation Width | B18: 4 | C18: Refer to EC Standards and 570s Details. | AH18: Rock Check Dam (570-2)
A19: Horizontal Grid Lines | B19: Yes | C19: ="This Data Entry Sheet fills Tab "&S15&" effective "&TEXT(B17,"mm-dd-yy") -> This Data Entry Sheet fills Tab 100-34 effective 10-17-17 | S19: =C18 -> Refer to EC Standards and 570s Details. | AH19: Temporary Sediment Control Basin (570-3)
C20: Drainage Basin Location | I20: Summary of Stormwater Storage | Q20: Remarks | S20: =C20 -> Drainage Basin Location | Y20: =I20 -> Summary of Stormwater Storage | AF20: =Q20 -> Remarks | AH20: Silt Fence Installation for Shallow or No Ditch (570-4)
C21: Basin No. | D21: Station to Station | F21: Side | G21: Discharge Point | I21: Total Disturbed Area | J21: Disturbed Area with Storage Provided | K21: Disturbed Area without Storage Provided | L21: Discuss with Agronomist if w/o Storage > 0 | M21: Best Management Practice | N21: Total Storage Volume Provided | O21: Total Storage Volume Required | P21: Storage Volume Met? | S21: =C21 -> Basin No. | T21: =D21 -> Station to Station | V21: =F21 -> Side | W21: =G21 -> Discharge Point | Y21: =I21 -> Total Disturbed Area | Z21: =J21 -> Disturbed Area with Storage Provided | AA21: Disturbed Area without Storage Provided | AB21: =M21 -> Best Management Practice | AC21: =N21 -> Total Storage Volume Provided | AD21: =O21 -> Total Storage Volume Required | AE21: =P21 -> Storage Volume Met? | AH21: Erosion Control for Intake or Manhole Well (570-5)
AH22: Open-Throat Curb Intake Sediment Filter (570-6)
AH23: Grate Intake Sediment Filter Bag (570-7)
G24: Station | H24: Side | W24: =G24 -> Station | X24: =H24 -> Side | AH24: Vegetated Buffer
I25: Acres | J25: Acres | K25: Acres | N25: CF | O25: CF | P25: Yes/No | Y25: =I25 -> Acres | Z25: =J25 -> Acres | AA25: Acres | AC25: =N25 -> CF | AD25: =O25 -> CF | AE25: =P25 -> Yes/No
K26: =IF(I26<>"",I26-J26,"") ->  | L26: =IF(K26<>"","<--","") ->  | O26: =IF(I26<>"",(J26*3600),"") -> 
C27: 1 | D27: 138000 | E27: 139808 | F27: ALL | G27: 138808.31 | H27: RT | I27: =12.6589 -> 12.6589 | J27: =I27 -> 12.6589 | K27: =IF(I27<>"",I27-J27,"") -> 0 | L27: =IF(K27<>"","<--","") -> <-- | M27: Total | N27: =SUM(N28:N30) -> 63885.62243 | O27: =IF(I27<>"",(J27*3600),"") -> 45572.04 | P27: =IF(N27>=O27,"Yes","No") -> Yes
K28: =IF(I28<>"",I28-J28,"") ->  | M28: Silt Fence for Ditch Check (EC-201) | N28: =SUMIF(SFDC_No,C27,SFDC_Vol) -> 48105.0194 | O28: =IF(I28<>"",(J28*3600),"") -> 
M29: Silt Basin (EW-403) | N29: =SUMIF(SiltBasin_No,C27,SiltBasin_Vol) -> 3287.5
M30: Temporary Sediment Control Basin (570-3) | N30: =SUMIF(TSCB_No,C27,TSCB_Vol) -> 12493.10303
C32: =C27+1 -> 2 | D32: 139500 | E32: 142282 | F32: ALL | G32: 140085.04 | H32: RT | I32: =5.299+3.1253+1.875+7.3186 -> 17.6179 | J32: =I32 -> 17.6179 | K32: =IF(I32<>"",I32-J32,"") -> 0 | L32: =IF(K32<>"","<--","") -> <-- | M32: Total | N32: =SUM(N33:N35) -> 97048.15414 | O32: 63424.44 | P32: =IF(N32>=O32,"Yes","No") -> Yes
K33: =IF(I33<>"",I33-J33,"") ->  | M33: Silt Fence for Ditch Check (EC-201) | N33: =SUMIF(SFDC_No,C32,SFDC_Vol) -> 77504.70627
M34: Silt Basin (EW-403) | N34: =SUMIF(SiltBasin_No,C32,SiltBasin_Vol) -> 7675
M35: Temporary Sediment Control Basin (570-3) | N35: =SUMIF(TSCB_No,C32,TSCB_Vol) -> 11868.44788
C37: =C32+1 -> 3 | D37: 141900 | E37: 144500 | F37: ALL | G37: 142334.79 | H37: RT | I37: =7.087+3.226+2.9292+6.5186 -> 19.7608 | J37: =I37 -> 19.7608 | K37: =IF(I37<>"",I37-J37,"") -> 0 | L37: <-- | M37: Total | N37: =SUM(N38:N39) -> 96130.99368 | O37: 71138.88 | P37: =IF(N37>=O37,"Yes","No") -> Yes
K38: =IF(I38<>"",I38-J38,"") ->  | M38: Silt Fence for Ditch Check (EC-201) | N38: =SUMIF(SFDC_No,C37,SFDC_Vol) -> 80643.49368
M39: Silt Basin (EW-403) | N39: =SUMIF(SiltBasin_No,C37,SiltBasin_Vol) -> 15487.5
C41: =C37+1 -> 4 | D41: 144500 | E41: 146075 | F41: LT,RT | G41: 145400 | H41: RT | I41: =3.042+3.7609 -> 6.8029 | J41: =I41 -> 6.8029 | K41: =IF(I41<>"",I41-J41,"") -> 0 | L41: <-- | M41: Total | N41: =SUM(N42:N43) -> 35642.95291 | O41: 24490.44 | P41: =IF(N41>=O41,"Yes","No") -> Yes
K42: =IF(I42<>"",I42-J42,"") ->  | M42: Silt Fence for Ditch Check (EC-201) | N42: =SUMIF(SFDC_No,C41,SFDC_Vol) -> 30380.45291
M43: Silt Basin (EW-403) | N43: =SUMIF(SiltBasin_No,C41,SiltBasin_Vol) -> 5262.5
C45: =C41+1 -> 5 | D45: 145730 | E45: 148200 | F45: ALL | G45: 146075 | H45: RT | I45: =3.687+3.8654+3.6344+4.2384+4.3244+4.8223+3.3736+1.3799+3.3144 -> 32.6398 | J45: =I45 -> 32.6398 | K45: =IF(I45<>"",I45-J45,"") -> 0 | L45: <-- | M45: Total | N45: =SUM(N46:N47) -> 138216.2153 | O45: 117503.28 | P45: =IF(N45>=O45,"Yes","No") -> Yes
K46: =IF(I46<>"",I46-J46,"") ->  | M46: Silt Fence for Ditch Check (EC-201) | N46: =SUMIF(SFDC_No,C45,SFDC_Vol) -> 115128.7153
M47: Silt Basin (EW-403) | N47: =SUMIF(SiltBasin_No,C45,SiltBasin_Vol) -> 23087.5
C49: =C45+1 -> 6 | D49: 147568 | E49: 148576 | F49: Rt | G49: 24145050 | H49: RT | I49: 1.977 | J49: =I49 -> 1.977 | K49: =IF(I49<>"",I49-J49,"") -> 0 | L49: <-- | M49: Total | N49: =SUM(N50:N50) -> 62454.90977 | O49: 7117.2 | P49: =IF(N49>=O49,"Yes","No") -> Yes
K50: =IF(I50<>"",I50-J50,"") ->  | M50: Silt Fence for Ditch Check (EC-201) | N50: =SUMIF(SFDC_No,C49,SFDC_Vol) -> 62454.90977
C52: =C49+1 -> 7 | D52: 147916 | E52: 149150 | F52: ALL | G52: 148220.13 | H52: RT | I52: =1.3807+1.9442+3.5653+4.5362+3.6826+3.8462 -> 18.9552 | J52: =I52 -> 18.9552 | K52: =IF(I52<>"",I52-J52,"") -> 0 | L52: <-- | M52: Total | N52: =SUM(N53:N55) -> 121156.5356 | O52: 68238.72 | P52: =IF(N52>=O52,"Yes","No") -> Yes
K53: =IF(I53<>"",I53-J53,"") ->  | M53: Silt Fence for Ditch Check (EC-201) | N53: =SUMIF(SFDC_No,C52,SFDC_Vol) -> 54308.63522
M54: Silt Basin (EW-403) | N54: =SUMIF(SiltBasin_No,C52,SiltBasin_Vol) -> 10212.5
M55: Temporary Sediment Control Basin (570-3) | N55: =SUMIF(TSCB_No,C52,TSCB_Vol) -> 56635.40039
C57: =C52+1 -> 8 | D57: 149150 | E57: 149725 | F57: LT,RT | G57: 149356.54 | H57: RT | I57: 2.42 | J57: =I57 -> 2.42 | K57: =IF(I57<>"",I57-J57,"") -> 0 | L57: <-- | M57: Total | N57: =SUM(N58:N59) -> 23708.78768 | O57: 8712 | P57: =IF(N57>=O57,"Yes","No") -> Yes
K58: =IF(I58<>"",I58-J58,"") ->  | M58: Silt Fence for Ditch Check (EC-201) | N58: =SUMIF(SFDC_No,C57,SFDC_Vol) -> 18583.78768
M59: Silt Basin (EW-403) | N59: =SUMIF(SiltBasin_No,C57,SiltBasin_Vol) -> 5125
C61: =C57+1 -> 9 | D61: 149725 | E61: 151670 | F61: Med,RT | G61: 151670 | H61: RT | I61: =5.3313+0.3553 -> 5.6866 | J61: =I61 -> 5.6866 | K61: =IF(I61<>"",I61-J61,"") -> 0 | L61: <-- | M61: Total | N61: =SUM(N62:N63) -> 32186.39598 | O61: 20471.76 | P61: =IF(N61>=O61,"Yes","No") -> Yes
K62: =IF(I62<>"",I62-J62,"") ->  | M62: Silt Fence for Ditch Check (EC-201) | N62: =SUMIF(SFDC_No,C61,SFDC_Vol) -> 28723.89598
M63: Silt Basin (EW-403) | N63: =SUMIF(SiltBasin_No,C61,SiltBasin_Vol) -> 3462.5
C65: =C61+1 -> 10 | D65: 150150 | E65: 151670 | F65: Med | G65: 151670 | H65: Med | I65: 3.14 | J65: =I65 -> 3.14 | K65: =IF(I65<>"",I65-J65,"") -> 0 | L65: <-- | M65: Total | N65: =SUM(N66:N66) -> 12307.35944 | O65: 11304 | P65: =IF(N65>=O65,"Yes","No") -> Yes
K66: =IF(I66<>"",I66-J66,"") ->  | M66: Silt Fence for Ditch Check (EC-201) | N66: =SUMIF(SFDC_No,C65,SFDC_Vol) -> 12307.35944
C68: =C65+1 -> 11 | D68: 150811 | E68: 151670 | F68: LT | G68: 151670 | H68: Lt | I68: 4.2338 | J68: =I68 -> 4.2338 | K68: =IF(I68<>"",I68-J68,"") -> 0 | L68: <-- | M68: Total | N68: =SUM(N69:N70) -> 38793.87954 | O68: 15241.68 | P68: =IF(N68>=O68,"Yes","No") -> Yes
K69: =IF(I69<>"",I69-J69,"") ->  | M69: Silt Fence for Ditch Check (EC-201) | N69: =SUMIF(SFDC_No,C68,SFDC_Vol) -> 36118.87954
M70: Silt Basin (EW-403) | N70: =SUMIF(SiltBasin_No,C68,SiltBasin_Vol) -> 2675
C72: =C68+1 -> 12 | D72: 153905 | E72: 155110 | F72: Med | G72: 153905 | H72: Med | I72: =94120.6179/43560 -> 2.160712073 | J72: =I72 -> 2.160712073 | K72: =IF(I72<>"",I72-J72,"") -> 0 | L72: <-- | M72: Total | N72: =SUM(N73:N74) -> 8827.5576 | O72: 7778.563463 | P72: =IF(N72>=O72,"Yes","No") -> Yes
K73: =IF(I73<>"",I73-J73,"") ->  | M73: Silt Fence for Ditch Check (EC-201) | N73: =SUMIF(SFDC_No,C72,SFDC_Vol) -> 6477.5576
M74: Silt Basin (EW-403) | N74: =SUMIF(SiltBasin_No,C72,SiltBasin_Vol) -> 2350
O76: =IF(I76<>"",(J76*3600),"") -> 
M77: TOTALS
M78: Silt Fence for Ditch Check (EC-201) | N78: =SUMIF(M27:M74,M78,N27:N74) -> 570737.4128
M79: Silt Basin (EW-403) | N79: =SUMIF(M28:M75,M79,N28:N75) -> 78625
M80: Temporary Sediment Control Basin (570-3) | N80: =SUMIF(M29:M76,M80,N29:N76) -> 80996.95129
L81: =IF(K81<>"","<--","") -> 
K82: =IF(I82<>"",I82-J82,"") ->  | O82: =IF(I82<>"",(J82*3600),"") -> 
L145: =IF(K145<>"","<--","") -> 
K146: =IF(I146<>"",I146-J146,"") ->  | O146: =IF(I146<>"",(J146*3600),"") -> 
L209: =IF(K209<>"","<--","") -> 
K210: =IF(I210<>"",I210-J210,"") ->  | O210: =IF(I210<>"",(J210*3600),"") -> 
L273: =IF(K273<>"","<--","") -> 
K274: =IF(I274<>"",I274-J274,"") ->  | O274: =IF(I274<>"",(J274*3600),"") -> 
L337: =IF(K337<>"","<--","") -> 
K338: =IF(I338<>"",I338-J338,"") ->  | O338: =IF(I338<>"",(J338*3600),"") -> 
L401: =IF(K401<>"","<--","") -> 
K402: =IF(I402<>"",I402-J402,"") ->  | O402: =IF(I402<>"",(J402*3600),"") -> 
L465: =IF(K465<>"","<--","") -> 
K466: =IF(I466<>"",I466-J466,"") ->  | O466: =IF(I466<>"",(J466*3600),"") -> 
L529: =IF(K529<>"","<--","") -> 
K530: =IF(I530<>"",I530-J530,"") ->  | O530: =IF(I530<>"",(J530*3600),"") -> 
L593: =IF(K593<>"","<--","") -> 
K594: =IF(I594<>"",I594-J594,"") ->  | O594: =IF(I594<>"",(J594*3600),"") -> 
L657: =IF(K657<>"","<--","") -> 
K658: =IF(I658<>"",I658-J658,"") ->  | O658: =IF(I658<>"",(J658*3600),"") -> 
L721: =IF(K721<>"","<--","") -> 
K722: =IF(I722<>"",I722-J722,"") ->  | O722: =IF(I722<>"",(J722*3600),"") -> 
L785: =IF(K785<>"","<--","") -> 
K786: =IF(I786<>"",I786-J786,"") ->  | O786: =IF(I786<>"",(J786*3600),"") -> 
L849: =IF(K849<>"","<--","") -> 
K850: =IF(I850<>"",I850-J850,"") ->  | O850: =IF(I850<>"",(J850*3600),"") -> 
L913: =IF(K913<>"","<--","") -> 
K914: =IF(I914<>"",I914-J914,"") ->  | O914: =IF(I914<>"",(J914*3600),"") -> 
L977: =IF(K977<>"","<--","") -> 
K978: =IF(I978<>"",I978-J978,"") ->  | O978: =IF(I978<>"",(J978*3600),"") -> 
L1041: =IF(K1041<>"","<--","") -> 
K1042: =IF(I1042<>"",I1042-J1042,"") ->  | O1042: =IF(I1042<>"",(J1042*3600),"") -> 
L1105: =IF(K1105<>"","<--","") -> 
K1106: =IF(I1106<>"",I1106-J1106,"") ->  | O1106: =IF(I1106<>"",(J1106*3600),"") -> 
L1169: =IF(K1169<>"","<--","") -> 
K1170: =IF(I1170<>"",I1170-J1170,"") ->  | O1170: =IF(I1170<>"",(J1170*3600),"") -> 
L1233: =IF(K1233<>"","<--","") -> 
K1234: =IF(I1234<>"",I1234-J1234,"") ->  | O1234: =IF(I1234<>"",(J1234*3600),"") -> 
L1297: =IF(K1297<>"","<--","") -> 
K1298: =IF(I1298<>"",I1298-J1298,"") ->  | O1298: =IF(I1298<>"",(J1298*3600),"") -> 
L1361: =IF(K1361<>"","<--","") -> 
K1362: =IF(I1362<>"",I1362-J1362,"") ->  | O1362: =IF(I1362<>"",(J1362*3600),"") -> 
L1425: =IF(K1425<>"","<--","") -> 
K1426: =IF(I1426<>"",I1426-J1426,"") ->  | O1426: =IF(I1426<>"",(J1426*3600),"") -> 
L1489: =IF(K1489<>"","<--","") -> 
K1490: =IF(I1490<>"",I1490-J1490,"") ->  | O1490: =IF(I1490<>"",(J1490*3600),"") -> 
L1553: =IF(K1553<>"","<--","") -> 
K1554: =IF(I1554<>"",I1554-J1554,"") ->  | O1554: =IF(I1554<>"",(J1554*3600),"") -> 
L1617: =IF(K1617<>"","<--","") -> 
K1618: =IF(I1618<>"",I1618-J1618,"") ->  | O1618: =IF(I1618<>"",(J1618*3600),"") -> 
L1681: =IF(K1681<>"","<--","") -> 
K1682: =IF(I1682<>"",I1682-J1682,"") ->  | O1682: =IF(I1682<>"",(J1682*3600),"") -> 
L1745: =IF(K1745<>"","<--","") -> 
K1746: =IF(I1746<>"",I1746-J1746,"") ->  | O1746: =IF(I1746<>"",(J1746*3600),"") -> 
L1809: =IF(K1809<>"","<--","") -> 
K1810: =IF(I1810<>"",I1810-J1810,"") ->  | O1810: =IF(I1810<>"",(J1810*3600),"") -> 
L1873: =IF(K1873<>"","<--","") -> 
K1874: =IF(I1874<>"",I1874-J1874,"") ->  | O1874: =IF(I1874<>"",(J1874*3600),"") -> 
L1937: =IF(K1937<>"","<--","") -> 
K1938: =IF(I1938<>"",I1938-J1938,"") ->  | O1938: =IF(I1938<>"",(J1938*3600),"") -> 
L2001: =IF(K2001<>"","<--","") -> 
K2002: =IF(I2002<>"",I2002-J2002,"") ->  | O2002: =IF(I2002<>"",(J2002*3600),"") -> 
L2065: =IF(K2065<>"","<--","") -> 
K2066: =IF(I2066<>"",I2066-J2066,"") ->  | O2066: =IF(I2066<>"",(J2066*3600),"") -> 
L2129: =IF(K2129<>"","<--","") -> 
K2130: =IF(I2130<>"",I2130-J2130,"") ->  | O2130: =IF(I2130<>"",(J2130*3600),"") -> 
L2193: =IF(K2193<>"","<--","") -> 
K2194: =IF(I2194<>"",I2194-J2194,"") ->  | O2194: =IF(I2194<>"",(J2194*3600),"") -> 
L2257: =IF(K2257<>"","<--","") -> 
K2258: =IF(I2258<>"",I2258-J2258,"") ->  | O2258: =IF(I2258<>"",(J2258*3600),"") -> 
L2321: =IF(K2321<>"","<--","") -> 
K2322: =IF(I2322<>"",I2322-J2322,"") ->  | O2322: =IF(I2322<>"",(J2322*3600),"") -> 
L2385: =IF(K2385<>"","<--","") -> 
K2386: =IF(I2386<>"",I2386-J2386,"") ->  | O2386: =IF(I2386<>"",(J2386*3600),"") -> 
L2449: =IF(K2449<>"","<--","") -> 
K2450: =IF(I2450<>"",I2450-J2450,"") ->  | O2450: =IF(I2450<>"",(J2450*3600),"") -> 
L2513: =IF(K2513<>"","<--","") -> 
K2514: =IF(I2514<>"",I2514-J2514,"") ->  | O2514: =IF(I2514<>"",(J2514*3600),"") -> 
L2577: =IF(K2577<>"","<--","") -> 
K2578: =IF(I2578<>"",I2578-J2578,"") ->  | O2578: =IF(I2578<>"",(J2578*3600),"") -> 
L2641: =IF(K2641<>"","<--","") -> 
K2642: =IF(I2642<>"",I2642-J2642,"") ->  | O2642: =IF(I2642<>"",(J2642*3600),"") -> 
L2705: =IF(K2705<>"","<--","") -> 
K2706: =IF(I2706<>"",I2706-J2706,"") ->  | O2706: =IF(I2706<>"",(J2706*3600),"") -> 
L2769: =IF(K2769<>"","<--","") -> 
K2770: =IF(I2770<>"",I2770-J2770,"") ->  | O2770: =IF(I2770<>"",(J2770*3600),"") -> 
L2833: =IF(K2833<>"","<--","") -> 
K2834: =IF(I2834<>"",I2834-J2834,"") ->  | O2834: =IF(I2834<>"",(J2834*3600),"") -> 
L2897: =IF(K2897<>"","<--","") -> 
K2898: =IF(I2898<>"",I2898-J2898,"") ->  | O2898: =IF(I2898<>"",(J2898*3600),"") -> 
L2961: =IF(K2961<>"","<--","") -> 
K2962: =IF(I2962<>"",I2962-J2962,"") ->  | O2962: =IF(I2962<>"",(J2962*3600),"") -> 
L3025: =IF(K3025<>"","<--","") -> 
K3026: =IF(I3026<>"",I3026-J3026,"") ->  | O3026: =IF(I3026<>"",(J3026*3600),"") -> 
L3089: =IF(K3089<>"","<--","") -> 
K3090: =IF(I3090<>"",I3090-J3090,"") ->  | O3090: =IF(I3090<>"",(J3090*3600),"") -> 
L3153: =IF(K3153<>"","<--","") -> 
K3154: =IF(I3154<>"",I3154-J3154,"") ->  | O3154: =IF(I3154<>"",(J3154*3600),"") -> 
L3217: =IF(K3217<>"","<--","") -> 
K3218: =IF(I3218<>"",I3218-J3218,"") ->  | O3218: =IF(I3218<>"",(J3218*3600),"") -> 
L3281: =IF(K3281<>"","<--","") -> 
K3282: =IF(I3282<>"",I3282-J3282,"") ->  | O3282: =IF(I3282<>"",(J3282*3600),"") -> 
L3345: =IF(K3345<>"","<--","") -> 
K3346: =IF(I3346<>"",I3346-J3346,"") ->  | O3346: =IF(I3346<>"",(J3346*3600),"") -> 
L3409: =IF(K3409<>"","<--","") -> 
K3410: =IF(I3410<>"",I3410-J3410,"") ->  | O3410: =IF(I3410<>"",(J3410*3600),"") -> 
L3473: =IF(K3473<>"","<--","") -> 
K3474: =IF(I3474<>"",I3474-J3474,"") ->  | O3474: =IF(I3474<>"",(J3474*3600),"") -> 
L3537: =IF(K3537<>"","<--","") -> 
K3538: =IF(I3538<>"",I3538-J3538,"") ->  | O3538: =IF(I3538<>"",(J3538*3600),"") -> 
L3601: =IF(K3601<>"","<--","") -> 
K3602: =IF(I3602<>"",I3602-J3602,"") ->  | O3602: =IF(I3602<>"",(J3602*3600),"") -> 
L3665: =IF(K3665<>"","<--","") -> 
K3666: =IF(I3666<>"",I3666-J3666,"") ->  | O3666: =IF(I3666<>"",(J3666*3600),"") -> 
L3729: =IF(K3729<>"","<--","") -> 
K3730: =IF(I3730<>"",I3730-J3730,"") ->  | O3730: =IF(I3730<>"",(J3730*3600),"") -> 
L3793: =IF(K3793<>"","<--","") -> 
K3794: =IF(I3794<>"",I3794-J3794,"") ->  | O3794: =IF(I3794<>"",(J3794*3600),"") -> 
L3857: =IF(K3857<>"","<--","") -> 
K3858: =IF(I3858<>"",I3858-J3858,"") ->  | O3858: =IF(I3858<>"",(J3858*3600),"") -> 
L3921: =IF(K3921<>"","<--","") -> 
K3922: =IF(I3922<>"",I3922-J3922,"") ->  | O3922: =IF(I3922<>"",(J3922*3600),"") -> 
L3985: =IF(K3985<>"","<--","") -> 
K3986: =IF(I3986<>"",I3986-J3986,"") ->  | O3986: =IF(I3986<>"",(J3986*3600),"") -> 
L4049: =IF(K4049<>"","<--","") -> 
K4050: =IF(I4050<>"",I4050-J4050,"") ->  | O4050: =IF(I4050<>"",(J4050*3600),"") -> 
L4113: =IF(K4113<>"","<--","") -> 
K4114: =IF(I4114<>"",I4114-J4114,"") ->  | O4114: =IF(I4114<>"",(J4114*3600),"") -> 
L4177: =IF(K4177<>"","<--","") -> 
K4178: =IF(I4178<>"",I4178-J4178,"") ->  | O4178: =IF(I4178<>"",(J4178*3600),"") -> 
L4241: =IF(K4241<>"","<--","") -> 
K4242: =IF(I4242<>"",I4242-J4242,"") ->  | O4242: =IF(I4242<>"",(J4242*3600),"") -> 
... 54 more rows

Sheet DE100_37
A1: TabTitle | B1: =C16 -> GRATE INTAKE SEDIMENT FILTER BAG
A2: Number of Tab Columns | B2: 6
A3: DE Starter Row Number | B3: 23
A4: TabSheet Starter Row Number | B4: 9
A5: TabSheet Header Row Count | B5: 8
A6: Top Header Cell | B6: J15
A7: Bottom Header Cell | B7: O22
A8: DESheet Row Count | B8: 8
A9: Fixed Empty Rows | B9: 10
A10: Usable Empty Rows | B10: 0
A11: Total Rows Placed | B11: 18 | C11: xlLeft(1) | D11: xlRight(1) | E11: xlRight(1) | F11: xlRight(1) | G11: xlRight(1) | H11: xlLeft(1) | J11: =C11 -> xlLeft(1) | K11: xlRight(1) | L11: xlRight(1) | M11: xlRight(1) | N11: xlRight(1) | O11: xlLeft(1)
A12: Total Rows Needed | B12: =SUM(B8:B10) -> 18 | C12: #+00.00 | D12: General | E12: 0 | F12: 0 | G12: 0 | H12: General | J12: #+00.00 | K12: General | L12: 0 | M12: 0 | N12: 0 | O12: General
A13: Last Tab DE Starter Row | B13: 23 | C13: =CELL("width",C13) -> 16 | D13: 7 | E13: 14 | F13: 14 | G13: 12 | H13: 11 | J13: =CELL("width",J13) -> 0 | K13: 0 | L13: 0 | M13: 0 | N13: 0 | O13: 0
A14: Last Tab Tabsheet Starter Row | B14: 9 | C14: A | D14: B | E14: C | F14: D | G14: E | H14: F | J14: =LOWER(C14) -> a | K14: b | L14: c | M14: d | N14: e | O14: f
A15: Last Copy Starter Row | B15: 1 | D15: Totals: | E15: =SUBTOTAL(9,E23:E6000) -> 10 | F15: =SUBTOTAL(9,F23:F6000) -> 10 | G15: =SUBTOTAL(9,G23:G6000) -> 10 | J15: 100-37
A16: Tab Loop Number | B16: 2 | C16: GRATE INTAKE SEDIMENT FILTER BAG | J16: =B17 -> 2017-04-18
A17: Revision Date | B17: 2017-04-18 | J17: =C16 -> GRATE INTAKE SEDIMENT FILTER BAG
A18: Tabulation Width | B18: 1 | C18: Possible Detail: 570-7
A19: Horizontal Grid Lines | B19: Yes | C19: ="This Data Entry Sheet fills Tab "&J15&" effective "&TEXT(B17,"mm-dd-yy") -> This Data Entry Sheet fills Tab 100-37 effective 04-18-17 | J19: =C18 -> Possible Detail: 570-7
C20: Location Station | D20: Side | E20: Installation | F20: Maintenance | G20: Removal | H20: Remarks | J20: =C20 -> Location Station | K20: Side | L20: Installation | M20: Maintenance | N20: Removal | O20: Remarks
E22: EACH | F22: EACH | G22: EACH | L22: =E22 -> EACH | M22: =F22 -> EACH | N22: =G22 -> EACH
C24: 24147087 | D24: Lt. | E24: 1 | F24: 1 | G24: 1 | H24: SW-549
C25: 24147165 | D25: Lt. | E25: 1 | F25: 1 | G25: 1 | H25: SW-549
C26: 24147280 | D26: Lt. | E26: 1 | F26: 1 | G26: 1 | H26: SW-549
C27: 24147395 | D27: Lt. | E27: 1 | F27: 1 | G27: 1 | H27: SW-549
C28: 24147395 | D28: Rt. | E28: 1 | F28: 1 | G28: 1 | H28: SW-538
D30: Total | E30: =SUM(E24:E28) -> 5 | F30: =SUM(F24:F28) -> 5 | G30: =SUM(G24:G28) -> 5

Sheet DE110_12A
A1: TabTitle | B1: =C15 -> POLLUTION PREVENTION PLAN
A2: Number of Tab Columns | B2: 1 | K2: Click to Choose Soil Associations | M2: Click to Choose Hydrologic Soil Group
A3: DE Starter Row Number | B3: 18 | K3: Moody - Trent | L3: B - B | M3: A
A4: TabSheet Starter Row Number | B4: 5 | K4: Galva - Primghar | L4: B - B | M4: B
A5: TabSheet Header Row Count | B5: 4 | K5: Everly - Wilmonton - Letri | L5: B - B - B/D | M5: C
A6: Top Header Cell | B6: I15 | K6: Clarion - Nicollet - Webster | L6: B - B - B/D | M6: D
A7: Bottom Header Cell | B7: I18 | K7: Marna - Kossuth - Bode | L7: C/D - B/D - B
A8: DESheet Row Count | B8: 199 | K8: Kenyon - Clyde - Floyd | L8: B - B/D - B
A9: Fixed Empty Rows | B9: 2 | K9: Rockton | L9: B
A10: Usable Empty Rows | B10: 0 | K10: Downs - Fayette - Nordness | L10: B - B - B
A11: Total Rows Placed | B11: 201 | C11: xlLeft(1) | I11: xlLeft(1) | K11: Dinsdale - Klinger | L11: B - B
A12: Total Rows Needed | B12: =SUM(B8:B10) -> 201 | C12: General | I12: General | K12: Tama - Muscatine - Downs | L12: B - B - B
A13: Last Tab DE Starter Row | B13: 190 | C13: =CELL("width",C13) -> 159 | I13: =CELL("width",C13) -> 159 | K13: Mashall - Shelby | L13: B - B
A14: Last Tab TabSheet Starter Row | B14: 185 | C14: A | I14: =LOWER(C14) -> a | K14: Monona - Ida - Napier | L14: B - B - B
A15: Last Copy Starter Row | B15: 181 | C15: POLLUTION PREVENTION PLAN | E15: Instructions: | I15: 110-12A | K15: Ida - Hamburg | L15: B - B
A16: Tab Loop Number | B16: 4 | E16: 1. Choose your Soil Association(s) | I16: =B17 -> 2017-10-17 | K16: Albaton - Luton - Onawa | L16: D - D - D
A17: Revision Date | B17: 2017-10-17 | C17: ="This Data Entry Sheet fills Tab "&I15&" effective "&TEXT(B17,"mm-dd-yy") -> This Data Entry Sheet fills Tab 110-12A effective 10-17-17 | E17: 2. Determine which Hydrologic Soil Group to use and then select the group for Runoff Coefficient Number. | I17: =C15 -> POLLUTION PREVENTION PLAN | K17: Sharpsburg - Shelby - Adair | L17: B - B - C
A18: Tabulation Width | B18: 2 | C18: This project is regulated by the requirements of the Iowa Department of Natural Resources (DNR) National Pollutant Discharge Elimination | E18: 3. Enter the total acres of the project and all surface areas pertaining to your project. | K18: Pershing - Gosport - Gara | L18: C - C - C
A19: Horizontal Grid Lines | B19: No | C19: System (NPDES) General Permit No. 2 OR an Iowa Department of Natural Resources (DNR) National Pollutant Discharge Elimination System | E19: 4. The rest of the calculations will be automatically populated. | K19: Otley - Ladoga | L19: B - B
C20: (NPDES) individual storm water permit. The Contractor shall carry out the terms and conditions of this permit and the Pollution | K20: Sparta - Chelsea - Dickinson | L20: A - A - B
C21: Prevention Plan (PPP). | E21: Select a Soil Association: | F21: Dinsdale - Klinger | K21: Fayette | L21: B
F22: =IF(F21<>"Choose Soil Associations",INDEX($L$3:$L$24,MATCH(F21,$K$3:$K$24,FALSE),1),"") -> B - B | K22: Colo - Cheguest - Titus | L22: B/D - C - B/D
C23: This Base PPP includes information on Roles and Responsibilities, Project Site Description, Controls, Maintenance Procedures, Inspection | K23: Grundy - Haig - Arispe - Gara | L23: C - C/D - C - C
C24: Requirements, Non-Storm Water Controls, Potential Sources of Off Right-of-Way Pollution, and Definitions. This plan references other | E24: Select a second Soil Association if needed: | F24: Click to Choose Soil Associations | K24: Seymour - Edina - Clarinda | L24: C - D - D
C25: documents rather than repeating the information contained in the documents. A copy of this Base Pollution Prevention Plan, amended as | F25: =IF(F24<>"Choose Soil Associations",INDEX($L$3:$L$24,MATCH(F24,$K$3:$K$24,FALSE),1),"") -> 
C26: needed per plan revisions or by contract modification, will be readily available for review.
E27: Select Hydrologic Soil Group: | F27: B
C28: All contractors shall conduct their operations in a manner that controls pollutants, minimizes erosion, and prevents sediments from
C29: entering waters of the state and leaving the highway right-of-way. The prime contractor shall be responsible for compliance and | E29: Runoff Coefficient Numbers
C30: implementation of the PPP for their entire contract. This responsibility shall be further shared with subcontractors whose work is a | E30: A link to Chapter 10D-01 is provided to use Table 2 for Runoff Coefficient Numbers.
C31: source of potential pollution as defined in this PPP. | E31: Paved Surfaces | F31: =IF($F$27="A",0.85,IF($F$27="B",0.85,IF($F$27="C",0.85,IF($F$27="D",0.85,"Please select Hydrologic Soil Group")))) -> 0.85
E32: Granular Shoulder Surfaces | F32: =IF($F$27="A",0.25,IF($F$27="B",0.35,IF($F$27="C",0.4,IF($F$27="D",0.4,"")))) -> 0.35
E33: Grass Surfaces | F33: =IF($F$27="A",0.1,IF($F$27="B",0.2,IF($F$27="C",0.3,IF($F$27="D",0.3,"")))) -> 0.2
C34: I. ROLES AND RESPONSIBILITES
C35: A. Designer: | G35: ACRES
C36: 1. Prepares Base PPP included in the project plan. | E36: Total Acres = (average ROW width x length of permit limits) + interchange areas | G36: =(300*13700+2270000+180*3650+70*790)*0.000022957 -> 162.8179311
C37: 2. Prepares Notice of Intent (NOI) submitted to Iowa DNR.
C38: 3. Signature authority on the Base PPP and NOI. | E38: Paved Surfaces Acres = | G38: =(68*13700+36*3500+16*3160+18*3360)*0.000022957 -> 26.82846848
C39: B. Contractor/Subcontractor: | E39: Granular Shoulder Surfaces Acres = | G39: =(12*13700+8*3500+30*1750+30*790+20*6520)*0.000022957 -> 9.159843
C40: 1. Affected contractors/subcontractors are co-permittees with the IDOT and will sign a certification statement adhering to the | E40: Grass Surfaces Acres = | G40: =SUM(G36-SUM(G38:G39)) -> 126.8296196
C41: requirements of the NPDES permit and this PPP plan. Affected contractors/subcontractors are anyone responsible for sediment or
C42: erosion controls or involved in land disturbing activities. All co-permittees are legally required under the Clean Water Act | E42: Disturbed Acres = area of new pavt + area of new gran. & earth shoulders + area to be seeded | G42: 136
C43: and the Iowa Administrative Code to ensure compliance with the terms and conditions of this PPP.
C44: 2. Submit an Erosion Control Implementation Plan (ECIP) according to Specifications Section 2602 and any additional plan notes.
C45: 3. Install and maintain appropriate controls. | E45: Percentage Breakdowns Per Surface
C46: 4. Supervise and implement good housekeeping practices. | E46: % Paved Surfaces = | G46: =IF(AND($G$36<>"",$G$38<>""),$G$38/$G$36,"") -> 0.1647758837
C47: 5. Conduct joint required inspections of the site with inspection staff. | E47: % Granular Shoulder Surfaces Acres = | G47: =IF(AND($G$36<>"",$G$39<>""),$G$39/$G$36,"") -> 0.05625819551
C48: 6. Comply with training and certification requirements of Specifications Section 2602. | E48: % Grass Surfaces Acres = | G48: =IF(AND($G$36<>"",$G$40<>""),$G$40/$G$36,"") -> 0.7789659208
C49: 7. Signature authority on Co-Permittee Certification Statements and storm water inspection reports.
C50: C. RCE/Inspector: | E50: Calculate Average Runoff Coefficient Number
C51: 1. Update PPP whenever there is a change in design, construction, operation or maintenance, which has a significant effect on the | E51: Paved Surfaces = | G51: =IF(G46<>"",IF(OR($F$27="A",$F$27="B",$F$27="C",$F$27="D"),F31*G46,""),"") -> 0.1400595011
C52: discharge of pollutants from the project. | E52: Granular Shoulder Surfaces = | G52: =IF(G47<>"",IF(OR($F$27="A",$F$27="B",$F$27="C",$F$27="D"),F32*G47,""),"") -> 0.01969036843
C53: 2. Maintain an up-to-date record that identifies contractors and subcontractors as co-permittees. | E53: Grass Surfaces = | G53: =IF(G48<>"",IF(OR($F$27="A",$F$27="B",$F$27="C",$F$27="D"),F33*G48,""),"") -> 0.1557931842
C54: 3. Make these plans available to the DNR upon their request.
C55: 4. Conduct joint required inspections of the site with the contractor/subcontractor. | E55: Average Runoff Coefficient Number | G55: =ROUNDUP(SUM(G51:G53),2) -> 0.32
C56: 5. Complete an inspection report after each inspection.
C57: 6. Signature authority on storm water inspection reports and Notice of Discontinuation (NOD).
C59: II. PROJECT SITE DESCRIPTION
C60: A. This Pollution Prevention Plan (PPP) is for the construction of a new 4 lane divided highway and new interchange.
C61: B. This PPP covers approximately 165 acres with an estimated 138 acres being disturbed. The
C62: portion of the PPP covered by this contract has 138 acres disturbed.
C63: C. The PPP is located in an area of 1 soil association (Dinsdale-Klinger).
C64: The estimated weighted average runoff coefficient number for this PPP after completion will be 0.32.
C65: D. Storm Water Site Map - Multiple sources of information comprise the base storm water site map including:
C66: 1. Drainage patterns – Plan and Profile sheets and Situation plans.
C67: 2. Proposed Slopes – Cross Sections.
C68: 3. Areas of Soil Disturbance – construction limits shown on Plan and Profile sheets.
C69: 4. Location of Structural Controls – Tabulations on C sheets.
C70: 5. Locations of Non-structural Controls – Tabulations on C sheets.
C71: 6. Locations of Stabilization Practices – generally within construction limits shown on Plan and Profile sheets.
C72: 7. Surface Waters (including wetlands) – Project Location Map and Plan and Profile sheets.
C73: 8. Locations where storm water is discharged – Plan and Profile sheets.
C74: E. The base site map is amended by contract modifications and progress payments (fieldbook entries) of completed erosion control
C75: work. Also, due to project phasing, erosion and sediment controls shown on project plans may not be installed until needed, based
C76: on site conditions. For example, silt fence ditch checks will typically not be installed until the ditch has been installed.
C77: Installed locations may also be modified from tabulation locations by field staff. Installed locations will be documented by
C78: fieldbook entries.
C79: F. Runoff from this work will flow into road ditches to: Unnamed tributaries to Buffalo, Weasel and Mud Creeks to Prairie Creek to
C80: Cedar River to Iowa River to Mississippi River.
C82: III. CONTROLS
C83: A. The contractor’s ECIP specified in Article 2602.03 for accomplishment of storm water controls should clearly describe the intended
C84: sequence of major activities and for each activity define the control measure and the timing during the construction process that
C85: the measure will be implemented.
C86: B. Preserve vegetation in areas not needed for construction.
C87: C. Sections 2601 and 2602 of the Standard Specifications define requirements to implement erosion and sediment control measures.
C88: Actual quantities used and installed locations may vary from the Base PPP and amendment of the plan will be documented via
C89: fieldbook entries or by contract modification. Additional erosion and sediment control items may be required as determined by the
C90: inspector and/or contractor during storm water monitoring inspections. If the work involved is not applicable to any contract
C91: items, the work will be paid for according to Article 1109.03 paragraph B.
C92: 1. EROSION AND SEDIMENT CONTROLS
C93: a. Stabilization Practices
C94: 1) Site plans will ensure that existing vegetation or natural buffers are preserved where attainable and disturbed portions
C95: of the site will be stabilized.
C96: 2) Initialize stabilization of disturbed areas immediately after clearing, grading, excavating, or other earth disturbing
C97: activities have:
C98: a) Permanently ceased on any portion of the site, or
C99: b) Temporarily ceased on any portion of the site and will not resume for a period exceeding 14 calendar days.
C100: 3) Staged permanent and/or temporary stabilizing seeding and mulching shall be completed as the disturbed areas are
C101: completed. Incomplete areas shall be stabilized according to paragraph III, C, 1, a, 2, b above.
C102: 4) Permanent and Temporary Stabilization practices to be used for this project are located in the Estimated Project
C103: Quantities (100-0A, 100-1A, or 100-1C) and Estimate Reference Information (100-4A) located on the C sheets of the plan.
C104: Typical drawings detailing construction of the practices to be used on this project are referenced in the Standard Road
C105: Plans Tabulation.
C106: 5) Preservation of existing vegetation within right-of-way or easements will act as vegetative buffer strips.
C107: 6) Preservation of topsoil: Bid items to be used for this project are located in the Estimated Project Quantities (100-0A,
C108: 100-1A, or 100-1C) and Estimate Reference Information (100-4A) located on the C sheets of the plan. Additional
C109: information may be found in Tabulations in the C or T sheets of the plans or is referenced in Standard Specifications
C110: Section 2105.
C111: b. Structural Practices
C112: 1) Structural practices will be implemented to divert flows from exposed soils and detain or otherwise limit runoff and the
C113: discharge of pollutants from exposed areas of the site. Additionally, structural practices may include: silt basins that
C114: provide 3600 cubic feet of storage per acre drained or equivalent sediment controls, outlet structures that withdraw water
C115: from surface when discharging basins, and controls to direct storm water to vegetated areas.
C116: 2) Structural practices to be used for this project are located in the Estimated Project Quantities (100-0A, 100-1A, or
C117: 100-1C) and Estimate Reference Information (100-4A) located on the C sheets of the plan, as well as all other item
C118: specific Tabulations. Typical drawings detailing construction of the devices to be used on this project can be found on
C119: the B sheets of the plans or are referenced in the Standard Road Plans Tabulation.
C120: c. Storm Water Management
C121: 1) Measures shall be installed during the construction process to control pollutants in storm water discharges that will
C122: occur after construction operations have been completed. This may include velocity dissipation devices at discharge
C123: locations and along length of outfall channel as necessary to provide a non-erosion velocity flow from structure to water
C124: course. If included with this project, these items are located in the Estimated Project Quantities (100-0A, 100-1A, or
C125: 100-1C) and Estimate Reference Information (100-4A) located on the C sheets of the plan, as well as all other item
C126: specific Tabulations. Typical drawings detailing construction of the practices to be used on this project are referenced
C127: in the Standard Road Plans Tabulation. The installation of these devices may be subject to Section 404 of the Clean Water
C128: Act.
C129: 2. OTHER CONTROLS
C130: a. Contractor disposal of unused construction materials and construction material wastes shall comply with applicable state and
C131: local waste disposal, sanitary sewer, or septic system regulations. In the event of a conflict with other governmental
C132: laws, rules and regulations, the more restrictive laws, rules or regulations shall apply.
C133: 1) Vehicle Entrances and Exits - Construct and maintain entrances and exits to prevent tracking of sediments onto roadways.
C134: 2) Material Delivery, Storage and Use - Implement practices to prevent discharge of construction materials during delivery,
C135: storage, and use.
C136: 3) Stockpile Management - Install controls to reduce or eliminate pollution of storm water from stockpiles of soil and
C137: paving.
C138: 4) Waste Disposal - Do not discharge any materials, including building materials, into waters of the state, except as
C139: authorized by a Section 404 permit.
C140: 5) Spill Prevention and Control - Implement procedures to contain and clean-up spills and prevent material discharges to the
C141: storm drain system and waters of the state.
C142: 6) Concrete Residuals and Washout Wastes - Designate temporary concrete washout facilities for rinsing out concrete trucks.
C143: Provide directions to truck drivers where designated washout facilities are located. Designated washout areas should be
C144: located at least 50 feet away from storm drains, streams or other water bodies. Care should be taken to ensure these
C145: facilities do not overflow during storm events.
C146: 7) Concrete Grooving/Grinding Slurry – Do not discharge slurry to a waterbody or storm drain. Slurry may be applied on
C147: foreslopes or removed from the project.
C148: 8) Vehicle and Equipment Storage and Maintenance Areas - Perform on site fueling and maintenance in accordance with all
C149: environment laws such as proper storage of onside fuels and proper disposal of used engine oil or other fluids on site.
C150: Employ washing practices that prevent contamination of surface and ground water from wash water.
C151: 9) Litter Management - Ensure employees properly dispose of litter.
C152: 10) Dewatering – Properly treat water to remove suspended sediment before it re-enters a waterbody or discharges off-site.
C153: Measures are also to be taken to prevent scour erosion at dewatering discharge point.
C154: 3. APPROVED STATE OR LOCAL PLANS
C155: During the course of this construction, it is possible that situations will arise where unknown materials will be encountered.
C156: When such situations are encountered, they will be handled according to all federal, state, and local regulations in effect at
C157: the time.
C159: IV. MAINTENANCE PROCEDURES
C160: The contractor is required to maintain all temporary erosion and sediment control measures in proper working order, including
C161: cleaning, repairing, or replacing them throughout the contract period. This shall begin when the features have lost 50% of their
C162: capacity.
C164: V. INSPECTION REQUIREMENTS
C165: A. Inspections shall be made jointly by the contractor and the contracting authority at least once every seven calendar days. Storm
C166: water monitoring inspections will include:
C167: 1. Date of the inspection.
C168: 2. Summary of the scope of the inspection.
C169: 3. Name and qualifications of the personnel making the inspection.
C170: 5. Review erosion and sediment control measures within disturbed areas for the effectiveness in preventing impacts to receiving
C171: waters.
C172: 6. Major observations related to the implementation of the PPP.
C173: 7. Identify corrective actions required to maintain or modify erosion and sediment control measures.
C174: B. Include storm water monitoring inspection reports in the Amended PPP. Incorporate any additional erosion and sediment control
C175: measures determined as a result of the inspection. Immediately begin corrective actions on all deficiencies found within 3
C176: calendar days of the inspection.
C178: VI. NON-STORM WATER DISCHARGES
C179: This includes subsurface drains (i.e. longitudinal and standard subdrains) and slope drains. The velocity of the discharge from
C180: these features may be controlled by the use of patio blocks, Class A stone, erosion stone or other appropriate materials. This also
C181: includes uncontaminated groundwater from dewatering operations, which will be controlled as discussed in Section III of the PPP.
C183: VII. POTENTIAL SOURCES OF OFF RIGHT-OF-WAY (ROW) POLLUTION
C184: Silts, sediment, and other forms of pollution may be transported onto highway right-of-way (ROW) as a result of a storm event.
C185: Potential sources of pollution located outside highway ROW are beyond the control of this PPP. Pollution within highway ROW will be
C186: conveyed and controlled per this PPP.
C188: VIII. DEFINITIONS
C189: A. Base PPP - Initial Pollution Prevention Plan.
C190: B. Amended PPP - May include Plan Revisions or Contract Modifications for new items, storm water monitoring inspection reports, and
C191: fieldbook entries made by the inspector.
C192: C. IDR - Inspector’s Daily Report – this contains the inspector’s daily diary and bid item postings.
C193: D. Controls - Methods, practices, or measures to minimize or prevent erosion, control sedimentation, control storm water, or minimize
C194: contaminants from other types of waste or materials. Also called Best Management Practices (BMPs).
C195: E. Signature Authority - Representative from Designer, Contractor/Subcontractor, or RCE/Inspector authorized to sign various storm
C196: water documents.
C198: ---------------------------------------------------------------------------------------------------------------------------------
C199: CERTIFICATION STATEMENT
C200: I certify under penalty of law that this document and all attachments were prepared under my direction or supervision in accordance
C201: with a system designed to assure that qualified personnel properly gathered and evaluated the information submitted. Based on my inquiry
C202: of the person or persons who manage the system, or those persons directly responsible for gathering the information, the information
C203: submitted is, to the best of my knowledge and belief, true, accurate, and complete. I am aware that there are significant penalties for
C204: submitting false information, including the possibility of fine and imprisonment for knowing violations.
C206: ________________________________________
C207: Signature
C209: ________________________________________
C210: Printed or Typed Name
... 4 more rows

Sheet DE111_25
A1: TabTitle | B1: =C15 -> INDEX OF TABULATIONS
A2: Number of Tab Columns | B2: 3
A3: DE Starter Row Number | B3: 20
A4: TabSheet Starter Row Number | B4: 7
A5: TabSheet Header Row Count | B5: 6
A6: Top Header Cell | B6: G15
A7: Bottom Header Cell | B7: I20
A8: DESheet Row Count | B8: 10
A9: Fixed Empty Rows | B9: 0
A10: Usable Empty Rows | B10: 75
A11: Total Rows Placed | B11: 84 | C11: xlLeft(1) | D11: xlLeft(1) | E11: xlLeft(1) | G11: =C11 -> xlLeft(1) | H11: xlLeft(1) | I11: xlLeft(1)
A12: Total Rows Needed | B12: =SUM(B8:B10) -> 85 | C12: General | D12: General | E12: General | G12: General | H12: General | I12: General
A13: Last Tab DE Starter Row | B13: 20 | C13: =CELL("width",C13) -> 13 | D13: =CELL("width",D13) -> 128 | E13: =CELL("width",E13) -> 15 | G13: =CELL("width",G13) -> 0 | H13: =CELL("width",H13) -> 0 | I13: =CELL("width",I13) -> 0
A14: Last Tab TabSheet Starter Row | B14: 7 | C14: A | D14: B | E14: C | G14: =LOWER(C14) -> a | H14: =LOWER(D14) -> b | I14: =LOWER(E14) -> c
A15: Last Copy Starter Row | B15: 1 | C15: INDEX OF TABULATIONS | G15: 111-25
A16: Tab Loop Number | B16: 2 | G16: =B17 -> 2011-10-18
A17: Revision Date | B17: 2011-10-18 | C17: ="This Data Entry Sheet fills Tab "&G15&" effective "&TEXT(B17,"mm-dd-yy") -> This Data Entry Sheet fills Tab 111-25 effective 10-18-11 | G17: =C15 -> INDEX OF TABULATIONS
A18: Tabulation Width | B18: 2 | C18: Tabulation | D18: Tabulation Title | E18: Sheet No.
A19: Horizontal Grid Lines | B19: Yes | G19: =C18 -> Tabulation | H19: =D18 -> Tabulation Title | I19: =E18 -> Sheet No.
C20: C Sheets
C21: 100-14 | D21: SILT BASINS | E21: CE.4 - CE.4
C22: 100-17 | D22: TABULATION OF SILT FENCES | E22: CE.5
C23: 100-18 | D23: SILT FENCES FOR DITCH CHECKS | E23: CE.5 - CE.9
C24: 100-19 | D24: PERIMETER AND SLOPE SEDIMENT CONTROL DEVICE | E24: CE.10
C25: 100-33 | D25: TEMPORARY SEDIMENT CONTROL BASIN | E25: CE.10
C26: 100-34 | D26: STORMWATER DRAINAGE BASIN AND STORAGE | E26: CE.3
C27: 100-37 | D27: GRATE INTAKE SEDIMENT FILTER BAG | E27: CE.10
C28: 110-12A | D28: POLLUTION PREVENTION PLAN | E28: CE.1 - CE.2
C29: 111-25 | D29: INDEX OF TABULATIONS | E29: CE.1

Sheet 100_14
A1: 100-14
A2: 2017-10-17
A3: SILT BASINS
A5: Possible Standard: EW-403
A19: * The functional height used in the volume equation is 95% of effective height. Effective height is 3 feet as shown in EW-403.
A20: * Volume equation: (0.5*Length*(Width*Height+Width*(Height-Length*Avg%Slope))
A21: Basin No. | B21: Location | D21: Bid Items | F21: Stormwater Storage Volume Summary | K21: Remarks
B22: Station | C22: Side | D22: Installation | E22: Removal | F22: Basin Width | G22: Basin Length | H22: Height | I22: Avg. % Slope | J22: Volume*
D23: EACH | E23: EACH | F23: FT | G23: FT | H23: FT | J23: CF
A24: =IF(OFFSET(DE100_14!$C$38,ROWS($C$38:C38)-1,COLUMNS($C$38:C38)-1)<>"",OFFSET(DE100_14!$C$38,ROWS($C$38:C38)-1,COLUMNS($C$38:C38)-1),"") ->  | B24: =IF(OFFSET(DE100_14!$D$38,ROWS($D$38:D38)-1,COLUMNS($D$38:D38)-1)<>"",OFFSET(DE100_14!$D$38,ROWS($D$38:D38)-1,COLUMNS($D$38:D38)-1),"") ->  | C24: =IF(OFFSET(DE100_14!$E$38,ROWS($E$38:E38)-1,COLUMNS($E$38:E38)-1)<>"",OFFSET(DE100_14!$E$38,ROWS($E$38:E38)-1,COLUMNS($E$38:E38)-1),"") ->  | D24: =IF(OFFSET(DE100_14!$F$38,ROWS($F$38:F38)-1,COLUMNS($F$38:F38)-1)<>"",OFFSET(DE100_14!$F$38,ROWS($F$38:F38)-1,COLUMNS($F$38:F38)-1),"") ->  | E24: =IF(OFFSET(DE100_14!$G$38,ROWS($G$38:G38)-1,COLUMNS($G$38:G38)-1)<>"",OFFSET(DE100_14!$G$38,ROWS($G$38:G38)-1,COLUMNS($G$38:G38)-1),"") ->  | F24: =IF(OFFSET(DE100_14!$H$38,ROWS($H$38:H38)-1,COLUMNS($H$38:H38)-1)<>"",OFFSET(DE100_14!$H$38,ROWS($H$38:H38)-1,COLUMNS($H$38:H38)-1),"") ->  | G24: =IF(OFFSET(DE100_14!$I$38,ROWS($I$38:I38)-1,COLUMNS($I$38:I38)-1)<>"",OFFSET(DE100_14!$I$38,ROWS($I$38:I38)-1,COLUMNS($I$38:I38)-1),"") ->  | H24: =IF(OFFSET(DE100_14!$J$38,ROWS($J$38:J38)-1,COLUMNS($J$38:J38)-1)<>"",OFFSET(DE100_14!$J$38,ROWS($J$38:J38)-1,COLUMNS($J$38:J38)-1),"") ->  | I24: =IF(OFFSET(DE100_14!$K$38,ROWS($K$38:K38)-1,COLUMNS($K$38:K38)-1)<>"",OFFSET(DE100_14!$K$38,ROWS($K$38:K38)-1,COLUMNS($K$38:K38)-1),"") ->  | J24: =IF(OFFSET(DE100_14!$L$38,ROWS($L$38:L38)-1,COLUMNS($L$38:L38)-1)<>"",OFFSET(DE100_14!$L$38,ROWS($L$38:L38)-1,COLUMNS($L$38:L38)-1),"") ->  | K24: =IF(OFFSET(DE100_14!$N$38,ROWS($N$38:N38)-1,COLUMNS($N$38:N38)-1)<>"",OFFSET(DE100_14!$N$38,ROWS($N$38:N38)-1,COLUMNS($N$38:N38)-1),"") -> 
A25: =IF(OFFSET(DE100_14!$C$38,ROWS($C$38:C39)-1,COLUMNS($C$38:C39)-1)<>"",OFFSET(DE100_14!$C$38,ROWS($C$38:C39)-1,COLUMNS($C$38:C39)-1),"") ->  | B25: =IF(OFFSET(DE100_14!$D$38,ROWS($D$38:D39)-1,COLUMNS($D$38:D39)-1)<>"",OFFSET(DE100_14!$D$38,ROWS($D$38:D39)-1,COLUMNS($D$38:D39)-1),"") -> US 30 | C25: =IF(OFFSET(DE100_14!$E$38,ROWS($E$38:E39)-1,COLUMNS($E$38:E39)-1)<>"",OFFSET(DE100_14!$E$38,ROWS($E$38:E39)-1,COLUMNS($E$38:E39)-1),"") -> Stage 2 | D25: =IF(OFFSET(DE100_14!$F$38,ROWS($F$38:F39)-1,COLUMNS($F$38:F39)-1)<>"",OFFSET(DE100_14!$F$38,ROWS($F$38:F39)-1,COLUMNS($F$38:F39)-1),"") ->  | E25: =IF(OFFSET(DE100_14!$G$38,ROWS($G$38:G39)-1,COLUMNS($G$38:G39)-1)<>"",OFFSET(DE100_14!$G$38,ROWS($G$38:G39)-1,COLUMNS($G$38:G39)-1),"") ->  | F25: =IF(OFFSET(DE100_14!$H$38,ROWS($H$38:H39)-1,COLUMNS($H$38:H39)-1)<>"",OFFSET(DE100_14!$H$38,ROWS($H$38:H39)-1,COLUMNS($H$38:H39)-1),"") ->  | G25: =IF(OFFSET(DE100_14!$I$38,ROWS($I$38:I39)-1,COLUMNS($I$38:I39)-1)<>"",OFFSET(DE100_14!$I$38,ROWS($I$38:I39)-1,COLUMNS($I$38:I39)-1),"") ->  | H25: =IF(OFFSET(DE100_14!$J$38,ROWS($J$38:J39)-1,COLUMNS($J$38:J39)-1)<>"",OFFSET(DE100_14!$J$38,ROWS($J$38:J39)-1,COLUMNS($J$38:J39)-1),"") ->  | I25: =IF(OFFSET(DE100_14!$K$38,ROWS($K$38:K39)-1,COLUMNS($K$38:K39)-1)<>"",OFFSET(DE100_14!$K$38,ROWS($K$38:K39)-1,COLUMNS($K$38:K39)-1),"") ->  | J25: =IF(OFFSET(DE100_14!$L$38,ROWS($L$38:L39)-1,COLUMNS($L$38:L39)-1)<>"",OFFSET(DE100_14!$L$38,ROWS($L$38:L39)-1,COLUMNS($L$38:L39)-1),"") ->  | K25: =IF(OFFSET(DE100_14!$N$38,ROWS($N$38:N39)-1,COLUMNS($N$38:N39)-1)<>"",OFFSET(DE100_14!$N$38,ROWS($N$38:N39)-1,COLUMNS($N$38:N39)-1),"") -> 
A26: =IF(OFFSET(DE100_14!$C$38,ROWS($C$38:C40)-1,COLUMNS($C$38:C40)-1)<>"",OFFSET(DE100_14!$C$38,ROWS($C$38:C40)-1,COLUMNS($C$38:C40)-1),"") -> 3 | B26: =IF(OFFSET(DE100_14!$D$38,ROWS($D$38:D40)-1,COLUMNS($D$38:D40)-1)<>"",OFFSET(DE100_14!$D$38,ROWS($D$38:D40)-1,COLUMNS($D$38:D40)-1),"") -> 142490 | C26: =IF(OFFSET(DE100_14!$E$38,ROWS($E$38:E40)-1,COLUMNS($E$38:E40)-1)<>"",OFFSET(DE100_14!$E$38,ROWS($E$38:E40)-1,COLUMNS($E$38:E40)-1),"") -> RT | D26: =IF(OFFSET(DE100_14!$F$38,ROWS($F$38:F40)-1,COLUMNS($F$38:F40)-1)<>"",OFFSET(DE100_14!$F$38,ROWS($F$38:F40)-1,COLUMNS($F$38:F40)-1),"") -> 1 | E26: =IF(OFFSET(DE100_14!$G$38,ROWS($G$38:G40)-1,COLUMNS($G$38:G40)-1)<>"",OFFSET(DE100_14!$G$38,ROWS($G$38:G40)-1,COLUMNS($G$38:G40)-1),"") -> 1 | F26: =IF(OFFSET(DE100_14!$H$38,ROWS($H$38:H40)-1,COLUMNS($H$38:H40)-1)<>"",OFFSET(DE100_14!$H$38,ROWS($H$38:H40)-1,COLUMNS($H$38:H40)-1),"") -> 10 | G26: =IF(OFFSET(DE100_14!$I$38,ROWS($I$38:I40)-1,COLUMNS($I$38:I40)-1)<>"",OFFSET(DE100_14!$I$38,ROWS($I$38:I40)-1,COLUMNS($I$38:I40)-1),"") -> 50 | H26: =IF(OFFSET(DE100_14!$J$38,ROWS($J$38:J40)-1,COLUMNS($J$38:J40)-1)<>"",OFFSET(DE100_14!$J$38,ROWS($J$38:J40)-1,COLUMNS($J$38:J40)-1),"") -> 2.85 | I26: =IF(OFFSET(DE100_14!$K$38,ROWS($K$38:K40)-1,COLUMNS($K$38:K40)-1)<>"",OFFSET(DE100_14!$K$38,ROWS($K$38:K40)-1,COLUMNS($K$38:K40)-1),"") -> 0.012 | J26: =IF(OFFSET(DE100_14!$L$38,ROWS($L$38:L40)-1,COLUMNS($L$38:L40)-1)<>"",OFFSET(DE100_14!$L$38,ROWS($L$38:L40)-1,COLUMNS($L$38:L40)-1),"") -> 1275 | K26: =IF(OFFSET(DE100_14!$N$38,ROWS($N$38:N40)-1,COLUMNS($N$38:N40)-1)<>"",OFFSET(DE100_14!$N$38,ROWS($N$38:N40)-1,COLUMNS($N$38:N40)-1),"") -> 
A27: =IF(OFFSET(DE100_14!$C$38,ROWS($C$38:C41)-1,COLUMNS($C$38:C41)-1)<>"",OFFSET(DE100_14!$C$38,ROWS($C$38:C41)-1,COLUMNS($C$38:C41)-1),"") -> 3 | B27: =IF(OFFSET(DE100_14!$D$38,ROWS($D$38:D41)-1,COLUMNS($D$38:D41)-1)<>"",OFFSET(DE100_14!$D$38,ROWS($D$38:D41)-1,COLUMNS($D$38:D41)-1),"") -> 142560 | C27: =IF(OFFSET(DE100_14!$E$38,ROWS($E$38:E41)-1,COLUMNS($E$38:E41)-1)<>"",OFFSET(DE100_14!$E$38,ROWS($E$38:E41)-1,COLUMNS($E$38:E41)-1),"") -> RT | D27: =IF(OFFSET(DE100_14!$F$38,ROWS($F$38:F41)-1,COLUMNS($F$38:F41)-1)<>"",OFFSET(DE100_14!$F$38,ROWS($F$38:F41)-1,COLUMNS($F$38:F41)-1),"") -> 1 | E27: =IF(OFFSET(DE100_14!$G$38,ROWS($G$38:G41)-1,COLUMNS($G$38:G41)-1)<>"",OFFSET(DE100_14!$G$38,ROWS($G$38:G41)-1,COLUMNS($G$38:G41)-1),"") -> 1 | F27: =IF(OFFSET(DE100_14!$H$38,ROWS($H$38:H41)-1,COLUMNS($H$38:H41)-1)<>"",OFFSET(DE100_14!$H$38,ROWS($H$38:H41)-1,COLUMNS($H$38:H41)-1),"") -> 10 | G27: =IF(OFFSET(DE100_14!$I$38,ROWS($I$38:I41)-1,COLUMNS($I$38:I41)-1)<>"",OFFSET(DE100_14!$I$38,ROWS($I$38:I41)-1,COLUMNS($I$38:I41)-1),"") -> 50 | H27: =IF(OFFSET(DE100_14!$J$38,ROWS($J$38:J41)-1,COLUMNS($J$38:J41)-1)<>"",OFFSET(DE100_14!$J$38,ROWS($J$38:J41)-1,COLUMNS($J$38:J41)-1),"") -> 2.85 | I27: =IF(OFFSET(DE100_14!$K$38,ROWS($K$38:K41)-1,COLUMNS($K$38:K41)-1)<>"",OFFSET(DE100_14!$K$38,ROWS($K$38:K41)-1,COLUMNS($K$38:K41)-1),"") -> 0.012 | J27: =IF(OFFSET(DE100_14!$L$38,ROWS($L$38:L41)-1,COLUMNS($L$38:L41)-1)<>"",OFFSET(DE100_14!$L$38,ROWS($L$38:L41)-1,COLUMNS($L$38:L41)-1),"") -> 1375 | K27: =IF(OFFSET(DE100_14!$N$38,ROWS($N$38:N41)-1,COLUMNS($N$38:N41)-1)<>"",OFFSET(DE100_14!$N$38,ROWS($N$38:N41)-1,COLUMNS($N$38:N41)-1),"") -> 
A28: =IF(OFFSET(DE100_14!$C$38,ROWS($C$38:C42)-1,COLUMNS($C$38:C42)-1)<>"",OFFSET(DE100_14!$C$38,ROWS($C$38:C42)-1,COLUMNS($C$38:C42)-1),"") -> 4 | B28: =IF(OFFSET(DE100_14!$D$38,ROWS($D$38:D42)-1,COLUMNS($D$38:D42)-1)<>"",OFFSET(DE100_14!$D$38,ROWS($D$38:D42)-1,COLUMNS($D$38:D42)-1),"") -> 145340 | C28: =IF(OFFSET(DE100_14!$E$38,ROWS($E$38:E42)-1,COLUMNS($E$38:E42)-1)<>"",OFFSET(DE100_14!$E$38,ROWS($E$38:E42)-1,COLUMNS($E$38:E42)-1),"") -> RT | D28: =IF(OFFSET(DE100_14!$F$38,ROWS($F$38:F42)-1,COLUMNS($F$38:F42)-1)<>"",OFFSET(DE100_14!$F$38,ROWS($F$38:F42)-1,COLUMNS($F$38:F42)-1),"") -> 1 | E28: =IF(OFFSET(DE100_14!$G$38,ROWS($G$38:G42)-1,COLUMNS($G$38:G42)-1)<>"",OFFSET(DE100_14!$G$38,ROWS($G$38:G42)-1,COLUMNS($G$38:G42)-1),"") -> 1 | F28: =IF(OFFSET(DE100_14!$H$38,ROWS($H$38:H42)-1,COLUMNS($H$38:H42)-1)<>"",OFFSET(DE100_14!$H$38,ROWS($H$38:H42)-1,COLUMNS($H$38:H42)-1),"") -> 10 | G28: =IF(OFFSET(DE100_14!$I$38,ROWS($I$38:I42)-1,COLUMNS($I$38:I42)-1)<>"",OFFSET(DE100_14!$I$38,ROWS($I$38:I42)-1,COLUMNS($I$38:I42)-1),"") -> 50 | H28: =IF(OFFSET(DE100_14!$J$38,ROWS($J$38:J42)-1,COLUMNS($J$38:J42)-1)<>"",OFFSET(DE100_14!$J$38,ROWS($J$38:J42)-1,COLUMNS($J$38:J42)-1),"") -> 2.85 | I28: =IF(OFFSET(DE100_14!$K$38,ROWS($K$38:K42)-1,COLUMNS($K$38:K42)-1)<>"",OFFSET(DE100_14!$K$38,ROWS($K$38:K42)-1,COLUMNS($K$38:K42)-1),"") -> 0.004 | J28: =IF(OFFSET(DE100_14!$L$38,ROWS($L$38:L42)-1,COLUMNS($L$38:L42)-1)<>"",OFFSET(DE100_14!$L$38,ROWS($L$38:L42)-1,COLUMNS($L$38:L42)-1),"") -> 1362.5 | K28: =IF(OFFSET(DE100_14!$N$38,ROWS($N$38:N42)-1,COLUMNS($N$38:N42)-1)<>"",OFFSET(DE100_14!$N$38,ROWS($N$38:N42)-1,COLUMNS($N$38:N42)-1),"") -> 
A29: =IF(OFFSET(DE100_14!$C$38,ROWS($C$38:C43)-1,COLUMNS($C$38:C43)-1)<>"",OFFSET(DE100_14!$C$38,ROWS($C$38:C43)-1,COLUMNS($C$38:C43)-1),"") -> 4 | B29: =IF(OFFSET(DE100_14!$D$38,ROWS($D$38:D43)-1,COLUMNS($D$38:D43)-1)<>"",OFFSET(DE100_14!$D$38,ROWS($D$38:D43)-1,COLUMNS($D$38:D43)-1),"") -> 145410 | C29: =IF(OFFSET(DE100_14!$E$38,ROWS($E$38:E43)-1,COLUMNS($E$38:E43)-1)<>"",OFFSET(DE100_14!$E$38,ROWS($E$38:E43)-1,COLUMNS($E$38:E43)-1),"") -> RT | D29: =IF(OFFSET(DE100_14!$F$38,ROWS($F$38:F43)-1,COLUMNS($F$38:F43)-1)<>"",OFFSET(DE100_14!$F$38,ROWS($F$38:F43)-1,COLUMNS($F$38:F43)-1),"") -> 1 | E29: =IF(OFFSET(DE100_14!$G$38,ROWS($G$38:G43)-1,COLUMNS($G$38:G43)-1)<>"",OFFSET(DE100_14!$G$38,ROWS($G$38:G43)-1,COLUMNS($G$38:G43)-1),"") -> 1 | F29: =IF(OFFSET(DE100_14!$H$38,ROWS($H$38:H43)-1,COLUMNS($H$38:H43)-1)<>"",OFFSET(DE100_14!$H$38,ROWS($H$38:H43)-1,COLUMNS($H$38:H43)-1),"") -> 10 | G29: =IF(OFFSET(DE100_14!$I$38,ROWS($I$38:I43)-1,COLUMNS($I$38:I43)-1)<>"",OFFSET(DE100_14!$I$38,ROWS($I$38:I43)-1,COLUMNS($I$38:I43)-1),"") -> 50 | H29: =IF(OFFSET(DE100_14!$J$38,ROWS($J$38:J43)-1,COLUMNS($J$38:J43)-1)<>"",OFFSET(DE100_14!$J$38,ROWS($J$38:J43)-1,COLUMNS($J$38:J43)-1),"") -> 2.85 | I29: =IF(OFFSET(DE100_14!$K$38,ROWS($K$38:K43)-1,COLUMNS($K$38:K43)-1)<>"",OFFSET(DE100_14!$K$38,ROWS($K$38:K43)-1,COLUMNS($K$38:K43)-1),"") -> 0.005 | J29: =IF(OFFSET(DE100_14!$L$38,ROWS($L$38:L43)-1,COLUMNS($L$38:L43)-1)<>"",OFFSET(DE100_14!$L$38,ROWS($L$38:L43)-1,COLUMNS($L$38:L43)-1),"") -> 1287.5 | K29: =IF(OFFSET(DE100_14!$N$38,ROWS($N$38:N43)-1,COLUMNS($N$38:N43)-1)<>"",OFFSET(DE100_14!$N$38,ROWS($N$38:N43)-1,COLUMNS($N$38:N43)-1),"") -> 
A30: =IF(OFFSET(DE100_14!$C$38,ROWS($C$38:C44)-1,COLUMNS($C$38:C44)-1)<>"",OFFSET(DE100_14!$C$38,ROWS($C$38:C44)-1,COLUMNS($C$38:C44)-1),"") -> 5 | B30: =IF(OFFSET(DE100_14!$D$38,ROWS($D$38:D44)-1,COLUMNS($D$38:D44)-1)<>"",OFFSET(DE100_14!$D$38,ROWS($D$38:D44)-1,COLUMNS($D$38:D44)-1),"") -> 146080 | C30: =IF(OFFSET(DE100_14!$E$38,ROWS($E$38:E44)-1,COLUMNS($E$38:E44)-1)<>"",OFFSET(DE100_14!$E$38,ROWS($E$38:E44)-1,COLUMNS($E$38:E44)-1),"") -> RT | D30: =IF(OFFSET(DE100_14!$F$38,ROWS($F$38:F44)-1,COLUMNS($F$38:F44)-1)<>"",OFFSET(DE100_14!$F$38,ROWS($F$38:F44)-1,COLUMNS($F$38:F44)-1),"") -> 1 | E30: =IF(OFFSET(DE100_14!$G$38,ROWS($G$38:G44)-1,COLUMNS($G$38:G44)-1)<>"",OFFSET(DE100_14!$G$38,ROWS($G$38:G44)-1,COLUMNS($G$38:G44)-1),"") -> 1 | F30: =IF(OFFSET(DE100_14!$H$38,ROWS($H$38:H44)-1,COLUMNS($H$38:H44)-1)<>"",OFFSET(DE100_14!$H$38,ROWS($H$38:H44)-1,COLUMNS($H$38:H44)-1),"") -> 10 | G30: =IF(OFFSET(DE100_14!$I$38,ROWS($I$38:I44)-1,COLUMNS($I$38:I44)-1)<>"",OFFSET(DE100_14!$I$38,ROWS($I$38:I44)-1,COLUMNS($I$38:I44)-1),"") -> 50 | H30: =IF(OFFSET(DE100_14!$J$38,ROWS($J$38:J44)-1,COLUMNS($J$38:J44)-1)<>"",OFFSET(DE100_14!$J$38,ROWS($J$38:J44)-1,COLUMNS($J$38:J44)-1),"") -> 2.85 | I30: =IF(OFFSET(DE100_14!$K$38,ROWS($K$38:K44)-1,COLUMNS($K$38:K44)-1)<>"",OFFSET(DE100_14!$K$38,ROWS($K$38:K44)-1,COLUMNS($K$38:K44)-1),"") -> 0.011 | J30: =IF(OFFSET(DE100_14!$L$38,ROWS($L$38:L44)-1,COLUMNS($L$38:L44)-1)<>"",OFFSET(DE100_14!$L$38,ROWS($L$38:L44)-1,COLUMNS($L$38:L44)-1),"") -> 1325 | K30: =IF(OFFSET(DE100_14!$N$38,ROWS($N$38:N44)-1,COLUMNS($N$38:N44)-1)<>"",OFFSET(DE100_14!$N$38,ROWS($N$38:N44)-1,COLUMNS($N$38:N44)-1),"") -> 
A31: =IF(OFFSET(DE100_14!$C$38,ROWS($C$38:C45)-1,COLUMNS($C$38:C45)-1)<>"",OFFSET(DE100_14!$C$38,ROWS($C$38:C45)-1,COLUMNS($C$38:C45)-1),"") -> 5 | B31: =IF(OFFSET(DE100_14!$D$38,ROWS($D$38:D45)-1,COLUMNS($D$38:D45)-1)<>"",OFFSET(DE100_14!$D$38,ROWS($D$38:D45)-1,COLUMNS($D$38:D45)-1),"") -> 146945 | C31: =IF(OFFSET(DE100_14!$E$38,ROWS($E$38:E45)-1,COLUMNS($E$38:E45)-1)<>"",OFFSET(DE100_14!$E$38,ROWS($E$38:E45)-1,COLUMNS($E$38:E45)-1),"") -> RT | D31: =IF(OFFSET(DE100_14!$F$38,ROWS($F$38:F45)-1,COLUMNS($F$38:F45)-1)<>"",OFFSET(DE100_14!$F$38,ROWS($F$38:F45)-1,COLUMNS($F$38:F45)-1),"") -> 1 | E31: =IF(OFFSET(DE100_14!$G$38,ROWS($G$38:G45)-1,COLUMNS($G$38:G45)-1)<>"",OFFSET(DE100_14!$G$38,ROWS($G$38:G45)-1,COLUMNS($G$38:G45)-1),"") -> 1 | F31: =IF(OFFSET(DE100_14!$H$38,ROWS($H$38:H45)-1,COLUMNS($H$38:H45)-1)<>"",OFFSET(DE100_14!$H$38,ROWS($H$38:H45)-1,COLUMNS($H$38:H45)-1),"") -> 10 | G31: =IF(OFFSET(DE100_14!$I$38,ROWS($I$38:I45)-1,COLUMNS($I$38:I45)-1)<>"",OFFSET(DE100_14!$I$38,ROWS($I$38:I45)-1,COLUMNS($I$38:I45)-1),"") -> 50 | H31: =IF(OFFSET(DE100_14!$J$38,ROWS($J$38:J45)-1,COLUMNS($J$38:J45)-1)<>"",OFFSET(DE100_14!$J$38,ROWS($J$38:J45)-1,COLUMNS($J$38:J45)-1),"") -> 2.85 | I31: =IF(OFFSET(DE100_14!$K$38,ROWS($K$38:K45)-1,COLUMNS($K$38:K45)-1)<>"",OFFSET(DE100_14!$K$38,ROWS($K$38:K45)-1,COLUMNS($K$38:K45)-1),"") -> 0.008 | J31: =IF(OFFSET(DE100_14!$L$38,ROWS($L$38:L45)-1,COLUMNS($L$38:L45)-1)<>"",OFFSET(DE100_14!$L$38,ROWS($L$38:L45)-1,COLUMNS($L$38:L45)-1),"") -> 1325 | K31: =IF(OFFSET(DE100_14!$N$38,ROWS($N$38:N45)-1,COLUMNS($N$38:N45)-1)<>"",OFFSET(DE100_14!$N$38,ROWS($N$38:N45)-1,COLUMNS($N$38:N45)-1),"") -> 
A32: =IF(OFFSET(DE100_14!$C$38,ROWS($C$38:C46)-1,COLUMNS($C$38:C46)-1)<>"",OFFSET(DE100_14!$C$38,ROWS($C$38:C46)-1,COLUMNS($C$38:C46)-1),"") -> 5 | B32: =IF(OFFSET(DE100_14!$D$38,ROWS($D$38:D46)-1,COLUMNS($D$38:D46)-1)<>"",OFFSET(DE100_14!$D$38,ROWS($D$38:D46)-1,COLUMNS($D$38:D46)-1),"") -> 147035 | C32: =IF(OFFSET(DE100_14!$E$38,ROWS($E$38:E46)-1,COLUMNS($E$38:E46)-1)<>"",OFFSET(DE100_14!$E$38,ROWS($E$38:E46)-1,COLUMNS($E$38:E46)-1),"") -> RT | D32: =IF(OFFSET(DE100_14!$F$38,ROWS($F$38:F46)-1,COLUMNS($F$38:F46)-1)<>"",OFFSET(DE100_14!$F$38,ROWS($F$38:F46)-1,COLUMNS($F$38:F46)-1),"") -> 1 | E32: =IF(OFFSET(DE100_14!$G$38,ROWS($G$38:G46)-1,COLUMNS($G$38:G46)-1)<>"",OFFSET(DE100_14!$G$38,ROWS($G$38:G46)-1,COLUMNS($G$38:G46)-1),"") -> 1 | F32: =IF(OFFSET(DE100_14!$H$38,ROWS($H$38:H46)-1,COLUMNS($H$38:H46)-1)<>"",OFFSET(DE100_14!$H$38,ROWS($H$38:H46)-1,COLUMNS($H$38:H46)-1),"") -> 10 | G32: =IF(OFFSET(DE100_14!$I$38,ROWS($I$38:I46)-1,COLUMNS($I$38:I46)-1)<>"",OFFSET(DE100_14!$I$38,ROWS($I$38:I46)-1,COLUMNS($I$38:I46)-1),"") -> 50 | H32: =IF(OFFSET(DE100_14!$J$38,ROWS($J$38:J46)-1,COLUMNS($J$38:J46)-1)<>"",OFFSET(DE100_14!$J$38,ROWS($J$38:J46)-1,COLUMNS($J$38:J46)-1),"") -> 2.85 | I32: =IF(OFFSET(DE100_14!$K$38,ROWS($K$38:K46)-1,COLUMNS($K$38:K46)-1)<>"",OFFSET(DE100_14!$K$38,ROWS($K$38:K46)-1,COLUMNS($K$38:K46)-1),"") -> 0.008 | J32: =IF(OFFSET(DE100_14!$L$38,ROWS($L$38:L46)-1,COLUMNS($L$38:L46)-1)<>"",OFFSET(DE100_14!$L$38,ROWS($L$38:L46)-1,COLUMNS($L$38:L46)-1),"") -> 1137.5 | K32: =IF(OFFSET(DE100_14!$N$38,ROWS($N$38:N46)-1,COLUMNS($N$38:N46)-1)<>"",OFFSET(DE100_14!$N$38,ROWS($N$38:N46)-1,COLUMNS($N$38:N46)-1),"") -> 
A33: =IF(OFFSET(DE100_14!$C$38,ROWS($C$38:C47)-1,COLUMNS($C$38:C47)-1)<>"",OFFSET(DE100_14!$C$38,ROWS($C$38:C47)-1,COLUMNS($C$38:C47)-1),"") -> 7 | B33: =IF(OFFSET(DE100_14!$D$38,ROWS($D$38:D47)-1,COLUMNS($D$38:D47)-1)<>"",OFFSET(DE100_14!$D$38,ROWS($D$38:D47)-1,COLUMNS($D$38:D47)-1),"") -> 148324 | C33: =IF(OFFSET(DE100_14!$E$38,ROWS($E$38:E47)-1,COLUMNS($E$38:E47)-1)<>"",OFFSET(DE100_14!$E$38,ROWS($E$38:E47)-1,COLUMNS($E$38:E47)-1),"") -> RT | D33: =IF(OFFSET(DE100_14!$F$38,ROWS($F$38:F47)-1,COLUMNS($F$38:F47)-1)<>"",OFFSET(DE100_14!$F$38,ROWS($F$38:F47)-1,COLUMNS($F$38:F47)-1),"") -> 1 | E33: =IF(OFFSET(DE100_14!$G$38,ROWS($G$38:G47)-1,COLUMNS($G$38:G47)-1)<>"",OFFSET(DE100_14!$G$38,ROWS($G$38:G47)-1,COLUMNS($G$38:G47)-1),"") -> 1 | F33: =IF(OFFSET(DE100_14!$H$38,ROWS($H$38:H47)-1,COLUMNS($H$38:H47)-1)<>"",OFFSET(DE100_14!$H$38,ROWS($H$38:H47)-1,COLUMNS($H$38:H47)-1),"") -> 10 | G33: =IF(OFFSET(DE100_14!$I$38,ROWS($I$38:I47)-1,COLUMNS($I$38:I47)-1)<>"",OFFSET(DE100_14!$I$38,ROWS($I$38:I47)-1,COLUMNS($I$38:I47)-1),"") -> 50 | H33: =IF(OFFSET(DE100_14!$J$38,ROWS($J$38:J47)-1,COLUMNS($J$38:J47)-1)<>"",OFFSET(DE100_14!$J$38,ROWS($J$38:J47)-1,COLUMNS($J$38:J47)-1),"") -> 2.85 | I33: =IF(OFFSET(DE100_14!$K$38,ROWS($K$38:K47)-1,COLUMNS($K$38:K47)-1)<>"",OFFSET(DE100_14!$K$38,ROWS($K$38:K47)-1,COLUMNS($K$38:K47)-1),"") -> 0.023 | J33: =IF(OFFSET(DE100_14!$L$38,ROWS($L$38:L47)-1,COLUMNS($L$38:L47)-1)<>"",OFFSET(DE100_14!$L$38,ROWS($L$38:L47)-1,COLUMNS($L$38:L47)-1),"") -> 1062.5 | K33: =IF(OFFSET(DE100_14!$N$38,ROWS($N$38:N47)-1,COLUMNS($N$38:N47)-1)<>"",OFFSET(DE100_14!$N$38,ROWS($N$38:N47)-1,COLUMNS($N$38:N47)-1),"") -> 
A34: =IF(OFFSET(DE100_14!$C$38,ROWS($C$38:C48)-1,COLUMNS($C$38:C48)-1)<>"",OFFSET(DE100_14!$C$38,ROWS($C$38:C48)-1,COLUMNS($C$38:C48)-1),"") -> 7 | B34: =IF(OFFSET(DE100_14!$D$38,ROWS($D$38:D48)-1,COLUMNS($D$38:D48)-1)<>"",OFFSET(DE100_14!$D$38,ROWS($D$38:D48)-1,COLUMNS($D$38:D48)-1),"") -> 148415 | C34: =IF(OFFSET(DE100_14!$E$38,ROWS($E$38:E48)-1,COLUMNS($E$38:E48)-1)<>"",OFFSET(DE100_14!$E$38,ROWS($E$38:E48)-1,COLUMNS($E$38:E48)-1),"") -> RT | D34: =IF(OFFSET(DE100_14!$F$38,ROWS($F$38:F48)-1,COLUMNS($F$38:F48)-1)<>"",OFFSET(DE100_14!$F$38,ROWS($F$38:F48)-1,COLUMNS($F$38:F48)-1),"") -> 1 | E34: =IF(OFFSET(DE100_14!$G$38,ROWS($G$38:G48)-1,COLUMNS($G$38:G48)-1)<>"",OFFSET(DE100_14!$G$38,ROWS($G$38:G48)-1,COLUMNS($G$38:G48)-1),"") -> 1 | F34: =IF(OFFSET(DE100_14!$H$38,ROWS($H$38:H48)-1,COLUMNS($H$38:H48)-1)<>"",OFFSET(DE100_14!$H$38,ROWS($H$38:H48)-1,COLUMNS($H$38:H48)-1),"") -> 10 | G34: =IF(OFFSET(DE100_14!$I$38,ROWS($I$38:I48)-1,COLUMNS($I$38:I48)-1)<>"",OFFSET(DE100_14!$I$38,ROWS($I$38:I48)-1,COLUMNS($I$38:I48)-1),"") -> 50 | H34: =IF(OFFSET(DE100_14!$J$38,ROWS($J$38:J48)-1,COLUMNS($J$38:J48)-1)<>"",OFFSET(DE100_14!$J$38,ROWS($J$38:J48)-1,COLUMNS($J$38:J48)-1),"") -> 2.85 | I34: =IF(OFFSET(DE100_14!$K$38,ROWS($K$38:K48)-1,COLUMNS($K$38:K48)-1)<>"",OFFSET(DE100_14!$K$38,ROWS($K$38:K48)-1,COLUMNS($K$38:K48)-1),"") -> 0.029 | J34: =IF(OFFSET(DE100_14!$L$38,ROWS($L$38:L48)-1,COLUMNS($L$38:L48)-1)<>"",OFFSET(DE100_14!$L$38,ROWS($L$38:L48)-1,COLUMNS($L$38:L48)-1),"") -> 1375 | K34: =IF(OFFSET(DE100_14!$N$38,ROWS($N$38:N48)-1,COLUMNS($N$38:N48)-1)<>"",OFFSET(DE100_14!$N$38,ROWS($N$38:N48)-1,COLUMNS($N$38:N48)-1),"") -> 
A35: =IF(OFFSET(DE100_14!$C$38,ROWS($C$38:C49)-1,COLUMNS($C$38:C49)-1)<>"",OFFSET(DE100_14!$C$38,ROWS($C$38:C49)-1,COLUMNS($C$38:C49)-1),"") -> 8 | B35: =IF(OFFSET(DE100_14!$D$38,ROWS($D$38:D49)-1,COLUMNS($D$38:D49)-1)<>"",OFFSET(DE100_14!$D$38,ROWS($D$38:D49)-1,COLUMNS($D$38:D49)-1),"") -> 149331 | C35: =IF(OFFSET(DE100_14!$E$38,ROWS($E$38:E49)-1,COLUMNS($E$38:E49)-1)<>"",OFFSET(DE100_14!$E$38,ROWS($E$38:E49)-1,COLUMNS($E$38:E49)-1),"") -> RT | D35: =IF(OFFSET(DE100_14!$F$38,ROWS($F$38:F49)-1,COLUMNS($F$38:F49)-1)<>"",OFFSET(DE100_14!$F$38,ROWS($F$38:F49)-1,COLUMNS($F$38:F49)-1),"") -> 1 | E35: =IF(OFFSET(DE100_14!$G$38,ROWS($G$38:G49)-1,COLUMNS($G$38:G49)-1)<>"",OFFSET(DE100_14!$G$38,ROWS($G$38:G49)-1,COLUMNS($G$38:G49)-1),"") -> 1 | F35: =IF(OFFSET(DE100_14!$H$38,ROWS($H$38:H49)-1,COLUMNS($H$38:H49)-1)<>"",OFFSET(DE100_14!$H$38,ROWS($H$38:H49)-1,COLUMNS($H$38:H49)-1),"") -> 10 | G35: =IF(OFFSET(DE100_14!$I$38,ROWS($I$38:I49)-1,COLUMNS($I$38:I49)-1)<>"",OFFSET(DE100_14!$I$38,ROWS($I$38:I49)-1,COLUMNS($I$38:I49)-1),"") -> 50 | H35: =IF(OFFSET(DE100_14!$J$38,ROWS($J$38:J49)-1,COLUMNS($J$38:J49)-1)<>"",OFFSET(DE100_14!$J$38,ROWS($J$38:J49)-1,COLUMNS($J$38:J49)-1),"") -> 2.85 | I35: =IF(OFFSET(DE100_14!$K$38,ROWS($K$38:K49)-1,COLUMNS($K$38:K49)-1)<>"",OFFSET(DE100_14!$K$38,ROWS($K$38:K49)-1,COLUMNS($K$38:K49)-1),"") -> 0.004 | J35: =IF(OFFSET(DE100_14!$L$38,ROWS($L$38:L49)-1,COLUMNS($L$38:L49)-1)<>"",OFFSET(DE100_14!$L$38,ROWS($L$38:L49)-1,COLUMNS($L$38:L49)-1),"") -> 1312.5 | K35: =IF(OFFSET(DE100_14!$N$38,ROWS($N$38:N49)-1,COLUMNS($N$38:N49)-1)<>"",OFFSET(DE100_14!$N$38,ROWS($N$38:N49)-1,COLUMNS($N$38:N49)-1),"") -> 
A36: =IF(OFFSET(DE100_14!$C$38,ROWS($C$38:C50)-1,COLUMNS($C$38:C50)-1)<>"",OFFSET(DE100_14!$C$38,ROWS($C$38:C50)-1,COLUMNS($C$38:C50)-1),"") -> 8 | B36: =IF(OFFSET(DE100_14!$D$38,ROWS($D$38:D50)-1,COLUMNS($D$38:D50)-1)<>"",OFFSET(DE100_14!$D$38,ROWS($D$38:D50)-1,COLUMNS($D$38:D50)-1),"") -> 149392 | C36: =IF(OFFSET(DE100_14!$E$38,ROWS($E$38:E50)-1,COLUMNS($E$38:E50)-1)<>"",OFFSET(DE100_14!$E$38,ROWS($E$38:E50)-1,COLUMNS($E$38:E50)-1),"") -> RT | D36: =IF(OFFSET(DE100_14!$F$38,ROWS($F$38:F50)-1,COLUMNS($F$38:F50)-1)<>"",OFFSET(DE100_14!$F$38,ROWS($F$38:F50)-1,COLUMNS($F$38:F50)-1),"") -> 1 | E36: =IF(OFFSET(DE100_14!$G$38,ROWS($G$38:G50)-1,COLUMNS($G$38:G50)-1)<>"",OFFSET(DE100_14!$G$38,ROWS($G$38:G50)-1,COLUMNS($G$38:G50)-1),"") -> 1 | F36: =IF(OFFSET(DE100_14!$H$38,ROWS($H$38:H50)-1,COLUMNS($H$38:H50)-1)<>"",OFFSET(DE100_14!$H$38,ROWS($H$38:H50)-1,COLUMNS($H$38:H50)-1),"") -> 10 | G36: =IF(OFFSET(DE100_14!$I$38,ROWS($I$38:I50)-1,COLUMNS($I$38:I50)-1)<>"",OFFSET(DE100_14!$I$38,ROWS($I$38:I50)-1,COLUMNS($I$38:I50)-1),"") -> 50 | H36: =IF(OFFSET(DE100_14!$J$38,ROWS($J$38:J50)-1,COLUMNS($J$38:J50)-1)<>"",OFFSET(DE100_14!$J$38,ROWS($J$38:J50)-1,COLUMNS($J$38:J50)-1),"") -> 2.85 | I36: =IF(OFFSET(DE100_14!$K$38,ROWS($K$38:K50)-1,COLUMNS($K$38:K50)-1)<>"",OFFSET(DE100_14!$K$38,ROWS($K$38:K50)-1,COLUMNS($K$38:K50)-1),"") -> 0.009 | J36: =IF(OFFSET(DE100_14!$L$38,ROWS($L$38:L50)-1,COLUMNS($L$38:L50)-1)<>"",OFFSET(DE100_14!$L$38,ROWS($L$38:L50)-1,COLUMNS($L$38:L50)-1),"") -> 1262.5 | K36: =IF(OFFSET(DE100_14!$N$38,ROWS($N$38:N50)-1,COLUMNS($N$38:N50)-1)<>"",OFFSET(DE100_14!$N$38,ROWS($N$38:N50)-1,COLUMNS($N$38:N50)-1),"") -> 
A37: =IF(OFFSET(DE100_14!$C$38,ROWS($C$38:C51)-1,COLUMNS($C$38:C51)-1)<>"",OFFSET(DE100_14!$C$38,ROWS($C$38:C51)-1,COLUMNS($C$38:C51)-1),"") -> 9 | B37: =IF(OFFSET(DE100_14!$D$38,ROWS($D$38:D51)-1,COLUMNS($D$38:D51)-1)<>"",OFFSET(DE100_14!$D$38,ROWS($D$38:D51)-1,COLUMNS($D$38:D51)-1),"") -> 150570 | C37: =IF(OFFSET(DE100_14!$E$38,ROWS($E$38:E51)-1,COLUMNS($E$38:E51)-1)<>"",OFFSET(DE100_14!$E$38,ROWS($E$38:E51)-1,COLUMNS($E$38:E51)-1),"") -> RT | D37: =IF(OFFSET(DE100_14!$F$38,ROWS($F$38:F51)-1,COLUMNS($F$38:F51)-1)<>"",OFFSET(DE100_14!$F$38,ROWS($F$38:F51)-1,COLUMNS($F$38:F51)-1),"") -> 1 | E37: =IF(OFFSET(DE100_14!$G$38,ROWS($G$38:G51)-1,COLUMNS($G$38:G51)-1)<>"",OFFSET(DE100_14!$G$38,ROWS($G$38:G51)-1,COLUMNS($G$38:G51)-1),"") -> 1 | F37: =IF(OFFSET(DE100_14!$H$38,ROWS($H$38:H51)-1,COLUMNS($H$38:H51)-1)<>"",OFFSET(DE100_14!$H$38,ROWS($H$38:H51)-1,COLUMNS($H$38:H51)-1),"") -> 10 | G37: =IF(OFFSET(DE100_14!$I$38,ROWS($I$38:I51)-1,COLUMNS($I$38:I51)-1)<>"",OFFSET(DE100_14!$I$38,ROWS($I$38:I51)-1,COLUMNS($I$38:I51)-1),"") -> 50 | H37: =IF(OFFSET(DE100_14!$J$38,ROWS($J$38:J51)-1,COLUMNS($J$38:J51)-1)<>"",OFFSET(DE100_14!$J$38,ROWS($J$38:J51)-1,COLUMNS($J$38:J51)-1),"") -> 2.85 | I37: =IF(OFFSET(DE100_14!$K$38,ROWS($K$38:K51)-1,COLUMNS($K$38:K51)-1)<>"",OFFSET(DE100_14!$K$38,ROWS($K$38:K51)-1,COLUMNS($K$38:K51)-1),"") -> 0.013 | J37: =IF(OFFSET(DE100_14!$L$38,ROWS($L$38:L51)-1,COLUMNS($L$38:L51)-1)<>"",OFFSET(DE100_14!$L$38,ROWS($L$38:L51)-1,COLUMNS($L$38:L51)-1),"") -> 1262.5 | K37: =IF(OFFSET(DE100_14!$N$38,ROWS($N$38:N51)-1,COLUMNS($N$38:N51)-1)<>"",OFFSET(DE100_14!$N$38,ROWS($N$38:N51)-1,COLUMNS($N$38:N51)-1),"") -> 
A38: =IF(OFFSET(DE100_14!$C$38,ROWS($C$38:C52)-1,COLUMNS($C$38:C52)-1)<>"",OFFSET(DE100_14!$C$38,ROWS($C$38:C52)-1,COLUMNS($C$38:C52)-1),"") -> 9 | B38: =IF(OFFSET(DE100_14!$D$38,ROWS($D$38:D52)-1,COLUMNS($D$38:D52)-1)<>"",OFFSET(DE100_14!$D$38,ROWS($D$38:D52)-1,COLUMNS($D$38:D52)-1),"") -> 150630 | C38: =IF(OFFSET(DE100_14!$E$38,ROWS($E$38:E52)-1,COLUMNS($E$38:E52)-1)<>"",OFFSET(DE100_14!$E$38,ROWS($E$38:E52)-1,COLUMNS($E$38:E52)-1),"") -> RT | D38: =IF(OFFSET(DE100_14!$F$38,ROWS($F$38:F52)-1,COLUMNS($F$38:F52)-1)<>"",OFFSET(DE100_14!$F$38,ROWS($F$38:F52)-1,COLUMNS($F$38:F52)-1),"") -> 1 | E38: =IF(OFFSET(DE100_14!$G$38,ROWS($G$38:G52)-1,COLUMNS($G$38:G52)-1)<>"",OFFSET(DE100_14!$G$38,ROWS($G$38:G52)-1,COLUMNS($G$38:G52)-1),"") -> 1 | F38: =IF(OFFSET(DE100_14!$H$38,ROWS($H$38:H52)-1,COLUMNS($H$38:H52)-1)<>"",OFFSET(DE100_14!$H$38,ROWS($H$38:H52)-1,COLUMNS($H$38:H52)-1),"") -> 10 | G38: =IF(OFFSET(DE100_14!$I$38,ROWS($I$38:I52)-1,COLUMNS($I$38:I52)-1)<>"",OFFSET(DE100_14!$I$38,ROWS($I$38:I52)-1,COLUMNS($I$38:I52)-1),"") -> 50 | H38: =IF(OFFSET(DE100_14!$J$38,ROWS($J$38:J52)-1,COLUMNS($J$38:J52)-1)<>"",OFFSET(DE100_14!$J$38,ROWS($J$38:J52)-1,COLUMNS($J$38:J52)-1),"") -> 2.85 | I38: =IF(OFFSET(DE100_14!$K$38,ROWS($K$38:K52)-1,COLUMNS($K$38:K52)-1)<>"",OFFSET(DE100_14!$K$38,ROWS($K$38:K52)-1,COLUMNS($K$38:K52)-1),"") -> 0.013 | J38: =IF(OFFSET(DE100_14!$L$38,ROWS($L$38:L52)-1,COLUMNS($L$38:L52)-1)<>"",OFFSET(DE100_14!$L$38,ROWS($L$38:L52)-1,COLUMNS($L$38:L52)-1),"") -> 1062.5 | K38: =IF(OFFSET(DE100_14!$N$38,ROWS($N$38:N52)-1,COLUMNS($N$38:N52)-1)<>"",OFFSET(DE100_14!$N$38,ROWS($N$38:N52)-1,COLUMNS($N$38:N52)-1),"") -> 
A39: =IF(OFFSET(DE100_14!$C$38,ROWS($C$38:C53)-1,COLUMNS($C$38:C53)-1)<>"",OFFSET(DE100_14!$C$38,ROWS($C$38:C53)-1,COLUMNS($C$38:C53)-1),"") -> 12 | B39: =IF(OFFSET(DE100_14!$D$38,ROWS($D$38:D53)-1,COLUMNS($D$38:D53)-1)<>"",OFFSET(DE100_14!$D$38,ROWS($D$38:D53)-1,COLUMNS($D$38:D53)-1),"") -> 153250 | C39: =IF(OFFSET(DE100_14!$E$38,ROWS($E$38:E53)-1,COLUMNS($E$38:E53)-1)<>"",OFFSET(DE100_14!$E$38,ROWS($E$38:E53)-1,COLUMNS($E$38:E53)-1),"") -> RT | D39: =IF(OFFSET(DE100_14!$F$38,ROWS($F$38:F53)-1,COLUMNS($F$38:F53)-1)<>"",OFFSET(DE100_14!$F$38,ROWS($F$38:F53)-1,COLUMNS($F$38:F53)-1),"") -> 1 | E39: =IF(OFFSET(DE100_14!$G$38,ROWS($G$38:G53)-1,COLUMNS($G$38:G53)-1)<>"",OFFSET(DE100_14!$G$38,ROWS($G$38:G53)-1,COLUMNS($G$38:G53)-1),"") -> 1 | F39: =IF(OFFSET(DE100_14!$H$38,ROWS($H$38:H53)-1,COLUMNS($H$38:H53)-1)<>"",OFFSET(DE100_14!$H$38,ROWS($H$38:H53)-1,COLUMNS($H$38:H53)-1),"") -> 10 | G39: =IF(OFFSET(DE100_14!$I$38,ROWS($I$38:I53)-1,COLUMNS($I$38:I53)-1)<>"",OFFSET(DE100_14!$I$38,ROWS($I$38:I53)-1,COLUMNS($I$38:I53)-1),"") -> 50 | H39: =IF(OFFSET(DE100_14!$J$38,ROWS($J$38:J53)-1,COLUMNS($J$38:J53)-1)<>"",OFFSET(DE100_14!$J$38,ROWS($J$38:J53)-1,COLUMNS($J$38:J53)-1),"") -> 2.85 | I39: =IF(OFFSET(DE100_14!$K$38,ROWS($K$38:K53)-1,COLUMNS($K$38:K53)-1)<>"",OFFSET(DE100_14!$K$38,ROWS($K$38:K53)-1,COLUMNS($K$38:K53)-1),"") -> 0.029 | J39: =IF(OFFSET(DE100_14!$L$38,ROWS($L$38:L53)-1,COLUMNS($L$38:L53)-1)<>"",OFFSET(DE100_14!$L$38,ROWS($L$38:L53)-1,COLUMNS($L$38:L53)-1),"") -> 925 | K39: =IF(OFFSET(DE100_14!$N$38,ROWS($N$38:N53)-1,COLUMNS($N$38:N53)-1)<>"",OFFSET(DE100_14!$N$38,ROWS($N$38:N53)-1,COLUMNS($N$38:N53)-1),"") -> 
A40: =IF(OFFSET(DE100_14!$C$38,ROWS($C$38:C54)-1,COLUMNS($C$38:C54)-1)<>"",OFFSET(DE100_14!$C$38,ROWS($C$38:C54)-1,COLUMNS($C$38:C54)-1),"") -> 1 | B40: =IF(OFFSET(DE100_14!$D$38,ROWS($D$38:D54)-1,COLUMNS($D$38:D54)-1)<>"",OFFSET(DE100_14!$D$38,ROWS($D$38:D54)-1,COLUMNS($D$38:D54)-1),"") -> 138815 | C40: =IF(OFFSET(DE100_14!$E$38,ROWS($E$38:E54)-1,COLUMNS($E$38:E54)-1)<>"",OFFSET(DE100_14!$E$38,ROWS($E$38:E54)-1,COLUMNS($E$38:E54)-1),"") -> Med | D40: =IF(OFFSET(DE100_14!$F$38,ROWS($F$38:F54)-1,COLUMNS($F$38:F54)-1)<>"",OFFSET(DE100_14!$F$38,ROWS($F$38:F54)-1,COLUMNS($F$38:F54)-1),"") -> 1 | E40: =IF(OFFSET(DE100_14!$G$38,ROWS($G$38:G54)-1,COLUMNS($G$38:G54)-1)<>"",OFFSET(DE100_14!$G$38,ROWS($G$38:G54)-1,COLUMNS($G$38:G54)-1),"") -> 1 | F40: =IF(OFFSET(DE100_14!$H$38,ROWS($H$38:H54)-1,COLUMNS($H$38:H54)-1)<>"",OFFSET(DE100_14!$H$38,ROWS($H$38:H54)-1,COLUMNS($H$38:H54)-1),"") -> 10 | G40: =IF(OFFSET(DE100_14!$I$38,ROWS($I$38:I54)-1,COLUMNS($I$38:I54)-1)<>"",OFFSET(DE100_14!$I$38,ROWS($I$38:I54)-1,COLUMNS($I$38:I54)-1),"") -> 50 | H40: =IF(OFFSET(DE100_14!$J$38,ROWS($J$38:J54)-1,COLUMNS($J$38:J54)-1)<>"",OFFSET(DE100_14!$J$38,ROWS($J$38:J54)-1,COLUMNS($J$38:J54)-1),"") -> 2.85 | I40: =IF(OFFSET(DE100_14!$K$38,ROWS($K$38:K54)-1,COLUMNS($K$38:K54)-1)<>"",OFFSET(DE100_14!$K$38,ROWS($K$38:K54)-1,COLUMNS($K$38:K54)-1),"") -> 0.04 | J40: =IF(OFFSET(DE100_14!$L$38,ROWS($L$38:L54)-1,COLUMNS($L$38:L54)-1)<>"",OFFSET(DE100_14!$L$38,ROWS($L$38:L54)-1,COLUMNS($L$38:L54)-1),"") -> 1137.5 | K40: =IF(OFFSET(DE100_14!$N$38,ROWS($N$38:N54)-1,COLUMNS($N$38:N54)-1)<>"",OFFSET(DE100_14!$N$38,ROWS($N$38:N54)-1,COLUMNS($N$38:N54)-1),"") -> 
A41: =IF(OFFSET(DE100_14!$C$38,ROWS($C$38:C55)-1,COLUMNS($C$38:C55)-1)<>"",OFFSET(DE100_14!$C$38,ROWS($C$38:C55)-1,COLUMNS($C$38:C55)-1),"") -> 2 | B41: =IF(OFFSET(DE100_14!$D$38,ROWS($D$38:D55)-1,COLUMNS($D$38:D55)-1)<>"",OFFSET(DE100_14!$D$38,ROWS($D$38:D55)-1,COLUMNS($D$38:D55)-1),"") -> 140080 | C41: =IF(OFFSET(DE100_14!$E$38,ROWS($E$38:E55)-1,COLUMNS($E$38:E55)-1)<>"",OFFSET(DE100_14!$E$38,ROWS($E$38:E55)-1,COLUMNS($E$38:E55)-1),"") -> Med | D41: =IF(OFFSET(DE100_14!$F$38,ROWS($F$38:F55)-1,COLUMNS($F$38:F55)-1)<>"",OFFSET(DE100_14!$F$38,ROWS($F$38:F55)-1,COLUMNS($F$38:F55)-1),"") -> 1 | E41: =IF(OFFSET(DE100_14!$G$38,ROWS($G$38:G55)-1,COLUMNS($G$38:G55)-1)<>"",OFFSET(DE100_14!$G$38,ROWS($G$38:G55)-1,COLUMNS($G$38:G55)-1),"") -> 1 | F41: =IF(OFFSET(DE100_14!$H$38,ROWS($H$38:H55)-1,COLUMNS($H$38:H55)-1)<>"",OFFSET(DE100_14!$H$38,ROWS($H$38:H55)-1,COLUMNS($H$38:H55)-1),"") -> 10 | G41: =IF(OFFSET(DE100_14!$I$38,ROWS($I$38:I55)-1,COLUMNS($I$38:I55)-1)<>"",OFFSET(DE100_14!$I$38,ROWS($I$38:I55)-1,COLUMNS($I$38:I55)-1),"") -> 50 | H41: =IF(OFFSET(DE100_14!$J$38,ROWS($J$38:J55)-1,COLUMNS($J$38:J55)-1)<>"",OFFSET(DE100_14!$J$38,ROWS($J$38:J55)-1,COLUMNS($J$38:J55)-1),"") -> 2.85 | I41: =IF(OFFSET(DE100_14!$K$38,ROWS($K$38:K55)-1,COLUMNS($K$38:K55)-1)<>"",OFFSET(DE100_14!$K$38,ROWS($K$38:K55)-1,COLUMNS($K$38:K55)-1),"") -> 0.023 | J41: =IF(OFFSET(DE100_14!$L$38,ROWS($L$38:L55)-1,COLUMNS($L$38:L55)-1)<>"",OFFSET(DE100_14!$L$38,ROWS($L$38:L55)-1,COLUMNS($L$38:L55)-1),"") -> 925 | K41: =IF(OFFSET(DE100_14!$N$38,ROWS($N$38:N55)-1,COLUMNS($N$38:N55)-1)<>"",OFFSET(DE100_14!$N$38,ROWS($N$38:N55)-1,COLUMNS($N$38:N55)-1),"") -> 
A42: =IF(OFFSET(DE100_14!$C$38,ROWS($C$38:C56)-1,COLUMNS($C$38:C56)-1)<>"",OFFSET(DE100_14!$C$38,ROWS($C$38:C56)-1,COLUMNS($C$38:C56)-1),"") -> 2 | B42: =IF(OFFSET(DE100_14!$D$38,ROWS($D$38:D56)-1,COLUMNS($D$38:D56)-1)<>"",OFFSET(DE100_14!$D$38,ROWS($D$38:D56)-1,COLUMNS($D$38:D56)-1),"") -> 140110 | C42: =IF(OFFSET(DE100_14!$E$38,ROWS($E$38:E56)-1,COLUMNS($E$38:E56)-1)<>"",OFFSET(DE100_14!$E$38,ROWS($E$38:E56)-1,COLUMNS($E$38:E56)-1),"") -> Med | D42: =IF(OFFSET(DE100_14!$F$38,ROWS($F$38:F56)-1,COLUMNS($F$38:F56)-1)<>"",OFFSET(DE100_14!$F$38,ROWS($F$38:F56)-1,COLUMNS($F$38:F56)-1),"") -> 1 | E42: =IF(OFFSET(DE100_14!$G$38,ROWS($G$38:G56)-1,COLUMNS($G$38:G56)-1)<>"",OFFSET(DE100_14!$G$38,ROWS($G$38:G56)-1,COLUMNS($G$38:G56)-1),"") -> 1 | F42: =IF(OFFSET(DE100_14!$H$38,ROWS($H$38:H56)-1,COLUMNS($H$38:H56)-1)<>"",OFFSET(DE100_14!$H$38,ROWS($H$38:H56)-1,COLUMNS($H$38:H56)-1),"") -> 10 | G42: =IF(OFFSET(DE100_14!$I$38,ROWS($I$38:I56)-1,COLUMNS($I$38:I56)-1)<>"",OFFSET(DE100_14!$I$38,ROWS($I$38:I56)-1,COLUMNS($I$38:I56)-1),"") -> 50 | H42: =IF(OFFSET(DE100_14!$J$38,ROWS($J$38:J56)-1,COLUMNS($J$38:J56)-1)<>"",OFFSET(DE100_14!$J$38,ROWS($J$38:J56)-1,COLUMNS($J$38:J56)-1),"") -> 2.85 | I42: =IF(OFFSET(DE100_14!$K$38,ROWS($K$38:K56)-1,COLUMNS($K$38:K56)-1)<>"",OFFSET(DE100_14!$K$38,ROWS($K$38:K56)-1,COLUMNS($K$38:K56)-1),"") -> 0.04 | J42: =IF(OFFSET(DE100_14!$L$38,ROWS($L$38:L56)-1,COLUMNS($L$38:L56)-1)<>"",OFFSET(DE100_14!$L$38,ROWS($L$38:L56)-1,COLUMNS($L$38:L56)-1),"") -> 1387.5 | K42: =IF(OFFSET(DE100_14!$N$38,ROWS($N$38:N56)-1,COLUMNS($N$38:N56)-1)<>"",OFFSET(DE100_14!$N$38,ROWS($N$38:N56)-1,COLUMNS($N$38:N56)-1),"") -> 
A43: =IF(OFFSET(DE100_14!$C$38,ROWS($C$38:C57)-1,COLUMNS($C$38:C57)-1)<>"",OFFSET(DE100_14!$C$38,ROWS($C$38:C57)-1,COLUMNS($C$38:C57)-1),"") -> 3 | B43: =IF(OFFSET(DE100_14!$D$38,ROWS($D$38:D57)-1,COLUMNS($D$38:D57)-1)<>"",OFFSET(DE100_14!$D$38,ROWS($D$38:D57)-1,COLUMNS($D$38:D57)-1),"") -> 142535 | C43: =IF(OFFSET(DE100_14!$E$38,ROWS($E$38:E57)-1,COLUMNS($E$38:E57)-1)<>"",OFFSET(DE100_14!$E$38,ROWS($E$38:E57)-1,COLUMNS($E$38:E57)-1),"") -> Med | D43: =IF(OFFSET(DE100_14!$F$38,ROWS($F$38:F57)-1,COLUMNS($F$38:F57)-1)<>"",OFFSET(DE100_14!$F$38,ROWS($F$38:F57)-1,COLUMNS($F$38:F57)-1),"") -> 1 | E43: =IF(OFFSET(DE100_14!$G$38,ROWS($G$38:G57)-1,COLUMNS($G$38:G57)-1)<>"",OFFSET(DE100_14!$G$38,ROWS($G$38:G57)-1,COLUMNS($G$38:G57)-1),"") -> 1 | F43: =IF(OFFSET(DE100_14!$H$38,ROWS($H$38:H57)-1,COLUMNS($H$38:H57)-1)<>"",OFFSET(DE100_14!$H$38,ROWS($H$38:H57)-1,COLUMNS($H$38:H57)-1),"") -> 10 | G43: =IF(OFFSET(DE100_14!$I$38,ROWS($I$38:I57)-1,COLUMNS($I$38:I57)-1)<>"",OFFSET(DE100_14!$I$38,ROWS($I$38:I57)-1,COLUMNS($I$38:I57)-1),"") -> 50 | H43: =IF(OFFSET(DE100_14!$J$38,ROWS($J$38:J57)-1,COLUMNS($J$38:J57)-1)<>"",OFFSET(DE100_14!$J$38,ROWS($J$38:J57)-1,COLUMNS($J$38:J57)-1),"") -> 2.85 | I43: =IF(OFFSET(DE100_14!$K$38,ROWS($K$38:K57)-1,COLUMNS($K$38:K57)-1)<>"",OFFSET(DE100_14!$K$38,ROWS($K$38:K57)-1,COLUMNS($K$38:K57)-1),"") -> 0.003 | J43: =IF(OFFSET(DE100_14!$L$38,ROWS($L$38:L57)-1,COLUMNS($L$38:L57)-1)<>"",OFFSET(DE100_14!$L$38,ROWS($L$38:L57)-1,COLUMNS($L$38:L57)-1),"") -> 1287.5 | K43: =IF(OFFSET(DE100_14!$N$38,ROWS($N$38:N57)-1,COLUMNS($N$38:N57)-1)<>"",OFFSET(DE100_14!$N$38,ROWS($N$38:N57)-1,COLUMNS($N$38:N57)-1),"") -> 
A44: =IF(OFFSET(DE100_14!$C$38,ROWS($C$38:C58)-1,COLUMNS($C$38:C58)-1)<>"",OFFSET(DE100_14!$C$38,ROWS($C$38:C58)-1,COLUMNS($C$38:C58)-1),"") -> 3 | B44: =IF(OFFSET(DE100_14!$D$38,ROWS($D$38:D58)-1,COLUMNS($D$38:D58)-1)<>"",OFFSET(DE100_14!$D$38,ROWS($D$38:D58)-1,COLUMNS($D$38:D58)-1),"") -> 142560 | C44: =IF(OFFSET(DE100_14!$E$38,ROWS($E$38:E58)-1,COLUMNS($E$38:E58)-1)<>"",OFFSET(DE100_14!$E$38,ROWS($E$38:E58)-1,COLUMNS($E$38:E58)-1),"") -> Med | D44: =IF(OFFSET(DE100_14!$F$38,ROWS($F$38:F58)-1,COLUMNS($F$38:F58)-1)<>"",OFFSET(DE100_14!$F$38,ROWS($F$38:F58)-1,COLUMNS($F$38:F58)-1),"") -> 1 | E44: =IF(OFFSET(DE100_14!$G$38,ROWS($G$38:G58)-1,COLUMNS($G$38:G58)-1)<>"",OFFSET(DE100_14!$G$38,ROWS($G$38:G58)-1,COLUMNS($G$38:G58)-1),"") -> 1 | F44: =IF(OFFSET(DE100_14!$H$38,ROWS($H$38:H58)-1,COLUMNS($H$38:H58)-1)<>"",OFFSET(DE100_14!$H$38,ROWS($H$38:H58)-1,COLUMNS($H$38:H58)-1),"") -> 10 | G44: =IF(OFFSET(DE100_14!$I$38,ROWS($I$38:I58)-1,COLUMNS($I$38:I58)-1)<>"",OFFSET(DE100_14!$I$38,ROWS($I$38:I58)-1,COLUMNS($I$38:I58)-1),"") -> 50 | H44: =IF(OFFSET(DE100_14!$J$38,ROWS($J$38:J58)-1,COLUMNS($J$38:J58)-1)<>"",OFFSET(DE100_14!$J$38,ROWS($J$38:J58)-1,COLUMNS($J$38:J58)-1),"") -> 2.85 | I44: =IF(OFFSET(DE100_14!$K$38,ROWS($K$38:K58)-1,COLUMNS($K$38:K58)-1)<>"",OFFSET(DE100_14!$K$38,ROWS($K$38:K58)-1,COLUMNS($K$38:K58)-1),"") -> 0.011 | J44: =IF(OFFSET(DE100_14!$L$38,ROWS($L$38:L58)-1,COLUMNS($L$38:L58)-1)<>"",OFFSET(DE100_14!$L$38,ROWS($L$38:L58)-1,COLUMNS($L$38:L58)-1),"") -> 1400 | K44: =IF(OFFSET(DE100_14!$N$38,ROWS($N$38:N58)-1,COLUMNS($N$38:N58)-1)<>"",OFFSET(DE100_14!$N$38,ROWS($N$38:N58)-1,COLUMNS($N$38:N58)-1),"") -> 
A45: =IF(OFFSET(DE100_14!$C$38,ROWS($C$38:C59)-1,COLUMNS($C$38:C59)-1)<>"",OFFSET(DE100_14!$C$38,ROWS($C$38:C59)-1,COLUMNS($C$38:C59)-1),"") -> 5 | B45: =IF(OFFSET(DE100_14!$D$38,ROWS($D$38:D59)-1,COLUMNS($D$38:D59)-1)<>"",OFFSET(DE100_14!$D$38,ROWS($D$38:D59)-1,COLUMNS($D$38:D59)-1),"") -> 145395 | C45: =IF(OFFSET(DE100_14!$E$38,ROWS($E$38:E59)-1,COLUMNS($E$38:E59)-1)<>"",OFFSET(DE100_14!$E$38,ROWS($E$38:E59)-1,COLUMNS($E$38:E59)-1),"") -> Med | D45: =IF(OFFSET(DE100_14!$F$38,ROWS($F$38:F59)-1,COLUMNS($F$38:F59)-1)<>"",OFFSET(DE100_14!$F$38,ROWS($F$38:F59)-1,COLUMNS($F$38:F59)-1),"") -> 1 | E45: =IF(OFFSET(DE100_14!$G$38,ROWS($G$38:G59)-1,COLUMNS($G$38:G59)-1)<>"",OFFSET(DE100_14!$G$38,ROWS($G$38:G59)-1,COLUMNS($G$38:G59)-1),"") -> 1 | F45: =IF(OFFSET(DE100_14!$H$38,ROWS($H$38:H59)-1,COLUMNS($H$38:H59)-1)<>"",OFFSET(DE100_14!$H$38,ROWS($H$38:H59)-1,COLUMNS($H$38:H59)-1),"") -> 10 | G45: =IF(OFFSET(DE100_14!$I$38,ROWS($I$38:I59)-1,COLUMNS($I$38:I59)-1)<>"",OFFSET(DE100_14!$I$38,ROWS($I$38:I59)-1,COLUMNS($I$38:I59)-1),"") -> 50 | H45: =IF(OFFSET(DE100_14!$J$38,ROWS($J$38:J59)-1,COLUMNS($J$38:J59)-1)<>"",OFFSET(DE100_14!$J$38,ROWS($J$38:J59)-1,COLUMNS($J$38:J59)-1),"") -> 2.85 | I45: =IF(OFFSET(DE100_14!$K$38,ROWS($K$38:K59)-1,COLUMNS($K$38:K59)-1)<>"",OFFSET(DE100_14!$K$38,ROWS($K$38:K59)-1,COLUMNS($K$38:K59)-1),"") -> 0.002 | J45: =IF(OFFSET(DE100_14!$L$38,ROWS($L$38:L59)-1,COLUMNS($L$38:L59)-1)<>"",OFFSET(DE100_14!$L$38,ROWS($L$38:L59)-1,COLUMNS($L$38:L59)-1),"") -> 1325 | K45: =IF(OFFSET(DE100_14!$N$38,ROWS($N$38:N59)-1,COLUMNS($N$38:N59)-1)<>"",OFFSET(DE100_14!$N$38,ROWS($N$38:N59)-1,COLUMNS($N$38:N59)-1),"") -> 
A46: =IF(OFFSET(DE100_14!$C$38,ROWS($C$38:C60)-1,COLUMNS($C$38:C60)-1)<>"",OFFSET(DE100_14!$C$38,ROWS($C$38:C60)-1,COLUMNS($C$38:C60)-1),"") -> 5 | B46: =IF(OFFSET(DE100_14!$D$38,ROWS($D$38:D60)-1,COLUMNS($D$38:D60)-1)<>"",OFFSET(DE100_14!$D$38,ROWS($D$38:D60)-1,COLUMNS($D$38:D60)-1),"") -> 145405 | C46: =IF(OFFSET(DE100_14!$E$38,ROWS($E$38:E60)-1,COLUMNS($E$38:E60)-1)<>"",OFFSET(DE100_14!$E$38,ROWS($E$38:E60)-1,COLUMNS($E$38:E60)-1),"") -> Med | D46: =IF(OFFSET(DE100_14!$F$38,ROWS($F$38:F60)-1,COLUMNS($F$38:F60)-1)<>"",OFFSET(DE100_14!$F$38,ROWS($F$38:F60)-1,COLUMNS($F$38:F60)-1),"") -> 1 | E46: =IF(OFFSET(DE100_14!$G$38,ROWS($G$38:G60)-1,COLUMNS($G$38:G60)-1)<>"",OFFSET(DE100_14!$G$38,ROWS($G$38:G60)-1,COLUMNS($G$38:G60)-1),"") -> 1 | F46: =IF(OFFSET(DE100_14!$H$38,ROWS($H$38:H60)-1,COLUMNS($H$38:H60)-1)<>"",OFFSET(DE100_14!$H$38,ROWS($H$38:H60)-1,COLUMNS($H$38:H60)-1),"") -> 10 | G46: =IF(OFFSET(DE100_14!$I$38,ROWS($I$38:I60)-1,COLUMNS($I$38:I60)-1)<>"",OFFSET(DE100_14!$I$38,ROWS($I$38:I60)-1,COLUMNS($I$38:I60)-1),"") -> 50 | H46: =IF(OFFSET(DE100_14!$J$38,ROWS($J$38:J60)-1,COLUMNS($J$38:J60)-1)<>"",OFFSET(DE100_14!$J$38,ROWS($J$38:J60)-1,COLUMNS($J$38:J60)-1),"") -> 2.85 | I46: =IF(OFFSET(DE100_14!$K$38,ROWS($K$38:K60)-1,COLUMNS($K$38:K60)-1)<>"",OFFSET(DE100_14!$K$38,ROWS($K$38:K60)-1,COLUMNS($K$38:K60)-1),"") -> 0.008 | J46: =IF(OFFSET(DE100_14!$L$38,ROWS($L$38:L60)-1,COLUMNS($L$38:L60)-1)<>"",OFFSET(DE100_14!$L$38,ROWS($L$38:L60)-1,COLUMNS($L$38:L60)-1),"") -> 1375 | K46: =IF(OFFSET(DE100_14!$N$38,ROWS($N$38:N60)-1,COLUMNS($N$38:N60)-1)<>"",OFFSET(DE100_14!$N$38,ROWS($N$38:N60)-1,COLUMNS($N$38:N60)-1),"") -> 
A47: =IF(OFFSET(DE100_14!$C$38,ROWS($C$38:C61)-1,COLUMNS($C$38:C61)-1)<>"",OFFSET(DE100_14!$C$38,ROWS($C$38:C61)-1,COLUMNS($C$38:C61)-1),"") -> 5 | B47: =IF(OFFSET(DE100_14!$D$38,ROWS($D$38:D61)-1,COLUMNS($D$38:D61)-1)<>"",OFFSET(DE100_14!$D$38,ROWS($D$38:D61)-1,COLUMNS($D$38:D61)-1),"") -> 146070 | C47: =IF(OFFSET(DE100_14!$E$38,ROWS($E$38:E61)-1,COLUMNS($E$38:E61)-1)<>"",OFFSET(DE100_14!$E$38,ROWS($E$38:E61)-1,COLUMNS($E$38:E61)-1),"") -> Med | D47: =IF(OFFSET(DE100_14!$F$38,ROWS($F$38:F61)-1,COLUMNS($F$38:F61)-1)<>"",OFFSET(DE100_14!$F$38,ROWS($F$38:F61)-1,COLUMNS($F$38:F61)-1),"") -> 1 | E47: =IF(OFFSET(DE100_14!$G$38,ROWS($G$38:G61)-1,COLUMNS($G$38:G61)-1)<>"",OFFSET(DE100_14!$G$38,ROWS($G$38:G61)-1,COLUMNS($G$38:G61)-1),"") -> 1 | F47: =IF(OFFSET(DE100_14!$H$38,ROWS($H$38:H61)-1,COLUMNS($H$38:H61)-1)<>"",OFFSET(DE100_14!$H$38,ROWS($H$38:H61)-1,COLUMNS($H$38:H61)-1),"") -> 10 | G47: =IF(OFFSET(DE100_14!$I$38,ROWS($I$38:I61)-1,COLUMNS($I$38:I61)-1)<>"",OFFSET(DE100_14!$I$38,ROWS($I$38:I61)-1,COLUMNS($I$38:I61)-1),"") -> 50 | H47: =IF(OFFSET(DE100_14!$J$38,ROWS($J$38:J61)-1,COLUMNS($J$38:J61)-1)<>"",OFFSET(DE100_14!$J$38,ROWS($J$38:J61)-1,COLUMNS($J$38:J61)-1),"") -> 2.85 | I47: =IF(OFFSET(DE100_14!$K$38,ROWS($K$38:K61)-1,COLUMNS($K$38:K61)-1)<>"",OFFSET(DE100_14!$K$38,ROWS($K$38:K61)-1,COLUMNS($K$38:K61)-1),"") -> 0.004 | J47: =IF(OFFSET(DE100_14!$L$38,ROWS($L$38:L61)-1,COLUMNS($L$38:L61)-1)<>"",OFFSET(DE100_14!$L$38,ROWS($L$38:L61)-1,COLUMNS($L$38:L61)-1),"") -> 1387.5 | K47: =IF(OFFSET(DE100_14!$N$38,ROWS($N$38:N61)-1,COLUMNS($N$38:N61)-1)<>"",OFFSET(DE100_14!$N$38,ROWS($N$38:N61)-1,COLUMNS($N$38:N61)-1),"") -> 
A48: =IF(OFFSET(DE100_14!$C$38,ROWS($C$38:C62)-1,COLUMNS($C$38:C62)-1)<>"",OFFSET(DE100_14!$C$38,ROWS($C$38:C62)-1,COLUMNS($C$38:C62)-1),"") -> 5 | B48: =IF(OFFSET(DE100_14!$D$38,ROWS($D$38:D62)-1,COLUMNS($D$38:D62)-1)<>"",OFFSET(DE100_14!$D$38,ROWS($D$38:D62)-1,COLUMNS($D$38:D62)-1),"") -> 146080 | C48: =IF(OFFSET(DE100_14!$E$38,ROWS($E$38:E62)-1,COLUMNS($E$38:E62)-1)<>"",OFFSET(DE100_14!$E$38,ROWS($E$38:E62)-1,COLUMNS($E$38:E62)-1),"") -> Med | D48: =IF(OFFSET(DE100_14!$F$38,ROWS($F$38:F62)-1,COLUMNS($F$38:F62)-1)<>"",OFFSET(DE100_14!$F$38,ROWS($F$38:F62)-1,COLUMNS($F$38:F62)-1),"") -> 1 | E48: =IF(OFFSET(DE100_14!$G$38,ROWS($G$38:G62)-1,COLUMNS($G$38:G62)-1)<>"",OFFSET(DE100_14!$G$38,ROWS($G$38:G62)-1,COLUMNS($G$38:G62)-1),"") -> 1 | F48: =IF(OFFSET(DE100_14!$H$38,ROWS($H$38:H62)-1,COLUMNS($H$38:H62)-1)<>"",OFFSET(DE100_14!$H$38,ROWS($H$38:H62)-1,COLUMNS($H$38:H62)-1),"") -> 10 | G48: =IF(OFFSET(DE100_14!$I$38,ROWS($I$38:I62)-1,COLUMNS($I$38:I62)-1)<>"",OFFSET(DE100_14!$I$38,ROWS($I$38:I62)-1,COLUMNS($I$38:I62)-1),"") -> 50 | H48: =IF(OFFSET(DE100_14!$J$38,ROWS($J$38:J62)-1,COLUMNS($J$38:J62)-1)<>"",OFFSET(DE100_14!$J$38,ROWS($J$38:J62)-1,COLUMNS($J$38:J62)-1),"") -> 2.85 | I48: =IF(OFFSET(DE100_14!$K$38,ROWS($K$38:K62)-1,COLUMNS($K$38:K62)-1)<>"",OFFSET(DE100_14!$K$38,ROWS($K$38:K62)-1,COLUMNS($K$38:K62)-1),"") -> 0.003 | J48: =IF(OFFSET(DE100_14!$L$38,ROWS($L$38:L62)-1,COLUMNS($L$38:L62)-1)<>"",OFFSET(DE100_14!$L$38,ROWS($L$38:L62)-1,COLUMNS($L$38:L62)-1),"") -> 1112.5 | K48: =IF(OFFSET(DE100_14!$N$38,ROWS($N$38:N62)-1,COLUMNS($N$38:N62)-1)<>"",OFFSET(DE100_14!$N$38,ROWS($N$38:N62)-1,COLUMNS($N$38:N62)-1),"") -> 
A49: =IF(OFFSET(DE100_14!$C$38,ROWS($C$38:C63)-1,COLUMNS($C$38:C63)-1)<>"",OFFSET(DE100_14!$C$38,ROWS($C$38:C63)-1,COLUMNS($C$38:C63)-1),"") -> 12 | B49: =IF(OFFSET(DE100_14!$D$38,ROWS($D$38:D63)-1,COLUMNS($D$38:D63)-1)<>"",OFFSET(DE100_14!$D$38,ROWS($D$38:D63)-1,COLUMNS($D$38:D63)-1),"") -> 154990 | C49: =IF(OFFSET(DE100_14!$E$38,ROWS($E$38:E63)-1,COLUMNS($E$38:E63)-1)<>"",OFFSET(DE100_14!$E$38,ROWS($E$38:E63)-1,COLUMNS($E$38:E63)-1),"") -> Med | D49: =IF(OFFSET(DE100_14!$F$38,ROWS($F$38:F63)-1,COLUMNS($F$38:F63)-1)<>"",OFFSET(DE100_14!$F$38,ROWS($F$38:F63)-1,COLUMNS($F$38:F63)-1),"") -> 1 | E49: =IF(OFFSET(DE100_14!$G$38,ROWS($G$38:G63)-1,COLUMNS($G$38:G63)-1)<>"",OFFSET(DE100_14!$G$38,ROWS($G$38:G63)-1,COLUMNS($G$38:G63)-1),"") -> 1 | F49: =IF(OFFSET(DE100_14!$H$38,ROWS($H$38:H63)-1,COLUMNS($H$38:H63)-1)<>"",OFFSET(DE100_14!$H$38,ROWS($H$38:H63)-1,COLUMNS($H$38:H63)-1),"") -> 10 | G49: =IF(OFFSET(DE100_14!$I$38,ROWS($I$38:I63)-1,COLUMNS($I$38:I63)-1)<>"",OFFSET(DE100_14!$I$38,ROWS($I$38:I63)-1,COLUMNS($I$38:I63)-1),"") -> 50 | H49: =IF(OFFSET(DE100_14!$J$38,ROWS($J$38:J63)-1,COLUMNS($J$38:J63)-1)<>"",OFFSET(DE100_14!$J$38,ROWS($J$38:J63)-1,COLUMNS($J$38:J63)-1),"") -> 2.85 | I49: =IF(OFFSET(DE100_14!$K$38,ROWS($K$38:K63)-1,COLUMNS($K$38:K63)-1)<>"",OFFSET(DE100_14!$K$38,ROWS($K$38:K63)-1,COLUMNS($K$38:K63)-1),"") -> 0.025 | J49: =IF(OFFSET(DE100_14!$L$38,ROWS($L$38:L63)-1,COLUMNS($L$38:L63)-1)<>"",OFFSET(DE100_14!$L$38,ROWS($L$38:L63)-1,COLUMNS($L$38:L63)-1),"") -> 1425 | K49: =IF(OFFSET(DE100_14!$N$38,ROWS($N$38:N63)-1,COLUMNS($N$38:N63)-1)<>"",OFFSET(DE100_14!$N$38,ROWS($N$38:N63)-1,COLUMNS($N$38:N63)-1),"") -> 
A50: =IF(OFFSET(DE100_14!$C$38,ROWS($C$38:C64)-1,COLUMNS($C$38:C64)-1)<>"",OFFSET(DE100_14!$C$38,ROWS($C$38:C64)-1,COLUMNS($C$38:C64)-1),"") ->  | B50: =IF(OFFSET(DE100_14!$D$38,ROWS($D$38:D64)-1,COLUMNS($D$38:D64)-1)<>"",OFFSET(DE100_14!$D$38,ROWS($D$38:D64)-1,COLUMNS($D$38:D64)-1),"") ->  | C50: =IF(OFFSET(DE100_14!$E$38,ROWS($E$38:E64)-1,COLUMNS($E$38:E64)-1)<>"",OFFSET(DE100_14!$E$38,ROWS($E$38:E64)-1,COLUMNS($E$38:E64)-1),"") ->  | D50: =IF(OFFSET(DE100_14!$F$38,ROWS($F$38:F64)-1,COLUMNS($F$38:F64)-1)<>"",OFFSET(DE100_14!$F$38,ROWS($F$38:F64)-1,COLUMNS($F$38:F64)-1),"") ->  | E50: =IF(OFFSET(DE100_14!$G$38,ROWS($G$38:G64)-1,COLUMNS($G$38:G64)-1)<>"",OFFSET(DE100_14!$G$38,ROWS($G$38:G64)-1,COLUMNS($G$38:G64)-1),"") ->  | F50: =IF(OFFSET(DE100_14!$H$38,ROWS($H$38:H64)-1,COLUMNS($H$38:H64)-1)<>"",OFFSET(DE100_14!$H$38,ROWS($H$38:H64)-1,COLUMNS($H$38:H64)-1),"") ->  | G50: =IF(OFFSET(DE100_14!$I$38,ROWS($I$38:I64)-1,COLUMNS($I$38:I64)-1)<>"",OFFSET(DE100_14!$I$38,ROWS($I$38:I64)-1,COLUMNS($I$38:I64)-1),"") ->  | H50: =IF(OFFSET(DE100_14!$J$38,ROWS($J$38:J64)-1,COLUMNS($J$38:J64)-1)<>"",OFFSET(DE100_14!$J$38,ROWS($J$38:J64)-1,COLUMNS($J$38:J64)-1),"") ->  | I50: =IF(OFFSET(DE100_14!$K$38,ROWS($K$38:K64)-1,COLUMNS($K$38:K64)-1)<>"",OFFSET(DE100_14!$K$38,ROWS($K$38:K64)-1,COLUMNS($K$38:K64)-1),"") ->  | J50: =IF(OFFSET(DE100_14!$L$38,ROWS($L$38:L64)-1,COLUMNS($L$38:L64)-1)<>"",OFFSET(DE100_14!$L$38,ROWS($L$38:L64)-1,COLUMNS($L$38:L64)-1),"") ->  | K50: =IF(OFFSET(DE100_14!$N$38,ROWS($N$38:N64)-1,COLUMNS($N$38:N64)-1)<>"",OFFSET(DE100_14!$N$38,ROWS($N$38:N64)-1,COLUMNS($N$38:N64)-1),"") -> 
A51: =IF(OFFSET(DE100_14!$C$38,ROWS($C$38:C65)-1,COLUMNS($C$38:C65)-1)<>"",OFFSET(DE100_14!$C$38,ROWS($C$38:C65)-1,COLUMNS($C$38:C65)-1),"") ->  | B51: =IF(OFFSET(DE100_14!$D$38,ROWS($D$38:D65)-1,COLUMNS($D$38:D65)-1)<>"",OFFSET(DE100_14!$D$38,ROWS($D$38:D65)-1,COLUMNS($D$38:D65)-1),"") -> US 30 | C51: =IF(OFFSET(DE100_14!$E$38,ROWS($E$38:E65)-1,COLUMNS($E$38:E65)-1)<>"",OFFSET(DE100_14!$E$38,ROWS($E$38:E65)-1,COLUMNS($E$38:E65)-1),"") -> Stage 3 | D51: =IF(OFFSET(DE100_14!$F$38,ROWS($F$38:F65)-1,COLUMNS($F$38:F65)-1)<>"",OFFSET(DE100_14!$F$38,ROWS($F$38:F65)-1,COLUMNS($F$38:F65)-1),"") ->  | E51: =IF(OFFSET(DE100_14!$G$38,ROWS($G$38:G65)-1,COLUMNS($G$38:G65)-1)<>"",OFFSET(DE100_14!$G$38,ROWS($G$38:G65)-1,COLUMNS($G$38:G65)-1),"") ->  | F51: =IF(OFFSET(DE100_14!$H$38,ROWS($H$38:H65)-1,COLUMNS($H$38:H65)-1)<>"",OFFSET(DE100_14!$H$38,ROWS($H$38:H65)-1,COLUMNS($H$38:H65)-1),"") ->  | G51: =IF(OFFSET(DE100_14!$I$38,ROWS($I$38:I65)-1,COLUMNS($I$38:I65)-1)<>"",OFFSET(DE100_14!$I$38,ROWS($I$38:I65)-1,COLUMNS($I$38:I65)-1),"") ->  | H51: =IF(OFFSET(DE100_14!$J$38,ROWS($J$38:J65)-1,COLUMNS($J$38:J65)-1)<>"",OFFSET(DE100_14!$J$38,ROWS($J$38:J65)-1,COLUMNS($J$38:J65)-1),"") ->  | I51: =IF(OFFSET(DE100_14!$K$38,ROWS($K$38:K65)-1,COLUMNS($K$38:K65)-1)<>"",OFFSET(DE100_14!$K$38,ROWS($K$38:K65)-1,COLUMNS($K$38:K65)-1),"") ->  | J51: =IF(OFFSET(DE100_14!$L$38,ROWS($L$38:L65)-1,COLUMNS($L$38:L65)-1)<>"",OFFSET(DE100_14!$L$38,ROWS($L$38:L65)-1,COLUMNS($L$38:L65)-1),"") ->  | K51: =IF(OFFSET(DE100_14!$N$38,ROWS($N$38:N65)-1,COLUMNS($N$38:N65)-1)<>"",OFFSET(DE100_14!$N$38,ROWS($N$38:N65)-1,COLUMNS($N$38:N65)-1),"") -> 
A52: =IF(OFFSET(DE100_14!$C$38,ROWS($C$38:C66)-1,COLUMNS($C$38:C66)-1)<>"",OFFSET(DE100_14!$C$38,ROWS($C$38:C66)-1,COLUMNS($C$38:C66)-1),"") -> 1 | B52: =IF(OFFSET(DE100_14!$D$38,ROWS($D$38:D66)-1,COLUMNS($D$38:D66)-1)<>"",OFFSET(DE100_14!$D$38,ROWS($D$38:D66)-1,COLUMNS($D$38:D66)-1),"") -> 139695 | C52: =IF(OFFSET(DE100_14!$E$38,ROWS($E$38:E66)-1,COLUMNS($E$38:E66)-1)<>"",OFFSET(DE100_14!$E$38,ROWS($E$38:E66)-1,COLUMNS($E$38:E66)-1),"") -> Med | D52: =IF(OFFSET(DE100_14!$F$38,ROWS($F$38:F66)-1,COLUMNS($F$38:F66)-1)<>"",OFFSET(DE100_14!$F$38,ROWS($F$38:F66)-1,COLUMNS($F$38:F66)-1),"") -> 1 | E52: =IF(OFFSET(DE100_14!$G$38,ROWS($G$38:G66)-1,COLUMNS($G$38:G66)-1)<>"",OFFSET(DE100_14!$G$38,ROWS($G$38:G66)-1,COLUMNS($G$38:G66)-1),"") -> 1 | F52: =IF(OFFSET(DE100_14!$H$38,ROWS($H$38:H66)-1,COLUMNS($H$38:H66)-1)<>"",OFFSET(DE100_14!$H$38,ROWS($H$38:H66)-1,COLUMNS($H$38:H66)-1),"") -> 10 | G52: =IF(OFFSET(DE100_14!$I$38,ROWS($I$38:I66)-1,COLUMNS($I$38:I66)-1)<>"",OFFSET(DE100_14!$I$38,ROWS($I$38:I66)-1,COLUMNS($I$38:I66)-1),"") -> 50 | H52: =IF(OFFSET(DE100_14!$J$38,ROWS($J$38:J66)-1,COLUMNS($J$38:J66)-1)<>"",OFFSET(DE100_14!$J$38,ROWS($J$38:J66)-1,COLUMNS($J$38:J66)-1),"") -> 2.85 | I52: =IF(OFFSET(DE100_14!$K$38,ROWS($K$38:K66)-1,COLUMNS($K$38:K66)-1)<>"",OFFSET(DE100_14!$K$38,ROWS($K$38:K66)-1,COLUMNS($K$38:K66)-1),"") -> 0.005 | J52: =IF(OFFSET(DE100_14!$L$38,ROWS($L$38:L66)-1,COLUMNS($L$38:L66)-1)<>"",OFFSET(DE100_14!$L$38,ROWS($L$38:L66)-1,COLUMNS($L$38:L66)-1),"") -> 1412.5 | K52: =IF(OFFSET(DE100_14!$N$38,ROWS($N$38:N66)-1,COLUMNS($N$38:N66)-1)<>"",OFFSET(DE100_14!$N$38,ROWS($N$38:N66)-1,COLUMNS($N$38:N66)-1),"") -> 
A53: =IF(OFFSET(DE100_14!$C$38,ROWS($C$38:C67)-1,COLUMNS($C$38:C67)-1)<>"",OFFSET(DE100_14!$C$38,ROWS($C$38:C67)-1,COLUMNS($C$38:C67)-1),"") -> 2 | B53: =IF(OFFSET(DE100_14!$D$38,ROWS($D$38:D67)-1,COLUMNS($D$38:D67)-1)<>"",OFFSET(DE100_14!$D$38,ROWS($D$38:D67)-1,COLUMNS($D$38:D67)-1),"") -> 140420 | C53: =IF(OFFSET(DE100_14!$E$38,ROWS($E$38:E67)-1,COLUMNS($E$38:E67)-1)<>"",OFFSET(DE100_14!$E$38,ROWS($E$38:E67)-1,COLUMNS($E$38:E67)-1),"") -> Med | D53: =IF(OFFSET(DE100_14!$F$38,ROWS($F$38:F67)-1,COLUMNS($F$38:F67)-1)<>"",OFFSET(DE100_14!$F$38,ROWS($F$38:F67)-1,COLUMNS($F$38:F67)-1),"") -> 1 | E53: =IF(OFFSET(DE100_14!$G$38,ROWS($G$38:G67)-1,COLUMNS($G$38:G67)-1)<>"",OFFSET(DE100_14!$G$38,ROWS($G$38:G67)-1,COLUMNS($G$38:G67)-1),"") -> 1 | F53: =IF(OFFSET(DE100_14!$H$38,ROWS($H$38:H67)-1,COLUMNS($H$38:H67)-1)<>"",OFFSET(DE100_14!$H$38,ROWS($H$38:H67)-1,COLUMNS($H$38:H67)-1),"") -> 10 | G53: =IF(OFFSET(DE100_14!$I$38,ROWS($I$38:I67)-1,COLUMNS($I$38:I67)-1)<>"",OFFSET(DE100_14!$I$38,ROWS($I$38:I67)-1,COLUMNS($I$38:I67)-1),"") -> 50 | H53: =IF(OFFSET(DE100_14!$J$38,ROWS($J$38:J67)-1,COLUMNS($J$38:J67)-1)<>"",OFFSET(DE100_14!$J$38,ROWS($J$38:J67)-1,COLUMNS($J$38:J67)-1),"") -> 2.85 | I53: =IF(OFFSET(DE100_14!$K$38,ROWS($K$38:K67)-1,COLUMNS($K$38:K67)-1)<>"",OFFSET(DE100_14!$K$38,ROWS($K$38:K67)-1,COLUMNS($K$38:K67)-1),"") -> 0.001 | J53: =IF(OFFSET(DE100_14!$L$38,ROWS($L$38:L67)-1,COLUMNS($L$38:L67)-1)<>"",OFFSET(DE100_14!$L$38,ROWS($L$38:L67)-1,COLUMNS($L$38:L67)-1),"") -> 1400 | K53: =IF(OFFSET(DE100_14!$N$38,ROWS($N$38:N67)-1,COLUMNS($N$38:N67)-1)<>"",OFFSET(DE100_14!$N$38,ROWS($N$38:N67)-1,COLUMNS($N$38:N67)-1),"") -> 
A54: =IF(OFFSET(DE100_14!$C$38,ROWS($C$38:C68)-1,COLUMNS($C$38:C68)-1)<>"",OFFSET(DE100_14!$C$38,ROWS($C$38:C68)-1,COLUMNS($C$38:C68)-1),"") -> 2 | B54: =IF(OFFSET(DE100_14!$D$38,ROWS($D$38:D68)-1,COLUMNS($D$38:D68)-1)<>"",OFFSET(DE100_14!$D$38,ROWS($D$38:D68)-1,COLUMNS($D$38:D68)-1),"") -> 140480 | C54: =IF(OFFSET(DE100_14!$E$38,ROWS($E$38:E68)-1,COLUMNS($E$38:E68)-1)<>"",OFFSET(DE100_14!$E$38,ROWS($E$38:E68)-1,COLUMNS($E$38:E68)-1),"") -> Med | D54: =IF(OFFSET(DE100_14!$F$38,ROWS($F$38:F68)-1,COLUMNS($F$38:F68)-1)<>"",OFFSET(DE100_14!$F$38,ROWS($F$38:F68)-1,COLUMNS($F$38:F68)-1),"") -> 1 | E54: =IF(OFFSET(DE100_14!$G$38,ROWS($G$38:G68)-1,COLUMNS($G$38:G68)-1)<>"",OFFSET(DE100_14!$G$38,ROWS($G$38:G68)-1,COLUMNS($G$38:G68)-1),"") -> 1 | F54: =IF(OFFSET(DE100_14!$H$38,ROWS($H$38:H68)-1,COLUMNS($H$38:H68)-1)<>"",OFFSET(DE100_14!$H$38,ROWS($H$38:H68)-1,COLUMNS($H$38:H68)-1),"") -> 10 | G54: =IF(OFFSET(DE100_14!$I$38,ROWS($I$38:I68)-1,COLUMNS($I$38:I68)-1)<>"",OFFSET(DE100_14!$I$38,ROWS($I$38:I68)-1,COLUMNS($I$38:I68)-1),"") -> 50 | H54: =IF(OFFSET(DE100_14!$J$38,ROWS($J$38:J68)-1,COLUMNS($J$38:J68)-1)<>"",OFFSET(DE100_14!$J$38,ROWS($J$38:J68)-1,COLUMNS($J$38:J68)-1),"") -> 2.85 | I54: =IF(OFFSET(DE100_14!$K$38,ROWS($K$38:K68)-1,COLUMNS($K$38:K68)-1)<>"",OFFSET(DE100_14!$K$38,ROWS($K$38:K68)-1,COLUMNS($K$38:K68)-1),"") -> 0.002 | J54: =IF(OFFSET(DE100_14!$L$38,ROWS($L$38:L68)-1,COLUMNS($L$38:L68)-1)<>"",OFFSET(DE100_14!$L$38,ROWS($L$38:L68)-1,COLUMNS($L$38:L68)-1),"") -> 1325 | K54: =IF(OFFSET(DE100_14!$N$38,ROWS($N$38:N68)-1,COLUMNS($N$38:N68)-1)<>"",OFFSET(DE100_14!$N$38,ROWS($N$38:N68)-1,COLUMNS($N$38:N68)-1),"") -> 
A55: =IF(OFFSET(DE100_14!$C$38,ROWS($C$38:C69)-1,COLUMNS($C$38:C69)-1)<>"",OFFSET(DE100_14!$C$38,ROWS($C$38:C69)-1,COLUMNS($C$38:C69)-1),"") -> 2 | B55: =IF(OFFSET(DE100_14!$D$38,ROWS($D$38:D69)-1,COLUMNS($D$38:D69)-1)<>"",OFFSET(DE100_14!$D$38,ROWS($D$38:D69)-1,COLUMNS($D$38:D69)-1),"") -> 141380 | C55: =IF(OFFSET(DE100_14!$E$38,ROWS($E$38:E69)-1,COLUMNS($E$38:E69)-1)<>"",OFFSET(DE100_14!$E$38,ROWS($E$38:E69)-1,COLUMNS($E$38:E69)-1),"") -> Med | D55: =IF(OFFSET(DE100_14!$F$38,ROWS($F$38:F69)-1,COLUMNS($F$38:F69)-1)<>"",OFFSET(DE100_14!$F$38,ROWS($F$38:F69)-1,COLUMNS($F$38:F69)-1),"") -> 1 | E55: =IF(OFFSET(DE100_14!$G$38,ROWS($G$38:G69)-1,COLUMNS($G$38:G69)-1)<>"",OFFSET(DE100_14!$G$38,ROWS($G$38:G69)-1,COLUMNS($G$38:G69)-1),"") -> 1 | F55: =IF(OFFSET(DE100_14!$H$38,ROWS($H$38:H69)-1,COLUMNS($H$38:H69)-1)<>"",OFFSET(DE100_14!$H$38,ROWS($H$38:H69)-1,COLUMNS($H$38:H69)-1),"") -> 10 | G55: =IF(OFFSET(DE100_14!$I$38,ROWS($I$38:I69)-1,COLUMNS($I$38:I69)-1)<>"",OFFSET(DE100_14!$I$38,ROWS($I$38:I69)-1,COLUMNS($I$38:I69)-1),"") -> 50 | H55: =IF(OFFSET(DE100_14!$J$38,ROWS($J$38:J69)-1,COLUMNS($J$38:J69)-1)<>"",OFFSET(DE100_14!$J$38,ROWS($J$38:J69)-1,COLUMNS($J$38:J69)-1),"") -> 2.85 | I55: =IF(OFFSET(DE100_14!$K$38,ROWS($K$38:K69)-1,COLUMNS($K$38:K69)-1)<>"",OFFSET(DE100_14!$K$38,ROWS($K$38:K69)-1,COLUMNS($K$38:K69)-1),"") -> 0.008 | J55: =IF(OFFSET(DE100_14!$L$38,ROWS($L$38:L69)-1,COLUMNS($L$38:L69)-1)<>"",OFFSET(DE100_14!$L$38,ROWS($L$38:L69)-1,COLUMNS($L$38:L69)-1),"") -> 1325 | K55: =IF(OFFSET(DE100_14!$N$38,ROWS($N$38:N69)-1,COLUMNS($N$38:N69)-1)<>"",OFFSET(DE100_14!$N$38,ROWS($N$38:N69)-1,COLUMNS($N$38:N69)-1),"") -> 
A56: =IF(OFFSET(DE100_14!$C$38,ROWS($C$38:C70)-1,COLUMNS($C$38:C70)-1)<>"",OFFSET(DE100_14!$C$38,ROWS($C$38:C70)-1,COLUMNS($C$38:C70)-1),"") -> 3 | B56: =IF(OFFSET(DE100_14!$D$38,ROWS($D$38:D70)-1,COLUMNS($D$38:D70)-1)<>"",OFFSET(DE100_14!$D$38,ROWS($D$38:D70)-1,COLUMNS($D$38:D70)-1),"") -> 143905 | C56: =IF(OFFSET(DE100_14!$E$38,ROWS($E$38:E70)-1,COLUMNS($E$38:E70)-1)<>"",OFFSET(DE100_14!$E$38,ROWS($E$38:E70)-1,COLUMNS($E$38:E70)-1),"") -> Med | D56: =IF(OFFSET(DE100_14!$F$38,ROWS($F$38:F70)-1,COLUMNS($F$38:F70)-1)<>"",OFFSET(DE100_14!$F$38,ROWS($F$38:F70)-1,COLUMNS($F$38:F70)-1),"") -> 1 | E56: =IF(OFFSET(DE100_14!$G$38,ROWS($G$38:G70)-1,COLUMNS($G$38:G70)-1)<>"",OFFSET(DE100_14!$G$38,ROWS($G$38:G70)-1,COLUMNS($G$38:G70)-1),"") -> 1 | F56: =IF(OFFSET(DE100_14!$H$38,ROWS($H$38:H70)-1,COLUMNS($H$38:H70)-1)<>"",OFFSET(DE100_14!$H$38,ROWS($H$38:H70)-1,COLUMNS($H$38:H70)-1),"") -> 10 | G56: =IF(OFFSET(DE100_14!$I$38,ROWS($I$38:I70)-1,COLUMNS($I$38:I70)-1)<>"",OFFSET(DE100_14!$I$38,ROWS($I$38:I70)-1,COLUMNS($I$38:I70)-1),"") -> 50 | H56: =IF(OFFSET(DE100_14!$J$38,ROWS($J$38:J70)-1,COLUMNS($J$38:J70)-1)<>"",OFFSET(DE100_14!$J$38,ROWS($J$38:J70)-1,COLUMNS($J$38:J70)-1),"") -> 2.85 | I56: =IF(OFFSET(DE100_14!$K$38,ROWS($K$38:K70)-1,COLUMNS($K$38:K70)-1)<>"",OFFSET(DE100_14!$K$38,ROWS($K$38:K70)-1,COLUMNS($K$38:K70)-1),"") -> 0.008 | J56: =IF(OFFSET(DE100_14!$L$38,ROWS($L$38:L70)-1,COLUMNS($L$38:L70)-1)<>"",OFFSET(DE100_14!$L$38,ROWS($L$38:L70)-1,COLUMNS($L$38:L70)-1),"") -> 1400 | K56: =IF(OFFSET(DE100_14!$N$38,ROWS($N$38:N70)-1,COLUMNS($N$38:N70)-1)<>"",OFFSET(DE100_14!$N$38,ROWS($N$38:N70)-1,COLUMNS($N$38:N70)-1),"") -> 
A57: =IF(OFFSET(DE100_14!$C$38,ROWS($C$38:C71)-1,COLUMNS($C$38:C71)-1)<>"",OFFSET(DE100_14!$C$38,ROWS($C$38:C71)-1,COLUMNS($C$38:C71)-1),"") -> 5 | B57: =IF(OFFSET(DE100_14!$D$38,ROWS($D$38:D71)-1,COLUMNS($D$38:D71)-1)<>"",OFFSET(DE100_14!$D$38,ROWS($D$38:D71)-1,COLUMNS($D$38:D71)-1),"") -> 146470 | C57: =IF(OFFSET(DE100_14!$E$38,ROWS($E$38:E71)-1,COLUMNS($E$38:E71)-1)<>"",OFFSET(DE100_14!$E$38,ROWS($E$38:E71)-1,COLUMNS($E$38:E71)-1),"") -> Med | D57: =IF(OFFSET(DE100_14!$F$38,ROWS($F$38:F71)-1,COLUMNS($F$38:F71)-1)<>"",OFFSET(DE100_14!$F$38,ROWS($F$38:F71)-1,COLUMNS($F$38:F71)-1),"") -> 1 | E57: =IF(OFFSET(DE100_14!$G$38,ROWS($G$38:G71)-1,COLUMNS($G$38:G71)-1)<>"",OFFSET(DE100_14!$G$38,ROWS($G$38:G71)-1,COLUMNS($G$38:G71)-1),"") -> 1 | F57: =IF(OFFSET(DE100_14!$H$38,ROWS($H$38:H71)-1,COLUMNS($H$38:H71)-1)<>"",OFFSET(DE100_14!$H$38,ROWS($H$38:H71)-1,COLUMNS($H$38:H71)-1),"") -> 10 | G57: =IF(OFFSET(DE100_14!$I$38,ROWS($I$38:I71)-1,COLUMNS($I$38:I71)-1)<>"",OFFSET(DE100_14!$I$38,ROWS($I$38:I71)-1,COLUMNS($I$38:I71)-1),"") -> 50 | H57: =IF(OFFSET(DE100_14!$J$38,ROWS($J$38:J71)-1,COLUMNS($J$38:J71)-1)<>"",OFFSET(DE100_14!$J$38,ROWS($J$38:J71)-1,COLUMNS($J$38:J71)-1),"") -> 2.85 | I57: =IF(OFFSET(DE100_14!$K$38,ROWS($K$38:K71)-1,COLUMNS($K$38:K71)-1)<>"",OFFSET(DE100_14!$K$38,ROWS($K$38:K71)-1,COLUMNS($K$38:K71)-1),"") -> 0.002 | J57: =IF(OFFSET(DE100_14!$L$38,ROWS($L$38:L71)-1,COLUMNS($L$38:L71)-1)<>"",OFFSET(DE100_14!$L$38,ROWS($L$38:L71)-1,COLUMNS($L$38:L71)-1),"") -> 1412.5 | K57: =IF(OFFSET(DE100_14!$N$38,ROWS($N$38:N71)-1,COLUMNS($N$38:N71)-1)<>"",OFFSET(DE100_14!$N$38,ROWS($N$38:N71)-1,COLUMNS($N$38:N71)-1),"") -> 
A58: =IF(OFFSET(DE100_14!$C$38,ROWS($C$38:C72)-1,COLUMNS($C$38:C72)-1)<>"",OFFSET(DE100_14!$C$38,ROWS($C$38:C72)-1,COLUMNS($C$38:C72)-1),"") -> 5 | B58: =IF(OFFSET(DE100_14!$D$38,ROWS($D$38:D72)-1,COLUMNS($D$38:D72)-1)<>"",OFFSET(DE100_14!$D$38,ROWS($D$38:D72)-1,COLUMNS($D$38:D72)-1),"") -> 146529 | C58: =IF(OFFSET(DE100_14!$E$38,ROWS($E$38:E72)-1,COLUMNS($E$38:E72)-1)<>"",OFFSET(DE100_14!$E$38,ROWS($E$38:E72)-1,COLUMNS($E$38:E72)-1),"") -> Med | D58: =IF(OFFSET(DE100_14!$F$38,ROWS($F$38:F72)-1,COLUMNS($F$38:F72)-1)<>"",OFFSET(DE100_14!$F$38,ROWS($F$38:F72)-1,COLUMNS($F$38:F72)-1),"") -> 1 | E58: =IF(OFFSET(DE100_14!$G$38,ROWS($G$38:G72)-1,COLUMNS($G$38:G72)-1)<>"",OFFSET(DE100_14!$G$38,ROWS($G$38:G72)-1,COLUMNS($G$38:G72)-1),"") -> 1 | F58: =IF(OFFSET(DE100_14!$H$38,ROWS($H$38:H72)-1,COLUMNS($H$38:H72)-1)<>"",OFFSET(DE100_14!$H$38,ROWS($H$38:H72)-1,COLUMNS($H$38:H72)-1),"") -> 10 | G58: =IF(OFFSET(DE100_14!$I$38,ROWS($I$38:I72)-1,COLUMNS($I$38:I72)-1)<>"",OFFSET(DE100_14!$I$38,ROWS($I$38:I72)-1,COLUMNS($I$38:I72)-1),"") -> 50 | H58: =IF(OFFSET(DE100_14!$J$38,ROWS($J$38:J72)-1,COLUMNS($J$38:J72)-1)<>"",OFFSET(DE100_14!$J$38,ROWS($J$38:J72)-1,COLUMNS($J$38:J72)-1),"") -> 2.85 | I58: =IF(OFFSET(DE100_14!$K$38,ROWS($K$38:K72)-1,COLUMNS($K$38:K72)-1)<>"",OFFSET(DE100_14!$K$38,ROWS($K$38:K72)-1,COLUMNS($K$38:K72)-1),"") -> 0.001 | J58: =IF(OFFSET(DE100_14!$L$38,ROWS($L$38:L72)-1,COLUMNS($L$38:L72)-1)<>"",OFFSET(DE100_14!$L$38,ROWS($L$38:L72)-1,COLUMNS($L$38:L72)-1),"") -> 1237.5 | K58: =IF(OFFSET(DE100_14!$N$38,ROWS($N$38:N72)-1,COLUMNS($N$38:N72)-1)<>"",OFFSET(DE100_14!$N$38,ROWS($N$38:N72)-1,COLUMNS($N$38:N72)-1),"") -> 
A59: =IF(OFFSET(DE100_14!$C$38,ROWS($C$38:C73)-1,COLUMNS($C$38:C73)-1)<>"",OFFSET(DE100_14!$C$38,ROWS($C$38:C73)-1,COLUMNS($C$38:C73)-1),"") -> 5 | B59: =IF(OFFSET(DE100_14!$D$38,ROWS($D$38:D73)-1,COLUMNS($D$38:D73)-1)<>"",OFFSET(DE100_14!$D$38,ROWS($D$38:D73)-1,COLUMNS($D$38:D73)-1),"") -> 147030 | C59: =IF(OFFSET(DE100_14!$E$38,ROWS($E$38:E73)-1,COLUMNS($E$38:E73)-1)<>"",OFFSET(DE100_14!$E$38,ROWS($E$38:E73)-1,COLUMNS($E$38:E73)-1),"") -> Med | D59: =IF(OFFSET(DE100_14!$F$38,ROWS($F$38:F73)-1,COLUMNS($F$38:F73)-1)<>"",OFFSET(DE100_14!$F$38,ROWS($F$38:F73)-1,COLUMNS($F$38:F73)-1),"") -> 1 | E59: =IF(OFFSET(DE100_14!$G$38,ROWS($G$38:G73)-1,COLUMNS($G$38:G73)-1)<>"",OFFSET(DE100_14!$G$38,ROWS($G$38:G73)-1,COLUMNS($G$38:G73)-1),"") -> 1 | F59: =IF(OFFSET(DE100_14!$H$38,ROWS($H$38:H73)-1,COLUMNS($H$38:H73)-1)<>"",OFFSET(DE100_14!$H$38,ROWS($H$38:H73)-1,COLUMNS($H$38:H73)-1),"") -> 10 | G59: =IF(OFFSET(DE100_14!$I$38,ROWS($I$38:I73)-1,COLUMNS($I$38:I73)-1)<>"",OFFSET(DE100_14!$I$38,ROWS($I$38:I73)-1,COLUMNS($I$38:I73)-1),"") -> 50 | H59: =IF(OFFSET(DE100_14!$J$38,ROWS($J$38:J73)-1,COLUMNS($J$38:J73)-1)<>"",OFFSET(DE100_14!$J$38,ROWS($J$38:J73)-1,COLUMNS($J$38:J73)-1),"") -> 2.85 | I59: =IF(OFFSET(DE100_14!$K$38,ROWS($K$38:K73)-1,COLUMNS($K$38:K73)-1)<>"",OFFSET(DE100_14!$K$38,ROWS($K$38:K73)-1,COLUMNS($K$38:K73)-1),"") -> 0.015 | J59: =IF(OFFSET(DE100_14!$L$38,ROWS($L$38:L73)-1,COLUMNS($L$38:L73)-1)<>"",OFFSET(DE100_14!$L$38,ROWS($L$38:L73)-1,COLUMNS($L$38:L73)-1),"") -> 1287.5 | K59: =IF(OFFSET(DE100_14!$N$38,ROWS($N$38:N73)-1,COLUMNS($N$38:N73)-1)<>"",OFFSET(DE100_14!$N$38,ROWS($N$38:N73)-1,COLUMNS($N$38:N73)-1),"") -> 
A60: =IF(OFFSET(DE100_14!$C$38,ROWS($C$38:C74)-1,COLUMNS($C$38:C74)-1)<>"",OFFSET(DE100_14!$C$38,ROWS($C$38:C74)-1,COLUMNS($C$38:C74)-1),"") -> 7 | B60: =IF(OFFSET(DE100_14!$D$38,ROWS($D$38:D74)-1,COLUMNS($D$38:D74)-1)<>"",OFFSET(DE100_14!$D$38,ROWS($D$38:D74)-1,COLUMNS($D$38:D74)-1),"") -> 147704 | C60: =IF(OFFSET(DE100_14!$E$38,ROWS($E$38:E74)-1,COLUMNS($E$38:E74)-1)<>"",OFFSET(DE100_14!$E$38,ROWS($E$38:E74)-1,COLUMNS($E$38:E74)-1),"") -> Med | D60: =IF(OFFSET(DE100_14!$F$38,ROWS($F$38:F74)-1,COLUMNS($F$38:F74)-1)<>"",OFFSET(DE100_14!$F$38,ROWS($F$38:F74)-1,COLUMNS($F$38:F74)-1),"") -> 1 | E60: =IF(OFFSET(DE100_14!$G$38,ROWS($G$38:G74)-1,COLUMNS($G$38:G74)-1)<>"",OFFSET(DE100_14!$G$38,ROWS($G$38:G74)-1,COLUMNS($G$38:G74)-1),"") -> 1 | F60: =IF(OFFSET(DE100_14!$H$38,ROWS($H$38:H74)-1,COLUMNS($H$38:H74)-1)<>"",OFFSET(DE100_14!$H$38,ROWS($H$38:H74)-1,COLUMNS($H$38:H74)-1),"") -> 10 | G60: =IF(OFFSET(DE100_14!$I$38,ROWS($I$38:I74)-1,COLUMNS($I$38:I74)-1)<>"",OFFSET(DE100_14!$I$38,ROWS($I$38:I74)-1,COLUMNS($I$38:I74)-1),"") -> 50 | H60: =IF(OFFSET(DE100_14!$J$38,ROWS($J$38:J74)-1,COLUMNS($J$38:J74)-1)<>"",OFFSET(DE100_14!$J$38,ROWS($J$38:J74)-1,COLUMNS($J$38:J74)-1),"") -> 2.85 | I60: =IF(OFFSET(DE100_14!$K$38,ROWS($K$38:K74)-1,COLUMNS($K$38:K74)-1)<>"",OFFSET(DE100_14!$K$38,ROWS($K$38:K74)-1,COLUMNS($K$38:K74)-1),"") -> 0.011 | J60: =IF(OFFSET(DE100_14!$L$38,ROWS($L$38:L74)-1,COLUMNS($L$38:L74)-1)<>"",OFFSET(DE100_14!$L$38,ROWS($L$38:L74)-1,COLUMNS($L$38:L74)-1),"") -> 1375 | K60: =IF(OFFSET(DE100_14!$N$38,ROWS($N$38:N74)-1,COLUMNS($N$38:N74)-1)<>"",OFFSET(DE100_14!$N$38,ROWS($N$38:N74)-1,COLUMNS($N$38:N74)-1),"") -> 
A61: =IF(OFFSET(DE100_14!$C$38,ROWS($C$38:C75)-1,COLUMNS($C$38:C75)-1)<>"",OFFSET(DE100_14!$C$38,ROWS($C$38:C75)-1,COLUMNS($C$38:C75)-1),"") -> 9 | B61: =IF(OFFSET(DE100_14!$D$38,ROWS($D$38:D75)-1,COLUMNS($D$38:D75)-1)<>"",OFFSET(DE100_14!$D$38,ROWS($D$38:D75)-1,COLUMNS($D$38:D75)-1),"") -> 150045 | C61: =IF(OFFSET(DE100_14!$E$38,ROWS($E$38:E75)-1,COLUMNS($E$38:E75)-1)<>"",OFFSET(DE100_14!$E$38,ROWS($E$38:E75)-1,COLUMNS($E$38:E75)-1),"") -> Med | D61: =IF(OFFSET(DE100_14!$F$38,ROWS($F$38:F75)-1,COLUMNS($F$38:F75)-1)<>"",OFFSET(DE100_14!$F$38,ROWS($F$38:F75)-1,COLUMNS($F$38:F75)-1),"") -> 1 | E61: =IF(OFFSET(DE100_14!$G$38,ROWS($G$38:G75)-1,COLUMNS($G$38:G75)-1)<>"",OFFSET(DE100_14!$G$38,ROWS($G$38:G75)-1,COLUMNS($G$38:G75)-1),"") -> 1 | F61: =IF(OFFSET(DE100_14!$H$38,ROWS($H$38:H75)-1,COLUMNS($H$38:H75)-1)<>"",OFFSET(DE100_14!$H$38,ROWS($H$38:H75)-1,COLUMNS($H$38:H75)-1),"") -> 10 | G61: =IF(OFFSET(DE100_14!$I$38,ROWS($I$38:I75)-1,COLUMNS($I$38:I75)-1)<>"",OFFSET(DE100_14!$I$38,ROWS($I$38:I75)-1,COLUMNS($I$38:I75)-1),"") -> 50 | H61: =IF(OFFSET(DE100_14!$J$38,ROWS($J$38:J75)-1,COLUMNS($J$38:J75)-1)<>"",OFFSET(DE100_14!$J$38,ROWS($J$38:J75)-1,COLUMNS($J$38:J75)-1),"") -> 2.85 | I61: =IF(OFFSET(DE100_14!$K$38,ROWS($K$38:K75)-1,COLUMNS($K$38:K75)-1)<>"",OFFSET(DE100_14!$K$38,ROWS($K$38:K75)-1,COLUMNS($K$38:K75)-1),"") -> 0.004 | J61: =IF(OFFSET(DE100_14!$L$38,ROWS($L$38:L75)-1,COLUMNS($L$38:L75)-1)<>"",OFFSET(DE100_14!$L$38,ROWS($L$38:L75)-1,COLUMNS($L$38:L75)-1),"") -> 1137.5 | K61: =IF(OFFSET(DE100_14!$N$38,ROWS($N$38:N75)-1,COLUMNS($N$38:N75)-1)<>"",OFFSET(DE100_14!$N$38,ROWS($N$38:N75)-1,COLUMNS($N$38:N75)-1),"") -> 
A62: =IF(OFFSET(DE100_14!$C$38,ROWS($C$38:C76)-1,COLUMNS($C$38:C76)-1)<>"",OFFSET(DE100_14!$C$38,ROWS($C$38:C76)-1,COLUMNS($C$38:C76)-1),"") -> 1 | B62: =IF(OFFSET(DE100_14!$D$38,ROWS($D$38:D76)-1,COLUMNS($D$38:D76)-1)<>"",OFFSET(DE100_14!$D$38,ROWS($D$38:D76)-1,COLUMNS($D$38:D76)-1),"") -> 138748 | C62: =IF(OFFSET(DE100_14!$E$38,ROWS($E$38:E76)-1,COLUMNS($E$38:E76)-1)<>"",OFFSET(DE100_14!$E$38,ROWS($E$38:E76)-1,COLUMNS($E$38:E76)-1),"") -> LT | D62: =IF(OFFSET(DE100_14!$F$38,ROWS($F$38:F76)-1,COLUMNS($F$38:F76)-1)<>"",OFFSET(DE100_14!$F$38,ROWS($F$38:F76)-1,COLUMNS($F$38:F76)-1),"") -> 1 | E62: =IF(OFFSET(DE100_14!$G$38,ROWS($G$38:G76)-1,COLUMNS($G$38:G76)-1)<>"",OFFSET(DE100_14!$G$38,ROWS($G$38:G76)-1,COLUMNS($G$38:G76)-1),"") -> 1 | F62: =IF(OFFSET(DE100_14!$H$38,ROWS($H$38:H76)-1,COLUMNS($H$38:H76)-1)<>"",OFFSET(DE100_14!$H$38,ROWS($H$38:H76)-1,COLUMNS($H$38:H76)-1),"") -> 10 | G62: =IF(OFFSET(DE100_14!$I$38,ROWS($I$38:I76)-1,COLUMNS($I$38:I76)-1)<>"",OFFSET(DE100_14!$I$38,ROWS($I$38:I76)-1,COLUMNS($I$38:I76)-1),"") -> 50 | H62: =IF(OFFSET(DE100_14!$J$38,ROWS($J$38:J76)-1,COLUMNS($J$38:J76)-1)<>"",OFFSET(DE100_14!$J$38,ROWS($J$38:J76)-1,COLUMNS($J$38:J76)-1),"") -> 2.85 | I62: =IF(OFFSET(DE100_14!$K$38,ROWS($K$38:K76)-1,COLUMNS($K$38:K76)-1)<>"",OFFSET(DE100_14!$K$38,ROWS($K$38:K76)-1,COLUMNS($K$38:K76)-1),"") -> 0.023 | J62: =IF(OFFSET(DE100_14!$L$38,ROWS($L$38:L76)-1,COLUMNS($L$38:L76)-1)<>"",OFFSET(DE100_14!$L$38,ROWS($L$38:L76)-1,COLUMNS($L$38:L76)-1),"") -> 737.5 | K62: =IF(OFFSET(DE100_14!$N$38,ROWS($N$38:N76)-1,COLUMNS($N$38:N76)-1)<>"",OFFSET(DE100_14!$N$38,ROWS($N$38:N76)-1,COLUMNS($N$38:N76)-1),"") -> 
A63: =IF(OFFSET(DE100_14!$C$38,ROWS($C$38:C77)-1,COLUMNS($C$38:C77)-1)<>"",OFFSET(DE100_14!$C$38,ROWS($C$38:C77)-1,COLUMNS($C$38:C77)-1),"") -> 2 | B63: =IF(OFFSET(DE100_14!$D$38,ROWS($D$38:D77)-1,COLUMNS($D$38:D77)-1)<>"",OFFSET(DE100_14!$D$38,ROWS($D$38:D77)-1,COLUMNS($D$38:D77)-1),"") -> 140042 | C63: =IF(OFFSET(DE100_14!$E$38,ROWS($E$38:E77)-1,COLUMNS($E$38:E77)-1)<>"",OFFSET(DE100_14!$E$38,ROWS($E$38:E77)-1,COLUMNS($E$38:E77)-1),"") -> LT | D63: =IF(OFFSET(DE100_14!$F$38,ROWS($F$38:F77)-1,COLUMNS($F$38:F77)-1)<>"",OFFSET(DE100_14!$F$38,ROWS($F$38:F77)-1,COLUMNS($F$38:F77)-1),"") -> 1 | E63: =IF(OFFSET(DE100_14!$G$38,ROWS($G$38:G77)-1,COLUMNS($G$38:G77)-1)<>"",OFFSET(DE100_14!$G$38,ROWS($G$38:G77)-1,COLUMNS($G$38:G77)-1),"") -> 1 | F63: =IF(OFFSET(DE100_14!$H$38,ROWS($H$38:H77)-1,COLUMNS($H$38:H77)-1)<>"",OFFSET(DE100_14!$H$38,ROWS($H$38:H77)-1,COLUMNS($H$38:H77)-1),"") -> 10 | G63: =IF(OFFSET(DE100_14!$I$38,ROWS($I$38:I77)-1,COLUMNS($I$38:I77)-1)<>"",OFFSET(DE100_14!$I$38,ROWS($I$38:I77)-1,COLUMNS($I$38:I77)-1),"") -> 50 | H63: =IF(OFFSET(DE100_14!$J$38,ROWS($J$38:J77)-1,COLUMNS($J$38:J77)-1)<>"",OFFSET(DE100_14!$J$38,ROWS($J$38:J77)-1,COLUMNS($J$38:J77)-1),"") -> 2.85 | I63: =IF(OFFSET(DE100_14!$K$38,ROWS($K$38:K77)-1,COLUMNS($K$38:K77)-1)<>"",OFFSET(DE100_14!$K$38,ROWS($K$38:K77)-1,COLUMNS($K$38:K77)-1),"") -> 0.055 | J63: =IF(OFFSET(DE100_14!$L$38,ROWS($L$38:L77)-1,COLUMNS($L$38:L77)-1)<>"",OFFSET(DE100_14!$L$38,ROWS($L$38:L77)-1,COLUMNS($L$38:L77)-1),"") -> 1312.5 | K63: =IF(OFFSET(DE100_14!$N$38,ROWS($N$38:N77)-1,COLUMNS($N$38:N77)-1)<>"",OFFSET(DE100_14!$N$38,ROWS($N$38:N77)-1,COLUMNS($N$38:N77)-1),"") -> 
A64: =IF(OFFSET(DE100_14!$C$38,ROWS($C$38:C78)-1,COLUMNS($C$38:C78)-1)<>"",OFFSET(DE100_14!$C$38,ROWS($C$38:C78)-1,COLUMNS($C$38:C78)-1),"") -> 3 | B64: =IF(OFFSET(DE100_14!$D$38,ROWS($D$38:D78)-1,COLUMNS($D$38:D78)-1)<>"",OFFSET(DE100_14!$D$38,ROWS($D$38:D78)-1,COLUMNS($D$38:D78)-1),"") -> 142167 | C64: =IF(OFFSET(DE100_14!$E$38,ROWS($E$38:E78)-1,COLUMNS($E$38:E78)-1)<>"",OFFSET(DE100_14!$E$38,ROWS($E$38:E78)-1,COLUMNS($E$38:E78)-1),"") -> LT | D64: =IF(OFFSET(DE100_14!$F$38,ROWS($F$38:F78)-1,COLUMNS($F$38:F78)-1)<>"",OFFSET(DE100_14!$F$38,ROWS($F$38:F78)-1,COLUMNS($F$38:F78)-1),"") -> 1 | E64: =IF(OFFSET(DE100_14!$G$38,ROWS($G$38:G78)-1,COLUMNS($G$38:G78)-1)<>"",OFFSET(DE100_14!$G$38,ROWS($G$38:G78)-1,COLUMNS($G$38:G78)-1),"") -> 1 | F64: =IF(OFFSET(DE100_14!$H$38,ROWS($H$38:H78)-1,COLUMNS($H$38:H78)-1)<>"",OFFSET(DE100_14!$H$38,ROWS($H$38:H78)-1,COLUMNS($H$38:H78)-1),"") -> 10 | G64: =IF(OFFSET(DE100_14!$I$38,ROWS($I$38:I78)-1,COLUMNS($I$38:I78)-1)<>"",OFFSET(DE100_14!$I$38,ROWS($I$38:I78)-1,COLUMNS($I$38:I78)-1),"") -> 50 | H64: =IF(OFFSET(DE100_14!$J$38,ROWS($J$38:J78)-1,COLUMNS($J$38:J78)-1)<>"",OFFSET(DE100_14!$J$38,ROWS($J$38:J78)-1,COLUMNS($J$38:J78)-1),"") -> 2.85 | I64: =IF(OFFSET(DE100_14!$K$38,ROWS($K$38:K78)-1,COLUMNS($K$38:K78)-1)<>"",OFFSET(DE100_14!$K$38,ROWS($K$38:K78)-1,COLUMNS($K$38:K78)-1),"") -> 0.009 | J64: =IF(OFFSET(DE100_14!$L$38,ROWS($L$38:L78)-1,COLUMNS($L$38:L78)-1)<>"",OFFSET(DE100_14!$L$38,ROWS($L$38:L78)-1,COLUMNS($L$38:L78)-1),"") -> 1337.5 | K64: =IF(OFFSET(DE100_14!$N$38,ROWS($N$38:N78)-1,COLUMNS($N$38:N78)-1)<>"",OFFSET(DE100_14!$N$38,ROWS($N$38:N78)-1,COLUMNS($N$38:N78)-1),"") -> 
A65: =IF(OFFSET(DE100_14!$C$38,ROWS($C$38:C79)-1,COLUMNS($C$38:C79)-1)<>"",OFFSET(DE100_14!$C$38,ROWS($C$38:C79)-1,COLUMNS($C$38:C79)-1),"") -> 3 | B65: =IF(OFFSET(DE100_14!$D$38,ROWS($D$38:D79)-1,COLUMNS($D$38:D79)-1)<>"",OFFSET(DE100_14!$D$38,ROWS($D$38:D79)-1,COLUMNS($D$38:D79)-1),"") -> 142490 | C65: =IF(OFFSET(DE100_14!$E$38,ROWS($E$38:E79)-1,COLUMNS($E$38:E79)-1)<>"",OFFSET(DE100_14!$E$38,ROWS($E$38:E79)-1,COLUMNS($E$38:E79)-1),"") -> LT | D65: =IF(OFFSET(DE100_14!$F$38,ROWS($F$38:F79)-1,COLUMNS($F$38:F79)-1)<>"",OFFSET(DE100_14!$F$38,ROWS($F$38:F79)-1,COLUMNS($F$38:F79)-1),"") -> 1 | E65: =IF(OFFSET(DE100_14!$G$38,ROWS($G$38:G79)-1,COLUMNS($G$38:G79)-1)<>"",OFFSET(DE100_14!$G$38,ROWS($G$38:G79)-1,COLUMNS($G$38:G79)-1),"") -> 1 | F65: =IF(OFFSET(DE100_14!$H$38,ROWS($H$38:H79)-1,COLUMNS($H$38:H79)-1)<>"",OFFSET(DE100_14!$H$38,ROWS($H$38:H79)-1,COLUMNS($H$38:H79)-1),"") -> 10 | G65: =IF(OFFSET(DE100_14!$I$38,ROWS($I$38:I79)-1,COLUMNS($I$38:I79)-1)<>"",OFFSET(DE100_14!$I$38,ROWS($I$38:I79)-1,COLUMNS($I$38:I79)-1),"") -> 50 | H65: =IF(OFFSET(DE100_14!$J$38,ROWS($J$38:J79)-1,COLUMNS($J$38:J79)-1)<>"",OFFSET(DE100_14!$J$38,ROWS($J$38:J79)-1,COLUMNS($J$38:J79)-1),"") -> 2.85 | I65: =IF(OFFSET(DE100_14!$K$38,ROWS($K$38:K79)-1,COLUMNS($K$38:K79)-1)<>"",OFFSET(DE100_14!$K$38,ROWS($K$38:K79)-1,COLUMNS($K$38:K79)-1),"") -> 0.007 | J65: =IF(OFFSET(DE100_14!$L$38,ROWS($L$38:L79)-1,COLUMNS($L$38:L79)-1)<>"",OFFSET(DE100_14!$L$38,ROWS($L$38:L79)-1,COLUMNS($L$38:L79)-1),"") -> 1225 | K65: =IF(OFFSET(DE100_14!$N$38,ROWS($N$38:N79)-1,COLUMNS($N$38:N79)-1)<>"",OFFSET(DE100_14!$N$38,ROWS($N$38:N79)-1,COLUMNS($N$38:N79)-1),"") -> 
A66: =IF(OFFSET(DE100_14!$C$38,ROWS($C$38:C80)-1,COLUMNS($C$38:C80)-1)<>"",OFFSET(DE100_14!$C$38,ROWS($C$38:C80)-1,COLUMNS($C$38:C80)-1),"") -> 3 | B66: =IF(OFFSET(DE100_14!$D$38,ROWS($D$38:D80)-1,COLUMNS($D$38:D80)-1)<>"",OFFSET(DE100_14!$D$38,ROWS($D$38:D80)-1,COLUMNS($D$38:D80)-1),"") -> 142560 | C66: =IF(OFFSET(DE100_14!$E$38,ROWS($E$38:E80)-1,COLUMNS($E$38:E80)-1)<>"",OFFSET(DE100_14!$E$38,ROWS($E$38:E80)-1,COLUMNS($E$38:E80)-1),"") -> LT | D66: =IF(OFFSET(DE100_14!$F$38,ROWS($F$38:F80)-1,COLUMNS($F$38:F80)-1)<>"",OFFSET(DE100_14!$F$38,ROWS($F$38:F80)-1,COLUMNS($F$38:F80)-1),"") -> 1 | E66: =IF(OFFSET(DE100_14!$G$38,ROWS($G$38:G80)-1,COLUMNS($G$38:G80)-1)<>"",OFFSET(DE100_14!$G$38,ROWS($G$38:G80)-1,COLUMNS($G$38:G80)-1),"") -> 1 | F66: =IF(OFFSET(DE100_14!$H$38,ROWS($H$38:H80)-1,COLUMNS($H$38:H80)-1)<>"",OFFSET(DE100_14!$H$38,ROWS($H$38:H80)-1,COLUMNS($H$38:H80)-1),"") -> 10 | G66: =IF(OFFSET(DE100_14!$I$38,ROWS($I$38:I80)-1,COLUMNS($I$38:I80)-1)<>"",OFFSET(DE100_14!$I$38,ROWS($I$38:I80)-1,COLUMNS($I$38:I80)-1),"") -> 50 | H66: =IF(OFFSET(DE100_14!$J$38,ROWS($J$38:J80)-1,COLUMNS($J$38:J80)-1)<>"",OFFSET(DE100_14!$J$38,ROWS($J$38:J80)-1,COLUMNS($J$38:J80)-1),"") -> 2.85 | I66: =IF(OFFSET(DE100_14!$K$38,ROWS($K$38:K80)-1,COLUMNS($K$38:K80)-1)<>"",OFFSET(DE100_14!$K$38,ROWS($K$38:K80)-1,COLUMNS($K$38:K80)-1),"") -> 0.016 | J66: =IF(OFFSET(DE100_14!$L$38,ROWS($L$38:L80)-1,COLUMNS($L$38:L80)-1)<>"",OFFSET(DE100_14!$L$38,ROWS($L$38:L80)-1,COLUMNS($L$38:L80)-1),"") -> 1375 | K66: =IF(OFFSET(DE100_14!$N$38,ROWS($N$38:N80)-1,COLUMNS($N$38:N80)-1)<>"",OFFSET(DE100_14!$N$38,ROWS($N$38:N80)-1,COLUMNS($N$38:N80)-1),"") -> 
A67: =IF(OFFSET(DE100_14!$C$38,ROWS($C$38:C81)-1,COLUMNS($C$38:C81)-1)<>"",OFFSET(DE100_14!$C$38,ROWS($C$38:C81)-1,COLUMNS($C$38:C81)-1),"") -> 4 | B67: =IF(OFFSET(DE100_14!$D$38,ROWS($D$38:D81)-1,COLUMNS($D$38:D81)-1)<>"",OFFSET(DE100_14!$D$38,ROWS($D$38:D81)-1,COLUMNS($D$38:D81)-1),"") -> 145344 | C67: =IF(OFFSET(DE100_14!$E$38,ROWS($E$38:E81)-1,COLUMNS($E$38:E81)-1)<>"",OFFSET(DE100_14!$E$38,ROWS($E$38:E81)-1,COLUMNS($E$38:E81)-1),"") -> LT | D67: =IF(OFFSET(DE100_14!$F$38,ROWS($F$38:F81)-1,COLUMNS($F$38:F81)-1)<>"",OFFSET(DE100_14!$F$38,ROWS($F$38:F81)-1,COLUMNS($F$38:F81)-1),"") -> 1 | E67: =IF(OFFSET(DE100_14!$G$38,ROWS($G$38:G81)-1,COLUMNS($G$38:G81)-1)<>"",OFFSET(DE100_14!$G$38,ROWS($G$38:G81)-1,COLUMNS($G$38:G81)-1),"") -> 1 | F67: =IF(OFFSET(DE100_14!$H$38,ROWS($H$38:H81)-1,COLUMNS($H$38:H81)-1)<>"",OFFSET(DE100_14!$H$38,ROWS($H$38:H81)-1,COLUMNS($H$38:H81)-1),"") -> 10 | G67: =IF(OFFSET(DE100_14!$I$38,ROWS($I$38:I81)-1,COLUMNS($I$38:I81)-1)<>"",OFFSET(DE100_14!$I$38,ROWS($I$38:I81)-1,COLUMNS($I$38:I81)-1),"") -> 50 | H67: =IF(OFFSET(DE100_14!$J$38,ROWS($J$38:J81)-1,COLUMNS($J$38:J81)-1)<>"",OFFSET(DE100_14!$J$38,ROWS($J$38:J81)-1,COLUMNS($J$38:J81)-1),"") -> 2.85 | I67: =IF(OFFSET(DE100_14!$K$38,ROWS($K$38:K81)-1,COLUMNS($K$38:K81)-1)<>"",OFFSET(DE100_14!$K$38,ROWS($K$38:K81)-1,COLUMNS($K$38:K81)-1),"") -> 0.004 | J67: =IF(OFFSET(DE100_14!$L$38,ROWS($L$38:L81)-1,COLUMNS($L$38:L81)-1)<>"",OFFSET(DE100_14!$L$38,ROWS($L$38:L81)-1,COLUMNS($L$38:L81)-1),"") -> 1237.5 | K67: =IF(OFFSET(DE100_14!$N$38,ROWS($N$38:N81)-1,COLUMNS($N$38:N81)-1)<>"",OFFSET(DE100_14!$N$38,ROWS($N$38:N81)-1,COLUMNS($N$38:N81)-1),"") -> 
A68: =IF(OFFSET(DE100_14!$C$38,ROWS($C$38:C82)-1,COLUMNS($C$38:C82)-1)<>"",OFFSET(DE100_14!$C$38,ROWS($C$38:C82)-1,COLUMNS($C$38:C82)-1),"") -> 4 | B68: =IF(OFFSET(DE100_14!$D$38,ROWS($D$38:D82)-1,COLUMNS($D$38:D82)-1)<>"",OFFSET(DE100_14!$D$38,ROWS($D$38:D82)-1,COLUMNS($D$38:D82)-1),"") -> 145404 | C68: =IF(OFFSET(DE100_14!$E$38,ROWS($E$38:E82)-1,COLUMNS($E$38:E82)-1)<>"",OFFSET(DE100_14!$E$38,ROWS($E$38:E82)-1,COLUMNS($E$38:E82)-1),"") -> LT | D68: =IF(OFFSET(DE100_14!$F$38,ROWS($F$38:F82)-1,COLUMNS($F$38:F82)-1)<>"",OFFSET(DE100_14!$F$38,ROWS($F$38:F82)-1,COLUMNS($F$38:F82)-1),"") -> 1 | E68: =IF(OFFSET(DE100_14!$G$38,ROWS($G$38:G82)-1,COLUMNS($G$38:G82)-1)<>"",OFFSET(DE100_14!$G$38,ROWS($G$38:G82)-1,COLUMNS($G$38:G82)-1),"") -> 1 | F68: =IF(OFFSET(DE100_14!$H$38,ROWS($H$38:H82)-1,COLUMNS($H$38:H82)-1)<>"",OFFSET(DE100_14!$H$38,ROWS($H$38:H82)-1,COLUMNS($H$38:H82)-1),"") -> 10 | G68: =IF(OFFSET(DE100_14!$I$38,ROWS($I$38:I82)-1,COLUMNS($I$38:I82)-1)<>"",OFFSET(DE100_14!$I$38,ROWS($I$38:I82)-1,COLUMNS($I$38:I82)-1),"") -> 50 | H68: =IF(OFFSET(DE100_14!$J$38,ROWS($J$38:J82)-1,COLUMNS($J$38:J82)-1)<>"",OFFSET(DE100_14!$J$38,ROWS($J$38:J82)-1,COLUMNS($J$38:J82)-1),"") -> 2.85 | I68: =IF(OFFSET(DE100_14!$K$38,ROWS($K$38:K82)-1,COLUMNS($K$38:K82)-1)<>"",OFFSET(DE100_14!$K$38,ROWS($K$38:K82)-1,COLUMNS($K$38:K82)-1),"") -> 0.015 | J68: =IF(OFFSET(DE100_14!$L$38,ROWS($L$38:L82)-1,COLUMNS($L$38:L82)-1)<>"",OFFSET(DE100_14!$L$38,ROWS($L$38:L82)-1,COLUMNS($L$38:L82)-1),"") -> 1375 | K68: =IF(OFFSET(DE100_14!$N$38,ROWS($N$38:N82)-1,COLUMNS($N$38:N82)-1)<>"",OFFSET(DE100_14!$N$38,ROWS($N$38:N82)-1,COLUMNS($N$38:N82)-1),"") -> 
A69: =IF(OFFSET(DE100_14!$C$38,ROWS($C$38:C83)-1,COLUMNS($C$38:C83)-1)<>"",OFFSET(DE100_14!$C$38,ROWS($C$38:C83)-1,COLUMNS($C$38:C83)-1),"") -> 5 | B69: =IF(OFFSET(DE100_14!$D$38,ROWS($D$38:D83)-1,COLUMNS($D$38:D83)-1)<>"",OFFSET(DE100_14!$D$38,ROWS($D$38:D83)-1,COLUMNS($D$38:D83)-1),"") -> 146400 | C69: =IF(OFFSET(DE100_14!$E$38,ROWS($E$38:E83)-1,COLUMNS($E$38:E83)-1)<>"",OFFSET(DE100_14!$E$38,ROWS($E$38:E83)-1,COLUMNS($E$38:E83)-1),"") -> LT | D69: =IF(OFFSET(DE100_14!$F$38,ROWS($F$38:F83)-1,COLUMNS($F$38:F83)-1)<>"",OFFSET(DE100_14!$F$38,ROWS($F$38:F83)-1,COLUMNS($F$38:F83)-1),"") -> 1 | E69: =IF(OFFSET(DE100_14!$G$38,ROWS($G$38:G83)-1,COLUMNS($G$38:G83)-1)<>"",OFFSET(DE100_14!$G$38,ROWS($G$38:G83)-1,COLUMNS($G$38:G83)-1),"") -> 1 | F69: =IF(OFFSET(DE100_14!$H$38,ROWS($H$38:H83)-1,COLUMNS($H$38:H83)-1)<>"",OFFSET(DE100_14!$H$38,ROWS($H$38:H83)-1,COLUMNS($H$38:H83)-1),"") -> 10 | G69: =IF(OFFSET(DE100_14!$I$38,ROWS($I$38:I83)-1,COLUMNS($I$38:I83)-1)<>"",OFFSET(DE100_14!$I$38,ROWS($I$38:I83)-1,COLUMNS($I$38:I83)-1),"") -> 50 | H69: =IF(OFFSET(DE100_14!$J$38,ROWS($J$38:J83)-1,COLUMNS($J$38:J83)-1)<>"",OFFSET(DE100_14!$J$38,ROWS($J$38:J83)-1,COLUMNS($J$38:J83)-1),"") -> 2.85 | I69: =IF(OFFSET(DE100_14!$K$38,ROWS($K$38:K83)-1,COLUMNS($K$38:K83)-1)<>"",OFFSET(DE100_14!$K$38,ROWS($K$38:K83)-1,COLUMNS($K$38:K83)-1),"") -> 0.004 | J69: =IF(OFFSET(DE100_14!$L$38,ROWS($L$38:L83)-1,COLUMNS($L$38:L83)-1)<>"",OFFSET(DE100_14!$L$38,ROWS($L$38:L83)-1,COLUMNS($L$38:L83)-1),"") -> 1275 | K69: =IF(OFFSET(DE100_14!$N$38,ROWS($N$38:N83)-1,COLUMNS($N$38:N83)-1)<>"",OFFSET(DE100_14!$N$38,ROWS($N$38:N83)-1,COLUMNS($N$38:N83)-1),"") -> 
A70: =IF(OFFSET(DE100_14!$C$38,ROWS($C$38:C84)-1,COLUMNS($C$38:C84)-1)<>"",OFFSET(DE100_14!$C$38,ROWS($C$38:C84)-1,COLUMNS($C$38:C84)-1),"") -> 5 | B70: =IF(OFFSET(DE100_14!$D$38,ROWS($D$38:D84)-1,COLUMNS($D$38:D84)-1)<>"",OFFSET(DE100_14!$D$38,ROWS($D$38:D84)-1,COLUMNS($D$38:D84)-1),"") -> 147769 | C70: =IF(OFFSET(DE100_14!$E$38,ROWS($E$38:E84)-1,COLUMNS($E$38:E84)-1)<>"",OFFSET(DE100_14!$E$38,ROWS($E$38:E84)-1,COLUMNS($E$38:E84)-1),"") -> LT | D70: =IF(OFFSET(DE100_14!$F$38,ROWS($F$38:F84)-1,COLUMNS($F$38:F84)-1)<>"",OFFSET(DE100_14!$F$38,ROWS($F$38:F84)-1,COLUMNS($F$38:F84)-1),"") -> 1 | E70: =IF(OFFSET(DE100_14!$G$38,ROWS($G$38:G84)-1,COLUMNS($G$38:G84)-1)<>"",OFFSET(DE100_14!$G$38,ROWS($G$38:G84)-1,COLUMNS($G$38:G84)-1),"") -> 1 | F70: =IF(OFFSET(DE100_14!$H$38,ROWS($H$38:H84)-1,COLUMNS($H$38:H84)-1)<>"",OFFSET(DE100_14!$H$38,ROWS($H$38:H84)-1,COLUMNS($H$38:H84)-1),"") -> 10 | G70: =IF(OFFSET(DE100_14!$I$38,ROWS($I$38:I84)-1,COLUMNS($I$38:I84)-1)<>"",OFFSET(DE100_14!$I$38,ROWS($I$38:I84)-1,COLUMNS($I$38:I84)-1),"") -> 50 | H70: =IF(OFFSET(DE100_14!$J$38,ROWS($J$38:J84)-1,COLUMNS($J$38:J84)-1)<>"",OFFSET(DE100_14!$J$38,ROWS($J$38:J84)-1,COLUMNS($J$38:J84)-1),"") -> 2.85 | I70: =IF(OFFSET(DE100_14!$K$38,ROWS($K$38:K84)-1,COLUMNS($K$38:K84)-1)<>"",OFFSET(DE100_14!$K$38,ROWS($K$38:K84)-1,COLUMNS($K$38:K84)-1),"") -> 0.012 | J70: =IF(OFFSET(DE100_14!$L$38,ROWS($L$38:L84)-1,COLUMNS($L$38:L84)-1)<>"",OFFSET(DE100_14!$L$38,ROWS($L$38:L84)-1,COLUMNS($L$38:L84)-1),"") -> 925 | K70: =IF(OFFSET(DE100_14!$N$38,ROWS($N$38:N84)-1,COLUMNS($N$38:N84)-1)<>"",OFFSET(DE100_14!$N$38,ROWS($N$38:N84)-1,COLUMNS($N$38:N84)-1),"") -> 
A71: =IF(OFFSET(DE100_14!$C$38,ROWS($C$38:C85)-1,COLUMNS($C$38:C85)-1)<>"",OFFSET(DE100_14!$C$38,ROWS($C$38:C85)-1,COLUMNS($C$38:C85)-1),"") -> 7 | B71: =IF(OFFSET(DE100_14!$D$38,ROWS($D$38:D85)-1,COLUMNS($D$38:D85)-1)<>"",OFFSET(DE100_14!$D$38,ROWS($D$38:D85)-1,COLUMNS($D$38:D85)-1),"") -> 148345 | C71: =IF(OFFSET(DE100_14!$E$38,ROWS($E$38:E85)-1,COLUMNS($E$38:E85)-1)<>"",OFFSET(DE100_14!$E$38,ROWS($E$38:E85)-1,COLUMNS($E$38:E85)-1),"") -> LT | D71: =IF(OFFSET(DE100_14!$F$38,ROWS($F$38:F85)-1,COLUMNS($F$38:F85)-1)<>"",OFFSET(DE100_14!$F$38,ROWS($F$38:F85)-1,COLUMNS($F$38:F85)-1),"") -> 1 | E71: =IF(OFFSET(DE100_14!$G$38,ROWS($G$38:G85)-1,COLUMNS($G$38:G85)-1)<>"",OFFSET(DE100_14!$G$38,ROWS($G$38:G85)-1,COLUMNS($G$38:G85)-1),"") -> 1 | F71: =IF(OFFSET(DE100_14!$H$38,ROWS($H$38:H85)-1,COLUMNS($H$38:H85)-1)<>"",OFFSET(DE100_14!$H$38,ROWS($H$38:H85)-1,COLUMNS($H$38:H85)-1),"") -> 10 | G71: =IF(OFFSET(DE100_14!$I$38,ROWS($I$38:I85)-1,COLUMNS($I$38:I85)-1)<>"",OFFSET(DE100_14!$I$38,ROWS($I$38:I85)-1,COLUMNS($I$38:I85)-1),"") -> 50 | H71: =IF(OFFSET(DE100_14!$J$38,ROWS($J$38:J85)-1,COLUMNS($J$38:J85)-1)<>"",OFFSET(DE100_14!$J$38,ROWS($J$38:J85)-1,COLUMNS($J$38:J85)-1),"") -> 2.85 | I71: =IF(OFFSET(DE100_14!$K$38,ROWS($K$38:K85)-1,COLUMNS($K$38:K85)-1)<>"",OFFSET(DE100_14!$K$38,ROWS($K$38:K85)-1,COLUMNS($K$38:K85)-1),"") -> 0.04 | J71: =IF(OFFSET(DE100_14!$L$38,ROWS($L$38:L85)-1,COLUMNS($L$38:L85)-1)<>"",OFFSET(DE100_14!$L$38,ROWS($L$38:L85)-1,COLUMNS($L$38:L85)-1),"") -> 1225 | K71: =IF(OFFSET(DE100_14!$N$38,ROWS($N$38:N85)-1,COLUMNS($N$38:N85)-1)<>"",OFFSET(DE100_14!$N$38,ROWS($N$38:N85)-1,COLUMNS($N$38:N85)-1),"") -> 
A72: =IF(OFFSET(DE100_14!$C$38,ROWS($C$38:C86)-1,COLUMNS($C$38:C86)-1)<>"",OFFSET(DE100_14!$C$38,ROWS($C$38:C86)-1,COLUMNS($C$38:C86)-1),"") -> 7 | B72: =IF(OFFSET(DE100_14!$D$38,ROWS($D$38:D86)-1,COLUMNS($D$38:D86)-1)<>"",OFFSET(DE100_14!$D$38,ROWS($D$38:D86)-1,COLUMNS($D$38:D86)-1),"") -> 148405 | C72: =IF(OFFSET(DE100_14!$E$38,ROWS($E$38:E86)-1,COLUMNS($E$38:E86)-1)<>"",OFFSET(DE100_14!$E$38,ROWS($E$38:E86)-1,COLUMNS($E$38:E86)-1),"") -> LT | D72: =IF(OFFSET(DE100_14!$F$38,ROWS($F$38:F86)-1,COLUMNS($F$38:F86)-1)<>"",OFFSET(DE100_14!$F$38,ROWS($F$38:F86)-1,COLUMNS($F$38:F86)-1),"") -> 1 | E72: =IF(OFFSET(DE100_14!$G$38,ROWS($G$38:G86)-1,COLUMNS($G$38:G86)-1)<>"",OFFSET(DE100_14!$G$38,ROWS($G$38:G86)-1,COLUMNS($G$38:G86)-1),"") -> 1 | F72: =IF(OFFSET(DE100_14!$H$38,ROWS($H$38:H86)-1,COLUMNS($H$38:H86)-1)<>"",OFFSET(DE100_14!$H$38,ROWS($H$38:H86)-1,COLUMNS($H$38:H86)-1),"") -> 10 | G72: =IF(OFFSET(DE100_14!$I$38,ROWS($I$38:I86)-1,COLUMNS($I$38:I86)-1)<>"",OFFSET(DE100_14!$I$38,ROWS($I$38:I86)-1,COLUMNS($I$38:I86)-1),"") -> 50 | H72: =IF(OFFSET(DE100_14!$J$38,ROWS($J$38:J86)-1,COLUMNS($J$38:J86)-1)<>"",OFFSET(DE100_14!$J$38,ROWS($J$38:J86)-1,COLUMNS($J$38:J86)-1),"") -> 2.85 | I72: =IF(OFFSET(DE100_14!$K$38,ROWS($K$38:K86)-1,COLUMNS($K$38:K86)-1)<>"",OFFSET(DE100_14!$K$38,ROWS($K$38:K86)-1,COLUMNS($K$38:K86)-1),"") -> 0.016 | J72: =IF(OFFSET(DE100_14!$L$38,ROWS($L$38:L86)-1,COLUMNS($L$38:L86)-1)<>"",OFFSET(DE100_14!$L$38,ROWS($L$38:L86)-1,COLUMNS($L$38:L86)-1),"") -> 1362.5 | K72: =IF(OFFSET(DE100_14!$N$38,ROWS($N$38:N86)-1,COLUMNS($N$38:N86)-1)<>"",OFFSET(DE100_14!$N$38,ROWS($N$38:N86)-1,COLUMNS($N$38:N86)-1),"") -> 
A73: =IF(OFFSET(DE100_14!$C$38,ROWS($C$38:C87)-1,COLUMNS($C$38:C87)-1)<>"",OFFSET(DE100_14!$C$38,ROWS($C$38:C87)-1,COLUMNS($C$38:C87)-1),"") -> 8 | B73: =IF(OFFSET(DE100_14!$D$38,ROWS($D$38:D87)-1,COLUMNS($D$38:D87)-1)<>"",OFFSET(DE100_14!$D$38,ROWS($D$38:D87)-1,COLUMNS($D$38:D87)-1),"") -> 149330 | C73: =IF(OFFSET(DE100_14!$E$38,ROWS($E$38:E87)-1,COLUMNS($E$38:E87)-1)<>"",OFFSET(DE100_14!$E$38,ROWS($E$38:E87)-1,COLUMNS($E$38:E87)-1),"") -> LT | D73: =IF(OFFSET(DE100_14!$F$38,ROWS($F$38:F87)-1,COLUMNS($F$38:F87)-1)<>"",OFFSET(DE100_14!$F$38,ROWS($F$38:F87)-1,COLUMNS($F$38:F87)-1),"") -> 1 | E73: =IF(OFFSET(DE100_14!$G$38,ROWS($G$38:G87)-1,COLUMNS($G$38:G87)-1)<>"",OFFSET(DE100_14!$G$38,ROWS($G$38:G87)-1,COLUMNS($G$38:G87)-1),"") -> 1 | F73: =IF(OFFSET(DE100_14!$H$38,ROWS($H$38:H87)-1,COLUMNS($H$38:H87)-1)<>"",OFFSET(DE100_14!$H$38,ROWS($H$38:H87)-1,COLUMNS($H$38:H87)-1),"") -> 10 | G73: =IF(OFFSET(DE100_14!$I$38,ROWS($I$38:I87)-1,COLUMNS($I$38:I87)-1)<>"",OFFSET(DE100_14!$I$38,ROWS($I$38:I87)-1,COLUMNS($I$38:I87)-1),"") -> 50 | H73: =IF(OFFSET(DE100_14!$J$38,ROWS($J$38:J87)-1,COLUMNS($J$38:J87)-1)<>"",OFFSET(DE100_14!$J$38,ROWS($J$38:J87)-1,COLUMNS($J$38:J87)-1),"") -> 2.85 | I73: =IF(OFFSET(DE100_14!$K$38,ROWS($K$38:K87)-1,COLUMNS($K$38:K87)-1)<>"",OFFSET(DE100_14!$K$38,ROWS($K$38:K87)-1,COLUMNS($K$38:K87)-1),"") -> 0.005 | J73: =IF(OFFSET(DE100_14!$L$38,ROWS($L$38:L87)-1,COLUMNS($L$38:L87)-1)<>"",OFFSET(DE100_14!$L$38,ROWS($L$38:L87)-1,COLUMNS($L$38:L87)-1),"") -> 1362.5 | K73: =IF(OFFSET(DE100_14!$N$38,ROWS($N$38:N87)-1,COLUMNS($N$38:N87)-1)<>"",OFFSET(DE100_14!$N$38,ROWS($N$38:N87)-1,COLUMNS($N$38:N87)-1),"") -> 
A74: =IF(OFFSET(DE100_14!$C$38,ROWS($C$38:C88)-1,COLUMNS($C$38:C88)-1)<>"",OFFSET(DE100_14!$C$38,ROWS($C$38:C88)-1,COLUMNS($C$38:C88)-1),"") -> 8 | B74: =IF(OFFSET(DE100_14!$D$38,ROWS($D$38:D88)-1,COLUMNS($D$38:D88)-1)<>"",OFFSET(DE100_14!$D$38,ROWS($D$38:D88)-1,COLUMNS($D$38:D88)-1),"") -> 149390 | C74: =IF(OFFSET(DE100_14!$E$38,ROWS($E$38:E88)-1,COLUMNS($E$38:E88)-1)<>"",OFFSET(DE100_14!$E$38,ROWS($E$38:E88)-1,COLUMNS($E$38:E88)-1),"") -> LT | D74: =IF(OFFSET(DE100_14!$F$38,ROWS($F$38:F88)-1,COLUMNS($F$38:F88)-1)<>"",OFFSET(DE100_14!$F$38,ROWS($F$38:F88)-1,COLUMNS($F$38:F88)-1),"") -> 1 | E74: =IF(OFFSET(DE100_14!$G$38,ROWS($G$38:G88)-1,COLUMNS($G$38:G88)-1)<>"",OFFSET(DE100_14!$G$38,ROWS($G$38:G88)-1,COLUMNS($G$38:G88)-1),"") -> 1 | F74: =IF(OFFSET(DE100_14!$H$38,ROWS($H$38:H88)-1,COLUMNS($H$38:H88)-1)<>"",OFFSET(DE100_14!$H$38,ROWS($H$38:H88)-1,COLUMNS($H$38:H88)-1),"") -> 10 | G74: =IF(OFFSET(DE100_14!$I$38,ROWS($I$38:I88)-1,COLUMNS($I$38:I88)-1)<>"",OFFSET(DE100_14!$I$38,ROWS($I$38:I88)-1,COLUMNS($I$38:I88)-1),"") -> 50 | H74: =IF(OFFSET(DE100_14!$J$38,ROWS($J$38:J88)-1,COLUMNS($J$38:J88)-1)<>"",OFFSET(DE100_14!$J$38,ROWS($J$38:J88)-1,COLUMNS($J$38:J88)-1),"") -> 2.85 | I74: =IF(OFFSET(DE100_14!$K$38,ROWS($K$38:K88)-1,COLUMNS($K$38:K88)-1)<>"",OFFSET(DE100_14!$K$38,ROWS($K$38:K88)-1,COLUMNS($K$38:K88)-1),"") -> 0.005 | J74: =IF(OFFSET(DE100_14!$L$38,ROWS($L$38:L88)-1,COLUMNS($L$38:L88)-1)<>"",OFFSET(DE100_14!$L$38,ROWS($L$38:L88)-1,COLUMNS($L$38:L88)-1),"") -> 1187.5 | K74: =IF(OFFSET(DE100_14!$N$38,ROWS($N$38:N88)-1,COLUMNS($N$38:N88)-1)<>"",OFFSET(DE100_14!$N$38,ROWS($N$38:N88)-1,COLUMNS($N$38:N88)-1),"") -> 
A75: =IF(OFFSET(DE100_14!$C$38,ROWS($C$38:C89)-1,COLUMNS($C$38:C89)-1)<>"",OFFSET(DE100_14!$C$38,ROWS($C$38:C89)-1,COLUMNS($C$38:C89)-1),"") -> 11 | B75: =IF(OFFSET(DE100_14!$D$38,ROWS($D$38:D89)-1,COLUMNS($D$38:D89)-1)<>"",OFFSET(DE100_14!$D$38,ROWS($D$38:D89)-1,COLUMNS($D$38:D89)-1),"") -> 150570 | C75: =IF(OFFSET(DE100_14!$E$38,ROWS($E$38:E89)-1,COLUMNS($E$38:E89)-1)<>"",OFFSET(DE100_14!$E$38,ROWS($E$38:E89)-1,COLUMNS($E$38:E89)-1),"") -> LT | D75: =IF(OFFSET(DE100_14!$F$38,ROWS($F$38:F89)-1,COLUMNS($F$38:F89)-1)<>"",OFFSET(DE100_14!$F$38,ROWS($F$38:F89)-1,COLUMNS($F$38:F89)-1),"") -> 1 | E75: =IF(OFFSET(DE100_14!$G$38,ROWS($G$38:G89)-1,COLUMNS($G$38:G89)-1)<>"",OFFSET(DE100_14!$G$38,ROWS($G$38:G89)-1,COLUMNS($G$38:G89)-1),"") -> 1 | F75: =IF(OFFSET(DE100_14!$H$38,ROWS($H$38:H89)-1,COLUMNS($H$38:H89)-1)<>"",OFFSET(DE100_14!$H$38,ROWS($H$38:H89)-1,COLUMNS($H$38:H89)-1),"") -> 10 | G75: =IF(OFFSET(DE100_14!$I$38,ROWS($I$38:I89)-1,COLUMNS($I$38:I89)-1)<>"",OFFSET(DE100_14!$I$38,ROWS($I$38:I89)-1,COLUMNS($I$38:I89)-1),"") -> 50 | H75: =IF(OFFSET(DE100_14!$J$38,ROWS($J$38:J89)-1,COLUMNS($J$38:J89)-1)<>"",OFFSET(DE100_14!$J$38,ROWS($J$38:J89)-1,COLUMNS($J$38:J89)-1),"") -> 2.85 | I75: =IF(OFFSET(DE100_14!$K$38,ROWS($K$38:K89)-1,COLUMNS($K$38:K89)-1)<>"",OFFSET(DE100_14!$K$38,ROWS($K$38:K89)-1,COLUMNS($K$38:K89)-1),"") -> 0.019 | J75: =IF(OFFSET(DE100_14!$L$38,ROWS($L$38:L89)-1,COLUMNS($L$38:L89)-1)<>"",OFFSET(DE100_14!$L$38,ROWS($L$38:L89)-1,COLUMNS($L$38:L89)-1),"") -> 1250 | K75: =IF(OFFSET(DE100_14!$N$38,ROWS($N$38:N89)-1,COLUMNS($N$38:N89)-1)<>"",OFFSET(DE100_14!$N$38,ROWS($N$38:N89)-1,COLUMNS($N$38:N89)-1),"") -> 
A76: =IF(OFFSET(DE100_14!$C$38,ROWS($C$38:C90)-1,COLUMNS($C$38:C90)-1)<>"",OFFSET(DE100_14!$C$38,ROWS($C$38:C90)-1,COLUMNS($C$38:C90)-1),"") -> 11 | B76: =IF(OFFSET(DE100_14!$D$38,ROWS($D$38:D90)-1,COLUMNS($D$38:D90)-1)<>"",OFFSET(DE100_14!$D$38,ROWS($D$38:D90)-1,COLUMNS($D$38:D90)-1),"") -> 150630 | C76: =IF(OFFSET(DE100_14!$E$38,ROWS($E$38:E90)-1,COLUMNS($E$38:E90)-1)<>"",OFFSET(DE100_14!$E$38,ROWS($E$38:E90)-1,COLUMNS($E$38:E90)-1),"") -> LT | D76: =IF(OFFSET(DE100_14!$F$38,ROWS($F$38:F90)-1,COLUMNS($F$38:F90)-1)<>"",OFFSET(DE100_14!$F$38,ROWS($F$38:F90)-1,COLUMNS($F$38:F90)-1),"") -> 1 | E76: =IF(OFFSET(DE100_14!$G$38,ROWS($G$38:G90)-1,COLUMNS($G$38:G90)-1)<>"",OFFSET(DE100_14!$G$38,ROWS($G$38:G90)-1,COLUMNS($G$38:G90)-1),"") -> 1 | F76: =IF(OFFSET(DE100_14!$H$38,ROWS($H$38:H90)-1,COLUMNS($H$38:H90)-1)<>"",OFFSET(DE100_14!$H$38,ROWS($H$38:H90)-1,COLUMNS($H$38:H90)-1),"") -> 10 | G76: =IF(OFFSET(DE100_14!$I$38,ROWS($I$38:I90)-1,COLUMNS($I$38:I90)-1)<>"",OFFSET(DE100_14!$I$38,ROWS($I$38:I90)-1,COLUMNS($I$38:I90)-1),"") -> 50 | H76: =IF(OFFSET(DE100_14!$J$38,ROWS($J$38:J90)-1,COLUMNS($J$38:J90)-1)<>"",OFFSET(DE100_14!$J$38,ROWS($J$38:J90)-1,COLUMNS($J$38:J90)-1),"") -> 2.85 | I76: =IF(OFFSET(DE100_14!$K$38,ROWS($K$38:K90)-1,COLUMNS($K$38:K90)-1)<>"",OFFSET(DE100_14!$K$38,ROWS($K$38:K90)-1,COLUMNS($K$38:K90)-1),"") -> 0.014 | J76: =IF(OFFSET(DE100_14!$L$38,ROWS($L$38:L90)-1,COLUMNS($L$38:L90)-1)<>"",OFFSET(DE100_14!$L$38,ROWS($L$38:L90)-1,COLUMNS($L$38:L90)-1),"") -> 1425 | K76: =IF(OFFSET(DE100_14!$N$38,ROWS($N$38:N90)-1,COLUMNS($N$38:N90)-1)<>"",OFFSET(DE100_14!$N$38,ROWS($N$38:N90)-1,COLUMNS($N$38:N90)-1),"") -> 
A77: =IF(OFFSET(DE100_14!$C$38,ROWS($C$38:C91)-1,COLUMNS($C$38:C91)-1)<>"",OFFSET(DE100_14!$C$38,ROWS($C$38:C91)-1,COLUMNS($C$38:C91)-1),"") ->  | B77: =IF(OFFSET(DE100_14!$D$38,ROWS($D$38:D91)-1,COLUMNS($D$38:D91)-1)<>"",OFFSET(DE100_14!$D$38,ROWS($D$38:D91)-1,COLUMNS($D$38:D91)-1),"") ->  | C77: =IF(OFFSET(DE100_14!$E$38,ROWS($E$38:E91)-1,COLUMNS($E$38:E91)-1)<>"",OFFSET(DE100_14!$E$38,ROWS($E$38:E91)-1,COLUMNS($E$38:E91)-1),"") ->  | D77: =IF(OFFSET(DE100_14!$F$38,ROWS($F$38:F91)-1,COLUMNS($F$38:F91)-1)<>"",OFFSET(DE100_14!$F$38,ROWS($F$38:F91)-1,COLUMNS($F$38:F91)-1),"") ->  | E77: =IF(OFFSET(DE100_14!$G$38,ROWS($G$38:G91)-1,COLUMNS($G$38:G91)-1)<>"",OFFSET(DE100_14!$G$38,ROWS($G$38:G91)-1,COLUMNS($G$38:G91)-1),"") ->  | F77: =IF(OFFSET(DE100_14!$H$38,ROWS($H$38:H91)-1,COLUMNS($H$38:H91)-1)<>"",OFFSET(DE100_14!$H$38,ROWS($H$38:H91)-1,COLUMNS($H$38:H91)-1),"") ->  | G77: =IF(OFFSET(DE100_14!$I$38,ROWS($I$38:I91)-1,COLUMNS($I$38:I91)-1)<>"",OFFSET(DE100_14!$I$38,ROWS($I$38:I91)-1,COLUMNS($I$38:I91)-1),"") ->  | H77: =IF(OFFSET(DE100_14!$J$38,ROWS($J$38:J91)-1,COLUMNS($J$38:J91)-1)<>"",OFFSET(DE100_14!$J$38,ROWS($J$38:J91)-1,COLUMNS($J$38:J91)-1),"") ->  | I77: =IF(OFFSET(DE100_14!$K$38,ROWS($K$38:K91)-1,COLUMNS($K$38:K91)-1)<>"",OFFSET(DE100_14!$K$38,ROWS($K$38:K91)-1,COLUMNS($K$38:K91)-1),"") ->  | J77: =IF(OFFSET(DE100_14!$L$38,ROWS($L$38:L91)-1,COLUMNS($L$38:L91)-1)<>"",OFFSET(DE100_14!$L$38,ROWS($L$38:L91)-1,COLUMNS($L$38:L91)-1),"") ->  | K77: =IF(OFFSET(DE100_14!$N$38,ROWS($N$38:N91)-1,COLUMNS($N$38:N91)-1)<>"",OFFSET(DE100_14!$N$38,ROWS($N$38:N91)-1,COLUMNS($N$38:N91)-1),"") -> 
A78: =IF(OFFSET(DE100_14!$C$38,ROWS($C$38:C92)-1,COLUMNS($C$38:C92)-1)<>"",OFFSET(DE100_14!$C$38,ROWS($C$38:C92)-1,COLUMNS($C$38:C92)-1),"") ->  | B78: =IF(OFFSET(DE100_14!$D$38,ROWS($D$38:D92)-1,COLUMNS($D$38:D92)-1)<>"",OFFSET(DE100_14!$D$38,ROWS($D$38:D92)-1,COLUMNS($D$38:D92)-1),"") -> 23rd Ave | C78: =IF(OFFSET(DE100_14!$E$38,ROWS($E$38:E92)-1,COLUMNS($E$38:E92)-1)<>"",OFFSET(DE100_14!$E$38,ROWS($E$38:E92)-1,COLUMNS($E$38:E92)-1),"") ->  | D78: =IF(OFFSET(DE100_14!$F$38,ROWS($F$38:F92)-1,COLUMNS($F$38:F92)-1)<>"",OFFSET(DE100_14!$F$38,ROWS($F$38:F92)-1,COLUMNS($F$38:F92)-1),"") ->  | E78: =IF(OFFSET(DE100_14!$G$38,ROWS($G$38:G92)-1,COLUMNS($G$38:G92)-1)<>"",OFFSET(DE100_14!$G$38,ROWS($G$38:G92)-1,COLUMNS($G$38:G92)-1),"") ->  | F78: =IF(OFFSET(DE100_14!$H$38,ROWS($H$38:H92)-1,COLUMNS($H$38:H92)-1)<>"",OFFSET(DE100_14!$H$38,ROWS($H$38:H92)-1,COLUMNS($H$38:H92)-1),"") ->  | G78: =IF(OFFSET(DE100_14!$I$38,ROWS($I$38:I92)-1,COLUMNS($I$38:I92)-1)<>"",OFFSET(DE100_14!$I$38,ROWS($I$38:I92)-1,COLUMNS($I$38:I92)-1),"") ->  | H78: =IF(OFFSET(DE100_14!$J$38,ROWS($J$38:J92)-1,COLUMNS($J$38:J92)-1)<>"",OFFSET(DE100_14!$J$38,ROWS($J$38:J92)-1,COLUMNS($J$38:J92)-1),"") ->  | I78: =IF(OFFSET(DE100_14!$K$38,ROWS($K$38:K92)-1,COLUMNS($K$38:K92)-1)<>"",OFFSET(DE100_14!$K$38,ROWS($K$38:K92)-1,COLUMNS($K$38:K92)-1),"") ->  | J78: =IF(OFFSET(DE100_14!$L$38,ROWS($L$38:L92)-1,COLUMNS($L$38:L92)-1)<>"",OFFSET(DE100_14!$L$38,ROWS($L$38:L92)-1,COLUMNS($L$38:L92)-1),"") ->  | K78: =IF(OFFSET(DE100_14!$N$38,ROWS($N$38:N92)-1,COLUMNS($N$38:N92)-1)<>"",OFFSET(DE100_14!$N$38,ROWS($N$38:N92)-1,COLUMNS($N$38:N92)-1),"") -> 
A79: =IF(OFFSET(DE100_14!$C$38,ROWS($C$38:C93)-1,COLUMNS($C$38:C93)-1)<>"",OFFSET(DE100_14!$C$38,ROWS($C$38:C93)-1,COLUMNS($C$38:C93)-1),"") -> 3 | B79: =IF(OFFSET(DE100_14!$D$38,ROWS($D$38:D93)-1,COLUMNS($D$38:D93)-1)<>"",OFFSET(DE100_14!$D$38,ROWS($D$38:D93)-1,COLUMNS($D$38:D93)-1),"") -> 23142030 | C79: =IF(OFFSET(DE100_14!$E$38,ROWS($E$38:E93)-1,COLUMNS($E$38:E93)-1)<>"",OFFSET(DE100_14!$E$38,ROWS($E$38:E93)-1,COLUMNS($E$38:E93)-1),"") -> RT | D79: =IF(OFFSET(DE100_14!$F$38,ROWS($F$38:F93)-1,COLUMNS($F$38:F93)-1)<>"",OFFSET(DE100_14!$F$38,ROWS($F$38:F93)-1,COLUMNS($F$38:F93)-1),"") -> 1 | E79: =IF(OFFSET(DE100_14!$G$38,ROWS($G$38:G93)-1,COLUMNS($G$38:G93)-1)<>"",OFFSET(DE100_14!$G$38,ROWS($G$38:G93)-1,COLUMNS($G$38:G93)-1),"") -> 1 | F79: =IF(OFFSET(DE100_14!$H$38,ROWS($H$38:H93)-1,COLUMNS($H$38:H93)-1)<>"",OFFSET(DE100_14!$H$38,ROWS($H$38:H93)-1,COLUMNS($H$38:H93)-1),"") -> 10 | G79: =IF(OFFSET(DE100_14!$I$38,ROWS($I$38:I93)-1,COLUMNS($I$38:I93)-1)<>"",OFFSET(DE100_14!$I$38,ROWS($I$38:I93)-1,COLUMNS($I$38:I93)-1),"") -> 50 | H79: =IF(OFFSET(DE100_14!$J$38,ROWS($J$38:J93)-1,COLUMNS($J$38:J93)-1)<>"",OFFSET(DE100_14!$J$38,ROWS($J$38:J93)-1,COLUMNS($J$38:J93)-1),"") -> 2.85 | I79: =IF(OFFSET(DE100_14!$K$38,ROWS($K$38:K93)-1,COLUMNS($K$38:K93)-1)<>"",OFFSET(DE100_14!$K$38,ROWS($K$38:K93)-1,COLUMNS($K$38:K93)-1),"") -> 0.015 | J79: =IF(OFFSET(DE100_14!$L$38,ROWS($L$38:L93)-1,COLUMNS($L$38:L93)-1)<>"",OFFSET(DE100_14!$L$38,ROWS($L$38:L93)-1,COLUMNS($L$38:L93)-1),"") -> 1275 | K79: =IF(OFFSET(DE100_14!$N$38,ROWS($N$38:N93)-1,COLUMNS($N$38:N93)-1)<>"",OFFSET(DE100_14!$N$38,ROWS($N$38:N93)-1,COLUMNS($N$38:N93)-1),"") -> 
A80: =IF(OFFSET(DE100_14!$C$38,ROWS($C$38:C94)-1,COLUMNS($C$38:C94)-1)<>"",OFFSET(DE100_14!$C$38,ROWS($C$38:C94)-1,COLUMNS($C$38:C94)-1),"") -> 3 | B80: =IF(OFFSET(DE100_14!$D$38,ROWS($D$38:D94)-1,COLUMNS($D$38:D94)-1)<>"",OFFSET(DE100_14!$D$38,ROWS($D$38:D94)-1,COLUMNS($D$38:D94)-1),"") -> 23142095 | C80: =IF(OFFSET(DE100_14!$E$38,ROWS($E$38:E94)-1,COLUMNS($E$38:E94)-1)<>"",OFFSET(DE100_14!$E$38,ROWS($E$38:E94)-1,COLUMNS($E$38:E94)-1),"") -> RT | D80: =IF(OFFSET(DE100_14!$F$38,ROWS($F$38:F94)-1,COLUMNS($F$38:F94)-1)<>"",OFFSET(DE100_14!$F$38,ROWS($F$38:F94)-1,COLUMNS($F$38:F94)-1),"") -> 1 | E80: =IF(OFFSET(DE100_14!$G$38,ROWS($G$38:G94)-1,COLUMNS($G$38:G94)-1)<>"",OFFSET(DE100_14!$G$38,ROWS($G$38:G94)-1,COLUMNS($G$38:G94)-1),"") -> 1 | F80: =IF(OFFSET(DE100_14!$H$38,ROWS($H$38:H94)-1,COLUMNS($H$38:H94)-1)<>"",OFFSET(DE100_14!$H$38,ROWS($H$38:H94)-1,COLUMNS($H$38:H94)-1),"") -> 10 | G80: =IF(OFFSET(DE100_14!$I$38,ROWS($I$38:I94)-1,COLUMNS($I$38:I94)-1)<>"",OFFSET(DE100_14!$I$38,ROWS($I$38:I94)-1,COLUMNS($I$38:I94)-1),"") -> 50 | H80: =IF(OFFSET(DE100_14!$J$38,ROWS($J$38:J94)-1,COLUMNS($J$38:J94)-1)<>"",OFFSET(DE100_14!$J$38,ROWS($J$38:J94)-1,COLUMNS($J$38:J94)-1),"") -> 2.85 | I80: =IF(OFFSET(DE100_14!$K$38,ROWS($K$38:K94)-1,COLUMNS($K$38:K94)-1)<>"",OFFSET(DE100_14!$K$38,ROWS($K$38:K94)-1,COLUMNS($K$38:K94)-1),"") -> 0.012 | J80: =IF(OFFSET(DE100_14!$L$38,ROWS($L$38:L94)-1,COLUMNS($L$38:L94)-1)<>"",OFFSET(DE100_14!$L$38,ROWS($L$38:L94)-1,COLUMNS($L$38:L94)-1),"") -> 1162.5 | K80: =IF(OFFSET(DE100_14!$N$38,ROWS($N$38:N94)-1,COLUMNS($N$38:N94)-1)<>"",OFFSET(DE100_14!$N$38,ROWS($N$38:N94)-1,COLUMNS($N$38:N94)-1),"") -> 
A81: =IF(OFFSET(DE100_14!$C$38,ROWS($C$38:C95)-1,COLUMNS($C$38:C95)-1)<>"",OFFSET(DE100_14!$C$38,ROWS($C$38:C95)-1,COLUMNS($C$38:C95)-1),"") -> 3 | B81: =IF(OFFSET(DE100_14!$D$38,ROWS($D$38:D95)-1,COLUMNS($D$38:D95)-1)<>"",OFFSET(DE100_14!$D$38,ROWS($D$38:D95)-1,COLUMNS($D$38:D95)-1),"") -> 23142025 | C81: =IF(OFFSET(DE100_14!$E$38,ROWS($E$38:E95)-1,COLUMNS($E$38:E95)-1)<>"",OFFSET(DE100_14!$E$38,ROWS($E$38:E95)-1,COLUMNS($E$38:E95)-1),"") -> LT | D81: =IF(OFFSET(DE100_14!$F$38,ROWS($F$38:F95)-1,COLUMNS($F$38:F95)-1)<>"",OFFSET(DE100_14!$F$38,ROWS($F$38:F95)-1,COLUMNS($F$38:F95)-1),"") -> 1 | E81: =IF(OFFSET(DE100_14!$G$38,ROWS($G$38:G95)-1,COLUMNS($G$38:G95)-1)<>"",OFFSET(DE100_14!$G$38,ROWS($G$38:G95)-1,COLUMNS($G$38:G95)-1),"") -> 1 | F81: =IF(OFFSET(DE100_14!$H$38,ROWS($H$38:H95)-1,COLUMNS($H$38:H95)-1)<>"",OFFSET(DE100_14!$H$38,ROWS($H$38:H95)-1,COLUMNS($H$38:H95)-1),"") -> 10 | G81: =IF(OFFSET(DE100_14!$I$38,ROWS($I$38:I95)-1,COLUMNS($I$38:I95)-1)<>"",OFFSET(DE100_14!$I$38,ROWS($I$38:I95)-1,COLUMNS($I$38:I95)-1),"") -> 50 | H81: =IF(OFFSET(DE100_14!$J$38,ROWS($J$38:J95)-1,COLUMNS($J$38:J95)-1)<>"",OFFSET(DE100_14!$J$38,ROWS($J$38:J95)-1,COLUMNS($J$38:J95)-1),"") -> 2.85 | I81: =IF(OFFSET(DE100_14!$K$38,ROWS($K$38:K95)-1,COLUMNS($K$38:K95)-1)<>"",OFFSET(DE100_14!$K$38,ROWS($K$38:K95)-1,COLUMNS($K$38:K95)-1),"") -> 0.021 | J81: =IF(OFFSET(DE100_14!$L$38,ROWS($L$38:L95)-1,COLUMNS($L$38:L95)-1)<>"",OFFSET(DE100_14!$L$38,ROWS($L$38:L95)-1,COLUMNS($L$38:L95)-1),"") -> 950 | K81: =IF(OFFSET(DE100_14!$N$38,ROWS($N$38:N95)-1,COLUMNS($N$38:N95)-1)<>"",OFFSET(DE100_14!$N$38,ROWS($N$38:N95)-1,COLUMNS($N$38:N95)-1),"") -> 
A82: =IF(OFFSET(DE100_14!$C$38,ROWS($C$38:C96)-1,COLUMNS($C$38:C96)-1)<>"",OFFSET(DE100_14!$C$38,ROWS($C$38:C96)-1,COLUMNS($C$38:C96)-1),"") -> 3 | B82: =IF(OFFSET(DE100_14!$D$38,ROWS($D$38:D96)-1,COLUMNS($D$38:D96)-1)<>"",OFFSET(DE100_14!$D$38,ROWS($D$38:D96)-1,COLUMNS($D$38:D96)-1),"") -> 23142435 | C82: =IF(OFFSET(DE100_14!$E$38,ROWS($E$38:E96)-1,COLUMNS($E$38:E96)-1)<>"",OFFSET(DE100_14!$E$38,ROWS($E$38:E96)-1,COLUMNS($E$38:E96)-1),"") -> LT | D82: =IF(OFFSET(DE100_14!$F$38,ROWS($F$38:F96)-1,COLUMNS($F$38:F96)-1)<>"",OFFSET(DE100_14!$F$38,ROWS($F$38:F96)-1,COLUMNS($F$38:F96)-1),"") -> 1 | E82: =IF(OFFSET(DE100_14!$G$38,ROWS($G$38:G96)-1,COLUMNS($G$38:G96)-1)<>"",OFFSET(DE100_14!$G$38,ROWS($G$38:G96)-1,COLUMNS($G$38:G96)-1),"") -> 1 | F82: =IF(OFFSET(DE100_14!$H$38,ROWS($H$38:H96)-1,COLUMNS($H$38:H96)-1)<>"",OFFSET(DE100_14!$H$38,ROWS($H$38:H96)-1,COLUMNS($H$38:H96)-1),"") -> 10 | G82: =IF(OFFSET(DE100_14!$I$38,ROWS($I$38:I96)-1,COLUMNS($I$38:I96)-1)<>"",OFFSET(DE100_14!$I$38,ROWS($I$38:I96)-1,COLUMNS($I$38:I96)-1),"") -> 50 | H82: =IF(OFFSET(DE100_14!$J$38,ROWS($J$38:J96)-1,COLUMNS($J$38:J96)-1)<>"",OFFSET(DE100_14!$J$38,ROWS($J$38:J96)-1,COLUMNS($J$38:J96)-1),"") -> 2.85 | I82: =IF(OFFSET(DE100_14!$K$38,ROWS($K$38:K96)-1,COLUMNS($K$38:K96)-1)<>"",OFFSET(DE100_14!$K$38,ROWS($K$38:K96)-1,COLUMNS($K$38:K96)-1),"") -> 0.038 | J82: =IF(OFFSET(DE100_14!$L$38,ROWS($L$38:L96)-1,COLUMNS($L$38:L96)-1)<>"",OFFSET(DE100_14!$L$38,ROWS($L$38:L96)-1,COLUMNS($L$38:L96)-1),"") -> 1425 | K82: =IF(OFFSET(DE100_14!$N$38,ROWS($N$38:N96)-1,COLUMNS($N$38:N96)-1)<>"",OFFSET(DE100_14!$N$38,ROWS($N$38:N96)-1,COLUMNS($N$38:N96)-1),"") -> 
A83: =IF(OFFSET(DE100_14!$C$38,ROWS($C$38:C97)-1,COLUMNS($C$38:C97)-1)<>"",OFFSET(DE100_14!$C$38,ROWS($C$38:C97)-1,COLUMNS($C$38:C97)-1),"") ->  | B83: =IF(OFFSET(DE100_14!$D$38,ROWS($D$38:D97)-1,COLUMNS($D$38:D97)-1)<>"",OFFSET(DE100_14!$D$38,ROWS($D$38:D97)-1,COLUMNS($D$38:D97)-1),"") ->  | C83: =IF(OFFSET(DE100_14!$E$38,ROWS($E$38:E97)-1,COLUMNS($E$38:E97)-1)<>"",OFFSET(DE100_14!$E$38,ROWS($E$38:E97)-1,COLUMNS($E$38:E97)-1),"") ->  | D83: =IF(OFFSET(DE100_14!$F$38,ROWS($F$38:F97)-1,COLUMNS($F$38:F97)-1)<>"",OFFSET(DE100_14!$F$38,ROWS($F$38:F97)-1,COLUMNS($F$38:F97)-1),"") ->  | E83: =IF(OFFSET(DE100_14!$G$38,ROWS($G$38:G97)-1,COLUMNS($G$38:G97)-1)<>"",OFFSET(DE100_14!$G$38,ROWS($G$38:G97)-1,COLUMNS($G$38:G97)-1),"") ->  | F83: =IF(OFFSET(DE100_14!$H$38,ROWS($H$38:H97)-1,COLUMNS($H$38:H97)-1)<>"",OFFSET(DE100_14!$H$38,ROWS($H$38:H97)-1,COLUMNS($H$38:H97)-1),"") ->  | G83: =IF(OFFSET(DE100_14!$I$38,ROWS($I$38:I97)-1,COLUMNS($I$38:I97)-1)<>"",OFFSET(DE100_14!$I$38,ROWS($I$38:I97)-1,COLUMNS($I$38:I97)-1),"") ->  | H83: =IF(OFFSET(DE100_14!$J$38,ROWS($J$38:J97)-1,COLUMNS($J$38:J97)-1)<>"",OFFSET(DE100_14!$J$38,ROWS($J$38:J97)-1,COLUMNS($J$38:J97)-1),"") ->  | I83: =IF(OFFSET(DE100_14!$K$38,ROWS($K$38:K97)-1,COLUMNS($K$38:K97)-1)<>"",OFFSET(DE100_14!$K$38,ROWS($K$38:K97)-1,COLUMNS($K$38:K97)-1),"") ->  | J83: =IF(OFFSET(DE100_14!$L$38,ROWS($L$38:L97)-1,COLUMNS($L$38:L97)-1)<>"",OFFSET(DE100_14!$L$38,ROWS($L$38:L97)-1,COLUMNS($L$38:L97)-1),"") ->  | K83: =IF(OFFSET(DE100_14!$N$38,ROWS($N$38:N97)-1,COLUMNS($N$38:N97)-1)<>"",OFFSET(DE100_14!$N$38,ROWS($N$38:N97)-1,COLUMNS($N$38:N97)-1),"") -> 
A84: =IF(OFFSET(DE100_14!$C$38,ROWS($C$38:C98)-1,COLUMNS($C$38:C98)-1)<>"",OFFSET(DE100_14!$C$38,ROWS($C$38:C98)-1,COLUMNS($C$38:C98)-1),"") ->  | B84: =IF(OFFSET(DE100_14!$D$38,ROWS($D$38:D98)-1,COLUMNS($D$38:D98)-1)<>"",OFFSET(DE100_14!$D$38,ROWS($D$38:D98)-1,COLUMNS($D$38:D98)-1),"") -> Ramp A | C84: =IF(OFFSET(DE100_14!$E$38,ROWS($E$38:E98)-1,COLUMNS($E$38:E98)-1)<>"",OFFSET(DE100_14!$E$38,ROWS($E$38:E98)-1,COLUMNS($E$38:E98)-1),"") ->  | D84: =IF(OFFSET(DE100_14!$F$38,ROWS($F$38:F98)-1,COLUMNS($F$38:F98)-1)<>"",OFFSET(DE100_14!$F$38,ROWS($F$38:F98)-1,COLUMNS($F$38:F98)-1),"") ->  | E84: =IF(OFFSET(DE100_14!$G$38,ROWS($G$38:G98)-1,COLUMNS($G$38:G98)-1)<>"",OFFSET(DE100_14!$G$38,ROWS($G$38:G98)-1,COLUMNS($G$38:G98)-1),"") ->  | F84: =IF(OFFSET(DE100_14!$H$38,ROWS($H$38:H98)-1,COLUMNS($H$38:H98)-1)<>"",OFFSET(DE100_14!$H$38,ROWS($H$38:H98)-1,COLUMNS($H$38:H98)-1),"") ->  | G84: =IF(OFFSET(DE100_14!$I$38,ROWS($I$38:I98)-1,COLUMNS($I$38:I98)-1)<>"",OFFSET(DE100_14!$I$38,ROWS($I$38:I98)-1,COLUMNS($I$38:I98)-1),"") ->  | H84: =IF(OFFSET(DE100_14!$J$38,ROWS($J$38:J98)-1,COLUMNS($J$38:J98)-1)<>"",OFFSET(DE100_14!$J$38,ROWS($J$38:J98)-1,COLUMNS($J$38:J98)-1),"") ->  | I84: =IF(OFFSET(DE100_14!$K$38,ROWS($K$38:K98)-1,COLUMNS($K$38:K98)-1)<>"",OFFSET(DE100_14!$K$38,ROWS($K$38:K98)-1,COLUMNS($K$38:K98)-1),"") ->  | J84: =IF(OFFSET(DE100_14!$L$38,ROWS($L$38:L98)-1,COLUMNS($L$38:L98)-1)<>"",OFFSET(DE100_14!$L$38,ROWS($L$38:L98)-1,COLUMNS($L$38:L98)-1),"") ->  | K84: =IF(OFFSET(DE100_14!$N$38,ROWS($N$38:N98)-1,COLUMNS($N$38:N98)-1)<>"",OFFSET(DE100_14!$N$38,ROWS($N$38:N98)-1,COLUMNS($N$38:N98)-1),"") -> 
A85: =IF(OFFSET(DE100_14!$C$38,ROWS($C$38:C99)-1,COLUMNS($C$38:C99)-1)<>"",OFFSET(DE100_14!$C$38,ROWS($C$38:C99)-1,COLUMNS($C$38:C99)-1),"") -> 7 | B85: =IF(OFFSET(DE100_14!$D$38,ROWS($D$38:D99)-1,COLUMNS($D$38:D99)-1)<>"",OFFSET(DE100_14!$D$38,ROWS($D$38:D99)-1,COLUMNS($D$38:D99)-1),"") -> 1148745 | C85: =IF(OFFSET(DE100_14!$E$38,ROWS($E$38:E99)-1,COLUMNS($E$38:E99)-1)<>"",OFFSET(DE100_14!$E$38,ROWS($E$38:E99)-1,COLUMNS($E$38:E99)-1),"") -> RT | D85: =IF(OFFSET(DE100_14!$F$38,ROWS($F$38:F99)-1,COLUMNS($F$38:F99)-1)<>"",OFFSET(DE100_14!$F$38,ROWS($F$38:F99)-1,COLUMNS($F$38:F99)-1),"") -> 1 | E85: =IF(OFFSET(DE100_14!$G$38,ROWS($G$38:G99)-1,COLUMNS($G$38:G99)-1)<>"",OFFSET(DE100_14!$G$38,ROWS($G$38:G99)-1,COLUMNS($G$38:G99)-1),"") -> 1 | F85: =IF(OFFSET(DE100_14!$H$38,ROWS($H$38:H99)-1,COLUMNS($H$38:H99)-1)<>"",OFFSET(DE100_14!$H$38,ROWS($H$38:H99)-1,COLUMNS($H$38:H99)-1),"") -> 10 | G85: =IF(OFFSET(DE100_14!$I$38,ROWS($I$38:I99)-1,COLUMNS($I$38:I99)-1)<>"",OFFSET(DE100_14!$I$38,ROWS($I$38:I99)-1,COLUMNS($I$38:I99)-1),"") -> 50 | H85: =IF(OFFSET(DE100_14!$J$38,ROWS($J$38:J99)-1,COLUMNS($J$38:J99)-1)<>"",OFFSET(DE100_14!$J$38,ROWS($J$38:J99)-1,COLUMNS($J$38:J99)-1),"") -> 2.85 | I85: =IF(OFFSET(DE100_14!$K$38,ROWS($K$38:K99)-1,COLUMNS($K$38:K99)-1)<>"",OFFSET(DE100_14!$K$38,ROWS($K$38:K99)-1,COLUMNS($K$38:K99)-1),"") -> 0.009 | J85: =IF(OFFSET(DE100_14!$L$38,ROWS($L$38:L99)-1,COLUMNS($L$38:L99)-1)<>"",OFFSET(DE100_14!$L$38,ROWS($L$38:L99)-1,COLUMNS($L$38:L99)-1),"") -> 1050 | K85: =IF(OFFSET(DE100_14!$N$38,ROWS($N$38:N99)-1,COLUMNS($N$38:N99)-1)<>"",OFFSET(DE100_14!$N$38,ROWS($N$38:N99)-1,COLUMNS($N$38:N99)-1),"") -> 
A86: =IF(OFFSET(DE100_14!$C$38,ROWS($C$38:C100)-1,COLUMNS($C$38:C100)-1)<>"",OFFSET(DE100_14!$C$38,ROWS($C$38:C100)-1,COLUMNS($C$38:C100)-1),"") -> 7 | B86: =IF(OFFSET(DE100_14!$D$38,ROWS($D$38:D100)-1,COLUMNS($D$38:D100)-1)<>"",OFFSET(DE100_14!$D$38,ROWS($D$38:D100)-1,COLUMNS($D$38:D100)-1),"") -> 1148808 | C86: =IF(OFFSET(DE100_14!$E$38,ROWS($E$38:E100)-1,COLUMNS($E$38:E100)-1)<>"",OFFSET(DE100_14!$E$38,ROWS($E$38:E100)-1,COLUMNS($E$38:E100)-1),"") -> RT | D86: =IF(OFFSET(DE100_14!$F$38,ROWS($F$38:F100)-1,COLUMNS($F$38:F100)-1)<>"",OFFSET(DE100_14!$F$38,ROWS($F$38:F100)-1,COLUMNS($F$38:F100)-1),"") -> 1 | E86: =IF(OFFSET(DE100_14!$G$38,ROWS($G$38:G100)-1,COLUMNS($G$38:G100)-1)<>"",OFFSET(DE100_14!$G$38,ROWS($G$38:G100)-1,COLUMNS($G$38:G100)-1),"") -> 1 | F86: =IF(OFFSET(DE100_14!$H$38,ROWS($H$38:H100)-1,COLUMNS($H$38:H100)-1)<>"",OFFSET(DE100_14!$H$38,ROWS($H$38:H100)-1,COLUMNS($H$38:H100)-1),"") -> 10 | G86: =IF(OFFSET(DE100_14!$I$38,ROWS($I$38:I100)-1,COLUMNS($I$38:I100)-1)<>"",OFFSET(DE100_14!$I$38,ROWS($I$38:I100)-1,COLUMNS($I$38:I100)-1),"") -> 50 | H86: =IF(OFFSET(DE100_14!$J$38,ROWS($J$38:J100)-1,COLUMNS($J$38:J100)-1)<>"",OFFSET(DE100_14!$J$38,ROWS($J$38:J100)-1,COLUMNS($J$38:J100)-1),"") -> 2.85 | I86: =IF(OFFSET(DE100_14!$K$38,ROWS($K$38:K100)-1,COLUMNS($K$38:K100)-1)<>"",OFFSET(DE100_14!$K$38,ROWS($K$38:K100)-1,COLUMNS($K$38:K100)-1),"") -> 0.03 | J86: =IF(OFFSET(DE100_14!$L$38,ROWS($L$38:L100)-1,COLUMNS($L$38:L100)-1)<>"",OFFSET(DE100_14!$L$38,ROWS($L$38:L100)-1,COLUMNS($L$38:L100)-1),"") -> 1425 | K86: =IF(OFFSET(DE100_14!$N$38,ROWS($N$38:N100)-1,COLUMNS($N$38:N100)-1)<>"",OFFSET(DE100_14!$N$38,ROWS($N$38:N100)-1,COLUMNS($N$38:N100)-1),"") -> 
A87: =IF(OFFSET(DE100_14!$C$38,ROWS($C$38:C101)-1,COLUMNS($C$38:C101)-1)<>"",OFFSET(DE100_14!$C$38,ROWS($C$38:C101)-1,COLUMNS($C$38:C101)-1),"") ->  | B87: =IF(OFFSET(DE100_14!$D$38,ROWS($D$38:D101)-1,COLUMNS($D$38:D101)-1)<>"",OFFSET(DE100_14!$D$38,ROWS($D$38:D101)-1,COLUMNS($D$38:D101)-1),"") ->  | C87: =IF(OFFSET(DE100_14!$E$38,ROWS($E$38:E101)-1,COLUMNS($E$38:E101)-1)<>"",OFFSET(DE100_14!$E$38,ROWS($E$38:E101)-1,COLUMNS($E$38:E101)-1),"") ->  | D87: =IF(OFFSET(DE100_14!$F$38,ROWS($F$38:F101)-1,COLUMNS($F$38:F101)-1)<>"",OFFSET(DE100_14!$F$38,ROWS($F$38:F101)-1,COLUMNS($F$38:F101)-1),"") ->  | E87: =IF(OFFSET(DE100_14!$G$38,ROWS($G$38:G101)-1,COLUMNS($G$38:G101)-1)<>"",OFFSET(DE100_14!$G$38,ROWS($G$38:G101)-1,COLUMNS($G$38:G101)-1),"") ->  | F87: =IF(OFFSET(DE100_14!$H$38,ROWS($H$38:H101)-1,COLUMNS($H$38:H101)-1)<>"",OFFSET(DE100_14!$H$38,ROWS($H$38:H101)-1,COLUMNS($H$38:H101)-1),"") ->  | G87: =IF(OFFSET(DE100_14!$I$38,ROWS($I$38:I101)-1,COLUMNS($I$38:I101)-1)<>"",OFFSET(DE100_14!$I$38,ROWS($I$38:I101)-1,COLUMNS($I$38:I101)-1),"") ->  | H87: =IF(OFFSET(DE100_14!$J$38,ROWS($J$38:J101)-1,COLUMNS($J$38:J101)-1)<>"",OFFSET(DE100_14!$J$38,ROWS($J$38:J101)-1,COLUMNS($J$38:J101)-1),"") ->  | I87: =IF(OFFSET(DE100_14!$K$38,ROWS($K$38:K101)-1,COLUMNS($K$38:K101)-1)<>"",OFFSET(DE100_14!$K$38,ROWS($K$38:K101)-1,COLUMNS($K$38:K101)-1),"") ->  | J87: =IF(OFFSET(DE100_14!$L$38,ROWS($L$38:L101)-1,COLUMNS($L$38:L101)-1)<>"",OFFSET(DE100_14!$L$38,ROWS($L$38:L101)-1,COLUMNS($L$38:L101)-1),"") ->  | K87: =IF(OFFSET(DE100_14!$N$38,ROWS($N$38:N101)-1,COLUMNS($N$38:N101)-1)<>"",OFFSET(DE100_14!$N$38,ROWS($N$38:N101)-1,COLUMNS($N$38:N101)-1),"") -> 
A88: =IF(OFFSET(DE100_14!$C$38,ROWS($C$38:C102)-1,COLUMNS($C$38:C102)-1)<>"",OFFSET(DE100_14!$C$38,ROWS($C$38:C102)-1,COLUMNS($C$38:C102)-1),"") ->  | B88: =IF(OFFSET(DE100_14!$D$38,ROWS($D$38:D102)-1,COLUMNS($D$38:D102)-1)<>"",OFFSET(DE100_14!$D$38,ROWS($D$38:D102)-1,COLUMNS($D$38:D102)-1),"") -> Ramp B | C88: =IF(OFFSET(DE100_14!$E$38,ROWS($E$38:E102)-1,COLUMNS($E$38:E102)-1)<>"",OFFSET(DE100_14!$E$38,ROWS($E$38:E102)-1,COLUMNS($E$38:E102)-1),"") ->  | D88: =IF(OFFSET(DE100_14!$F$38,ROWS($F$38:F102)-1,COLUMNS($F$38:F102)-1)<>"",OFFSET(DE100_14!$F$38,ROWS($F$38:F102)-1,COLUMNS($F$38:F102)-1),"") ->  | E88: =IF(OFFSET(DE100_14!$G$38,ROWS($G$38:G102)-1,COLUMNS($G$38:G102)-1)<>"",OFFSET(DE100_14!$G$38,ROWS($G$38:G102)-1,COLUMNS($G$38:G102)-1),"") ->  | F88: =IF(OFFSET(DE100_14!$H$38,ROWS($H$38:H102)-1,COLUMNS($H$38:H102)-1)<>"",OFFSET(DE100_14!$H$38,ROWS($H$38:H102)-1,COLUMNS($H$38:H102)-1),"") ->  | G88: =IF(OFFSET(DE100_14!$I$38,ROWS($I$38:I102)-1,COLUMNS($I$38:I102)-1)<>"",OFFSET(DE100_14!$I$38,ROWS($I$38:I102)-1,COLUMNS($I$38:I102)-1),"") ->  | H88: =IF(OFFSET(DE100_14!$J$38,ROWS($J$38:J102)-1,COLUMNS($J$38:J102)-1)<>"",OFFSET(DE100_14!$J$38,ROWS($J$38:J102)-1,COLUMNS($J$38:J102)-1),"") ->  | I88: =IF(OFFSET(DE100_14!$K$38,ROWS($K$38:K102)-1,COLUMNS($K$38:K102)-1)<>"",OFFSET(DE100_14!$K$38,ROWS($K$38:K102)-1,COLUMNS($K$38:K102)-1),"") ->  | J88: =IF(OFFSET(DE100_14!$L$38,ROWS($L$38:L102)-1,COLUMNS($L$38:L102)-1)<>"",OFFSET(DE100_14!$L$38,ROWS($L$38:L102)-1,COLUMNS($L$38:L102)-1),"") ->  | K88: =IF(OFFSET(DE100_14!$N$38,ROWS($N$38:N102)-1,COLUMNS($N$38:N102)-1)<>"",OFFSET(DE100_14!$N$38,ROWS($N$38:N102)-1,COLUMNS($N$38:N102)-1),"") -> 
A89: =IF(OFFSET(DE100_14!$C$38,ROWS($C$38:C103)-1,COLUMNS($C$38:C103)-1)<>"",OFFSET(DE100_14!$C$38,ROWS($C$38:C103)-1,COLUMNS($C$38:C103)-1),"") -> 5 | B89: =IF(OFFSET(DE100_14!$D$38,ROWS($D$38:D103)-1,COLUMNS($D$38:D103)-1)<>"",OFFSET(DE100_14!$D$38,ROWS($D$38:D103)-1,COLUMNS($D$38:D103)-1),"") -> 2147018 | C89: =IF(OFFSET(DE100_14!$E$38,ROWS($E$38:E103)-1,COLUMNS($E$38:E103)-1)<>"",OFFSET(DE100_14!$E$38,ROWS($E$38:E103)-1,COLUMNS($E$38:E103)-1),"") -> RT | D89: =IF(OFFSET(DE100_14!$F$38,ROWS($F$38:F103)-1,COLUMNS($F$38:F103)-1)<>"",OFFSET(DE100_14!$F$38,ROWS($F$38:F103)-1,COLUMNS($F$38:F103)-1),"") -> 1 | E89: =IF(OFFSET(DE100_14!$G$38,ROWS($G$38:G103)-1,COLUMNS($G$38:G103)-1)<>"",OFFSET(DE100_14!$G$38,ROWS($G$38:G103)-1,COLUMNS($G$38:G103)-1),"") -> 1 | F89: =IF(OFFSET(DE100_14!$H$38,ROWS($H$38:H103)-1,COLUMNS($H$38:H103)-1)<>"",OFFSET(DE100_14!$H$38,ROWS($H$38:H103)-1,COLUMNS($H$38:H103)-1),"") -> 10 | G89: =IF(OFFSET(DE100_14!$I$38,ROWS($I$38:I103)-1,COLUMNS($I$38:I103)-1)<>"",OFFSET(DE100_14!$I$38,ROWS($I$38:I103)-1,COLUMNS($I$38:I103)-1),"") -> 50 | H89: =IF(OFFSET(DE100_14!$J$38,ROWS($J$38:J103)-1,COLUMNS($J$38:J103)-1)<>"",OFFSET(DE100_14!$J$38,ROWS($J$38:J103)-1,COLUMNS($J$38:J103)-1),"") -> 2.85 | I89: =IF(OFFSET(DE100_14!$K$38,ROWS($K$38:K103)-1,COLUMNS($K$38:K103)-1)<>"",OFFSET(DE100_14!$K$38,ROWS($K$38:K103)-1,COLUMNS($K$38:K103)-1),"") -> 0.014 | J89: =IF(OFFSET(DE100_14!$L$38,ROWS($L$38:L103)-1,COLUMNS($L$38:L103)-1)<>"",OFFSET(DE100_14!$L$38,ROWS($L$38:L103)-1,COLUMNS($L$38:L103)-1),"") -> 1300 | K89: =IF(OFFSET(DE100_14!$N$38,ROWS($N$38:N103)-1,COLUMNS($N$38:N103)-1)<>"",OFFSET(DE100_14!$N$38,ROWS($N$38:N103)-1,COLUMNS($N$38:N103)-1),"") -> 
A90: =IF(OFFSET(DE100_14!$C$38,ROWS($C$38:C104)-1,COLUMNS($C$38:C104)-1)<>"",OFFSET(DE100_14!$C$38,ROWS($C$38:C104)-1,COLUMNS($C$38:C104)-1),"") -> 5 | B90: =IF(OFFSET(DE100_14!$D$38,ROWS($D$38:D104)-1,COLUMNS($D$38:D104)-1)<>"",OFFSET(DE100_14!$D$38,ROWS($D$38:D104)-1,COLUMNS($D$38:D104)-1),"") -> 2147333 | C90: =IF(OFFSET(DE100_14!$E$38,ROWS($E$38:E104)-1,COLUMNS($E$38:E104)-1)<>"",OFFSET(DE100_14!$E$38,ROWS($E$38:E104)-1,COLUMNS($E$38:E104)-1),"") -> RT | D90: =IF(OFFSET(DE100_14!$F$38,ROWS($F$38:F104)-1,COLUMNS($F$38:F104)-1)<>"",OFFSET(DE100_14!$F$38,ROWS($F$38:F104)-1,COLUMNS($F$38:F104)-1),"") -> 1 | E90: =IF(OFFSET(DE100_14!$G$38,ROWS($G$38:G104)-1,COLUMNS($G$38:G104)-1)<>"",OFFSET(DE100_14!$G$38,ROWS($G$38:G104)-1,COLUMNS($G$38:G104)-1),"") -> 1 | F90: =IF(OFFSET(DE100_14!$H$38,ROWS($H$38:H104)-1,COLUMNS($H$38:H104)-1)<>"",OFFSET(DE100_14!$H$38,ROWS($H$38:H104)-1,COLUMNS($H$38:H104)-1),"") -> 10 | G90: =IF(OFFSET(DE100_14!$I$38,ROWS($I$38:I104)-1,COLUMNS($I$38:I104)-1)<>"",OFFSET(DE100_14!$I$38,ROWS($I$38:I104)-1,COLUMNS($I$38:I104)-1),"") -> 50 | H90: =IF(OFFSET(DE100_14!$J$38,ROWS($J$38:J104)-1,COLUMNS($J$38:J104)-1)<>"",OFFSET(DE100_14!$J$38,ROWS($J$38:J104)-1,COLUMNS($J$38:J104)-1),"") -> 2.85 | I90: =IF(OFFSET(DE100_14!$K$38,ROWS($K$38:K104)-1,COLUMNS($K$38:K104)-1)<>"",OFFSET(DE100_14!$K$38,ROWS($K$38:K104)-1,COLUMNS($K$38:K104)-1),"") -> 0.01 | J90: =IF(OFFSET(DE100_14!$L$38,ROWS($L$38:L104)-1,COLUMNS($L$38:L104)-1)<>"",OFFSET(DE100_14!$L$38,ROWS($L$38:L104)-1,COLUMNS($L$38:L104)-1),"") -> 1125 | K90: =IF(OFFSET(DE100_14!$N$38,ROWS($N$38:N104)-1,COLUMNS($N$38:N104)-1)<>"",OFFSET(DE100_14!$N$38,ROWS($N$38:N104)-1,COLUMNS($N$38:N104)-1),"") -> 
A91: 100-14
A92: 2017-10-17
A93: SILT BASINS
A95: Possible Standard: EW-403
A109: * The functional height used in the volume equation is 95% of effective height. Effective height is 3 feet as shown in EW-403.
A110: * Volume equation: (0.5*Length*(Width*Height+Width*(Height-Length*Avg%Slope))
A111: Basin No. | B111: Location | D111: Bid Items | F111: Stormwater Storage Volume Summary | K111: Remarks
B112: Station | C112: Side | D112: Installation | E112: Removal | F112: Basin Width | G112: Basin Length | H112: Height | I112: Avg. % Slope | J112: Volume*
D113: EACH | E113: EACH | F113: FT | G113: FT | H113: FT | J113: CF
A114: =IF(OFFSET(DE100_14!$C$105,ROWS($C$105:C105)-1,COLUMNS($C$105:C105)-1)<>"",OFFSET(DE100_14!$C$105,ROWS($C$105:C105)-1,COLUMNS($C$105:C105)-1),"") -> 5 | B114: =IF(OFFSET(DE100_14!$D$105,ROWS($D$105:D105)-1,COLUMNS($D$105:D105)-1)<>"",OFFSET(DE100_14!$D$105,ROWS($D$105:D105)-1,COLUMNS($D$105:D105)-1),"") -> 2147405 | C114: =IF(OFFSET(DE100_14!$E$105,ROWS($E$105:E105)-1,COLUMNS($E$105:E105)-1)<>"",OFFSET(DE100_14!$E$105,ROWS($E$105:E105)-1,COLUMNS($E$105:E105)-1),"") -> RT | D114: =IF(OFFSET(DE100_14!$F$105,ROWS($F$105:F105)-1,COLUMNS($F$105:F105)-1)<>"",OFFSET(DE100_14!$F$105,ROWS($F$105:F105)-1,COLUMNS($F$105:F105)-1),"") -> 1 | E114: =IF(OFFSET(DE100_14!$G$105,ROWS($G$105:G105)-1,COLUMNS($G$105:G105)-1)<>"",OFFSET(DE100_14!$G$105,ROWS($G$105:G105)-1,COLUMNS($G$105:G105)-1),"") -> 1 | F114: =IF(OFFSET(DE100_14!$H$105,ROWS($H$105:H105)-1,COLUMNS($H$105:H105)-1)<>"",OFFSET(DE100_14!$H$105,ROWS($H$105:H105)-1,COLUMNS($H$105:H105)-1),"") -> 10 | G114: =IF(OFFSET(DE100_14!$I$105,ROWS($I$105:I105)-1,COLUMNS($I$105:I105)-1)<>"",OFFSET(DE100_14!$I$105,ROWS($I$105:I105)-1,COLUMNS($I$105:I105)-1),"") -> 50 | H114: =IF(OFFSET(DE100_14!$J$105,ROWS($J$105:J105)-1,COLUMNS($J$105:J105)-1)<>"",OFFSET(DE100_14!$J$105,ROWS($J$105:J105)-1,COLUMNS($J$105:J105)-1),"") -> 2.85 | I114: =IF(OFFSET(DE100_14!$K$105,ROWS($K$105:K105)-1,COLUMNS($K$105:K105)-1)<>"",OFFSET(DE100_14!$K$105,ROWS($K$105:K105)-1,COLUMNS($K$105:K105)-1),"") -> 0.024 | J114: =IF(OFFSET(DE100_14!$L$105,ROWS($L$105:L105)-1,COLUMNS($L$105:L105)-1)<>"",OFFSET(DE100_14!$L$105,ROWS($L$105:L105)-1,COLUMNS($L$105:L105)-1),"") -> 1425 | K114: =IF(OFFSET(DE100_14!$N$105,ROWS($N$105:N105)-1,COLUMNS($N$105:N105)-1)<>"",OFFSET(DE100_14!$N$105,ROWS($N$105:N105)-1,COLUMNS($N$105:N105)-1),"") -> 
A115: =IF(OFFSET(DE100_14!$C$105,ROWS($C$105:C106)-1,COLUMNS($C$105:C106)-1)<>"",OFFSET(DE100_14!$C$105,ROWS($C$105:C106)-1,COLUMNS($C$105:C106)-1),"") ->  | B115: =IF(OFFSET(DE100_14!$D$105,ROWS($D$105:D106)-1,COLUMNS($D$105:D106)-1)<>"",OFFSET(DE100_14!$D$105,ROWS($D$105:D106)-1,COLUMNS($D$105:D106)-1),"") ->  | C115: =IF(OFFSET(DE100_14!$E$105,ROWS($E$105:E106)-1,COLUMNS($E$105:E106)-1)<>"",OFFSET(DE100_14!$E$105,ROWS($E$105:E106)-1,COLUMNS($E$105:E106)-1),"") ->  | D115: =IF(OFFSET(DE100_14!$F$105,ROWS($F$105:F106)-1,COLUMNS($F$105:F106)-1)<>"",OFFSET(DE100_14!$F$105,ROWS($F$105:F106)-1,COLUMNS($F$105:F106)-1),"") ->  | E115: =IF(OFFSET(DE100_14!$G$105,ROWS($G$105:G106)-1,COLUMNS($G$105:G106)-1)<>"",OFFSET(DE100_14!$G$105,ROWS($G$105:G106)-1,COLUMNS($G$105:G106)-1),"") ->  | F115: =IF(OFFSET(DE100_14!$H$105,ROWS($H$105:H106)-1,COLUMNS($H$105:H106)-1)<>"",OFFSET(DE100_14!$H$105,ROWS($H$105:H106)-1,COLUMNS($H$105:H106)-1),"") ->  | G115: =IF(OFFSET(DE100_14!$I$105,ROWS($I$105:I106)-1,COLUMNS($I$105:I106)-1)<>"",OFFSET(DE100_14!$I$105,ROWS($I$105:I106)-1,COLUMNS($I$105:I106)-1),"") ->  | H115: =IF(OFFSET(DE100_14!$J$105,ROWS($J$105:J106)-1,COLUMNS($J$105:J106)-1)<>"",OFFSET(DE100_14!$J$105,ROWS($J$105:J106)-1,COLUMNS($J$105:J106)-1),"") ->  | I115: =IF(OFFSET(DE100_14!$K$105,ROWS($K$105:K106)-1,COLUMNS($K$105:K106)-1)<>"",OFFSET(DE100_14!$K$105,ROWS($K$105:K106)-1,COLUMNS($K$105:K106)-1),"") ->  | J115: =IF(OFFSET(DE100_14!$L$105,ROWS($L$105:L106)-1,COLUMNS($L$105:L106)-1)<>"",OFFSET(DE100_14!$L$105,ROWS($L$105:L106)-1,COLUMNS($L$105:L106)-1),"") ->  | K115: =IF(OFFSET(DE100_14!$N$105,ROWS($N$105:N106)-1,COLUMNS($N$105:N106)-1)<>"",OFFSET(DE100_14!$N$105,ROWS($N$105:N106)-1,COLUMNS($N$105:N106)-1),"") -> 
A116: =IF(OFFSET(DE100_14!$C$105,ROWS($C$105:C107)-1,COLUMNS($C$105:C107)-1)<>"",OFFSET(DE100_14!$C$105,ROWS($C$105:C107)-1,COLUMNS($C$105:C107)-1),"") ->  | B116: =IF(OFFSET(DE100_14!$D$105,ROWS($D$105:D107)-1,COLUMNS($D$105:D107)-1)<>"",OFFSET(DE100_14!$D$105,ROWS($D$105:D107)-1,COLUMNS($D$105:D107)-1),"") -> Ramp C | C116: =IF(OFFSET(DE100_14!$E$105,ROWS($E$105:E107)-1,COLUMNS($E$105:E107)-1)<>"",OFFSET(DE100_14!$E$105,ROWS($E$105:E107)-1,COLUMNS($E$105:E107)-1),"") ->  | D116: =IF(OFFSET(DE100_14!$F$105,ROWS($F$105:F107)-1,COLUMNS($F$105:F107)-1)<>"",OFFSET(DE100_14!$F$105,ROWS($F$105:F107)-1,COLUMNS($F$105:F107)-1),"") ->  | E116: =IF(OFFSET(DE100_14!$G$105,ROWS($G$105:G107)-1,COLUMNS($G$105:G107)-1)<>"",OFFSET(DE100_14!$G$105,ROWS($G$105:G107)-1,COLUMNS($G$105:G107)-1),"") ->  | F116: =IF(OFFSET(DE100_14!$H$105,ROWS($H$105:H107)-1,COLUMNS($H$105:H107)-1)<>"",OFFSET(DE100_14!$H$105,ROWS($H$105:H107)-1,COLUMNS($H$105:H107)-1),"") ->  | G116: =IF(OFFSET(DE100_14!$I$105,ROWS($I$105:I107)-1,COLUMNS($I$105:I107)-1)<>"",OFFSET(DE100_14!$I$105,ROWS($I$105:I107)-1,COLUMNS($I$105:I107)-1),"") ->  | H116: =IF(OFFSET(DE100_14!$J$105,ROWS($J$105:J107)-1,COLUMNS($J$105:J107)-1)<>"",OFFSET(DE100_14!$J$105,ROWS($J$105:J107)-1,COLUMNS($J$105:J107)-1),"") ->  | I116: =IF(OFFSET(DE100_14!$K$105,ROWS($K$105:K107)-1,COLUMNS($K$105:K107)-1)<>"",OFFSET(DE100_14!$K$105,ROWS($K$105:K107)-1,COLUMNS($K$105:K107)-1),"") ->  | J116: =IF(OFFSET(DE100_14!$L$105,ROWS($L$105:L107)-1,COLUMNS($L$105:L107)-1)<>"",OFFSET(DE100_14!$L$105,ROWS($L$105:L107)-1,COLUMNS($L$105:L107)-1),"") ->  | K116: =IF(OFFSET(DE100_14!$N$105,ROWS($N$105:N107)-1,COLUMNS($N$105:N107)-1)<>"",OFFSET(DE100_14!$N$105,ROWS($N$105:N107)-1,COLUMNS($N$105:N107)-1),"") -> 
A117: =IF(OFFSET(DE100_14!$C$105,ROWS($C$105:C108)-1,COLUMNS($C$105:C108)-1)<>"",OFFSET(DE100_14!$C$105,ROWS($C$105:C108)-1,COLUMNS($C$105:C108)-1),"") -> 5 | B117: =IF(OFFSET(DE100_14!$D$105,ROWS($D$105:D108)-1,COLUMNS($D$105:D108)-1)<>"",OFFSET(DE100_14!$D$105,ROWS($D$105:D108)-1,COLUMNS($D$105:D108)-1),"") -> 3145613 | C117: =IF(OFFSET(DE100_14!$E$105,ROWS($E$105:E108)-1,COLUMNS($E$105:E108)-1)<>"",OFFSET(DE100_14!$E$105,ROWS($E$105:E108)-1,COLUMNS($E$105:E108)-1),"") -> RT | D117: =IF(OFFSET(DE100_14!$F$105,ROWS($F$105:F108)-1,COLUMNS($F$105:F108)-1)<>"",OFFSET(DE100_14!$F$105,ROWS($F$105:F108)-1,COLUMNS($F$105:F108)-1),"") -> 1 | E117: =IF(OFFSET(DE100_14!$G$105,ROWS($G$105:G108)-1,COLUMNS($G$105:G108)-1)<>"",OFFSET(DE100_14!$G$105,ROWS($G$105:G108)-1,COLUMNS($G$105:G108)-1),"") -> 1 | F117: =IF(OFFSET(DE100_14!$H$105,ROWS($H$105:H108)-1,COLUMNS($H$105:H108)-1)<>"",OFFSET(DE100_14!$H$105,ROWS($H$105:H108)-1,COLUMNS($H$105:H108)-1),"") -> 10 | G117: =IF(OFFSET(DE100_14!$I$105,ROWS($I$105:I108)-1,COLUMNS($I$105:I108)-1)<>"",OFFSET(DE100_14!$I$105,ROWS($I$105:I108)-1,COLUMNS($I$105:I108)-1),"") -> 50 | H117: =IF(OFFSET(DE100_14!$J$105,ROWS($J$105:J108)-1,COLUMNS($J$105:J108)-1)<>"",OFFSET(DE100_14!$J$105,ROWS($J$105:J108)-1,COLUMNS($J$105:J108)-1),"") -> 2.85 | I117: =IF(OFFSET(DE100_14!$K$105,ROWS($K$105:K108)-1,COLUMNS($K$105:K108)-1)<>"",OFFSET(DE100_14!$K$105,ROWS($K$105:K108)-1,COLUMNS($K$105:K108)-1),"") -> 0.004 | J117: =IF(OFFSET(DE100_14!$L$105,ROWS($L$105:L108)-1,COLUMNS($L$105:L108)-1)<>"",OFFSET(DE100_14!$L$105,ROWS($L$105:L108)-1,COLUMNS($L$105:L108)-1),"") -> 1312.5 | K117: =IF(OFFSET(DE100_14!$N$105,ROWS($N$105:N108)-1,COLUMNS($N$105:N108)-1)<>"",OFFSET(DE100_14!$N$105,ROWS($N$105:N108)-1,COLUMNS($N$105:N108)-1),"") -> 
A118: =IF(OFFSET(DE100_14!$C$105,ROWS($C$105:C109)-1,COLUMNS($C$105:C109)-1)<>"",OFFSET(DE100_14!$C$105,ROWS($C$105:C109)-1,COLUMNS($C$105:C109)-1),"") -> 5 | B118: =IF(OFFSET(DE100_14!$D$105,ROWS($D$105:D109)-1,COLUMNS($D$105:D109)-1)<>"",OFFSET(DE100_14!$D$105,ROWS($D$105:D109)-1,COLUMNS($D$105:D109)-1),"") -> 3145676 | C118: =IF(OFFSET(DE100_14!$E$105,ROWS($E$105:E109)-1,COLUMNS($E$105:E109)-1)<>"",OFFSET(DE100_14!$E$105,ROWS($E$105:E109)-1,COLUMNS($E$105:E109)-1),"") -> RT | D118: =IF(OFFSET(DE100_14!$F$105,ROWS($F$105:F109)-1,COLUMNS($F$105:F109)-1)<>"",OFFSET(DE100_14!$F$105,ROWS($F$105:F109)-1,COLUMNS($F$105:F109)-1),"") -> 1 | E118: =IF(OFFSET(DE100_14!$G$105,ROWS($G$105:G109)-1,COLUMNS($G$105:G109)-1)<>"",OFFSET(DE100_14!$G$105,ROWS($G$105:G109)-1,COLUMNS($G$105:G109)-1),"") -> 1 | F118: =IF(OFFSET(DE100_14!$H$105,ROWS($H$105:H109)-1,COLUMNS($H$105:H109)-1)<>"",OFFSET(DE100_14!$H$105,ROWS($H$105:H109)-1,COLUMNS($H$105:H109)-1),"") -> 10 | G118: =IF(OFFSET(DE100_14!$I$105,ROWS($I$105:I109)-1,COLUMNS($I$105:I109)-1)<>"",OFFSET(DE100_14!$I$105,ROWS($I$105:I109)-1,COLUMNS($I$105:I109)-1),"") -> 50 | H118: =IF(OFFSET(DE100_14!$J$105,ROWS($J$105:J109)-1,COLUMNS($J$105:J109)-1)<>"",OFFSET(DE100_14!$J$105,ROWS($J$105:J109)-1,COLUMNS($J$105:J109)-1),"") -> 2.85 | I118: =IF(OFFSET(DE100_14!$K$105,ROWS($K$105:K109)-1,COLUMNS($K$105:K109)-1)<>"",OFFSET(DE100_14!$K$105,ROWS($K$105:K109)-1,COLUMNS($K$105:K109)-1),"") -> 0.009 | J118: =IF(OFFSET(DE100_14!$L$105,ROWS($L$105:L109)-1,COLUMNS($L$105:L109)-1)<>"",OFFSET(DE100_14!$L$105,ROWS($L$105:L109)-1,COLUMNS($L$105:L109)-1),"") -> 1375 | K118: =IF(OFFSET(DE100_14!$N$105,ROWS($N$105:N109)-1,COLUMNS($N$105:N109)-1)<>"",OFFSET(DE100_14!$N$105,ROWS($N$105:N109)-1,COLUMNS($N$105:N109)-1),"") -> 
A119: =IF(OFFSET(DE100_14!$C$105,ROWS($C$105:C110)-1,COLUMNS($C$105:C110)-1)<>"",OFFSET(DE100_14!$C$105,ROWS($C$105:C110)-1,COLUMNS($C$105:C110)-1),"") -> 5 | B119: =IF(OFFSET(DE100_14!$D$105,ROWS($D$105:D110)-1,COLUMNS($D$105:D110)-1)<>"",OFFSET(DE100_14!$D$105,ROWS($D$105:D110)-1,COLUMNS($D$105:D110)-1),"") -> 3145317 | C119: =IF(OFFSET(DE100_14!$E$105,ROWS($E$105:E110)-1,COLUMNS($E$105:E110)-1)<>"",OFFSET(DE100_14!$E$105,ROWS($E$105:E110)-1,COLUMNS($E$105:E110)-1),"") -> LT | D119: =IF(OFFSET(DE100_14!$F$105,ROWS($F$105:F110)-1,COLUMNS($F$105:F110)-1)<>"",OFFSET(DE100_14!$F$105,ROWS($F$105:F110)-1,COLUMNS($F$105:F110)-1),"") -> 1 | E119: =IF(OFFSET(DE100_14!$G$105,ROWS($G$105:G110)-1,COLUMNS($G$105:G110)-1)<>"",OFFSET(DE100_14!$G$105,ROWS($G$105:G110)-1,COLUMNS($G$105:G110)-1),"") -> 1 | F119: =IF(OFFSET(DE100_14!$H$105,ROWS($H$105:H110)-1,COLUMNS($H$105:H110)-1)<>"",OFFSET(DE100_14!$H$105,ROWS($H$105:H110)-1,COLUMNS($H$105:H110)-1),"") -> 10 | G119: =IF(OFFSET(DE100_14!$I$105,ROWS($I$105:I110)-1,COLUMNS($I$105:I110)-1)<>"",OFFSET(DE100_14!$I$105,ROWS($I$105:I110)-1,COLUMNS($I$105:I110)-1),"") -> 50 | H119: =IF(OFFSET(DE100_14!$J$105,ROWS($J$105:J110)-1,COLUMNS($J$105:J110)-1)<>"",OFFSET(DE100_14!$J$105,ROWS($J$105:J110)-1,COLUMNS($J$105:J110)-1),"") -> 2.85 | I119: =IF(OFFSET(DE100_14!$K$105,ROWS($K$105:K110)-1,COLUMNS($K$105:K110)-1)<>"",OFFSET(DE100_14!$K$105,ROWS($K$105:K110)-1,COLUMNS($K$105:K110)-1),"") -> 0.004 | J119: =IF(OFFSET(DE100_14!$L$105,ROWS($L$105:L110)-1,COLUMNS($L$105:L110)-1)<>"",OFFSET(DE100_14!$L$105,ROWS($L$105:L110)-1,COLUMNS($L$105:L110)-1),"") -> 1425 | K119: =IF(OFFSET(DE100_14!$N$105,ROWS($N$105:N110)-1,COLUMNS($N$105:N110)-1)<>"",OFFSET(DE100_14!$N$105,ROWS($N$105:N110)-1,COLUMNS($N$105:N110)-1),"") -> 
A120: =IF(OFFSET(DE100_14!$C$105,ROWS($C$105:C111)-1,COLUMNS($C$105:C111)-1)<>"",OFFSET(DE100_14!$C$105,ROWS($C$105:C111)-1,COLUMNS($C$105:C111)-1),"") ->  | B120: =IF(OFFSET(DE100_14!$D$105,ROWS($D$105:D111)-1,COLUMNS($D$105:D111)-1)<>"",OFFSET(DE100_14!$D$105,ROWS($D$105:D111)-1,COLUMNS($D$105:D111)-1),"") ->  | C120: =IF(OFFSET(DE100_14!$E$105,ROWS($E$105:E111)-1,COLUMNS($E$105:E111)-1)<>"",OFFSET(DE100_14!$E$105,ROWS($E$105:E111)-1,COLUMNS($E$105:E111)-1),"") ->  | D120: =IF(OFFSET(DE100_14!$F$105,ROWS($F$105:F111)-1,COLUMNS($F$105:F111)-1)<>"",OFFSET(DE100_14!$F$105,ROWS($F$105:F111)-1,COLUMNS($F$105:F111)-1),"") ->  | E120: =IF(OFFSET(DE100_14!$G$105,ROWS($G$105:G111)-1,COLUMNS($G$105:G111)-1)<>"",OFFSET(DE100_14!$G$105,ROWS($G$105:G111)-1,COLUMNS($G$105:G111)-1),"") ->  | F120: =IF(OFFSET(DE100_14!$H$105,ROWS($H$105:H111)-1,COLUMNS($H$105:H111)-1)<>"",OFFSET(DE100_14!$H$105,ROWS($H$105:H111)-1,COLUMNS($H$105:H111)-1),"") ->  | G120: =IF(OFFSET(DE100_14!$I$105,ROWS($I$105:I111)-1,COLUMNS($I$105:I111)-1)<>"",OFFSET(DE100_14!$I$105,ROWS($I$105:I111)-1,COLUMNS($I$105:I111)-1),"") ->  | H120: =IF(OFFSET(DE100_14!$J$105,ROWS($J$105:J111)-1,COLUMNS($J$105:J111)-1)<>"",OFFSET(DE100_14!$J$105,ROWS($J$105:J111)-1,COLUMNS($J$105:J111)-1),"") ->  | I120: =IF(OFFSET(DE100_14!$K$105,ROWS($K$105:K111)-1,COLUMNS($K$105:K111)-1)<>"",OFFSET(DE100_14!$K$105,ROWS($K$105:K111)-1,COLUMNS($K$105:K111)-1),"") ->  | J120: =IF(OFFSET(DE100_14!$L$105,ROWS($L$105:L111)-1,COLUMNS($L$105:L111)-1)<>"",OFFSET(DE100_14!$L$105,ROWS($L$105:L111)-1,COLUMNS($L$105:L111)-1),"") ->  | K120: =IF(OFFSET(DE100_14!$N$105,ROWS($N$105:N111)-1,COLUMNS($N$105:N111)-1)<>"",OFFSET(DE100_14!$N$105,ROWS($N$105:N111)-1,COLUMNS($N$105:N111)-1),"") -> 
A121: =IF(OFFSET(DE100_14!$C$105,ROWS($C$105:C112)-1,COLUMNS($C$105:C112)-1)<>"",OFFSET(DE100_14!$C$105,ROWS($C$105:C112)-1,COLUMNS($C$105:C112)-1),"") ->  | B121: =IF(OFFSET(DE100_14!$D$105,ROWS($D$105:D112)-1,COLUMNS($D$105:D112)-1)<>"",OFFSET(DE100_14!$D$105,ROWS($D$105:D112)-1,COLUMNS($D$105:D112)-1),"") -> Ramp D | C121: =IF(OFFSET(DE100_14!$E$105,ROWS($E$105:E112)-1,COLUMNS($E$105:E112)-1)<>"",OFFSET(DE100_14!$E$105,ROWS($E$105:E112)-1,COLUMNS($E$105:E112)-1),"") ->  | D121: =IF(OFFSET(DE100_14!$F$105,ROWS($F$105:F112)-1,COLUMNS($F$105:F112)-1)<>"",OFFSET(DE100_14!$F$105,ROWS($F$105:F112)-1,COLUMNS($F$105:F112)-1),"") ->  | E121: =IF(OFFSET(DE100_14!$G$105,ROWS($G$105:G112)-1,COLUMNS($G$105:G112)-1)<>"",OFFSET(DE100_14!$G$105,ROWS($G$105:G112)-1,COLUMNS($G$105:G112)-1),"") ->  | F121: =IF(OFFSET(DE100_14!$H$105,ROWS($H$105:H112)-1,COLUMNS($H$105:H112)-1)<>"",OFFSET(DE100_14!$H$105,ROWS($H$105:H112)-1,COLUMNS($H$105:H112)-1),"") ->  | G121: =IF(OFFSET(DE100_14!$I$105,ROWS($I$105:I112)-1,COLUMNS($I$105:I112)-1)<>"",OFFSET(DE100_14!$I$105,ROWS($I$105:I112)-1,COLUMNS($I$105:I112)-1),"") ->  | H121: =IF(OFFSET(DE100_14!$J$105,ROWS($J$105:J112)-1,COLUMNS($J$105:J112)-1)<>"",OFFSET(DE100_14!$J$105,ROWS($J$105:J112)-1,COLUMNS($J$105:J112)-1),"") ->  | I121: =IF(OFFSET(DE100_14!$K$105,ROWS($K$105:K112)-1,COLUMNS($K$105:K112)-1)<>"",OFFSET(DE100_14!$K$105,ROWS($K$105:K112)-1,COLUMNS($K$105:K112)-1),"") ->  | J121: =IF(OFFSET(DE100_14!$L$105,ROWS($L$105:L112)-1,COLUMNS($L$105:L112)-1)<>"",OFFSET(DE100_14!$L$105,ROWS($L$105:L112)-1,COLUMNS($L$105:L112)-1),"") ->  | K121: =IF(OFFSET(DE100_14!$N$105,ROWS($N$105:N112)-1,COLUMNS($N$105:N112)-1)<>"",OFFSET(DE100_14!$N$105,ROWS($N$105:N112)-1,COLUMNS($N$105:N112)-1),"") -> 
A122: =IF(OFFSET(DE100_14!$C$105,ROWS($C$105:C113)-1,COLUMNS($C$105:C113)-1)<>"",OFFSET(DE100_14!$C$105,ROWS($C$105:C113)-1,COLUMNS($C$105:C113)-1),"") -> 7 | B122: =IF(OFFSET(DE100_14!$D$105,ROWS($D$105:D113)-1,COLUMNS($D$105:D113)-1)<>"",OFFSET(DE100_14!$D$105,ROWS($D$105:D113)-1,COLUMNS($D$105:D113)-1),"") -> 4147625 | C122: =IF(OFFSET(DE100_14!$E$105,ROWS($E$105:E113)-1,COLUMNS($E$105:E113)-1)<>"",OFFSET(DE100_14!$E$105,ROWS($E$105:E113)-1,COLUMNS($E$105:E113)-1),"") -> RT | D122: =IF(OFFSET(DE100_14!$F$105,ROWS($F$105:F113)-1,COLUMNS($F$105:F113)-1)<>"",OFFSET(DE100_14!$F$105,ROWS($F$105:F113)-1,COLUMNS($F$105:F113)-1),"") -> 1 | E122: =IF(OFFSET(DE100_14!$G$105,ROWS($G$105:G113)-1,COLUMNS($G$105:G113)-1)<>"",OFFSET(DE100_14!$G$105,ROWS($G$105:G113)-1,COLUMNS($G$105:G113)-1),"") -> 1 | F122: =IF(OFFSET(DE100_14!$H$105,ROWS($H$105:H113)-1,COLUMNS($H$105:H113)-1)<>"",OFFSET(DE100_14!$H$105,ROWS($H$105:H113)-1,COLUMNS($H$105:H113)-1),"") -> 10 | G122: =IF(OFFSET(DE100_14!$I$105,ROWS($I$105:I113)-1,COLUMNS($I$105:I113)-1)<>"",OFFSET(DE100_14!$I$105,ROWS($I$105:I113)-1,COLUMNS($I$105:I113)-1),"") -> 50 | H122: =IF(OFFSET(DE100_14!$J$105,ROWS($J$105:J113)-1,COLUMNS($J$105:J113)-1)<>"",OFFSET(DE100_14!$J$105,ROWS($J$105:J113)-1,COLUMNS($J$105:J113)-1),"") -> 2.85 | I122: =IF(OFFSET(DE100_14!$K$105,ROWS($K$105:K113)-1,COLUMNS($K$105:K113)-1)<>"",OFFSET(DE100_14!$K$105,ROWS($K$105:K113)-1,COLUMNS($K$105:K113)-1),"") -> 0.007 | J122: =IF(OFFSET(DE100_14!$L$105,ROWS($L$105:L113)-1,COLUMNS($L$105:L113)-1)<>"",OFFSET(DE100_14!$L$105,ROWS($L$105:L113)-1,COLUMNS($L$105:L113)-1),"") -> 1337.5 | K122: =IF(OFFSET(DE100_14!$N$105,ROWS($N$105:N113)-1,COLUMNS($N$105:N113)-1)<>"",OFFSET(DE100_14!$N$105,ROWS($N$105:N113)-1,COLUMNS($N$105:N113)-1),"") -> 
A123: =IF(OFFSET(DE100_14!$C$105,ROWS($C$105:C114)-1,COLUMNS($C$105:C114)-1)<>"",OFFSET(DE100_14!$C$105,ROWS($C$105:C114)-1,COLUMNS($C$105:C114)-1),"") ->  | B123: =IF(OFFSET(DE100_14!$D$105,ROWS($D$105:D114)-1,COLUMNS($D$105:D114)-1)<>"",OFFSET(DE100_14!$D$105,ROWS($D$105:D114)-1,COLUMNS($D$105:D114)-1),"") ->  | C123: =IF(OFFSET(DE100_14!$E$105,ROWS($E$105:E114)-1,COLUMNS($E$105:E114)-1)<>"",OFFSET(DE100_14!$E$105,ROWS($E$105:E114)-1,COLUMNS($E$105:E114)-1),"") ->  | D123: =IF(OFFSET(DE100_14!$F$105,ROWS($F$105:F114)-1,COLUMNS($F$105:F114)-1)<>"",OFFSET(DE100_14!$F$105,ROWS($F$105:F114)-1,COLUMNS($F$105:F114)-1),"") ->  | E123: =IF(OFFSET(DE100_14!$G$105,ROWS($G$105:G114)-1,COLUMNS($G$105:G114)-1)<>"",OFFSET(DE100_14!$G$105,ROWS($G$105:G114)-1,COLUMNS($G$105:G114)-1),"") ->  | F123: =IF(OFFSET(DE100_14!$H$105,ROWS($H$105:H114)-1,COLUMNS($H$105:H114)-1)<>"",OFFSET(DE100_14!$H$105,ROWS($H$105:H114)-1,COLUMNS($H$105:H114)-1),"") ->  | G123: =IF(OFFSET(DE100_14!$I$105,ROWS($I$105:I114)-1,COLUMNS($I$105:I114)-1)<>"",OFFSET(DE100_14!$I$105,ROWS($I$105:I114)-1,COLUMNS($I$105:I114)-1),"") ->  | H123: =IF(OFFSET(DE100_14!$J$105,ROWS($J$105:J114)-1,COLUMNS($J$105:J114)-1)<>"",OFFSET(DE100_14!$J$105,ROWS($J$105:J114)-1,COLUMNS($J$105:J114)-1),"") ->  | I123: =IF(OFFSET(DE100_14!$K$105,ROWS($K$105:K114)-1,COLUMNS($K$105:K114)-1)<>"",OFFSET(DE100_14!$K$105,ROWS($K$105:K114)-1,COLUMNS($K$105:K114)-1),"") ->  | J123: =IF(OFFSET(DE100_14!$L$105,ROWS($L$105:L114)-1,COLUMNS($L$105:L114)-1)<>"",OFFSET(DE100_14!$L$105,ROWS($L$105:L114)-1,COLUMNS($L$105:L114)-1),"") ->  | K123: =IF(OFFSET(DE100_14!$N$105,ROWS($N$105:N114)-1,COLUMNS($N$105:N114)-1)<>"",OFFSET(DE100_14!$N$105,ROWS($N$105:N114)-1,COLUMNS($N$105:N114)-1),"") -> 
A124: =IF(OFFSET(DE100_14!$C$105,ROWS($C$105:C115)-1,COLUMNS($C$105:C115)-1)<>"",OFFSET(DE100_14!$C$105,ROWS($C$105:C115)-1,COLUMNS($C$105:C115)-1),"") ->  | B124: =IF(OFFSET(DE100_14!$D$105,ROWS($D$105:D115)-1,COLUMNS($D$105:D115)-1)<>"",OFFSET(DE100_14!$D$105,ROWS($D$105:D115)-1,COLUMNS($D$105:D115)-1),"") ->  | C124: =IF(OFFSET(DE100_14!$E$105,ROWS($E$105:E115)-1,COLUMNS($E$105:E115)-1)<>"",OFFSET(DE100_14!$E$105,ROWS($E$105:E115)-1,COLUMNS($E$105:E115)-1),"") ->  | D124: =IF(OFFSET(DE100_14!$F$105,ROWS($F$105:F115)-1,COLUMNS($F$105:F115)-1)<>"",OFFSET(DE100_14!$F$105,ROWS($F$105:F115)-1,COLUMNS($F$105:F115)-1),"") ->  | E124: =IF(OFFSET(DE100_14!$G$105,ROWS($G$105:G115)-1,COLUMNS($G$105:G115)-1)<>"",OFFSET(DE100_14!$G$105,ROWS($G$105:G115)-1,COLUMNS($G$105:G115)-1),"") ->  | F124: =IF(OFFSET(DE100_14!$H$105,ROWS($H$105:H115)-1,COLUMNS($H$105:H115)-1)<>"",OFFSET(DE100_14!$H$105,ROWS($H$105:H115)-1,COLUMNS($H$105:H115)-1),"") ->  | G124: =IF(OFFSET(DE100_14!$I$105,ROWS($I$105:I115)-1,COLUMNS($I$105:I115)-1)<>"",OFFSET(DE100_14!$I$105,ROWS($I$105:I115)-1,COLUMNS($I$105:I115)-1),"") ->  | H124: =IF(OFFSET(DE100_14!$J$105,ROWS($J$105:J115)-1,COLUMNS($J$105:J115)-1)<>"",OFFSET(DE100_14!$J$105,ROWS($J$105:J115)-1,COLUMNS($J$105:J115)-1),"") ->  | I124: =IF(OFFSET(DE100_14!$K$105,ROWS($K$105:K115)-1,COLUMNS($K$105:K115)-1)<>"",OFFSET(DE100_14!$K$105,ROWS($K$105:K115)-1,COLUMNS($K$105:K115)-1),"") ->  | J124: =IF(OFFSET(DE100_14!$L$105,ROWS($L$105:L115)-1,COLUMNS($L$105:L115)-1)<>"",OFFSET(DE100_14!$L$105,ROWS($L$105:L115)-1,COLUMNS($L$105:L115)-1),"") ->  | K124: =IF(OFFSET(DE100_14!$N$105,ROWS($N$105:N115)-1,COLUMNS($N$105:N115)-1)<>"",OFFSET(DE100_14!$N$105,ROWS($N$105:N115)-1,COLUMNS($N$105:N115)-1),"") -> 
A125: =IF(OFFSET(DE100_14!$C$105,ROWS($C$105:C116)-1,COLUMNS($C$105:C116)-1)<>"",OFFSET(DE100_14!$C$105,ROWS($C$105:C116)-1,COLUMNS($C$105:C116)-1),"") ->  | B125: =IF(OFFSET(DE100_14!$D$105,ROWS($D$105:D116)-1,COLUMNS($D$105:D116)-1)<>"",OFFSET(DE100_14!$D$105,ROWS($D$105:D116)-1,COLUMNS($D$105:D116)-1),"") -> TOTALS: | C125: =IF(OFFSET(DE100_14!$E$105,ROWS($E$105:E116)-1,COLUMNS($E$105:E116)-1)<>"",OFFSET(DE100_14!$E$105,ROWS($E$105:E116)-1,COLUMNS($E$105:E116)-1),"") ->  | D125: =IF(OFFSET(DE100_14!$F$105,ROWS($F$105:F116)-1,COLUMNS($F$105:F116)-1)<>"",OFFSET(DE100_14!$F$105,ROWS($F$105:F116)-1,COLUMNS($F$105:F116)-1),"") -> 62 | E125: =IF(OFFSET(DE100_14!$G$105,ROWS($G$105:G116)-1,COLUMNS($G$105:G116)-1)<>"",OFFSET(DE100_14!$G$105,ROWS($G$105:G116)-1,COLUMNS($G$105:G116)-1),"") -> 62 | F125: =IF(OFFSET(DE100_14!$H$105,ROWS($H$105:H116)-1,COLUMNS($H$105:H116)-1)<>"",OFFSET(DE100_14!$H$105,ROWS($H$105:H116)-1,COLUMNS($H$105:H116)-1),"") ->  | G125: =IF(OFFSET(DE100_14!$I$105,ROWS($I$105:I116)-1,COLUMNS($I$105:I116)-1)<>"",OFFSET(DE100_14!$I$105,ROWS($I$105:I116)-1,COLUMNS($I$105:I116)-1),"") ->  | H125: =IF(OFFSET(DE100_14!$J$105,ROWS($J$105:J116)-1,COLUMNS($J$105:J116)-1)<>"",OFFSET(DE100_14!$J$105,ROWS($J$105:J116)-1,COLUMNS($J$105:J116)-1),"") ->  | I125: =IF(OFFSET(DE100_14!$K$105,ROWS($K$105:K116)-1,COLUMNS($K$105:K116)-1)<>"",OFFSET(DE100_14!$K$105,ROWS($K$105:K116)-1,COLUMNS($K$105:K116)-1),"") ->  | J125: =IF(OFFSET(DE100_14!$L$105,ROWS($L$105:L116)-1,COLUMNS($L$105:L116)-1)<>"",OFFSET(DE100_14!$L$105,ROWS($L$105:L116)-1,COLUMNS($L$105:L116)-1),"") ->  | K125: =IF(OFFSET(DE100_14!$N$105,ROWS($N$105:N116)-1,COLUMNS($N$105:N116)-1)<>"",OFFSET(DE100_14!$N$105,ROWS($N$105:N116)-1,COLUMNS($N$105:N116)-1),"") -> 
A126: =IF(OFFSET(DE100_14!$C$105,ROWS($C$105:C117)-1,COLUMNS($C$105:C117)-1)<>"",OFFSET(DE100_14!$C$105,ROWS($C$105:C117)-1,COLUMNS($C$105:C117)-1),"") ->  | B126: =IF(OFFSET(DE100_14!$D$105,ROWS($D$105:D117)-1,COLUMNS($D$105:D117)-1)<>"",OFFSET(DE100_14!$D$105,ROWS($D$105:D117)-1,COLUMNS($D$105:D117)-1),"") ->  | C126: =IF(OFFSET(DE100_14!$E$105,ROWS($E$105:E117)-1,COLUMNS($E$105:E117)-1)<>"",OFFSET(DE100_14!$E$105,ROWS($E$105:E117)-1,COLUMNS($E$105:E117)-1),"") ->  | D126: =IF(OFFSET(DE100_14!$F$105,ROWS($F$105:F117)-1,COLUMNS($F$105:F117)-1)<>"",OFFSET(DE100_14!$F$105,ROWS($F$105:F117)-1,COLUMNS($F$105:F117)-1),"") ->  | E126: =IF(OFFSET(DE100_14!$G$105,ROWS($G$105:G117)-1,COLUMNS($G$105:G117)-1)<>"",OFFSET(DE100_14!$G$105,ROWS($G$105:G117)-1,COLUMNS($G$105:G117)-1),"") ->  | F126: =IF(OFFSET(DE100_14!$H$105,ROWS($H$105:H117)-1,COLUMNS($H$105:H117)-1)<>"",OFFSET(DE100_14!$H$105,ROWS($H$105:H117)-1,COLUMNS($H$105:H117)-1),"") ->  | G126: =IF(OFFSET(DE100_14!$I$105,ROWS($I$105:I117)-1,COLUMNS($I$105:I117)-1)<>"",OFFSET(DE100_14!$I$105,ROWS($I$105:I117)-1,COLUMNS($I$105:I117)-1),"") ->  | H126: =IF(OFFSET(DE100_14!$J$105,ROWS($J$105:J117)-1,COLUMNS($J$105:J117)-1)<>"",OFFSET(DE100_14!$J$105,ROWS($J$105:J117)-1,COLUMNS($J$105:J117)-1),"") ->  | I126: =IF(OFFSET(DE100_14!$K$105,ROWS($K$105:K117)-1,COLUMNS($K$105:K117)-1)<>"",OFFSET(DE100_14!$K$105,ROWS($K$105:K117)-1,COLUMNS($K$105:K117)-1),"") ->  | J126: =IF(OFFSET(DE100_14!$L$105,ROWS($L$105:L117)-1,COLUMNS($L$105:L117)-1)<>"",OFFSET(DE100_14!$L$105,ROWS($L$105:L117)-1,COLUMNS($L$105:L117)-1),"") ->  | K126: =IF(OFFSET(DE100_14!$N$105,ROWS($N$105:N117)-1,COLUMNS($N$105:N117)-1)<>"",OFFSET(DE100_14!$N$105,ROWS($N$105:N117)-1,COLUMNS($N$105:N117)-1),"") -> 
A127: =IF(OFFSET(DE100_14!$C$105,ROWS($C$105:C118)-1,COLUMNS($C$105:C118)-1)<>"",OFFSET(DE100_14!$C$105,ROWS($C$105:C118)-1,COLUMNS($C$105:C118)-1),"") ->  | B127: =IF(OFFSET(DE100_14!$D$105,ROWS($D$105:D118)-1,COLUMNS($D$105:D118)-1)<>"",OFFSET(DE100_14!$D$105,ROWS($D$105:D118)-1,COLUMNS($D$105:D118)-1),"") ->  | C127: =IF(OFFSET(DE100_14!$E$105,ROWS($E$105:E118)-1,COLUMNS($E$105:E118)-1)<>"",OFFSET(DE100_14!$E$105,ROWS($E$105:E118)-1,COLUMNS($E$105:E118)-1),"") ->  | D127: =IF(OFFSET(DE100_14!$F$105,ROWS($F$105:F118)-1,COLUMNS($F$105:F118)-1)<>"",OFFSET(DE100_14!$F$105,ROWS($F$105:F118)-1,COLUMNS($F$105:F118)-1),"") ->  | E127: =IF(OFFSET(DE100_14!$G$105,ROWS($G$105:G118)-1,COLUMNS($G$105:G118)-1)<>"",OFFSET(DE100_14!$G$105,ROWS($G$105:G118)-1,COLUMNS($G$105:G118)-1),"") ->  | F127: =IF(OFFSET(DE100_14!$H$105,ROWS($H$105:H118)-1,COLUMNS($H$105:H118)-1)<>"",OFFSET(DE100_14!$H$105,ROWS($H$105:H118)-1,COLUMNS($H$105:H118)-1),"") ->  | G127: =IF(OFFSET(DE100_14!$I$105,ROWS($I$105:I118)-1,COLUMNS($I$105:I118)-1)<>"",OFFSET(DE100_14!$I$105,ROWS($I$105:I118)-1,COLUMNS($I$105:I118)-1),"") ->  | H127: =IF(OFFSET(DE100_14!$J$105,ROWS($J$105:J118)-1,COLUMNS($J$105:J118)-1)<>"",OFFSET(DE100_14!$J$105,ROWS($J$105:J118)-1,COLUMNS($J$105:J118)-1),"") ->  | I127: =IF(OFFSET(DE100_14!$K$105,ROWS($K$105:K118)-1,COLUMNS($K$105:K118)-1)<>"",OFFSET(DE100_14!$K$105,ROWS($K$105:K118)-1,COLUMNS($K$105:K118)-1),"") ->  | J127: =IF(OFFSET(DE100_14!$L$105,ROWS($L$105:L118)-1,COLUMNS($L$105:L118)-1)<>"",OFFSET(DE100_14!$L$105,ROWS($L$105:L118)-1,COLUMNS($L$105:L118)-1),"") ->  | K127: =IF(OFFSET(DE100_14!$N$105,ROWS($N$105:N118)-1,COLUMNS($N$105:N118)-1)<>"",OFFSET(DE100_14!$N$105,ROWS($N$105:N118)-1,COLUMNS($N$105:N118)-1),"") -> 
A128: =IF(OFFSET(DE100_14!$C$105,ROWS($C$105:C119)-1,COLUMNS($C$105:C119)-1)<>"",OFFSET(DE100_14!$C$105,ROWS($C$105:C119)-1,COLUMNS($C$105:C119)-1),"") ->  | B128: =IF(OFFSET(DE100_14!$D$105,ROWS($D$105:D119)-1,COLUMNS($D$105:D119)-1)<>"",OFFSET(DE100_14!$D$105,ROWS($D$105:D119)-1,COLUMNS($D$105:D119)-1),"") ->  | C128: =IF(OFFSET(DE100_14!$E$105,ROWS($E$105:E119)-1,COLUMNS($E$105:E119)-1)<>"",OFFSET(DE100_14!$E$105,ROWS($E$105:E119)-1,COLUMNS($E$105:E119)-1),"") ->  | D128: =IF(OFFSET(DE100_14!$F$105,ROWS($F$105:F119)-1,COLUMNS($F$105:F119)-1)<>"",OFFSET(DE100_14!$F$105,ROWS($F$105:F119)-1,COLUMNS($F$105:F119)-1),"") ->  | E128: =IF(OFFSET(DE100_14!$G$105,ROWS($G$105:G119)-1,COLUMNS($G$105:G119)-1)<>"",OFFSET(DE100_14!$G$105,ROWS($G$105:G119)-1,COLUMNS($G$105:G119)-1),"") ->  | F128: =IF(OFFSET(DE100_14!$H$105,ROWS($H$105:H119)-1,COLUMNS($H$105:H119)-1)<>"",OFFSET(DE100_14!$H$105,ROWS($H$105:H119)-1,COLUMNS($H$105:H119)-1),"") ->  | G128: =IF(OFFSET(DE100_14!$I$105,ROWS($I$105:I119)-1,COLUMNS($I$105:I119)-1)<>"",OFFSET(DE100_14!$I$105,ROWS($I$105:I119)-1,COLUMNS($I$105:I119)-1),"") ->  | H128: =IF(OFFSET(DE100_14!$J$105,ROWS($J$105:J119)-1,COLUMNS($J$105:J119)-1)<>"",OFFSET(DE100_14!$J$105,ROWS($J$105:J119)-1,COLUMNS($J$105:J119)-1),"") ->  | I128: =IF(OFFSET(DE100_14!$K$105,ROWS($K$105:K119)-1,COLUMNS($K$105:K119)-1)<>"",OFFSET(DE100_14!$K$105,ROWS($K$105:K119)-1,COLUMNS($K$105:K119)-1),"") ->  | J128: =IF(OFFSET(DE100_14!$L$105,ROWS($L$105:L119)-1,COLUMNS($L$105:L119)-1)<>"",OFFSET(DE100_14!$L$105,ROWS($L$105:L119)-1,COLUMNS($L$105:L119)-1),"") ->  | K128: =IF(OFFSET(DE100_14!$N$105,ROWS($N$105:N119)-1,COLUMNS($N$105:N119)-1)<>"",OFFSET(DE100_14!$N$105,ROWS($N$105:N119)-1,COLUMNS($N$105:N119)-1),"") -> 
A129: =IF(OFFSET(DE100_14!$C$105,ROWS($C$105:C120)-1,COLUMNS($C$105:C120)-1)<>"",OFFSET(DE100_14!$C$105,ROWS($C$105:C120)-1,COLUMNS($C$105:C120)-1),"") ->  | B129: =IF(OFFSET(DE100_14!$D$105,ROWS($D$105:D120)-1,COLUMNS($D$105:D120)-1)<>"",OFFSET(DE100_14!$D$105,ROWS($D$105:D120)-1,COLUMNS($D$105:D120)-1),"") ->  | C129: =IF(OFFSET(DE100_14!$E$105,ROWS($E$105:E120)-1,COLUMNS($E$105:E120)-1)<>"",OFFSET(DE100_14!$E$105,ROWS($E$105:E120)-1,COLUMNS($E$105:E120)-1),"") ->  | D129: =IF(OFFSET(DE100_14!$F$105,ROWS($F$105:F120)-1,COLUMNS($F$105:F120)-1)<>"",OFFSET(DE100_14!$F$105,ROWS($F$105:F120)-1,COLUMNS($F$105:F120)-1),"") ->  | E129: =IF(OFFSET(DE100_14!$G$105,ROWS($G$105:G120)-1,COLUMNS($G$105:G120)-1)<>"",OFFSET(DE100_14!$G$105,ROWS($G$105:G120)-1,COLUMNS($G$105:G120)-1),"") ->  | F129: =IF(OFFSET(DE100_14!$H$105,ROWS($H$105:H120)-1,COLUMNS($H$105:H120)-1)<>"",OFFSET(DE100_14!$H$105,ROWS($H$105:H120)-1,COLUMNS($H$105:H120)-1),"") ->  | G129: =IF(OFFSET(DE100_14!$I$105,ROWS($I$105:I120)-1,COLUMNS($I$105:I120)-1)<>"",OFFSET(DE100_14!$I$105,ROWS($I$105:I120)-1,COLUMNS($I$105:I120)-1),"") ->  | H129: =IF(OFFSET(DE100_14!$J$105,ROWS($J$105:J120)-1,COLUMNS($J$105:J120)-1)<>"",OFFSET(DE100_14!$J$105,ROWS($J$105:J120)-1,COLUMNS($J$105:J120)-1),"") ->  | I129: =IF(OFFSET(DE100_14!$K$105,ROWS($K$105:K120)-1,COLUMNS($K$105:K120)-1)<>"",OFFSET(DE100_14!$K$105,ROWS($K$105:K120)-1,COLUMNS($K$105:K120)-1),"") ->  | J129: =IF(OFFSET(DE100_14!$L$105,ROWS($L$105:L120)-1,COLUMNS($L$105:L120)-1)<>"",OFFSET(DE100_14!$L$105,ROWS($L$105:L120)-1,COLUMNS($L$105:L120)-1),"") ->  | K129: =IF(OFFSET(DE100_14!$N$105,ROWS($N$105:N120)-1,COLUMNS($N$105:N120)-1)<>"",OFFSET(DE100_14!$N$105,ROWS($N$105:N120)-1,COLUMNS($N$105:N120)-1),"") -> 
A130: =IF(OFFSET(DE100_14!$C$105,ROWS($C$105:C121)-1,COLUMNS($C$105:C121)-1)<>"",OFFSET(DE100_14!$C$105,ROWS($C$105:C121)-1,COLUMNS($C$105:C121)-1),"") ->  | B130: =IF(OFFSET(DE100_14!$D$105,ROWS($D$105:D121)-1,COLUMNS($D$105:D121)-1)<>"",OFFSET(DE100_14!$D$105,ROWS($D$105:D121)-1,COLUMNS($D$105:D121)-1),"") ->  | C130: =IF(OFFSET(DE100_14!$E$105,ROWS($E$105:E121)-1,COLUMNS($E$105:E121)-1)<>"",OFFSET(DE100_14!$E$105,ROWS($E$105:E121)-1,COLUMNS($E$105:E121)-1),"") ->  | D130: =IF(OFFSET(DE100_14!$F$105,ROWS($F$105:F121)-1,COLUMNS($F$105:F121)-1)<>"",OFFSET(DE100_14!$F$105,ROWS($F$105:F121)-1,COLUMNS($F$105:F121)-1),"") ->  | E130: =IF(OFFSET(DE100_14!$G$105,ROWS($G$105:G121)-1,COLUMNS($G$105:G121)-1)<>"",OFFSET(DE100_14!$G$105,ROWS($G$105:G121)-1,COLUMNS($G$105:G121)-1),"") ->  | F130: =IF(OFFSET(DE100_14!$H$105,ROWS($H$105:H121)-1,COLUMNS($H$105:H121)-1)<>"",OFFSET(DE100_14!$H$105,ROWS($H$105:H121)-1,COLUMNS($H$105:H121)-1),"") ->  | G130: =IF(OFFSET(DE100_14!$I$105,ROWS($I$105:I121)-1,COLUMNS($I$105:I121)-1)<>"",OFFSET(DE100_14!$I$105,ROWS($I$105:I121)-1,COLUMNS($I$105:I121)-1),"") ->  | H130: =IF(OFFSET(DE100_14!$J$105,ROWS($J$105:J121)-1,COLUMNS($J$105:J121)-1)<>"",OFFSET(DE100_14!$J$105,ROWS($J$105:J121)-1,COLUMNS($J$105:J121)-1),"") ->  | I130: =IF(OFFSET(DE100_14!$K$105,ROWS($K$105:K121)-1,COLUMNS($K$105:K121)-1)<>"",OFFSET(DE100_14!$K$105,ROWS($K$105:K121)-1,COLUMNS($K$105:K121)-1),"") ->  | J130: =IF(OFFSET(DE100_14!$L$105,ROWS($L$105:L121)-1,COLUMNS($L$105:L121)-1)<>"",OFFSET(DE100_14!$L$105,ROWS($L$105:L121)-1,COLUMNS($L$105:L121)-1),"") ->  | K130: =IF(OFFSET(DE100_14!$N$105,ROWS($N$105:N121)-1,COLUMNS($N$105:N121)-1)<>"",OFFSET(DE100_14!$N$105,ROWS($N$105:N121)-1,COLUMNS($N$105:N121)-1),"") -> 
A131: =IF(OFFSET(DE100_14!$C$105,ROWS($C$105:C122)-1,COLUMNS($C$105:C122)-1)<>"",OFFSET(DE100_14!$C$105,ROWS($C$105:C122)-1,COLUMNS($C$105:C122)-1),"") ->  | B131: =IF(OFFSET(DE100_14!$D$105,ROWS($D$105:D122)-1,COLUMNS($D$105:D122)-1)<>"",OFFSET(DE100_14!$D$105,ROWS($D$105:D122)-1,COLUMNS($D$105:D122)-1),"") ->  | C131: =IF(OFFSET(DE100_14!$E$105,ROWS($E$105:E122)-1,COLUMNS($E$105:E122)-1)<>"",OFFSET(DE100_14!$E$105,ROWS($E$105:E122)-1,COLUMNS($E$105:E122)-1),"") ->  | D131: =IF(OFFSET(DE100_14!$F$105,ROWS($F$105:F122)-1,COLUMNS($F$105:F122)-1)<>"",OFFSET(DE100_14!$F$105,ROWS($F$105:F122)-1,COLUMNS($F$105:F122)-1),"") ->  | E131: =IF(OFFSET(DE100_14!$G$105,ROWS($G$105:G122)-1,COLUMNS($G$105:G122)-1)<>"",OFFSET(DE100_14!$G$105,ROWS($G$105:G122)-1,COLUMNS($G$105:G122)-1),"") ->  | F131: =IF(OFFSET(DE100_14!$H$105,ROWS($H$105:H122)-1,COLUMNS($H$105:H122)-1)<>"",OFFSET(DE100_14!$H$105,ROWS($H$105:H122)-1,COLUMNS($H$105:H122)-1),"") ->  | G131: =IF(OFFSET(DE100_14!$I$105,ROWS($I$105:I122)-1,COLUMNS($I$105:I122)-1)<>"",OFFSET(DE100_14!$I$105,ROWS($I$105:I122)-1,COLUMNS($I$105:I122)-1),"") ->  | H131: =IF(OFFSET(DE100_14!$J$105,ROWS($J$105:J122)-1,COLUMNS($J$105:J122)-1)<>"",OFFSET(DE100_14!$J$105,ROWS($J$105:J122)-1,COLUMNS($J$105:J122)-1),"") ->  | I131: =IF(OFFSET(DE100_14!$K$105,ROWS($K$105:K122)-1,COLUMNS($K$105:K122)-1)<>"",OFFSET(DE100_14!$K$105,ROWS($K$105:K122)-1,COLUMNS($K$105:K122)-1),"") ->  | J131: =IF(OFFSET(DE100_14!$L$105,ROWS($L$105:L122)-1,COLUMNS($L$105:L122)-1)<>"",OFFSET(DE100_14!$L$105,ROWS($L$105:L122)-1,COLUMNS($L$105:L122)-1),"") ->  | K131: =IF(OFFSET(DE100_14!$N$105,ROWS($N$105:N122)-1,COLUMNS($N$105:N122)-1)<>"",OFFSET(DE100_14!$N$105,ROWS($N$105:N122)-1,COLUMNS($N$105:N122)-1),"") -> 
A132: =IF(OFFSET(DE100_14!$C$105,ROWS($C$105:C123)-1,COLUMNS($C$105:C123)-1)<>"",OFFSET(DE100_14!$C$105,ROWS($C$105:C123)-1,COLUMNS($C$105:C123)-1),"") ->  | B132: =IF(OFFSET(DE100_14!$D$105,ROWS($D$105:D123)-1,COLUMNS($D$105:D123)-1)<>"",OFFSET(DE100_14!$D$105,ROWS($D$105:D123)-1,COLUMNS($D$105:D123)-1),"") ->  | C132: =IF(OFFSET(DE100_14!$E$105,ROWS($E$105:E123)-1,COLUMNS($E$105:E123)-1)<>"",OFFSET(DE100_14!$E$105,ROWS($E$105:E123)-1,COLUMNS($E$105:E123)-1),"") ->  | D132: =IF(OFFSET(DE100_14!$F$105,ROWS($F$105:F123)-1,COLUMNS($F$105:F123)-1)<>"",OFFSET(DE100_14!$F$105,ROWS($F$105:F123)-1,COLUMNS($F$105:F123)-1),"") ->  | E132: =IF(OFFSET(DE100_14!$G$105,ROWS($G$105:G123)-1,COLUMNS($G$105:G123)-1)<>"",OFFSET(DE100_14!$G$105,ROWS($G$105:G123)-1,COLUMNS($G$105:G123)-1),"") ->  | F132: =IF(OFFSET(DE100_14!$H$105,ROWS($H$105:H123)-1,COLUMNS($H$105:H123)-1)<>"",OFFSET(DE100_14!$H$105,ROWS($H$105:H123)-1,COLUMNS($H$105:H123)-1),"") ->  | G132: =IF(OFFSET(DE100_14!$I$105,ROWS($I$105:I123)-1,COLUMNS($I$105:I123)-1)<>"",OFFSET(DE100_14!$I$105,ROWS($I$105:I123)-1,COLUMNS($I$105:I123)-1),"") ->  | H132: =IF(OFFSET(DE100_14!$J$105,ROWS($J$105:J123)-1,COLUMNS($J$105:J123)-1)<>"",OFFSET(DE100_14!$J$105,ROWS($J$105:J123)-1,COLUMNS($J$105:J123)-1),"") ->  | I132: =IF(OFFSET(DE100_14!$K$105,ROWS($K$105:K123)-1,COLUMNS($K$105:K123)-1)<>"",OFFSET(DE100_14!$K$105,ROWS($K$105:K123)-1,COLUMNS($K$105:K123)-1),"") ->  | J132: =IF(OFFSET(DE100_14!$L$105,ROWS($L$105:L123)-1,COLUMNS($L$105:L123)-1)<>"",OFFSET(DE100_14!$L$105,ROWS($L$105:L123)-1,COLUMNS($L$105:L123)-1),"") ->  | K132: =IF(OFFSET(DE100_14!$N$105,ROWS($N$105:N123)-1,COLUMNS($N$105:N123)-1)<>"",OFFSET(DE100_14!$N$105,ROWS($N$105:N123)-1,COLUMNS($N$105:N123)-1),"") -> 
A133: =IF(OFFSET(DE100_14!$C$105,ROWS($C$105:C124)-1,COLUMNS($C$105:C124)-1)<>"",OFFSET(DE100_14!$C$105,ROWS($C$105:C124)-1,COLUMNS($C$105:C124)-1),"") ->  | B133: =IF(OFFSET(DE100_14!$D$105,ROWS($D$105:D124)-1,COLUMNS($D$105:D124)-1)<>"",OFFSET(DE100_14!$D$105,ROWS($D$105:D124)-1,COLUMNS($D$105:D124)-1),"") ->  | C133: =IF(OFFSET(DE100_14!$E$105,ROWS($E$105:E124)-1,COLUMNS($E$105:E124)-1)<>"",OFFSET(DE100_14!$E$105,ROWS($E$105:E124)-1,COLUMNS($E$105:E124)-1),"") ->  | D133: =IF(OFFSET(DE100_14!$F$105,ROWS($F$105:F124)-1,COLUMNS($F$105:F124)-1)<>"",OFFSET(DE100_14!$F$105,ROWS($F$105:F124)-1,COLUMNS($F$105:F124)-1),"") ->  | E133: =IF(OFFSET(DE100_14!$G$105,ROWS($G$105:G124)-1,COLUMNS($G$105:G124)-1)<>"",OFFSET(DE100_14!$G$105,ROWS($G$105:G124)-1,COLUMNS($G$105:G124)-1),"") ->  | F133: =IF(OFFSET(DE100_14!$H$105,ROWS($H$105:H124)-1,COLUMNS($H$105:H124)-1)<>"",OFFSET(DE100_14!$H$105,ROWS($H$105:H124)-1,COLUMNS($H$105:H124)-1),"") ->  | G133: =IF(OFFSET(DE100_14!$I$105,ROWS($I$105:I124)-1,COLUMNS($I$105:I124)-1)<>"",OFFSET(DE100_14!$I$105,ROWS($I$105:I124)-1,COLUMNS($I$105:I124)-1),"") ->  | H133: =IF(OFFSET(DE100_14!$J$105,ROWS($J$105:J124)-1,COLUMNS($J$105:J124)-1)<>"",OFFSET(DE100_14!$J$105,ROWS($J$105:J124)-1,COLUMNS($J$105:J124)-1),"") ->  | I133: =IF(OFFSET(DE100_14!$K$105,ROWS($K$105:K124)-1,COLUMNS($K$105:K124)-1)<>"",OFFSET(DE100_14!$K$105,ROWS($K$105:K124)-1,COLUMNS($K$105:K124)-1),"") ->  | J133: =IF(OFFSET(DE100_14!$L$105,ROWS($L$105:L124)-1,COLUMNS($L$105:L124)-1)<>"",OFFSET(DE100_14!$L$105,ROWS($L$105:L124)-1,COLUMNS($L$105:L124)-1),"") ->  | K133: =IF(OFFSET(DE100_14!$N$105,ROWS($N$105:N124)-1,COLUMNS($N$105:N124)-1)<>"",OFFSET(DE100_14!$N$105,ROWS($N$105:N124)-1,COLUMNS($N$105:N124)-1),"") -> 
A134: =IF(OFFSET(DE100_14!$C$105,ROWS($C$105:C125)-1,COLUMNS($C$105:C125)-1)<>"",OFFSET(DE100_14!$C$105,ROWS($C$105:C125)-1,COLUMNS($C$105:C125)-1),"") ->  | B134: =IF(OFFSET(DE100_14!$D$105,ROWS($D$105:D125)-1,COLUMNS($D$105:D125)-1)<>"",OFFSET(DE100_14!$D$105,ROWS($D$105:D125)-1,COLUMNS($D$105:D125)-1),"") ->  | C134: =IF(OFFSET(DE100_14!$E$105,ROWS($E$105:E125)-1,COLUMNS($E$105:E125)-1)<>"",OFFSET(DE100_14!$E$105,ROWS($E$105:E125)-1,COLUMNS($E$105:E125)-1),"") ->  | D134: =IF(OFFSET(DE100_14!$F$105,ROWS($F$105:F125)-1,COLUMNS($F$105:F125)-1)<>"",OFFSET(DE100_14!$F$105,ROWS($F$105:F125)-1,COLUMNS($F$105:F125)-1),"") ->  | E134: =IF(OFFSET(DE100_14!$G$105,ROWS($G$105:G125)-1,COLUMNS($G$105:G125)-1)<>"",OFFSET(DE100_14!$G$105,ROWS($G$105:G125)-1,COLUMNS($G$105:G125)-1),"") ->  | F134: =IF(OFFSET(DE100_14!$H$105,ROWS($H$105:H125)-1,COLUMNS($H$105:H125)-1)<>"",OFFSET(DE100_14!$H$105,ROWS($H$105:H125)-1,COLUMNS($H$105:H125)-1),"") ->  | G134: =IF(OFFSET(DE100_14!$I$105,ROWS($I$105:I125)-1,COLUMNS($I$105:I125)-1)<>"",OFFSET(DE100_14!$I$105,ROWS($I$105:I125)-1,COLUMNS($I$105:I125)-1),"") ->  | H134: =IF(OFFSET(DE100_14!$J$105,ROWS($J$105:J125)-1,COLUMNS($J$105:J125)-1)<>"",OFFSET(DE100_14!$J$105,ROWS($J$105:J125)-1,COLUMNS($J$105:J125)-1),"") ->  | I134: =IF(OFFSET(DE100_14!$K$105,ROWS($K$105:K125)-1,COLUMNS($K$105:K125)-1)<>"",OFFSET(DE100_14!$K$105,ROWS($K$105:K125)-1,COLUMNS($K$105:K125)-1),"") ->  | J134: =IF(OFFSET(DE100_14!$L$105,ROWS($L$105:L125)-1,COLUMNS($L$105:L125)-1)<>"",OFFSET(DE100_14!$L$105,ROWS($L$105:L125)-1,COLUMNS($L$105:L125)-1),"") ->  | K134: =IF(OFFSET(DE100_14!$N$105,ROWS($N$105:N125)-1,COLUMNS($N$105:N125)-1)<>"",OFFSET(DE100_14!$N$105,ROWS($N$105:N125)-1,COLUMNS($N$105:N125)-1),"") -> 
A135: =IF(OFFSET(DE100_14!$C$105,ROWS($C$105:C126)-1,COLUMNS($C$105:C126)-1)<>"",OFFSET(DE100_14!$C$105,ROWS($C$105:C126)-1,COLUMNS($C$105:C126)-1),"") ->  | B135: =IF(OFFSET(DE100_14!$D$105,ROWS($D$105:D126)-1,COLUMNS($D$105:D126)-1)<>"",OFFSET(DE100_14!$D$105,ROWS($D$105:D126)-1,COLUMNS($D$105:D126)-1),"") ->  | C135: =IF(OFFSET(DE100_14!$E$105,ROWS($E$105:E126)-1,COLUMNS($E$105:E126)-1)<>"",OFFSET(DE100_14!$E$105,ROWS($E$105:E126)-1,COLUMNS($E$105:E126)-1),"") ->  | D135: =IF(OFFSET(DE100_14!$F$105,ROWS($F$105:F126)-1,COLUMNS($F$105:F126)-1)<>"",OFFSET(DE100_14!$F$105,ROWS($F$105:F126)-1,COLUMNS($F$105:F126)-1),"") ->  | E135: =IF(OFFSET(DE100_14!$G$105,ROWS($G$105:G126)-1,COLUMNS($G$105:G126)-1)<>"",OFFSET(DE100_14!$G$105,ROWS($G$105:G126)-1,COLUMNS($G$105:G126)-1),"") ->  | F135: =IF(OFFSET(DE100_14!$H$105,ROWS($H$105:H126)-1,COLUMNS($H$105:H126)-1)<>"",OFFSET(DE100_14!$H$105,ROWS($H$105:H126)-1,COLUMNS($H$105:H126)-1),"") ->  | G135: =IF(OFFSET(DE100_14!$I$105,ROWS($I$105:I126)-1,COLUMNS($I$105:I126)-1)<>"",OFFSET(DE100_14!$I$105,ROWS($I$105:I126)-1,COLUMNS($I$105:I126)-1),"") ->  | H135: =IF(OFFSET(DE100_14!$J$105,ROWS($J$105:J126)-1,COLUMNS($J$105:J126)-1)<>"",OFFSET(DE100_14!$J$105,ROWS($J$105:J126)-1,COLUMNS($J$105:J126)-1),"") ->  | I135: =IF(OFFSET(DE100_14!$K$105,ROWS($K$105:K126)-1,COLUMNS($K$105:K126)-1)<>"",OFFSET(DE100_14!$K$105,ROWS($K$105:K126)-1,COLUMNS($K$105:K126)-1),"") ->  | J135: =IF(OFFSET(DE100_14!$L$105,ROWS($L$105:L126)-1,COLUMNS($L$105:L126)-1)<>"",OFFSET(DE100_14!$L$105,ROWS($L$105:L126)-1,COLUMNS($L$105:L126)-1),"") ->  | K135: =IF(OFFSET(DE100_14!$N$105,ROWS($N$105:N126)-1,COLUMNS($N$105:N126)-1)<>"",OFFSET(DE100_14!$N$105,ROWS($N$105:N126)-1,COLUMNS($N$105:N126)-1),"") -> 
A136: =IF(OFFSET(DE100_14!$C$105,ROWS($C$105:C127)-1,COLUMNS($C$105:C127)-1)<>"",OFFSET(DE100_14!$C$105,ROWS($C$105:C127)-1,COLUMNS($C$105:C127)-1),"") ->  | B136: =IF(OFFSET(DE100_14!$D$105,ROWS($D$105:D127)-1,COLUMNS($D$105:D127)-1)<>"",OFFSET(DE100_14!$D$105,ROWS($D$105:D127)-1,COLUMNS($D$105:D127)-1),"") ->  | C136: =IF(OFFSET(DE100_14!$E$105,ROWS($E$105:E127)-1,COLUMNS($E$105:E127)-1)<>"",OFFSET(DE100_14!$E$105,ROWS($E$105:E127)-1,COLUMNS($E$105:E127)-1),"") ->  | D136: =IF(OFFSET(DE100_14!$F$105,ROWS($F$105:F127)-1,COLUMNS($F$105:F127)-1)<>"",OFFSET(DE100_14!$F$105,ROWS($F$105:F127)-1,COLUMNS($F$105:F127)-1),"") ->  | E136: =IF(OFFSET(DE100_14!$G$105,ROWS($G$105:G127)-1,COLUMNS($G$105:G127)-1)<>"",OFFSET(DE100_14!$G$105,ROWS($G$105:G127)-1,COLUMNS($G$105:G127)-1),"") ->  | F136: =IF(OFFSET(DE100_14!$H$105,ROWS($H$105:H127)-1,COLUMNS($H$105:H127)-1)<>"",OFFSET(DE100_14!$H$105,ROWS($H$105:H127)-1,COLUMNS($H$105:H127)-1),"") ->  | G136: =IF(OFFSET(DE100_14!$I$105,ROWS($I$105:I127)-1,COLUMNS($I$105:I127)-1)<>"",OFFSET(DE100_14!$I$105,ROWS($I$105:I127)-1,COLUMNS($I$105:I127)-1),"") ->  | H136: =IF(OFFSET(DE100_14!$J$105,ROWS($J$105:J127)-1,COLUMNS($J$105:J127)-1)<>"",OFFSET(DE100_14!$J$105,ROWS($J$105:J127)-1,COLUMNS($J$105:J127)-1),"") ->  | I136: =IF(OFFSET(DE100_14!$K$105,ROWS($K$105:K127)-1,COLUMNS($K$105:K127)-1)<>"",OFFSET(DE100_14!$K$105,ROWS($K$105:K127)-1,COLUMNS($K$105:K127)-1),"") ->  | J136: =IF(OFFSET(DE100_14!$L$105,ROWS($L$105:L127)-1,COLUMNS($L$105:L127)-1)<>"",OFFSET(DE100_14!$L$105,ROWS($L$105:L127)-1,COLUMNS($L$105:L127)-1),"") ->  | K136: =IF(OFFSET(DE100_14!$N$105,ROWS($N$105:N127)-1,COLUMNS($N$105:N127)-1)<>"",OFFSET(DE100_14!$N$105,ROWS($N$105:N127)-1,COLUMNS($N$105:N127)-1),"") -> 
A137: =IF(OFFSET(DE100_14!$C$105,ROWS($C$105:C128)-1,COLUMNS($C$105:C128)-1)<>"",OFFSET(DE100_14!$C$105,ROWS($C$105:C128)-1,COLUMNS($C$105:C128)-1),"") ->  | B137: =IF(OFFSET(DE100_14!$D$105,ROWS($D$105:D128)-1,COLUMNS($D$105:D128)-1)<>"",OFFSET(DE100_14!$D$105,ROWS($D$105:D128)-1,COLUMNS($D$105:D128)-1),"") ->  | C137: =IF(OFFSET(DE100_14!$E$105,ROWS($E$105:E128)-1,COLUMNS($E$105:E128)-1)<>"",OFFSET(DE100_14!$E$105,ROWS($E$105:E128)-1,COLUMNS($E$105:E128)-1),"") ->  | D137: =IF(OFFSET(DE100_14!$F$105,ROWS($F$105:F128)-1,COLUMNS($F$105:F128)-1)<>"",OFFSET(DE100_14!$F$105,ROWS($F$105:F128)-1,COLUMNS($F$105:F128)-1),"") ->  | E137: =IF(OFFSET(DE100_14!$G$105,ROWS($G$105:G128)-1,COLUMNS($G$105:G128)-1)<>"",OFFSET(DE100_14!$G$105,ROWS($G$105:G128)-1,COLUMNS($G$105:G128)-1),"") ->  | F137: =IF(OFFSET(DE100_14!$H$105,ROWS($H$105:H128)-1,COLUMNS($H$105:H128)-1)<>"",OFFSET(DE100_14!$H$105,ROWS($H$105:H128)-1,COLUMNS($H$105:H128)-1),"") ->  | G137: =IF(OFFSET(DE100_14!$I$105,ROWS($I$105:I128)-1,COLUMNS($I$105:I128)-1)<>"",OFFSET(DE100_14!$I$105,ROWS($I$105:I128)-1,COLUMNS($I$105:I128)-1),"") ->  | H137: =IF(OFFSET(DE100_14!$J$105,ROWS($J$105:J128)-1,COLUMNS($J$105:J128)-1)<>"",OFFSET(DE100_14!$J$105,ROWS($J$105:J128)-1,COLUMNS($J$105:J128)-1),"") ->  | I137: =IF(OFFSET(DE100_14!$K$105,ROWS($K$105:K128)-1,COLUMNS($K$105:K128)-1)<>"",OFFSET(DE100_14!$K$105,ROWS($K$105:K128)-1,COLUMNS($K$105:K128)-1),"") ->  | J137: =IF(OFFSET(DE100_14!$L$105,ROWS($L$105:L128)-1,COLUMNS($L$105:L128)-1)<>"",OFFSET(DE100_14!$L$105,ROWS($L$105:L128)-1,COLUMNS($L$105:L128)-1),"") ->  | K137: =IF(OFFSET(DE100_14!$N$105,ROWS($N$105:N128)-1,COLUMNS($N$105:N128)-1)<>"",OFFSET(DE100_14!$N$105,ROWS($N$105:N128)-1,COLUMNS($N$105:N128)-1),"") -> 
A138: =IF(OFFSET(DE100_14!$C$105,ROWS($C$105:C129)-1,COLUMNS($C$105:C129)-1)<>"",OFFSET(DE100_14!$C$105,ROWS($C$105:C129)-1,COLUMNS($C$105:C129)-1),"") ->  | B138: =IF(OFFSET(DE100_14!$D$105,ROWS($D$105:D129)-1,COLUMNS($D$105:D129)-1)<>"",OFFSET(DE100_14!$D$105,ROWS($D$105:D129)-1,COLUMNS($D$105:D129)-1),"") ->  | C138: =IF(OFFSET(DE100_14!$E$105,ROWS($E$105:E129)-1,COLUMNS($E$105:E129)-1)<>"",OFFSET(DE100_14!$E$105,ROWS($E$105:E129)-1,COLUMNS($E$105:E129)-1),"") ->  | D138: =IF(OFFSET(DE100_14!$F$105,ROWS($F$105:F129)-1,COLUMNS($F$105:F129)-1)<>"",OFFSET(DE100_14!$F$105,ROWS($F$105:F129)-1,COLUMNS($F$105:F129)-1),"") ->  | E138: =IF(OFFSET(DE100_14!$G$105,ROWS($G$105:G129)-1,COLUMNS($G$105:G129)-1)<>"",OFFSET(DE100_14!$G$105,ROWS($G$105:G129)-1,COLUMNS($G$105:G129)-1),"") ->  | F138: =IF(OFFSET(DE100_14!$H$105,ROWS($H$105:H129)-1,COLUMNS($H$105:H129)-1)<>"",OFFSET(DE100_14!$H$105,ROWS($H$105:H129)-1,COLUMNS($H$105:H129)-1),"") ->  | G138: =IF(OFFSET(DE100_14!$I$105,ROWS($I$105:I129)-1,COLUMNS($I$105:I129)-1)<>"",OFFSET(DE100_14!$I$105,ROWS($I$105:I129)-1,COLUMNS($I$105:I129)-1),"") ->  | H138: =IF(OFFSET(DE100_14!$J$105,ROWS($J$105:J129)-1,COLUMNS($J$105:J129)-1)<>"",OFFSET(DE100_14!$J$105,ROWS($J$105:J129)-1,COLUMNS($J$105:J129)-1),"") ->  | I138: =IF(OFFSET(DE100_14!$K$105,ROWS($K$105:K129)-1,COLUMNS($K$105:K129)-1)<>"",OFFSET(DE100_14!$K$105,ROWS($K$105:K129)-1,COLUMNS($K$105:K129)-1),"") ->  | J138: =IF(OFFSET(DE100_14!$L$105,ROWS($L$105:L129)-1,COLUMNS($L$105:L129)-1)<>"",OFFSET(DE100_14!$L$105,ROWS($L$105:L129)-1,COLUMNS($L$105:L129)-1),"") ->  | K138: =IF(OFFSET(DE100_14!$N$105,ROWS($N$105:N129)-1,COLUMNS($N$105:N129)-1)<>"",OFFSET(DE100_14!$N$105,ROWS($N$105:N129)-1,COLUMNS($N$105:N129)-1),"") -> 
A139: =IF(OFFSET(DE100_14!$C$105,ROWS($C$105:C130)-1,COLUMNS($C$105:C130)-1)<>"",OFFSET(DE100_14!$C$105,ROWS($C$105:C130)-1,COLUMNS($C$105:C130)-1),"") ->  | B139: =IF(OFFSET(DE100_14!$D$105,ROWS($D$105:D130)-1,COLUMNS($D$105:D130)-1)<>"",OFFSET(DE100_14!$D$105,ROWS($D$105:D130)-1,COLUMNS($D$105:D130)-1),"") ->  | C139: =IF(OFFSET(DE100_14!$E$105,ROWS($E$105:E130)-1,COLUMNS($E$105:E130)-1)<>"",OFFSET(DE100_14!$E$105,ROWS($E$105:E130)-1,COLUMNS($E$105:E130)-1),"") ->  | D139: =IF(OFFSET(DE100_14!$F$105,ROWS($F$105:F130)-1,COLUMNS($F$105:F130)-1)<>"",OFFSET(DE100_14!$F$105,ROWS($F$105:F130)-1,COLUMNS($F$105:F130)-1),"") ->  | E139: =IF(OFFSET(DE100_14!$G$105,ROWS($G$105:G130)-1,COLUMNS($G$105:G130)-1)<>"",OFFSET(DE100_14!$G$105,ROWS($G$105:G130)-1,COLUMNS($G$105:G130)-1),"") ->  | F139: =IF(OFFSET(DE100_14!$H$105,ROWS($H$105:H130)-1,COLUMNS($H$105:H130)-1)<>"",OFFSET(DE100_14!$H$105,ROWS($H$105:H130)-1,COLUMNS($H$105:H130)-1),"") ->  | G139: =IF(OFFSET(DE100_14!$I$105,ROWS($I$105:I130)-1,COLUMNS($I$105:I130)-1)<>"",OFFSET(DE100_14!$I$105,ROWS($I$105:I130)-1,COLUMNS($I$105:I130)-1),"") ->  | H139: =IF(OFFSET(DE100_14!$J$105,ROWS($J$105:J130)-1,COLUMNS($J$105:J130)-1)<>"",OFFSET(DE100_14!$J$105,ROWS($J$105:J130)-1,COLUMNS($J$105:J130)-1),"") ->  | I139: =IF(OFFSET(DE100_14!$K$105,ROWS($K$105:K130)-1,COLUMNS($K$105:K130)-1)<>"",OFFSET(DE100_14!$K$105,ROWS($K$105:K130)-1,COLUMNS($K$105:K130)-1),"") ->  | J139: =IF(OFFSET(DE100_14!$L$105,ROWS($L$105:L130)-1,COLUMNS($L$105:L130)-1)<>"",OFFSET(DE100_14!$L$105,ROWS($L$105:L130)-1,COLUMNS($L$105:L130)-1),"") ->  | K139: =IF(OFFSET(DE100_14!$N$105,ROWS($N$105:N130)-1,COLUMNS($N$105:N130)-1)<>"",OFFSET(DE100_14!$N$105,ROWS($N$105:N130)-1,COLUMNS($N$105:N130)-1),"") -> 
